Workbook

Sheet CONTROL (hidden)

Sheet Index
A2: An Official Statistics publication detailing statistics on volumes of criminal cases calling at Scottish courts.
A4: Table | B4: Charts | C4: Description | E4: Geography
A6: 1a | B6: 1b | C6: Overview of Criminal Courts: A time series of annual business volumes | E6: National data
A8: 1c | B8: N/A | C8: Criminal court cases registered in Scotland: Crime or Offence Type percentages | E8: National data
A10: 2a | B10: 2b | C10: High Court of Justiciary: A time series of quarterly business volumes for the High Court of Justiciary - Scotland's Supreme Court for Criminal cases | E10: National data
A12: 3a | B12: 3b | C12: Sheriff Court - Solemn: A time series of quarterly business volumes for solemn criminal cases calling in Scotland's Sheriff Courts. | E12: National and Court level data
A14: 4a | B14: 4b | C14: Sheriff Court - Summary: A time series of quarterly business volumes for summary criminal cases calling in Scotland's Sheriff Courts. Includes domestic abuse volumes. | E14: National and Court level data
A16: 5a | B16: 5b | C16: Justice of the Peace Court: A time series of quarterly business volumes for summary criminal cases calling in Scotland's Justice of the Peace Courts. | E16: National and Court level data
A17: 6a | B17: 6b | C17: Overview of Criminal Appeal Courts: A time series of annual business volumes for Scotland's two criminal appeal courts. | E17: National Data
A19: Worksheet
A20: 7 | C20: Flowcharts showing how criminal cases move through Scotland's courts | E20: N/A
A22: 8 | C22: Glossary: Explanation of Scottish court terminology | E22: N/A
A23: 9 | C23: Notes on data and definitions | E23: N/A
A25: 10 | C25: Chart instructions and Sheriffdom breakdown | E25: N/A

Sheet 1a
G1: Back to Index
B4: National overview of criminal court cases in Scotland | E4: 2014/15 | F4: 2015/16 | G4: 2016/17 | H4: 2017/18 | I4: 2018/19 | J4: 2019/20 | K4: 2020/21 | L4: 2021/22
B5: All Criminal courts | C5: National total of cases registered (not including petitions) | E5: =SUM(E17,E29,E40,E51) -> 145792 | F5: 134198 | G5: 118605 | H5: 109881 | I5: =SUM(I17,I29,I40,I51) -> 102825 | J5: =SUM(J17,J29,J40,J51) -> 105548 | K5: =SUM(K17,K29,K40,K51) -> 76660 | L5: =SUM(L17,L29,L40,L51) -> 85567
C6: National total of cases that called at a first hearing | E6: 136267 | F6: 125355 | G6: 110737 | H6: 103629 | I6: =SUM(I18,I30,I41,I52) -> 98039 | J6: 100922 | K6: =SUM(K18,K30,K41,K52) -> 69491 | L6: 80988
C7: National total of cases that called at a continued first hearing | E7: =SUM(E19,E31,E42,E53) -> 45367 | F7: 41352 | G7: 39674 | H7: 37001 | I7: 35098 | J7: 36514 | K7: 59984 | L7: =SUM(L19,L31,L42,L53) -> 66227
C8: National total of Section 76 (Solemn business only) | E8: =SUM(E20,E32) -> 1369 | F8: 1201 | G8: 1188 | H8: 1108 | I8: 1207 | J8: 1142 | K8: =SUM(K20,K32) -> 1029 | L8: 1185
C9: National total of intermediate diets called (Summary business only) | E9: =SUM(E43,E54) -> 119883 | F9: 125669 | G9: 111794 | H9: 97450 | I9: =SUM(I43,I54) -> 89344 | J9: 89847 | K9: =SUM(K43,K54) -> 75546 | L9: 109127
C10: National total of trials called | E10: =SUM(E21,E33,E44,E55) -> 70306 | F10: 78559 | G10: 72135 | H10: 67227 | I10: 58786 | J10: 54744 | K10: =SUM(K21,K33,K44,K55) -> 30217 | L10: 65297
C11: National total of trials called where evidence was led | E11: =SUM(E22,E34,E45,E56) -> 13936 | F11: =SUM(F22,F34,F45,F56) -> 14583 | G11: 13549 | H11: 11779 | I11: =SUM(I22,I34,I45,I56) -> 11142 | J11: 10121 | K11: =SUM(K22,K34,K45,K56) -> 3545 | L11: 7505
C12: National total of trials adjourned due to lack of court time | E12: =SUM(E23,E35,E46,E57) -> 3951 | F12: 4304 | G12: 3331 | H12: 2770 | I12: =SUM(I23,I35,I46,I57) -> 2050 | J12: =SUM(J23,J35,J46,J57) -> 1574 | K12: =SUM(K23,K35,K46,K57) -> 371 | L12: =SUM(L23,L35,L46,L57) -> 1259
C13: Percentage of trials adjourned due to lack of court time | E13: =SUM(E12/E10) -> 0.05619719512 | F13: 0.0547868481 | G13: 0.04617730644 | H13: 0.04120368304 | I13: 0.03487224849 | J13: 0.02875200935 | K13: =SUM(K12/K10) -> 0.01227785684 | L13: 0.01928113083
C14: National total of trials scheduled at end of period | E14: =SUM(E25,E37,E48,E59) -> 33206 | F14: 29962 | G14: 22118 | H14: 18173 | I14: =SUM(I25,I37,I48,I59) -> 16011 | J14: 18355 | K14: =SUM(K25,K37,K48,K59) -> 37801 | L14: 40923
C15: National total of cases concluded | E15: 130982 | F15: 125070 | G15: 115970 | H15: 104105 | I15: =SUM(I26,I38,I49,I60) -> 97394 | J15: =SUM(J26,J38,J49,J60) -> 93903 | K15: 46159 | L15: =SUM(L26,L38,L49,L60) -> 82147
D16: 2013/14
B17: High Court | C17: Indictments registered | D17: =SUMIFS(#REF!,#REF!,#REF!,#REF!,"NATIONAL") ->  | E17: =SUMIFS('High Court Raw Data'!$E:$E,'High Court Raw Data'!$A:$A,"2014/15") -> 703 | F17: =SUMIFS('High Court Raw Data'!$E:$E,'High Court Raw Data'!$A:$A,"2015/16") -> 639 | G17: =SUMIFS('High Court Raw Data'!$E:$E,'High Court Raw Data'!$A:$A,"2016/17") -> 587 | H17: =SUMIFS('High Court Raw Data'!$E:$E,'High Court Raw Data'!$A:$A,"2017/18") -> 718 | I17: =SUMIFS('High Court Raw Data'!$E:$E,'High Court Raw Data'!$A:$A,"2018/19") -> 911 | J17: =SUMIFS('High Court Raw Data'!$E:$E,'High Court Raw Data'!$A:$A,"2019/20") -> 1024 | K17: =SUMIFS('High Court Raw Data'!$E:$E,'High Court Raw Data'!$A:$A,"2020/21") -> 767 | L17: =SUMIFS('High Court Raw Data'!$E:$E,'High Court Raw Data'!$A:$A,"2021/22") -> 745
C18: Indictments called at Preliminary Hearing | D18: =SUMIFS(#REF!,#REF!,#REF!,#REF!,"NATIONAL") ->  | E18: =SUMIFS('High Court Raw Data'!$F:$F,'High Court Raw Data'!$A:$A,"2014/15") -> 744 | F18: =SUMIFS('High Court Raw Data'!$F:$F,'High Court Raw Data'!$A:$A,"2015/16") -> 683 | G18: =SUMIFS('High Court Raw Data'!$F:$F,'High Court Raw Data'!$A:$A,"2016/17") -> 615 | H18: =SUMIFS('High Court Raw Data'!$F:$F,'High Court Raw Data'!$A:$A,"2017/18") -> 598 | I18: =SUMIFS('High Court Raw Data'!$F:$F,'High Court Raw Data'!$A:$A,"2018/19") -> 887 | J18: =SUMIFS('High Court Raw Data'!$F:$F,'High Court Raw Data'!$A:$A,"2019/20") -> 981 | K18: =SUMIFS('High Court Raw Data'!$F:$F,'High Court Raw Data'!$A:$A,"2020/21") -> 725 | L18: =SUMIFS('High Court Raw Data'!$F:$F,'High Court Raw Data'!$A:$A,"2021/22") -> 638
C19: Indictments called at Continued Preliminary Hearing | D19: =SUMIFS(#REF!,#REF!,#REF!,#REF!,"NATIONAL") ->  | E19: =SUMIFS('High Court Raw Data'!$G:$G,'High Court Raw Data'!$A:$A,"2014/15") -> 431 | F19: =SUMIFS('High Court Raw Data'!$G:$G,'High Court Raw Data'!$A:$A,"2015/16") -> 249 | G19: =SUMIFS('High Court Raw Data'!$G:$G,'High Court Raw Data'!$A:$A,"2016/17") -> 251 | H19: =SUMIFS('High Court Raw Data'!$G:$G,'High Court Raw Data'!$A:$A,"2017/18") -> 273 | I19: =SUMIFS('High Court Raw Data'!$G:$G,'High Court Raw Data'!$A:$A,"2018/19") -> 434 | J19: =SUMIFS('High Court Raw Data'!$G:$G,'High Court Raw Data'!$A:$A,"2019/20") -> 437 | K19: =SUMIFS('High Court Raw Data'!$G:$G,'High Court Raw Data'!$A:$A,"2020/21") -> 791 | L19: =SUMIFS('High Court Raw Data'!$G:$G,'High Court Raw Data'!$A:$A,"2021/22") -> 716
C20: Section 76 Indictments | E20: =SUMIFS('High Court Raw Data'!$H:$H,'High Court Raw Data'!$A:$A,"2014/15") -> 109 | F20: =SUMIFS('High Court Raw Data'!$H:$H,'High Court Raw Data'!$A:$A,"2015/16") -> 109 | G20: =SUMIFS('High Court Raw Data'!$H:$H,'High Court Raw Data'!$A:$A,"2016/17") -> 84 | H20: =SUMIFS('High Court Raw Data'!$H:$H,'High Court Raw Data'!$A:$A,"2017/18") -> 74 | I20: =SUMIFS('High Court Raw Data'!$H:$H,'High Court Raw Data'!$A:$A,"2018/19") -> 88 | J20: =SUMIFS('High Court Raw Data'!$H:$H,'High Court Raw Data'!$A:$A,"2019/20") -> 94 | K20: =SUMIFS('High Court Raw Data'!$H:$H,'High Court Raw Data'!$A:$A,"2020/21") -> 84 | L20: =SUMIFS('High Court Raw Data'!$H:$H,'High Court Raw Data'!$A:$A,"2021/22") -> 78
C21: Trials called | D21: =SUMIFS(#REF!,#REF!,#REF!,#REF!,"NATIONAL") ->  | E21: =SUMIFS('High Court Raw Data'!$I:$I,'High Court Raw Data'!$A:$A,"2014/15") -> 642 | F21: =SUMIFS('High Court Raw Data'!$I:$I,'High Court Raw Data'!$A:$A,"2015/16") -> 616 | G21: =SUMIFS('High Court Raw Data'!$I:$I,'High Court Raw Data'!$A:$A,"2016/17") -> 632 | H21: =SUMIFS('High Court Raw Data'!$I:$I,'High Court Raw Data'!$A:$A,"2017/18") -> 689 | I21: =SUMIFS('High Court Raw Data'!$I:$I,'High Court Raw Data'!$A:$A,"2018/19") -> 717 | J21: =SUMIFS('High Court Raw Data'!$I:$I,'High Court Raw Data'!$A:$A,"2019/20") -> 812 | K21: =SUMIFS('High Court Raw Data'!$I:$I,'High Court Raw Data'!$A:$A,"2020/21") -> 377 | L21: =SUMIFS('High Court Raw Data'!$I:$I,'High Court Raw Data'!$A:$A,"2021/22") -> 752
C22: Trials called where evidence was led | E22: =SUMIFS('High Court Raw Data'!$J:$J,'High Court Raw Data'!$A:$A,"2014/15") -> 443 | F22: =SUMIFS('High Court Raw Data'!$J:$J,'High Court Raw Data'!$A:$A,"2015/16") -> 403 | G22: =SUMIFS('High Court Raw Data'!$J:$J,'High Court Raw Data'!$A:$A,"2016/17") -> 443 | H22: =SUMIFS('High Court Raw Data'!$J:$J,'High Court Raw Data'!$A:$A,"2017/18") -> 461 | I22: =SUMIFS('High Court Raw Data'!$J:$J,'High Court Raw Data'!$A:$A,"2018/19") -> 507 | J22: =SUMIFS('High Court Raw Data'!$J:$J,'High Court Raw Data'!$A:$A,"2019/20") -> 498 | K22: =SUMIFS('High Court Raw Data'!$J:$J,'High Court Raw Data'!$A:$A,"2020/21") -> 278 | L22: =SUMIFS('High Court Raw Data'!$J:$J,'High Court Raw Data'!$A:$A,"2021/22") -> 577
C23: Trials adjourned due to lack of court time | D23: =SUMIFS(#REF!,#REF!,"NATIONAL",#REF!,#REF!) ->  | E23: =SUMIFS('High Court Raw Data'!$K:$K,'High Court Raw Data'!$A:$A,"2014/15") -> 14 | F23: =SUMIFS('High Court Raw Data'!$K:$K,'High Court Raw Data'!$A:$A,"2015/16") -> 9 | G23: =SUMIFS('High Court Raw Data'!$K:$K,'High Court Raw Data'!$A:$A,"2016/17") -> 27 | H23: =SUMIFS('High Court Raw Data'!$K:$K,'High Court Raw Data'!$A:$A,"2017/18") -> 0 | I23: =SUMIFS('High Court Raw Data'!$K:$K,'High Court Raw Data'!$A:$A,"2018/19") -> 11 | J23: =SUMIFS('High Court Raw Data'!$K:$K,'High Court Raw Data'!$A:$A,"2019/20") -> 49 | K23: =SUMIFS('High Court Raw Data'!$K:$K,'High Court Raw Data'!$A:$A,"2020/21") -> 12 | L23: =SUMIFS('High Court Raw Data'!$K:$K,'High Court Raw Data'!$A:$A,"2021/22") -> 20
C24: Percentage of trials adjourned due to lack of court time | E24: =SUM(E23/E21) -> 0.02180685358 | F24: 0.01461038961 | G24: 0.04272151899 | H24: 0 | I24: 0.01534170153 | J24: =SUM(J23/J21) -> 0.06034482759 | K24: =IFERROR(SUM(K23/K21),0) -> 0.03183023873 | L24: =IFERROR(SUM(L23/L21),0) -> 0.02659574468
C25: Trials scheduled at end of period | D25: =SUMIFS(#REF!,#REF!,#REF!,#REF!,"NATIONAL",#REF!,"3") ->  | E25: Not Available | F25: Not Available | G25: Not Available | H25: Not Available | I25: =SUMIFS('High Court Raw Data'!$L:$L,'High Court Raw Data'!$A:$A,'High Court Raw Data'!$Y$3,'High Court Raw Data'!B:B,'High Court Raw Data'!$Z$3) -> 268 | J25: =SUMIFS('High Court Raw Data'!$L:$L,'High Court Raw Data'!$A:$A,'High Court Raw Data'!$V$3,'High Court Raw Data'!B:B,'High Court Raw Data'!$W$3) -> 390 | K25: =SUMIFS('High Court Raw Data'!$L:$L,'High Court Raw Data'!$A:$A,'High Court Raw Data'!$S$3,'High Court Raw Data'!B:B,'High Court Raw Data'!$T$3) -> 267 | L25: =SUMIFS('High Court Raw Data'!$L:$L,'High Court Raw Data'!$A:$A,'High Court Raw Data'!$P$3,'High Court Raw Data'!B:B,'High Court Raw Data'!$Q$3) -> 560
C26: Indictments concluded | E26: 733 | F26: 702 | G26: 586 | H26: 630 | I26: =SUMIFS('High Court Raw Data'!$M:$M,'High Court Raw Data'!$A:$A,'High Court Raw Data'!$Y$3) -> 822 | J26: =SUMIFS('High Court Raw Data'!$M:$M,'High Court Raw Data'!$A:$A,'High Court Raw Data'!$V$3) -> 806 | K26: =SUMIFS('High Court Raw Data'!$M:$M,'High Court Raw Data'!$A:$A,'High Court Raw Data'!$S$3) -> 455 | L26: =SUMIFS('High Court Raw Data'!$M:$M,'High Court Raw Data'!$A:$A,'High Court Raw Data'!$P$3) -> 756
B28: Sheriff Court - Solemn business | C28: Petitions registered | E28: =SUMIFS('JP SC Raw Data'!$G:$G,'JP SC Raw Data'!$F:$F,"S",'JP SC Raw Data'!$B:$B,"2014/15",'JP SC Raw Data'!$E:$E, "National") -> 10322 | F28: =SUMIFS('JP SC Raw Data'!$G:$G,'JP SC Raw Data'!$F:$F,"S",'JP SC Raw Data'!$B:$B,"2015/16",'JP SC Raw Data'!$E:$E,"National") -> 9694 | G28: =SUMIFS('JP SC Raw Data'!$G:$G,'JP SC Raw Data'!$F:$F,"S",'JP SC Raw Data'!$B:$B,"2016/17",'JP SC Raw Data'!$E:$E,"National") -> 8946 | H28: =SUMIFS('JP SC Raw Data'!$G:$G,'JP SC Raw Data'!$F:$F,"S",'JP SC Raw Data'!$B:$B,"2017/18",'JP SC Raw Data'!$E:$E,"National") -> 8539 | I28: =SUMIFS('JP SC Raw Data'!$G:$G,'JP SC Raw Data'!$F:$F,"S",'JP SC Raw Data'!$B:$B,"2018/19",'JP SC Raw Data'!$E:$E,"National") -> 9160 | J28: =SUMIFS('JP SC Raw Data'!$G:$G,'JP SC Raw Data'!$F:$F,"S",'JP SC Raw Data'!$B:$B,"2019/20",'JP SC Raw Data'!$E:$E,"National") -> 9780 | K28: =SUMIFS('JP SC Raw Data'!$G:$G,'JP SC Raw Data'!$F:$F,"S",'JP SC Raw Data'!$B:$B,"2020/21",'JP SC Raw Data'!$E:$E,"National") -> 11076 | L28: =SUMIFS('JP SC Raw Data'!$G:$G,'JP SC Raw Data'!$F:$F,"S",'JP SC Raw Data'!$B:$B,"2021/22",'JP SC Raw Data'!$E:$E,"National") -> 11769
C29: Indictments registered | D29: =SUMIFS(#REF!,#REF!,#REF!,#REF!,"NATIONAL") ->  | E29: =SUMIFS('JP SC Raw Data'!$H:$H,'JP SC Raw Data'!$F:$F,"S",'JP SC Raw Data'!$B:$B,"2014/15",'JP SC Raw Data'!$E:$E,"National") -> 6920 | F29: =SUMIFS('JP SC Raw Data'!$H:$H,'JP SC Raw Data'!$F:$F,"S",'JP SC Raw Data'!$B:$B,"2015/16",'JP SC Raw Data'!$E:$E,"National") -> 6461 | G29: =SUMIFS('JP SC Raw Data'!$H:$H,'JP SC Raw Data'!$F:$F,"S",'JP SC Raw Data'!$B:$B,"2016/17",'JP SC Raw Data'!$E:$E,"National") -> 5899 | H29: =SUMIFS('JP SC Raw Data'!$H:$H,'JP SC Raw Data'!$F:$F,"S",'JP SC Raw Data'!$B:$B,"2017/18",'JP SC Raw Data'!$E:$E,"National") -> 4979 | I29: =SUMIFS('JP SC Raw Data'!$H:$H,'JP SC Raw Data'!$F:$F,"S",'JP SC Raw Data'!$B:$B,"2018/19",'JP SC Raw Data'!$E:$E,"National") -> 5182 | J29: =SUMIFS('JP SC Raw Data'!$H:$H,'JP SC Raw Data'!$F:$F,"S",'JP SC Raw Data'!$B:$B,"2019/20",'JP SC Raw Data'!$E:$E,"National") -> 5452 | K29: =SUMIFS('JP SC Raw Data'!$H:$H,'JP SC Raw Data'!$F:$F,"S",'JP SC Raw Data'!$B:$B,"2020/21",'JP SC Raw Data'!$E:$E,"National") -> 4851 | L29: =SUMIFS('JP SC Raw Data'!$H:$H,'JP SC Raw Data'!$F:$F,"S",'JP SC Raw Data'!$B:$B,"2021/22",'JP SC Raw Data'!$E:$E,"National") -> 5759
C30: Indictments called at First Diet | D30: =SUMIFS(#REF!,#REF!,#REF!,#REF!,"NATIONAL") ->  | E30: =SUMIFS('JP SC Raw Data'!$I:$I,'JP SC Raw Data'!$F:$F,"S",'JP SC Raw Data'!$B:$B,"2014/15",'JP SC Raw Data'!$E:$E,"National") -> 9054 | F30: =SUMIFS('JP SC Raw Data'!$I:$I,'JP SC Raw Data'!$F:$F,"S",'JP SC Raw Data'!$B:$B,"2015/16",'JP SC Raw Data'!$E:$E,"National") -> 8772 | G30: =SUMIFS('JP SC Raw Data'!$I:$I,'JP SC Raw Data'!$F:$F,"S",'JP SC Raw Data'!$B:$B,"2016/17",'JP SC Raw Data'!$E:$E,"National") -> 7047 | H30: =SUMIFS('JP SC Raw Data'!$I:$I,'JP SC Raw Data'!$F:$F,"S",'JP SC Raw Data'!$B:$B,"2017/18",'JP SC Raw Data'!$E:$E,"National") -> 4922 | I30: =SUMIFS('JP SC Raw Data'!$I:$I,'JP SC Raw Data'!$F:$F,"S",'JP SC Raw Data'!$B:$B,"2018/19",'JP SC Raw Data'!$E:$E,"National") -> 4565 | J30: =SUMIFS('JP SC Raw Data'!$I:$I,'JP SC Raw Data'!$F:$F,"S",'JP SC Raw Data'!$B:$B,"2019/20",'JP SC Raw Data'!$E:$E,"National") -> 5114 | K30: =SUMIFS('JP SC Raw Data'!$I:$I,'JP SC Raw Data'!$F:$F,"S",'JP SC Raw Data'!$B:$B,"2020/21",'JP SC Raw Data'!$E:$E,"National") -> 4595 | L30: =SUMIFS('JP SC Raw Data'!$I:$I,'JP SC Raw Data'!$F:$F,"S",'JP SC Raw Data'!$B:$B,"2021/22",'JP SC Raw Data'!$E:$E,"National") -> 5633
C31: Indictments called at Continued First Diet | D31: =SUMIFS(#REF!,#REF!,#REF!,#REF!,"NATIONAL") ->  | E31: =SUMIFS('JP SC Raw Data'!$J:$J,'JP SC Raw Data'!$F:$F,"S",'JP SC Raw Data'!$B:$B,"2014/15",'JP SC Raw Data'!$E:$E,"National") -> 4984 | F31: =SUMIFS('JP SC Raw Data'!$J:$J,'JP SC Raw Data'!$F:$F,"S",'JP SC Raw Data'!$B:$B,"2015/16",'JP SC Raw Data'!$E:$E,"National") -> 3998 | G31: =SUMIFS('JP SC Raw Data'!$J:$J,'JP SC Raw Data'!$F:$F,"S",'JP SC Raw Data'!$B:$B,"2016/17",'JP SC Raw Data'!$E:$E,"National") -> 2595 | H31: =SUMIFS('JP SC Raw Data'!$J:$J,'JP SC Raw Data'!$F:$F,"S",'JP SC Raw Data'!$B:$B,"2017/18",'JP SC Raw Data'!$E:$E,"National") -> 2420 | I31: =SUMIFS('JP SC Raw Data'!$J:$J,'JP SC Raw Data'!$F:$F,"S",'JP SC Raw Data'!$B:$B,"2018/19",'JP SC Raw Data'!$E:$E,"National") -> 2622 | J31: =SUMIFS('JP SC Raw Data'!$J:$J,'JP SC Raw Data'!$F:$F,"S",'JP SC Raw Data'!$B:$B,"2019/20",'JP SC Raw Data'!$E:$E,"National") -> 2963 | K31: =SUMIFS('JP SC Raw Data'!$J:$J,'JP SC Raw Data'!$F:$F,"S",'JP SC Raw Data'!$B:$B,"2020/21",'JP SC Raw Data'!$E:$E,"National") -> 6666 | L31: =SUMIFS('JP SC Raw Data'!$J:$J,'JP SC Raw Data'!$F:$F,"S",'JP SC Raw Data'!$B:$B,"2021/22",'JP SC Raw Data'!$E:$E,"National") -> 8967
C32: Section 76 indictments | E32: =SUMIFS('JP SC Raw Data'!$K:$K,'JP SC Raw Data'!$F:$F,"S",'JP SC Raw Data'!$B:$B,"2014/15",'JP SC Raw Data'!$E:$E,"National") -> 1260 | F32: =SUMIFS('JP SC Raw Data'!$K:$K,'JP SC Raw Data'!$F:$F,"S",'JP SC Raw Data'!$B:$B,"2015/16",'JP SC Raw Data'!$E:$E,"National") -> 1092 | G32: =SUMIFS('JP SC Raw Data'!$K:$K,'JP SC Raw Data'!$F:$F,"S",'JP SC Raw Data'!$B:$B,"2016/17",'JP SC Raw Data'!$E:$E,"National") -> 1104 | H32: =SUMIFS('JP SC Raw Data'!$K:$K,'JP SC Raw Data'!$F:$F,"S",'JP SC Raw Data'!$B:$B,"2017/18",'JP SC Raw Data'!$E:$E,"National") -> 1034 | I32: =SUMIFS('JP SC Raw Data'!$K:$K,'JP SC Raw Data'!$F:$F,"S",'JP SC Raw Data'!$B:$B,"2018/19",'JP SC Raw Data'!$E:$E,"National") -> 1119 | J32: =SUMIFS('JP SC Raw Data'!$K:$K,'JP SC Raw Data'!$F:$F,"S",'JP SC Raw Data'!$B:$B,"2019/20",'JP SC Raw Data'!$E:$E,"National") -> 1048 | K32: =SUMIFS('JP SC Raw Data'!$K:$K,'JP SC Raw Data'!$F:$F,"S",'JP SC Raw Data'!$B:$B,"2020/21",'JP SC Raw Data'!$E:$E,"National") -> 945 | L32: =SUMIFS('JP SC Raw Data'!$K:$K,'JP SC Raw Data'!$F:$F,"S",'JP SC Raw Data'!$B:$B,"2021/22",'JP SC Raw Data'!$E:$E,"National") -> 1107
C33: Trials called | E33: =SUMIFS('JP SC Raw Data'!$L:$L,'JP SC Raw Data'!$F:$F,"S",'JP SC Raw Data'!$B:$B,"2014/15",'JP SC Raw Data'!$E:$E,"National") -> 5000 | F33: =SUMIFS('JP SC Raw Data'!$L:$L,'JP SC Raw Data'!$F:$F,"S",'JP SC Raw Data'!$B:$B,"2015/16",'JP SC Raw Data'!$E:$E,"National") -> 5562 | G33: =SUMIFS('JP SC Raw Data'!$L:$L,'JP SC Raw Data'!$F:$F,"S",'JP SC Raw Data'!$B:$B,"2016/17",'JP SC Raw Data'!$E:$E,"National") -> 4294 | H33: =SUMIFS('JP SC Raw Data'!$L:$L,'JP SC Raw Data'!$F:$F,"S",'JP SC Raw Data'!$B:$B,"2017/18",'JP SC Raw Data'!$E:$E,"National") -> 2833 | I33: =SUMIFS('JP SC Raw Data'!$L:$L,'JP SC Raw Data'!$F:$F,"S",'JP SC Raw Data'!$B:$B,"2018/19",'JP SC Raw Data'!$E:$E,"National") -> 2848 | J33: =SUMIFS('JP SC Raw Data'!$L:$L,'JP SC Raw Data'!$F:$F,"S",'JP SC Raw Data'!$B:$B,"2019/20",'JP SC Raw Data'!$E:$E,"National") -> 3142 | K33: =SUMIFS('JP SC Raw Data'!$L:$L,'JP SC Raw Data'!$F:$F,"S",'JP SC Raw Data'!$B:$B,"2020/21",'JP SC Raw Data'!$E:$E,"National") -> 1589 | L33: =SUMIFS('JP SC Raw Data'!$L:$L,'JP SC Raw Data'!$F:$F,"S",'JP SC Raw Data'!$B:$B,"2021/22",'JP SC Raw Data'!$E:$E,"National") -> 4459
C34: Trials called where evidence was led | E34: =SUMIFS('JP SC Raw Data'!$M:$M,'JP SC Raw Data'!$F:$F,"S",'JP SC Raw Data'!$B:$B,"2014/15",'JP SC Raw Data'!$E:$E,"National") -> 1430 | F34: =SUMIFS('JP SC Raw Data'!$M:$M,'JP SC Raw Data'!$F:$F,"S",'JP SC Raw Data'!$B:$B,"2015/16",'JP SC Raw Data'!$E:$E,"National") -> 1497 | G34: =SUMIFS('JP SC Raw Data'!$M:$M,'JP SC Raw Data'!$F:$F,"S",'JP SC Raw Data'!$B:$B,"2016/17",'JP SC Raw Data'!$E:$E,"National") -> 1314 | H34: =SUMIFS('JP SC Raw Data'!$M:$M,'JP SC Raw Data'!$F:$F,"S",'JP SC Raw Data'!$B:$B,"2017/18",'JP SC Raw Data'!$E:$E,"National") -> 1041 | I34: =SUMIFS('JP SC Raw Data'!$M:$M,'JP SC Raw Data'!$F:$F,"S",'JP SC Raw Data'!$B:$B,"2018/19",'JP SC Raw Data'!$E:$E,"National") -> 1119 | J34: =SUMIFS('JP SC Raw Data'!$M:$M,'JP SC Raw Data'!$F:$F,"S",'JP SC Raw Data'!$B:$B,"2019/20",'JP SC Raw Data'!$E:$E,"National") -> 1134 | K34: =SUMIFS('JP SC Raw Data'!$M:$M,'JP SC Raw Data'!$F:$F,"S",'JP SC Raw Data'!$B:$B,"2020/21",'JP SC Raw Data'!$E:$E,"National") -> 197 | L34: =SUMIFS('JP SC Raw Data'!$M:$M,'JP SC Raw Data'!$F:$F,"S",'JP SC Raw Data'!$B:$B,"2021/22",'JP SC Raw Data'!$E:$E,"National") -> 907
C35: Trials adjourned due to lack of court time | E35: =SUMIFS('JP SC Raw Data'!$N:$N,'JP SC Raw Data'!$F:$F,"S",'JP SC Raw Data'!$B:$B,"2014/15",'JP SC Raw Data'!$E:$E,"National") -> 353 | F35: =SUMIFS('JP SC Raw Data'!$N:$N,'JP SC Raw Data'!$F:$F,"S",'JP SC Raw Data'!$B:$B,"2015/16",'JP SC Raw Data'!$E:$E,"National") -> 343 | G35: =SUMIFS('JP SC Raw Data'!$N:$N,'JP SC Raw Data'!$F:$F,"S",'JP SC Raw Data'!$B:$B,"2016/17",'JP SC Raw Data'!$E:$E,"National") -> 215 | H35: =SUMIFS('JP SC Raw Data'!$N:$N,'JP SC Raw Data'!$F:$F,"S",'JP SC Raw Data'!$B:$B,"2017/18",'JP SC Raw Data'!$E:$E,"National") -> 108 | I35: =SUMIFS('JP SC Raw Data'!$N:$N,'JP SC Raw Data'!$F:$F,"S",'JP SC Raw Data'!$B:$B,"2018/19",'JP SC Raw Data'!$E:$E,"National") -> 56 | J35: =SUMIFS('JP SC Raw Data'!$N:$N,'JP SC Raw Data'!$F:$F,"S",'JP SC Raw Data'!$B:$B,"2019/20",'JP SC Raw Data'!$E:$E,"National") -> 57 | K35: =SUMIFS('JP SC Raw Data'!$N:$N,'JP SC Raw Data'!$F:$F,"S",'JP SC Raw Data'!$B:$B,"2020/21",'JP SC Raw Data'!$E:$E,"National") -> 35 | L35: =SUMIFS('JP SC Raw Data'!$N:$N,'JP SC Raw Data'!$F:$F,"S",'JP SC Raw Data'!$B:$B,"2021/22",'JP SC Raw Data'!$E:$E,"National") -> 293
C36: Percentage of trials adjourned due to lack of court time | E36: =SUM(E35/E33) -> 0.0706 | F36: 0.06166846458 | G36: 0.05006986493 | H36: 0.03812213202 | I36: 0.01966292135 | J36: 0.01814131127 | K36: =SUM(K35/K33) -> 0.02202643172 | L36: 0.0657098004
C37: Trials scheduled at end of period | E37: ='JP SC Raw Data'!O906 -> 886 | F37: ='JP SC Raw Data'!O605 -> 787 | G37: ='JP SC Raw Data'!O305 -> 510 | H37: ='JP SC Raw Data'!O5 -> 355 | I37: =SUMIFS('JP SC Raw Data'!$O:$O,'JP SC Raw Data'!$B:$B,'JP SC Raw Data'!$AG$2,'JP SC Raw Data'!C:C,'JP SC Raw Data'!$AH$2,'JP SC Raw Data'!D:D,"0") -> 496 | J37: =SUMIFS('JP SC Raw Data'!$O:$O,'JP SC Raw Data'!$B:$B,'JP SC Raw Data'!$AD$2,'JP SC Raw Data'!$C:$C,'JP SC Raw Data'!$AE$2,'JP SC Raw Data'!$D:$D,"0") -> 497 | K37: =SUMIFS('JP SC Raw Data'!$O:$O,'JP SC Raw Data'!$B:$B,'JP SC Raw Data'!$AJ$2,'JP SC Raw Data'!$C:$C,'JP SC Raw Data'!$AK$2,'JP SC Raw Data'!$D:$D,"0") -> 1329 | L37: =SUMIFS('JP SC Raw Data'!$O:$O,'JP SC Raw Data'!$B:$B,'JP SC Raw Data'!$AA$2,'JP SC Raw Data'!$C:$C,'JP SC Raw Data'!$AB$2,'JP SC Raw Data'!$D:$D,"0") -> 2274
C38: Indictments concluded | E38: =SUMIFS('JP SC Raw Data'!$P:$P,'JP SC Raw Data'!$F:$F,"S",'JP SC Raw Data'!$B:$B,"2014/15",'JP SC Raw Data'!$E:$E,"National") -> 5607 | F38: =SUMIFS('JP SC Raw Data'!$P:$P,'JP SC Raw Data'!$F:$F,"S",'JP SC Raw Data'!$B:$B,"2015/16",'JP SC Raw Data'!$E:$E,"National") -> 5701 | G38: =SUMIFS('JP SC Raw Data'!$P:$P,'JP SC Raw Data'!$F:$F,"S",'JP SC Raw Data'!$B:$B,"2016/17",'JP SC Raw Data'!$E:$E,"National") -> 5335 | H38: =SUMIFS('JP SC Raw Data'!$P:$P,'JP SC Raw Data'!$F:$F,"S",'JP SC Raw Data'!$B:$B,"2017/18",'JP SC Raw Data'!$E:$E,"National") -> 4533 | I38: =SUMIFS('JP SC Raw Data'!$P:$P,'JP SC Raw Data'!$F:$F,"S",'JP SC Raw Data'!$B:$B,"2018/19",'JP SC Raw Data'!$E:$E,"National") -> 4799 | J38: =SUMIFS('JP SC Raw Data'!$P:$P,'JP SC Raw Data'!$F:$F,"S",'JP SC Raw Data'!$B:$B,"2019/20",'JP SC Raw Data'!$E:$E,"National") -> 5155 | K38: =SUMIFS('JP SC Raw Data'!$P:$P,'JP SC Raw Data'!$F:$F,"S",'JP SC Raw Data'!$B:$B,"2020/21",'JP SC Raw Data'!$E:$E,"National") -> 3286 | L38: =SUMIFS('JP SC Raw Data'!$P:$P,'JP SC Raw Data'!$F:$F,"S",'JP SC Raw Data'!$B:$B,"2021/22",'JP SC Raw Data'!$E:$E,"National") -> 5132
B40: Sheriff Court -Summary business | C40: Complaints registered | E40: =SUMIFS('JP SC Raw Data'!$Q:$Q,'JP SC Raw Data'!$F:$F,"S",'JP SC Raw Data'!$B:$B,"2014/15",'JP SC Raw Data'!$E:$E,"National") -> 71350 | F40: =SUMIFS('JP SC Raw Data'!$Q:$Q,'JP SC Raw Data'!$F:$F,"S",'JP SC Raw Data'!$B:$B,"2015/16",'JP SC Raw Data'!$E:$E,"National") -> 72242 | G40: =SUMIFS('JP SC Raw Data'!$Q:$Q,'JP SC Raw Data'!$F:$F,"S",'JP SC Raw Data'!$B:$B,"2016/17",'JP SC Raw Data'!$E:$E,"National") -> 70717 | H40: =SUMIFS('JP SC Raw Data'!$Q:$Q,'JP SC Raw Data'!$F:$F,"S",'JP SC Raw Data'!$B:$B,"2017/18",'JP SC Raw Data'!$E:$E,"National") -> 65646 | I40: =SUMIFS('JP SC Raw Data'!$Q:$Q,'JP SC Raw Data'!$F:$F,"S",'JP SC Raw Data'!$B:$B,"2018/19",'JP SC Raw Data'!$E:$E,"National") -> 59777 | J40: =SUMIFS('JP SC Raw Data'!$Q:$Q,'JP SC Raw Data'!$F:$F,"S",'JP SC Raw Data'!$B:$B,"2019/20",'JP SC Raw Data'!$E:$E,"National") -> 65490 | K40: =SUMIFS('JP SC Raw Data'!$Q:$Q,'JP SC Raw Data'!$F:$F,"S",'JP SC Raw Data'!$B:$B,"2020/21",'JP SC Raw Data'!$E:$E,"National") -> 54110 | L40: =SUMIFS('JP SC Raw Data'!$Q:$Q,'JP SC Raw Data'!$F:$F,"S",'JP SC Raw Data'!$B:$B,"2021/22",'JP SC Raw Data'!$E:$E,"National") -> 55506
C41: Complaints called for first time | E41: =SUMIFS('JP SC Raw Data'!$R:$R,'JP SC Raw Data'!$F:$F,"S",'JP SC Raw Data'!$B:$B,"2014/15",'JP SC Raw Data'!$E:$E,"National") -> 62864 | F41: =SUMIFS('JP SC Raw Data'!$R:$R,'JP SC Raw Data'!$F:$F,"S",'JP SC Raw Data'!$B:$B,"2015/16",'JP SC Raw Data'!$E:$E,"National") -> 63996 | G41: =SUMIFS('JP SC Raw Data'!$R:$R,'JP SC Raw Data'!$F:$F,"S",'JP SC Raw Data'!$B:$B,"2016/17",'JP SC Raw Data'!$E:$E,"National") -> 63200 | H41: =SUMIFS('JP SC Raw Data'!$R:$R,'JP SC Raw Data'!$F:$F,"S",'JP SC Raw Data'!$B:$B,"2017/18",'JP SC Raw Data'!$E:$E,"National") -> 60290 | I41: =SUMIFS('JP SC Raw Data'!$R:$R,'JP SC Raw Data'!$F:$F,"S",'JP SC Raw Data'!$B:$B,"2018/19",'JP SC Raw Data'!$E:$E,"National") -> 55881 | J41: =SUMIFS('JP SC Raw Data'!$R:$R,'JP SC Raw Data'!$F:$F,"S",'JP SC Raw Data'!$B:$B,"2019/20",'JP SC Raw Data'!$E:$E,"National") -> 61761 | K41: =SUMIFS('JP SC Raw Data'!$R:$R,'JP SC Raw Data'!$F:$F,"S",'JP SC Raw Data'!$B:$B,"2020/21",'JP SC Raw Data'!$E:$E,"National") -> 49508 | L41: =SUMIFS('JP SC Raw Data'!$R:$R,'JP SC Raw Data'!$F:$F,"S",'JP SC Raw Data'!$B:$B,"2021/22",'JP SC Raw Data'!$E:$E,"National") -> 53357
C42: Complaints called for 'Continued Without Plea' hearing | E42: =SUMIFS('JP SC Raw Data'!$S:$S,'JP SC Raw Data'!$F:$F,"S",'JP SC Raw Data'!$B:$B,"2014/15",'JP SC Raw Data'!$E:$E,"National") -> 13380 | F42: =SUMIFS('JP SC Raw Data'!$S:$S,'JP SC Raw Data'!$F:$F,"S",'JP SC Raw Data'!$B:$B,"2015/16",'JP SC Raw Data'!$E:$E,"National") -> 13571 | G42: =SUMIFS('JP SC Raw Data'!$S:$S,'JP SC Raw Data'!$F:$F,"S",'JP SC Raw Data'!$B:$B,"2016/17",'JP SC Raw Data'!$E:$E,"National") -> 14800 | H42: =SUMIFS('JP SC Raw Data'!$S:$S,'JP SC Raw Data'!$F:$F,"S",'JP SC Raw Data'!$B:$B,"2017/18",'JP SC Raw Data'!$E:$E,"National") -> 13990 | I42: =SUMIFS('JP SC Raw Data'!$S:$S,'JP SC Raw Data'!$F:$F,"S",'JP SC Raw Data'!$B:$B,"2018/19",'JP SC Raw Data'!$E:$E,"National") -> 12163 | J42: =SUMIFS('JP SC Raw Data'!$S:$S,'JP SC Raw Data'!$F:$F,"S",'JP SC Raw Data'!$B:$B,"2019/20",'JP SC Raw Data'!$E:$E,"National") -> 14851 | K42: =SUMIFS('JP SC Raw Data'!$S:$S,'JP SC Raw Data'!$F:$F,"S",'JP SC Raw Data'!$B:$B,"2020/21",'JP SC Raw Data'!$E:$E,"National") -> 28932 | L42: =SUMIFS('JP SC Raw Data'!$S:$S,'JP SC Raw Data'!$F:$F,"S",'JP SC Raw Data'!$B:$B,"2021/22",'JP SC Raw Data'!$E:$E,"National") -> 27165
C43: Complaints called in Intermediate Diet court | E43: =SUMIFS('JP SC Raw Data'!$T:$T,'JP SC Raw Data'!$F:$F,"S",'JP SC Raw Data'!$B:$B,"2014/15",'JP SC Raw Data'!$E:$E,"National") -> 82076 | F43: =SUMIFS('JP SC Raw Data'!$T:$T,'JP SC Raw Data'!$F:$F,"S",'JP SC Raw Data'!$B:$B,"2015/16",'JP SC Raw Data'!$E:$E,"National") -> 87127 | G43: =SUMIFS('JP SC Raw Data'!$T:$T,'JP SC Raw Data'!$F:$F,"S",'JP SC Raw Data'!$B:$B,"2016/17",'JP SC Raw Data'!$E:$E,"National") -> 79245 | H43: =SUMIFS('JP SC Raw Data'!$T:$T,'JP SC Raw Data'!$F:$F,"S",'JP SC Raw Data'!$B:$B,"2017/18",'JP SC Raw Data'!$E:$E,"National") -> 73970 | I43: =SUMIFS('JP SC Raw Data'!$T:$T,'JP SC Raw Data'!$F:$F,"S",'JP SC Raw Data'!$B:$B,"2018/19",'JP SC Raw Data'!$E:$E,"National") -> 67979 | J43: =SUMIFS('JP SC Raw Data'!$T:$T,'JP SC Raw Data'!$F:$F,"S",'JP SC Raw Data'!$B:$B,"2019/20",'JP SC Raw Data'!$E:$E,"National") -> 70652 | K43: =SUMIFS('JP SC Raw Data'!$T:$T,'JP SC Raw Data'!$F:$F,"S",'JP SC Raw Data'!$B:$B,"2020/21",'JP SC Raw Data'!$E:$E,"National") -> 62227 | L43: =SUMIFS('JP SC Raw Data'!$T:$T,'JP SC Raw Data'!$F:$F,"S",'JP SC Raw Data'!$B:$B,"2021/22",'JP SC Raw Data'!$E:$E,"National") -> 90718
C44: Trials called | E44: =SUMIFS('JP SC Raw Data'!$U:$U,'JP SC Raw Data'!$F:$F,"S",'JP SC Raw Data'!$B:$B,"2014/15",'JP SC Raw Data'!$E:$E,"National") -> 46352 | F44: =SUMIFS('JP SC Raw Data'!$U:$U,'JP SC Raw Data'!$F:$F,"S",'JP SC Raw Data'!$B:$B,"2015/16",'JP SC Raw Data'!$E:$E,"National") -> 52366 | G44: =SUMIFS('JP SC Raw Data'!$U:$U,'JP SC Raw Data'!$F:$F,"S",'JP SC Raw Data'!$B:$B,"2016/17",'JP SC Raw Data'!$E:$E,"National") -> 49767 | H44: =SUMIFS('JP SC Raw Data'!$U:$U,'JP SC Raw Data'!$F:$F,"S",'JP SC Raw Data'!$B:$B,"2017/18",'JP SC Raw Data'!$E:$E,"National") -> 49259 | I44: =SUMIFS('JP SC Raw Data'!$U:$U,'JP SC Raw Data'!$F:$F,"S",'JP SC Raw Data'!$B:$B,"2018/19",'JP SC Raw Data'!$E:$E,"National") -> 43742 | J44: =SUMIFS('JP SC Raw Data'!$U:$U,'JP SC Raw Data'!$F:$F,"S",'JP SC Raw Data'!$B:$B,"2019/20",'JP SC Raw Data'!$E:$E,"National") -> 40729 | K44: =SUMIFS('JP SC Raw Data'!$U:$U,'JP SC Raw Data'!$F:$F,"S",'JP SC Raw Data'!$B:$B,"2020/21",'JP SC Raw Data'!$E:$E,"National") -> 23722 | L44: =SUMIFS('JP SC Raw Data'!$U:$U,'JP SC Raw Data'!$F:$F,"S",'JP SC Raw Data'!$B:$B,"2021/22",'JP SC Raw Data'!$E:$E,"National") -> 52452
C45: Trials called where evidence was led | E45: =SUMIFS('JP SC Raw Data'!$V:$V,'JP SC Raw Data'!$F:$F,"S",'JP SC Raw Data'!$B:$B,"2014/15",'JP SC Raw Data'!$E:$E,"National") -> 8912 | F45: =SUMIFS('JP SC Raw Data'!$V:$V,'JP SC Raw Data'!$F:$F,"S",'JP SC Raw Data'!$B:$B,"2015/16",'JP SC Raw Data'!$E:$E,"National") -> 9425 | G45: =SUMIFS('JP SC Raw Data'!$V:$V,'JP SC Raw Data'!$F:$F,"S",'JP SC Raw Data'!$B:$B,"2016/17",'JP SC Raw Data'!$E:$E,"National") -> 8982 | H45: =SUMIFS('JP SC Raw Data'!$V:$V,'JP SC Raw Data'!$F:$F,"S",'JP SC Raw Data'!$B:$B,"2017/18",'JP SC Raw Data'!$E:$E,"National") -> 8245 | I45: =SUMIFS('JP SC Raw Data'!$V:$V,'JP SC Raw Data'!$F:$F,"S",'JP SC Raw Data'!$B:$B,"2018/19",'JP SC Raw Data'!$E:$E,"National") -> 7731 | J45: =SUMIFS('JP SC Raw Data'!$V:$V,'JP SC Raw Data'!$F:$F,"S",'JP SC Raw Data'!$B:$B,"2019/20",'JP SC Raw Data'!$E:$E,"National") -> 6946 | K45: =SUMIFS('JP SC Raw Data'!$V:$V,'JP SC Raw Data'!$F:$F,"S",'JP SC Raw Data'!$B:$B,"2020/21",'JP SC Raw Data'!$E:$E,"National") -> 2721 | L45: =SUMIFS('JP SC Raw Data'!$V:$V,'JP SC Raw Data'!$F:$F,"S",'JP SC Raw Data'!$B:$B,"2021/22",'JP SC Raw Data'!$E:$E,"National") -> 5503
C46: Trials adjourned due to lack of court time | E46: =SUMIFS('JP SC Raw Data'!$W:$W,'JP SC Raw Data'!$F:$F,"S",'JP SC Raw Data'!$B:$B,"2014/15",'JP SC Raw Data'!$E:$E,"National") -> 2847 | F46: =SUMIFS('JP SC Raw Data'!$W:$W,'JP SC Raw Data'!$F:$F,"S",'JP SC Raw Data'!$B:$B,"2015/16",'JP SC Raw Data'!$E:$E,"National") -> 3218 | G46: =SUMIFS('JP SC Raw Data'!$W:$W,'JP SC Raw Data'!$F:$F,"S",'JP SC Raw Data'!$B:$B,"2016/17",'JP SC Raw Data'!$E:$E,"National") -> 2706 | H46: =SUMIFS('JP SC Raw Data'!$W:$W,'JP SC Raw Data'!$F:$F,"S",'JP SC Raw Data'!$B:$B,"2017/18",'JP SC Raw Data'!$E:$E,"National") -> 2331 | I46: =SUMIFS('JP SC Raw Data'!$W:$W,'JP SC Raw Data'!$F:$F,"S",'JP SC Raw Data'!$B:$B,"2018/19",'JP SC Raw Data'!$E:$E,"National") -> 1755 | J46: =SUMIFS('JP SC Raw Data'!$W:$W,'JP SC Raw Data'!$F:$F,"S",'JP SC Raw Data'!$B:$B,"2019/20",'JP SC Raw Data'!$E:$E,"National") -> 1230 | K46: =SUMIFS('JP SC Raw Data'!$W:$W,'JP SC Raw Data'!$F:$F,"S",'JP SC Raw Data'!$B:$B,"2020/21",'JP SC Raw Data'!$E:$E,"National") -> 287 | L46: =SUMIFS('JP SC Raw Data'!$W:$W,'JP SC Raw Data'!$F:$F,"S",'JP SC Raw Data'!$B:$B,"2021/22",'JP SC Raw Data'!$E:$E,"National") -> 883
C47: Percentage of trials adjourned due to lack of court time | E47: =SUM(E46/E44) -> 0.06142129789 | F47: 0.06145208723 | G47: 0.05437337995 | H47: 0.04732130169 | I47: 0.04012162224 | J47: 0.03019961207 | K47: =SUM(K46/K44) -> 0.01209847399 | L47: 0.01683443911
C48: Trials scheduled at end of period | E48: ='JP SC Raw Data'!X906 -> 20298 | F48: ='JP SC Raw Data'!X605 -> 18297 | G48: ='JP SC Raw Data'!X305 -> 16013 | H48: ='JP SC Raw Data'!X5 -> 13839 | I48: =SUMIFS('JP SC Raw Data'!$X:$X,'JP SC Raw Data'!$B:$B,'JP SC Raw Data'!$AG$2,'JP SC Raw Data'!C:C,'JP SC Raw Data'!$AH$2,'JP SC Raw Data'!D:D,"0") -> 11272 | J48: =SUMIFS('JP SC Raw Data'!$X:$X,'JP SC Raw Data'!$B:$B,'JP SC Raw Data'!$AD$2,'JP SC Raw Data'!$C:$C,'JP SC Raw Data'!$AE$2,'JP SC Raw Data'!$D:$D,"0") -> 13971 | K48: =SUMIFS('JP SC Raw Data'!$X:$X,'JP SC Raw Data'!$B:$B,'JP SC Raw Data'!$AJ$2,'JP SC Raw Data'!$C:$C,'JP SC Raw Data'!$AK$2,'JP SC Raw Data'!$D:$D,"0") -> 30645 | L48: =SUMIFS('JP SC Raw Data'!$X:$X,'JP SC Raw Data'!$B:$B,'JP SC Raw Data'!$AA$2,'JP SC Raw Data'!$C:$C,'JP SC Raw Data'!$AB$2,'JP SC Raw Data'!$D:$D,"0") -> 30520
C49: Complaints concluded | E49: =SUMIFS('JP SC Raw Data'!$Y:$Y,'JP SC Raw Data'!$F:$F,"S",'JP SC Raw Data'!$B:$B,"2014/15",'JP SC Raw Data'!$E:$E,"National") -> 66209 | F49: =SUMIFS('JP SC Raw Data'!$Y:$Y,'JP SC Raw Data'!$F:$F,"S",'JP SC Raw Data'!$B:$B,"2015/16",'JP SC Raw Data'!$E:$E,"National") -> 68907 | G49: =SUMIFS('JP SC Raw Data'!$Y:$Y,'JP SC Raw Data'!$F:$F,"S",'JP SC Raw Data'!$B:$B,"2016/17",'JP SC Raw Data'!$E:$E,"National") -> 67702 | H49: =SUMIFS('JP SC Raw Data'!$Y:$Y,'JP SC Raw Data'!$F:$F,"S",'JP SC Raw Data'!$B:$B,"2017/18",'JP SC Raw Data'!$E:$E,"National") -> 62675 | I49: =SUMIFS('JP SC Raw Data'!$Y:$Y,'JP SC Raw Data'!$F:$F,"S",'JP SC Raw Data'!$B:$B,"2018/19",'JP SC Raw Data'!$E:$E,"National") -> 57982 | J49: =SUMIFS('JP SC Raw Data'!$Y:$Y,'JP SC Raw Data'!$F:$F,"S",'JP SC Raw Data'!$B:$B,"2019/20",'JP SC Raw Data'!$E:$E,"National") -> 57256 | K49: =SUMIFS('JP SC Raw Data'!$Y:$Y,'JP SC Raw Data'!$F:$F,"S",'JP SC Raw Data'!$B:$B,"2020/21",'JP SC Raw Data'!$E:$E,"National") -> 32443 | L49: =SUMIFS('JP SC Raw Data'!$Y:$Y,'JP SC Raw Data'!$F:$F,"S",'JP SC Raw Data'!$B:$B,"2021/22",'JP SC Raw Data'!$E:$E,"National") -> 54201
B51: Justice of the Peace Court | C51: Complaints registered during period | E51: =SUMIFS('JP SC Raw Data'!$Q:$Q,'JP SC Raw Data'!$F:$F,"J",'JP SC Raw Data'!$B:$B,"2014/15",'JP SC Raw Data'!$E:$E,"National") -> 66819 | F51: =SUMIFS('JP SC Raw Data'!$Q:$Q,'JP SC Raw Data'!$F:$F,"J",'JP SC Raw Data'!$B:$B,"2015/16",'JP SC Raw Data'!$E:$E,"National") -> 54856 | G51: =SUMIFS('JP SC Raw Data'!$Q:$Q,'JP SC Raw Data'!$F:$F,"J",'JP SC Raw Data'!$B:$B,"2016/17",'JP SC Raw Data'!$E:$E,"National") -> 41402 | H51: =SUMIFS('JP SC Raw Data'!$Q:$Q,'JP SC Raw Data'!$F:$F,"J",'JP SC Raw Data'!$B:$B,"2017/18",'JP SC Raw Data'!$E:$E,"National") -> 38538 | I51: =SUMIFS('JP SC Raw Data'!$Q:$Q,'JP SC Raw Data'!$F:$F,"J",'JP SC Raw Data'!$B:$B,"2018/19",'JP SC Raw Data'!$E:$E,"National") -> 36955 | J51: =SUMIFS('JP SC Raw Data'!$Q:$Q,'JP SC Raw Data'!$F:$F,"J",'JP SC Raw Data'!$B:$B,"2019/20",'JP SC Raw Data'!$E:$E,"National") -> 33582 | K51: =SUMIFS('JP SC Raw Data'!$Q:$Q,'JP SC Raw Data'!$F:$F,"J",'JP SC Raw Data'!$B:$B,"2020/21",'JP SC Raw Data'!$E:$E,"National") -> 16932 | L51: =SUMIFS('JP SC Raw Data'!$Q:$Q,'JP SC Raw Data'!$F:$F,"J",'JP SC Raw Data'!$B:$B,"2021/22",'JP SC Raw Data'!$E:$E,"National") -> 23557
C52: Complaints called for first time | E52: =SUMIFS('JP SC Raw Data'!$R:$R,'JP SC Raw Data'!$F:$F,"J",'JP SC Raw Data'!$B:$B,"2014/15",'JP SC Raw Data'!$E:$E,"National") -> 63605 | F52: =SUMIFS('JP SC Raw Data'!$R:$R,'JP SC Raw Data'!$F:$F,"J",'JP SC Raw Data'!$B:$B,"2015/16",'JP SC Raw Data'!$E:$E,"National") -> 51904 | G52: =SUMIFS('JP SC Raw Data'!$R:$R,'JP SC Raw Data'!$F:$F,"J",'JP SC Raw Data'!$B:$B,"2016/17",'JP SC Raw Data'!$E:$E,"National") -> 39875 | H52: =SUMIFS('JP SC Raw Data'!$R:$R,'JP SC Raw Data'!$F:$F,"J",'JP SC Raw Data'!$B:$B,"2017/18",'JP SC Raw Data'!$E:$E,"National") -> 37819 | I52: =SUMIFS('JP SC Raw Data'!$R:$R,'JP SC Raw Data'!$F:$F,"J",'JP SC Raw Data'!$B:$B,"2018/19",'JP SC Raw Data'!$E:$E,"National") -> 36706 | J52: =SUMIFS('JP SC Raw Data'!$R:$R,'JP SC Raw Data'!$F:$F,"J",'JP SC Raw Data'!$B:$B,"2019/20",'JP SC Raw Data'!$E:$E,"National") -> 33066 | K52: =SUMIFS('JP SC Raw Data'!$R:$R,'JP SC Raw Data'!$F:$F,"J",'JP SC Raw Data'!$B:$B,"2020/21",'JP SC Raw Data'!$E:$E,"National") -> 14663 | L52: =SUMIFS('JP SC Raw Data'!$R:$R,'JP SC Raw Data'!$F:$F,"J",'JP SC Raw Data'!$B:$B,"2021/22",'JP SC Raw Data'!$E:$E,"National") -> 21360
C53: Complaints called for 'Continued Without Plea' hearing | E53: =SUMIFS('JP SC Raw Data'!$S:$S,'JP SC Raw Data'!$F:$F,"J",'JP SC Raw Data'!$B:$B,"2014/15",'JP SC Raw Data'!$E:$E,"National") -> 26572 | F53: =SUMIFS('JP SC Raw Data'!$S:$S,'JP SC Raw Data'!$F:$F,"J",'JP SC Raw Data'!$B:$B,"2015/16",'JP SC Raw Data'!$E:$E,"National") -> 23534 | G53: =SUMIFS('JP SC Raw Data'!$S:$S,'JP SC Raw Data'!$F:$F,"J",'JP SC Raw Data'!$B:$B,"2016/17",'JP SC Raw Data'!$E:$E,"National") -> 22028 | H53: =SUMIFS('JP SC Raw Data'!$S:$S,'JP SC Raw Data'!$F:$F,"J",'JP SC Raw Data'!$B:$B,"2017/18",'JP SC Raw Data'!$E:$E,"National") -> 20318 | I53: =SUMIFS('JP SC Raw Data'!$S:$S,'JP SC Raw Data'!$F:$F,"J",'JP SC Raw Data'!$B:$B,"2018/19",'JP SC Raw Data'!$E:$E,"National") -> 19879 | J53: =SUMIFS('JP SC Raw Data'!$S:$S,'JP SC Raw Data'!$F:$F,"J",'JP SC Raw Data'!$B:$B,"2019/20",'JP SC Raw Data'!$E:$E,"National") -> 18263 | K53: =SUMIFS('JP SC Raw Data'!$S:$S,'JP SC Raw Data'!$F:$F,"J",'JP SC Raw Data'!$B:$B,"2020/21",'JP SC Raw Data'!$E:$E,"National") -> 23595 | L53: =SUMIFS('JP SC Raw Data'!$S:$S,'JP SC Raw Data'!$F:$F,"J",'JP SC Raw Data'!$B:$B,"2021/22",'JP SC Raw Data'!$E:$E,"National") -> 29379
C54: Complaints called in Intermediate Diet court | E54: =SUMIFS('JP SC Raw Data'!$T:$T,'JP SC Raw Data'!$F:$F,"J",'JP SC Raw Data'!$B:$B,"2014/15",'JP SC Raw Data'!$E:$E,"National") -> 37807 | F54: =SUMIFS('JP SC Raw Data'!$T:$T,'JP SC Raw Data'!$F:$F,"J",'JP SC Raw Data'!$B:$B,"2015/16",'JP SC Raw Data'!$E:$E,"National") -> 38542 | G54: =SUMIFS('JP SC Raw Data'!$T:$T,'JP SC Raw Data'!$F:$F,"J",'JP SC Raw Data'!$B:$B,"2016/17",'JP SC Raw Data'!$E:$E,"National") -> 32549 | H54: =SUMIFS('JP SC Raw Data'!$T:$T,'JP SC Raw Data'!$F:$F,"J",'JP SC Raw Data'!$B:$B,"2017/18",'JP SC Raw Data'!$E:$E,"National") -> 23480 | I54: =SUMIFS('JP SC Raw Data'!$T:$T,'JP SC Raw Data'!$F:$F,"J",'JP SC Raw Data'!$B:$B,"2018/19",'JP SC Raw Data'!$E:$E,"National") -> 21365 | J54: =SUMIFS('JP SC Raw Data'!$T:$T,'JP SC Raw Data'!$F:$F,"J",'JP SC Raw Data'!$B:$B,"2019/20",'JP SC Raw Data'!$E:$E,"National") -> 19195 | K54: =SUMIFS('JP SC Raw Data'!$T:$T,'JP SC Raw Data'!$F:$F,"J",'JP SC Raw Data'!$B:$B,"2020/21",'JP SC Raw Data'!$E:$E,"National") -> 13319 | L54: =SUMIFS('JP SC Raw Data'!$T:$T,'JP SC Raw Data'!$F:$F,"J",'JP SC Raw Data'!$B:$B,"2021/22",'JP SC Raw Data'!$E:$E,"National") -> 18409
C55: Trials called | E55: =SUMIFS('JP SC Raw Data'!$U:$U,'JP SC Raw Data'!$F:$F,"J",'JP SC Raw Data'!$B:$B,"2014/15",'JP SC Raw Data'!$E:$E,"National") -> 18312 | F55: =SUMIFS('JP SC Raw Data'!$U:$U,'JP SC Raw Data'!$F:$F,"J",'JP SC Raw Data'!$B:$B,"2015/16",'JP SC Raw Data'!$E:$E,"National") -> 20015 | G55: =SUMIFS('JP SC Raw Data'!$U:$U,'JP SC Raw Data'!$F:$F,"J",'JP SC Raw Data'!$B:$B,"2016/17",'JP SC Raw Data'!$E:$E,"National") -> 17442 | H55: =SUMIFS('JP SC Raw Data'!$U:$U,'JP SC Raw Data'!$F:$F,"J",'JP SC Raw Data'!$B:$B,"2017/18",'JP SC Raw Data'!$E:$E,"National") -> 14446 | I55: =SUMIFS('JP SC Raw Data'!$U:$U,'JP SC Raw Data'!$F:$F,"J",'JP SC Raw Data'!$B:$B,"2018/19",'JP SC Raw Data'!$E:$E,"National") -> 11479 | J55: =SUMIFS('JP SC Raw Data'!$U:$U,'JP SC Raw Data'!$F:$F,"J",'JP SC Raw Data'!$B:$B,"2019/20",'JP SC Raw Data'!$E:$E,"National") -> 10061 | K55: =SUMIFS('JP SC Raw Data'!$U:$U,'JP SC Raw Data'!$F:$F,"J",'JP SC Raw Data'!$B:$B,"2020/21",'JP SC Raw Data'!$E:$E,"National") -> 4529 | L55: =SUMIFS('JP SC Raw Data'!$U:$U,'JP SC Raw Data'!$F:$F,"J",'JP SC Raw Data'!$B:$B,"2021/22",'JP SC Raw Data'!$E:$E,"National") -> 7634
C56: Trials called where evidence was led | E56: =SUMIFS('JP SC Raw Data'!$V:$V,'JP SC Raw Data'!$F:$F,"J",'JP SC Raw Data'!$B:$B,"2014/15",'JP SC Raw Data'!$E:$E,"National") -> 3151 | F56: =SUMIFS('JP SC Raw Data'!$V:$V,'JP SC Raw Data'!$F:$F,"J",'JP SC Raw Data'!$B:$B,"2015/16",'JP SC Raw Data'!$E:$E,"National") -> 3258 | G56: =SUMIFS('JP SC Raw Data'!$V:$V,'JP SC Raw Data'!$F:$F,"J",'JP SC Raw Data'!$B:$B,"2016/17",'JP SC Raw Data'!$E:$E,"National") -> 2810 | H56: =SUMIFS('JP SC Raw Data'!$V:$V,'JP SC Raw Data'!$F:$F,"J",'JP SC Raw Data'!$B:$B,"2017/18",'JP SC Raw Data'!$E:$E,"National") -> 2032 | I56: =SUMIFS('JP SC Raw Data'!$V:$V,'JP SC Raw Data'!$F:$F,"J",'JP SC Raw Data'!$B:$B,"2018/19",'JP SC Raw Data'!$E:$E,"National") -> 1785 | J56: =SUMIFS('JP SC Raw Data'!$V:$V,'JP SC Raw Data'!$F:$F,"J",'JP SC Raw Data'!$B:$B,"2019/20",'JP SC Raw Data'!$E:$E,"National") -> 1543 | K56: =SUMIFS('JP SC Raw Data'!$V:$V,'JP SC Raw Data'!$F:$F,"J",'JP SC Raw Data'!$B:$B,"2020/21",'JP SC Raw Data'!$E:$E,"National") -> 349 | L56: =SUMIFS('JP SC Raw Data'!$V:$V,'JP SC Raw Data'!$F:$F,"J",'JP SC Raw Data'!$B:$B,"2021/22",'JP SC Raw Data'!$E:$E,"National") -> 518
C57: Trials adjourned due to lack of court time | E57: =SUMIFS('JP SC Raw Data'!$W:$W,'JP SC Raw Data'!$F:$F,"J",'JP SC Raw Data'!$B:$B,"2014/15",'JP SC Raw Data'!$E:$E,"National") -> 737 | F57: =SUMIFS('JP SC Raw Data'!$W:$W,'JP SC Raw Data'!$F:$F,"J",'JP SC Raw Data'!$B:$B,"2015/16",'JP SC Raw Data'!$E:$E,"National") -> 734 | G57: =SUMIFS('JP SC Raw Data'!$W:$W,'JP SC Raw Data'!$F:$F,"J",'JP SC Raw Data'!$B:$B,"2016/17",'JP SC Raw Data'!$E:$E,"National") -> 383 | H57: =SUMIFS('JP SC Raw Data'!$W:$W,'JP SC Raw Data'!$F:$F,"J",'JP SC Raw Data'!$B:$B,"2017/18",'JP SC Raw Data'!$E:$E,"National") -> 331 | I57: =SUMIFS('JP SC Raw Data'!$W:$W,'JP SC Raw Data'!$F:$F,"J",'JP SC Raw Data'!$B:$B,"2018/19",'JP SC Raw Data'!$E:$E,"National") -> 228 | J57: =SUMIFS('JP SC Raw Data'!$W:$W,'JP SC Raw Data'!$F:$F,"J",'JP SC Raw Data'!$B:$B,"2019/20",'JP SC Raw Data'!$E:$E,"National") -> 238 | K57: =SUMIFS('JP SC Raw Data'!$W:$W,'JP SC Raw Data'!$F:$F,"J",'JP SC Raw Data'!$B:$B,"2020/21",'JP SC Raw Data'!$E:$E,"National") -> 37 | L57: =SUMIFS('JP SC Raw Data'!$W:$W,'JP SC Raw Data'!$F:$F,"J",'JP SC Raw Data'!$B:$B,"2021/22",'JP SC Raw Data'!$E:$E,"National") -> 63
C58: Percentage of trials adjourned due to lack of court time | E58: =SUM(E57/E55) -> 0.04024683268 | F58: 0.03667249563 | G58: 0.021958491 | H58: 0.02291291707 | I58: 0.01986235735 | J58: 0.02365570023 | K58: =SUM(K57/K55) -> 0.008169573857 | L58: 0.008252554362
C59: Trials scheduled at end of period | E59: ='JP SC Raw Data'!X905 -> 12022 | F59: ='JP SC Raw Data'!X604 -> 10878 | G59: ='JP SC Raw Data'!X304 -> 5595 | H59: ='JP SC Raw Data'!X4 -> 3979 | I59: =SUMIFS('JP SC Raw Data'!$X:$X,'JP SC Raw Data'!$B:$B,'JP SC Raw Data'!$AG$2,'JP SC Raw Data'!C:C,'JP SC Raw Data'!$AH$2,'JP SC Raw Data'!D:D,"1") -> 3975 | J59: =SUMIFS('JP SC Raw Data'!$X:$X,'JP SC Raw Data'!$B:$B,'JP SC Raw Data'!$AD$2,'JP SC Raw Data'!$C:$C,'JP SC Raw Data'!$AE$2,'JP SC Raw Data'!$D:$D,"1") -> 3497 | K59: =SUMIFS('JP SC Raw Data'!$X:$X,'JP SC Raw Data'!$B:$B,'JP SC Raw Data'!$AJ$2,'JP SC Raw Data'!$C:$C,'JP SC Raw Data'!$AK$2,'JP SC Raw Data'!$D:$D,"1") -> 5560 | L59: =SUMIFS('JP SC Raw Data'!$X:$X,'JP SC Raw Data'!$B:$B,'JP SC Raw Data'!$AA$2,'JP SC Raw Data'!$C:$C,'JP SC Raw Data'!$AB$2,'JP SC Raw Data'!$D:$D,"1") -> 7569
C60: Complaints concluded | E60: =SUMIFS('JP SC Raw Data'!$Y:$Y,'JP SC Raw Data'!$F:$F,"J",'JP SC Raw Data'!$B:$B,"2014/15",'JP SC Raw Data'!$E:$E,"National") -> 58433 | F60: =SUMIFS('JP SC Raw Data'!$Y:$Y,'JP SC Raw Data'!$F:$F,"J",'JP SC Raw Data'!$B:$B,"2015/16",'JP SC Raw Data'!$E:$E,"National") -> 49760 | G60: =SUMIFS('JP SC Raw Data'!$Y:$Y,'JP SC Raw Data'!$F:$F,"J",'JP SC Raw Data'!$B:$B,"2016/17",'JP SC Raw Data'!$E:$E,"National") -> 42347 | H60: =SUMIFS('JP SC Raw Data'!$Y:$Y,'JP SC Raw Data'!$F:$F,"J",'JP SC Raw Data'!$B:$B,"2017/18",'JP SC Raw Data'!$E:$E,"National") -> 36267 | I60: =SUMIFS('JP SC Raw Data'!$Y:$Y,'JP SC Raw Data'!$F:$F,"J",'JP SC Raw Data'!$B:$B,"2018/19",'JP SC Raw Data'!$E:$E,"National") -> 33791 | J60: =SUMIFS('JP SC Raw Data'!$Y:$Y,'JP SC Raw Data'!$F:$F,"J",'JP SC Raw Data'!$B:$B,"2019/20",'JP SC Raw Data'!$E:$E,"National") -> 30686 | K60: =SUMIFS('JP SC Raw Data'!$Y:$Y,'JP SC Raw Data'!$F:$F,"J",'JP SC Raw Data'!$B:$B,"2020/21",'JP SC Raw Data'!$E:$E,"National") -> 9975 | L60: =SUMIFS('JP SC Raw Data'!$Y:$Y,'JP SC Raw Data'!$F:$F,"J",'JP SC Raw Data'!$B:$B,"2021/22",'JP SC Raw Data'!$E:$E,"National") -> 22058

Sheet National Overview Chart Data (hidden)
A2: Count Type | B2: 2014/15 | C2: 2015/16 | D2: 2016/17 | E2: 2017/18 | F2: 2018/19 | G2: 2019/20 | H2: 2020/21 | I2: 2021/22
A3: National total of cases registered | B3: 142998 | C3: 134278 | D3: 118630 | E3: 109857 | F3: 102825 | G3: ='1a'!J5 -> 105548 | H3: ='1a'!K5 -> 76660 | I3: ='1a'!L5 -> 85567
A4: National total of cases that called at a first hearing | B4: 133558 | C4: 120992 | D4: 110760 | E4: 103679 | F4: 98039 | G4: ='1a'!J6 -> 100922 | H4: ='1a'!K6 -> 69491 | I4: ='1a'!L6 -> 80988
A5: National total of trials called | B5: 70115 | C5: 78559 | D5: 72193 | E5: 67227 | F5: 58786 | G5: ='1a'!J10 -> 54744 | H5: ='1a'!K10 -> 30217 | I5: ='1a'!L10 -> 65297
A6: National total of cases concluded | B6: 103727 | C6: 95032 | D6: 90311 | E6: 81423 | F6: 97394 | G6: ='1a'!J15 -> 93903 | H6: ='1a'!K15 -> 46159 | I6: ='1a'!L15 -> 82147
A7: National total of trials scheduled at end of period | B7: 33206 | C7: 29962 | D7: 22118 | E7: 18173 | F7: 16011 | G7: ='1a'!J14 -> 18355 | H7: ='1a'!K14 -> 37801 | I7: ='1a'!L14 -> 40923
A10: Count Type | B10: 2014/15 | C10: 2015/16 | D10: 2016/17 | E10: 2017/18 | F10: 2018/19 | G10: 2019/20 | H10: 2020/21 | I10: 2021/22
A11: National total of Section 76 (Solemn business only) | B11: 1369 | C11: 1125 | D11: 1188 | E11: 1108 | F11: 1207 | G11: ='1a'!J8 -> 1142 | H11: ='1a'!K8 -> 1029 | I11: ='1a'!L8 -> 1185
A12: National total of intermediate diets called (Summary business only) | B12: 119883 | C12: 125669 | D12: 111794 | E12: 97450 | F12: 89344 | G12: ='1a'!J9 -> 89847 | H12: ='1a'!K9 -> 75546 | I12: ='1a'!L9 -> 109127
A13: National total of trials called where evidence was led | B13: 13936 | C13: 14548 | D13: 13522 | E13: 11764 | F13: 11142 | G13: ='1a'!J11 -> 10121 | H13: ='1a'!K11 -> 3545 | I13: ='1a'!L11 -> 7505
A14: National total of trials adjourned due to lack of court time | B14: 3951 | C14: 4304 | D14: 3331 | E14: 2770 | F14: 2050 | G14: ='1a'!J12 -> 1574 | H14: ='1a'!K12 -> 371 | I14: ='1a'!L12 -> 1259
A17: This data is only for The Scottish Courts and Tribunals Service Internal use. Please go to the index tab and navigate as required.

Sheet 1b
B2: Back to Index

Sheet 1c
D1: Use these links to navigate through the tables below:
B2: Back to Index | D2: High Court | G2: Sheriff Court - Complaints
D3: Sheriff Court - Petitions | G3: Sheriff Court - Domestic Abuse Cases Complaints
D4: Sheriff Court - Indictments | G4: Justice of the Peace Complaints
D5: Notes and table showing groupings
B6: Criminal court cases registered in Scotland: Crime or Offence Type percentages | D6: 2014/15 | E6: 2015/16 | F6: 2016/17 | G6: 2017/18 | H6: 2018/19 | I6: 2019/20 | J6: 2020/21 | K6: 2021/22
B7: A l l C r i m i n a l c o u r t s ( n o t i n c l u d i n g p e t i t i o n s ) | C7: Main Crime or Offence | D7: All Criminal courts (not including petitions)
C8: All crimes and offences | D8: =SUM(D9+D37) -> 1 | E8: =SUM(E9+E37) -> 1 | F8: 1 | G8: 1 | H8: 1 | I8: 1 | K8: 1
C9: All crimes | D9: 0.3961088043 | E9: 0.4260233659 | F9: 0.4387819598 | G9: 0.4508142396 | H9: 0.4587165881 | I9: 0.4652263524 | J9: 0.510729656 | K9: 0.464288318
C10: Non-sexual crimes of violence | D10: 0.02209052181 | E10: 0.02365653313 | F10: 0.02582639511 | G10: 0.0286811373 | H10: 0.03051868085 | I10: 0.03255540339 | J10: 0.03654200633 | K10: 0.03336623583
C11: Homicide | D11: 0.000819768027 | E11: 0.0007162481364 | F11: 0.0007960219474 | G11: 0.0009746989343 | H11: 0.001036046427 | I11: 0.001051734341 | J11: 0.001150606976 | K11: 0.0009785457823
C12: Serious Assault and Attempted Murder | D12: 0.01445714409 | E12: 0.0154604221 | F12: 0.01727273461 | G12: 0.01923425007 | H12: 0.02165523833 | I12: 0.02244312135 | J12: 0.02466835079 | K12: 0.02181053155
C13: Robbery | D13: 0.004083981358 | E13: 0.004486081572 | F13: 0.004878387708 | G13: 0.005472845077 | H13: 0.005307248341 | I13: 0.00595381264 | J13: 0.007281168595 | K13: 0.006264490642
C14: Other Violence | D14: 0.002729628342 | E14: 0.002993781321 | F14: 0.002879250845 | G14: 0.002999343216 | H14: 0.002520147753 | I14: 0.003106735064 | J14: 0.003441879966 | K14: 0.00431266786
C15: Sexual crimes | D15: 0.01522969292 | E15: 0.01505080112 | F15: 0.01628371023 | G15: 0.01925809104 | H15: 0.02323475228 | I15: 0.02268327362 | J15: 0.02417812274 | K15: 0.02509209882
C16: Rape & Attempted Rape | D16: 0.002218254254 | E16: 0.001945671804 | F16: 0.002024523709 | G16: 0.003025942564 | H16: 0.004430688389 | I16: 0.004311078002 | J16: 0.005388788916 | K16: 0.004294699082
C17: Sexual Assault | D17: 0.004194081193 | E17: 0.004415250865 | F17: 0.00538911029 | G17: 0.006376510018 | H17: 0.006803299135 | I17: 0.007296874292 | J17: 0.00617040805 | K17: 0.007680155441
C18: Crimes associated with prostitution | D18: 0.00152484368 | E18: 0.001081279297 | F18: 0.001106453437 | G18: 0.0004432821213 | H18: 0.0008105359941 | I18: 0.00065627126 | J18: 9.806030662e-05 | K18: 0.0001486412454
C19: Other sexual crimes | D19: 0.007292513797 | E19: 0.007608599158 | F19: 0.007763622795 | G19: 0.009412356341 | H19: 0.01119022876 | I19: 0.01041905007 | J19: 0.01252086546 | K19: 0.01296860305
C20: Crimes of dishonesty | D20: 0.1166027891 | E20: 0.1183433931 | F20: 0.1233637555 | G20: 0.1276295195 | H20: 0.1334405746 | I20: 0.1338086688 | J20: 0.1348308835 | K20: 0.1085747971
C21: Housebreaking | D21: 0.008176474094 | E21: 0.009125617415 | F21: 0.009664566746 | G21: 0.01001825329 | H21: 0.01004949974 | I21: 0.01124658078 | J21: 0.01503079455 | K21: 0.009888827623
C22: Theft by opening lockfast places | D22: 0.002172017003 | E22: 0.002039727262 | F22: 0.002273635516 | G22: 0.002104819559 | H22: 0.002146776602 | I22: 0.002133332074 | J22: 0.003016207049 | K22: 0.002093227057
C23: Theft from a Motor Vehicle (OLP) | D23: 0.001090364793 | E23: 0.0009364932623 | F23: 0.0009884002007 | G23: 0.001239936348 | H23: 0.001399797205 | I23: 0.001243725504 | J23: 0.002095790387 | K23: 0.001510271185
C24: Theft of Motor Vehicle | D24: 0.009477928514 | E24: 0.009574739655 | F24: 0.01066653395 | G24: 0.01140671834 | H24: 0.01263230549 | I24: 0.01153781435 | J24: 0.01489017018 | K24: 0.01286710709
C25: Shoplifting | D25: 0.05742844533 | E25: 0.06109291925 | F25: 0.06328746489 | G25: 0.06515264012 | H25: 0.07425550673 | I25: 0.06895496696 | J25: 0.05515759901 | K25: 0.04593408535
C26: Other Theft | D26: 0.02445730636 | E26: 0.02238671625 | F26: 0.02217912579 | G26: 0.02331419342 | H26: 0.02108436035 | I26: 0.02484722891 | J26: 0.02751126183 | K26: 0.02062907033
C27: Fraud | D27: 0.005972854897 | E27: 0.005909489214 | F27: 0.006606592155 | G27: 0.005932568823 | H27: 0.005147725172 | I27: 0.006003955788 | J27: 0.005964680467 | K27: 0.006852344836
C28: Other Dishonesty | D28: 0.007827398062 | E28: 0.007277690801 | F28: 0.007697436288 | G28: 0.008460389571 | H28: 0.006724603312 | I28: 0.007841064389 | J28: 0.01116438003 | K28: 0.008799863674
C29: Fire-raising, vandalism, etc. | D29: 0.02947830839 | E29: 0.03026934029 | F29: 0.03086286865 | G29: 0.03218282797 | H29: 0.03177517365 | I29: 0.03312234358 | J29: 0.04521428492 | K29: 0.03940906769
C30: Fire-raising | D30: 0.001032411274 | E30: 0.001071749882 | F30: 0.001365721573 | G30: 0.0018204667 | H30: 0.001433945386 | I30: 0.001622040492 | J30: 0.00161890462 | K30: 0.001872952566
C31: Vandalism etc. | D31: 0.02844589711 | E31: 0.02919759041 | F31: 0.02949714708 | G31: 0.03036236127 | H31: 0.03034122827 | I31: 0.03150030308 | J31: 0.0435953803 | K31: 0.03753611513
C32: Other crimes | D32: 0.2127074921 | E32: 0.2387032982 | F32: 0.2424452302 | G32: 0.2430626638 | H32: 0.2397474067 | I32: 0.243056663 | J32: 0.2699643585 | K32: 0.2578461185
C33: Crimes against Public Justice | D33: 0.1370047278 | E33: 0.1542183638 | F33: 0.1622148614 | G33: 0.1611254356 | H33: 0.1572750968 | I33: 0.162954629 | J33: 0.1864812657 | K33: 0.1799952815
C34: Handling offensive weapons | D34: 0.01512170075 | E34: 0.01476612036 | F34: 0.01664088287 | G34: 0.01959379321 | H34: 0.02216683405 | I34: 0.02378691555 | J34: 0.03219145176 | K34: 0.0271070611
C35: Drugs | D35: 0.05932472428 | E35: 0.06849995778 | F35: 0.06229794248 | G35: 0.06102309677 | H35: 0.05930750334 | I35: 0.05537028384 | J35: 0.0495084182 | K35: 0.04847343366
C36: Other | D36: 0.001256339289 | E36: 0.001218856314 | F36: 0.001291543438 | G36: 0.001320338279 | H36: 0.0009979725305 | I36: 0.000944834632 | J36: 0.001783222863 | K36: 0.002270342228
C37: All offences | D37: 0.6038911957 | E37: 0.5739766341 | F37: 0.5612180402 | G37: 0.5491857604 | H37: 0.5412834119 | I37: 0.5347736476 | J37: 0.489270344 | K37: 0.535711682
C38: Miscellaneous offences | D38: 0.2447238625 | E38: 0.2618782015 | F38: 0.2625659197 | G38: 0.2505222466 | H38: 0.2260010979 | I38: 0.2351940245 | J38: 0.2596102485 | K38: 0.2366630491
C39: Common Assault | D39: 0.1125998956 | E39: 0.1233933585 | F39: 0.12408742 | G39: 0.1213348968 | H39: 0.109623155 | I39: 0.1152707775 | J39: 0.1263493409 | K39: 0.111027298
C40: Breach Of The Peace etc. | D40: 0.1010625861 | E40: 0.1109183984 | F40: 0.1133200573 | G40: 0.1063013755 | H40: 0.09578104621 | I40: 0.1001507426 | J40: 0.1108100869 | K40: 0.1012875709
C41: Drunkenness | D41: 0.002168574823 | E41: 0.0009256016377 | F41: 0.0004901536446 | G41: 0.0004272099794 | H41: 0.0003814838606 | I41: 0.0003431450458 | J41: 0.0001392066745 | K41: 9.260926761e-05
C42: Urinating | D42: 0.0003189691603 | E42: 0.0002370031455 | F42: 5.814485397e-05 | G42: 5.339060729e-05 | H42: 8.584038047e-05 | I42: 6.513910145e-05 | J42: 3.790552233e-05 | K42: 2.31523169e-05
C43: Other Misc. Offences | D43: 0.02857383677 | E43: 0.02640383987 | F43: 0.02461014396 | G43: 0.02240537368 | H43: 0.02012957243 | I43: 0.01936422023 | J43: 0.02227370847 | K43: 0.02423241851
C44: Motor vehicle offences | D44: 0.3591673333 | E44: 0.3120984326 | F44: 0.2986521205 | G44: 0.2986635138 | H44: 0.315282314 | I44: 0.2995796231 | J44: 0.2296600955 | K44: 0.2990486329
C45: Dangerous & Careless Driving | D45: 0.03397185301 | E45: 0.0402360494 | F45: 0.04260796116 | G45: 0.04505098913 | H45: 0.04032755565 | I45: 0.04821841971 | J45: 0.04559412452 | K45: 0.06204927537
C46: Driving Under the Influence | D46: 0.02143347347 | E46: 0.02277326689 | F46: 0.02720394159 | G46: 0.02789107151 | H46: 0.02915345046 | I46: 0.02879657329 | J46: 0.02916444404 | K46: 0.02905304308
C47: Speeding | D47: 0.11730447 | E47: 0.1115784813 | F47: 0.1014922017 | G47: 0.09882418494 | H47: 0.1017554749 | I47: 0.1032373313 | J47: 0.03451799882 | K47: 0.0795772371
C48: Unlawful Use of Motor Vehicle | D48: 0.07513601504 | E48: 0.06045376104 | F48: 0.07013927775 | G48: 0.07584956078 | H48: 0.08568502618 | I48: 0.07184095028 | J48: 0.08380610478 | K48: 0.08050592428
C49: Vehicle Defect Offences | D49: 0.01645139731 | E49: 0.01646005883 | F49: 0.01584441847 | G49: 0.01265519885 | H49: 0.01482407005 | I49: 0.01281415164 | J49: 0.01105710281 | K49: 0.01330903584
C50: Seat belt offences | D50: 0.02704366822 | E50: 0.005058177037 | F50: 0.003848054736 | G50: 0.001203033646 | H50: 0.00321899177 | I50: 0.00306920009 | J50: 0.001055861629 | K50: 0.0005936914676
C51: Mobile phone offences | D51: 0.03739783555 | E51: 0.02542222002 | F51: 0.01297151418 | G51: 0.01081958189 | H51: 0.009408615748 | I51: 0.006332692924 | J51: 0.005299305255 | K51: 0.006534054969
C52: Other M V Offences | D52: 0.03042862068 | E52: 0.03011641807 | F52: 0.02454475093 | G52: 0.02636989307 | H52: 0.03090912931 | I52: 0.02527030384 | J52: 0.01916515361 | K52: 0.02742637079
B54: H i g h C o u r t - I n d i c t m e n t s | C54: Main Crime or Offence | D54: High Court - Indictments
C55: All crimes and offences | D55: =SUM(D56+D84) -> 1 | E55: =SUM(E56+E84) -> 1 | F55: 1 | G55: 1 | H55: 1 | I55: 1 | K55: 1
C56: All crimes | D56: 0.9767711963 | E56: 0.9721886336 | F56: 0.9769784173 | G56: 0.9876712329 | H56: 0.9811715481 | I56: 0.9675262655 | J56: 0.9626955475 | K56: 0.975399754
C57: Non-sexual crimes of violence | D57: 0.4099883856 | E57: 0.4740024184 | F57: 0.4374100719 | G57: 0.4068493151 | H57: 0.3891213389 | I57: 0.4183381089 | J57: 0.348977136 | K57: 0.3837638376
C58: Homicide | D58: 0.08710801394 | E58: 0.08706166868 | F58: 0.109352518 | G58: 0.1068493151 | H58: 0.08158995816 | I58: 0.08691499522 | J58: 0.08423586041 | K58: 0.08487084871
C59: Serious Assault and Attempted Murder | D59: 0.2218350755 | E59: 0.2805320435 | F59: 0.2431654676 | G59: 0.2397260274 | H59: 0.2552301255 | I59: 0.2722063037 | J59: 0.2129963899 | K59: 0.2546125461
C60: Robbery | D60: 0.07317073171 | E60: 0.07376058041 | F60: 0.06474820144 | G60: 0.0397260274 | H60: 0.03033472803 | I60: 0.03629417383 | J60: 0.03128760529 | K60: 0.0184501845
C61: Other Violence | D61: 0.02787456446 | E61: 0.03264812576 | F61: 0.02014388489 | G61: 0.02054794521 | H61: 0.0219665272 | I61: 0.0229226361 | J61: 0.02045728039 | K61: 0.0258302583
C62: Sexual crimes | D62: 0.4320557491 | E62: 0.3736396614 | F62: 0.3971223022 | G62: 0.4520547945 | H62: 0.4937238494 | I62: 0.4450811843 | J62: 0.504211793 | K62: 0.479704797
C63: Rape & Attempted Rape | D63: 0.3855981417 | E63: 0.3325272068 | F63: 0.3395683453 | G63: 0.4095890411 | H63: 0.4435146444 | I63: 0.3992359121 | J63: 0.4729241877 | K63: 0.4378843788
C64: Sexual Assault | D64: 0.03948896632 | E64: 0.0338573156 | F64: 0.05611510791 | G64: 0.03698630137 | H64: 0.04184100418 | I64: 0.04202483286 | J64: 0.02647412756 | K64: 0.0356703567
C65: Crimes associated with prostitution | D65: 0 | E65: 0 | F65: 0 | G65: 0 | H65: 0 | I65: 0 | J65: 0 | K65: 0
C66: Other sexual crimes | D66: 0.006968641115 | E66: 0.007255139057 | F66: 0.001438848921 | G66: 0.005479452055 | H66: 0.008368200837 | I66: 0.003820439351 | J66: 0.004813477738 | K66: 0.006150061501
C67: Crimes of dishonesty | D67: 0.01509872242 | E67: 0.01451027811 | F67: 0.01438848921 | G67: 0.01369863014 | H67: 0.008368200837 | I67: 0.008595988539 | J67: 0.01684717208 | K67: 0.012300123
C68: Housebreaking | D68: 0.002322880372 | E68: 0.002418379686 | F68: 0.002877697842 | G68: 0.001369863014 | H68: 0.001046025105 | I68: 0.001910219675 | J68: 0.002406738869 | K68: 0
C69: Theft by opening lockfast places | D69: 0 | E69: 0 | F69: 0 | G69: 0 | H69: 0.002092050209 | I69: 0 | J69: 0 | K69: 0
C70: Theft from a Motor Vehicle (OLP) | D70: 0 | E70: 0 | F70: 0 | G70: 0 | H70: 0 | I70: 0 | J70: 0 | K70: 0
C71: Theft of Motor Vehicle | D71: 0 | E71: 0.001209189843 | F71: 0 | G71: 0.004109589041 | H71: 0.001046025105 | I71: 0 | J71: 0 | K71: 0
C72: Shoplifting | D72: 0 | E72: 0 | F72: 0.001438848921 | G72: 0 | H72: 0 | I72: 0 | J72: 0 | K72: 0
C73: Other Theft | D73: 0 | E73: 0.002418379686 | F73: 0 | G73: 0 | H73: 0 | I73: 0 | J73: 0.001203369434 | K73: 0
C74: Fraud | D74: 0.002322880372 | E74: 0.003627569528 | F74: 0.002877697842 | G74: 0.002739726027 | H74: 0 | I74: 0.001910219675 | J74: 0.001203369434 | K74: 0.0036900369
C75: Other Dishonesty | D75: 0.01045296167 | E75: 0.004836759371 | F75: 0.007194244604 | G75: 0.005479452055 | H75: 0.004184100418 | I75: 0.004775549188 | J75: 0.01203369434 | K75: 0.008610086101
C76: Fire-raising, vandalism, etc. | D76: 0.008130081301 | E76: 0.01209189843 | F76: 0.01294964029 | G76: 0.008219178082 | H76: 0.004184100418 | I76: 0.003820439351 | J76: 0.008423586041 | K76: 0.0049200492
C77: Fire-raising | D77: 0.004645760743 | E77: 0.004836759371 | F77: 0.005755395683 | G77: 0.005479452055 | H77: 0.003138075314 | I77: 0.0009551098376 | J77: 0.001203369434 | K77: 0.0024600246
C78: Vandalism etc. | D78: 0.003484320557 | E78: 0.007255139057 | F78: 0.007194244604 | G78: 0.002739726027 | H78: 0.001046025105 | I78: 0.002865329513 | J78: 0.007220216606 | K78: 0.0024600246
C79: Other crimes | D79: 0.1114982578 | E79: 0.09794437727 | F79: 0.1151079137 | G79: 0.1068493151 | H79: 0.08577405858 | I79: 0.09169054441 | J79: 0.08423586041 | K79: 0.09471094711
C80: Crimes against Public Justice | D80: 0.02671312427 | E80: 0.01451027811 | F80: 0.03021582734 | G80: 0.02465753425 | H80: 0.01987447699 | I80: 0.01719197708 | J80: 0.01684717208 | K80: 0.0172201722
C81: Handling offensive weapons | D81: 0.002322880372 | E81: 0 | F81: 0.004316546763 | G81: 0 | H81: 0.002092050209 | I81: 0.003820439351 | J81: 0.003610108303 | K81: 0.0012300123
C82: Drugs | D82: 0.08130081301 | E82: 0.08101571947 | F82: 0.07913669065 | G82: 0.08082191781 | H82: 0.06276150628 | I82: 0.06494746896 | J82: 0.06137184116 | K82: 0.07503075031
C83: Other | D83: 0.001161440186 | E83: 0.002418379686 | F83: 0.001438848921 | G83: 0.001369863014 | H83: 0.001046025105 | I83: 0.005730659026 | J83: 0.002406738869 | K83: 0.0012300123
C84: All offences | D84: 0.02322880372 | E84: 0.02781136638 | F84: 0.02302158273 | G84: 0.01232876712 | H84: 0.01882845188 | I84: 0.03247373448 | J84: 0.03730445247 | K84: 0.024600246
C85: Miscellaneous offences | D85: 0.01858304297 | E85: 0.02660217654 | F85: 0.01294964029 | G85: 0.009589041096 | H85: 0.01569037657 | I85: 0.02483285578 | J85: 0.02888086643 | K85: 0.0196801968
C86: Common Assault | D86: 0.004645760743 | E86: 0 | F86: 0.005755395683 | G86: 0 | H86: 0.002092050209 | I86: 0.002865329513 | J86: 0.002406738869 | K86: 0.0012300123
C87: Breach Of The Peace etc. | D87: 0 | E87: 0.001209189843 | F87: 0 | G87: 0 | H87: 0 | I87: 0.002865329513 | J87: 0.001203369434 | K87: 0.0012300123
C88: Drunkenness | D88: 0 | E88: 0 | F88: 0 | G88: 0 | H88: 0 | I88: 0 | J88: 0 | K88: 0
C89: Urinating | D89: 0 | E89: 0 | F89: 0 | G89: 0 | H89: 0 | I89: 0 | J89: 0 | K89: 0
C90: Other Misc. Offences | D90: 0.01393728223 | E90: 0.0253929867 | F90: 0.007194244604 | G90: 0.009589041096 | H90: 0.01359832636 | I90: 0.01910219675 | J90: 0.02527075812 | K90: 0.0172201722
C91: Motor vehicle offences | D91: 0.004645760743 | E91: 0.001209189843 | F91: 0.01007194245 | G91: 0.002739726027 | H91: 0.003138075314 | I91: 0.007640878701 | J91: 0.008423586041 | K91: 0.0049200492
C92: Dangerous & Careless Driving | D92: 0 | E92: 0 | F92: 0 | G92: 0 | H92: 0.001046025105 | I92: 0 | J92: 0 | K92: 0.0012300123
C93: Driving Under the Influence | D93: 0 | E93: 0 | F93: 0 | G93: 0 | H93: 0 | I93: 0 | J93: 0 | K93: 0
C94: Speeding | D94: 0 | E94: 0 | F94: 0 | G94: 0 | H94: 0 | I94: 0 | J94: 0 | K94: 0
C95: Unlawful Use of Motor Vehicle | D95: 0.004645760743 | E95: 0.001209189843 | F95: 0.01007194245 | G95: 0.002739726027 | H95: 0.002092050209 | I95: 0.007640878701 | J95: 0.008423586041 | K95: 0.0036900369
C96: Vehicle Defect Offences | D96: 0 | E96: 0 | F96: 0 | G96: 0 | H96: 0 | I96: 0 | J96: 0 | K96: 0
C97: Seat belt offences | D97: 0 | E97: 0 | F97: 0 | G97: 0 | H97: 0 | I97: 0 | J97: 0 | K97: 0
C98: Mobile phone offences | D98: 0 | E98: 0 | F98: 0 | G98: 0 | H98: 0 | I98: 0 | J98: 0 | K98: 0
C99: Other M V Offences | D99: 0 | E99: 0 | F99: 0 | G99: 0 | H99: 0 | I99: 0 | J99: 0 | K99: 0
B101: S h e r i f f C o u r t - P e t i t i o n s | C101: Main Crime or Offence | D101: Sheriff Court - Petitions
C102: All crimes | D102: 0.8892267593 | E102: 0.8951651055 | F102: 0.9039648499 | G102: 0.9166666667 | H102: 0.9221825599 | I102: 0.9070259865 | J102: 0.8823035594 | K102: 0.8551101716
C103: Non-sexual crimes of violence | D103: 0.2984361425 | E103: 0.3321979374 | F103: 0.3313108066 | G103: 0.3189503733 | H103: 0.3161652218 | I103: 0.3038498556 | J103: 0.2682169241 | K103: 0.2527034718
C104: Homicide | D104: 0.01164205039 | E104: 0.01012394739 | F104: 0.01161209332 | G104: 0.01295564339 | H104: 0.01040285569 | I104: 0.01260827719 | J104: 0.008059100067 | K104: 0.00772420522
C105: Serious Assault and Attempted Murder | D105: 0.2139878367 | E105: 0.247421705 | F105: 0.2472015901 | G105: 0.2247474747 | H105: 0.2246812851 | I105: 0.2115495669 | J105: 0.1856950974 | K105: 0.1796894056
C106: Robbery | D106: 0.05690703736 | E106: 0.05733749645 | F106: 0.0557589706 | G106: 0.06291172596 | H106: 0.06435492096 | I106: 0.06256015399 | J106: 0.05775688381 | K106: 0.04886576144
C107: Other Violence | D107: 0.01589921807 | E107: 0.01731478853 | F107: 0.01673815253 | G107: 0.01833552921 | H107: 0.01672616012 | I107: 0.01713185756 | J107: 0.01670584285 | K107: 0.01642409952
C108: Sexual crimes | D108: 0.1073848827 | E108: 0.1064433721 | F108: 0.1137148237 | G108: 0.1525032938 | H108: 0.1430902601 | I108: 0.1566891242 | J108: 0.1348220282 | K108: 0.1285470363
C109: Rape & Attempted Rape | D109: 0.04126846221 | E109: 0.0332103321 | F109: 0.03630086829 | G109: 0.0523715415 | H109: 0.04742478327 | I109: 0.05466794995 | J109: 0.04751511081 | K109: 0.04089763395
C110: Sexual Assault | D110: 0.02554300608 | E110: 0.02923644621 | F110: 0.02740872476 | G110: 0.03963548529 | H110: 0.03763386028 | I110: 0.0416746872 | J110: 0.02887844191 | K110: 0.02918936499
C111: Crimes associated with prostitution | D111: 0.0006081668115 | E111: 0.0006623143155 | F111: 0.0004184538132 | G111: 0.0005489679403 | H111: 0.0003059663437 | I111: 0.000384985563 | J111: 0.0005876427132 | K111: 0.0008130742337
C112: Other sexual crimes | D112: 0.03996524761 | E112: 0.0433342795 | F112: 0.04958677686 | G112: 0.05994729908 | H112: 0.05772565018 | I112: 0.05996150144 | J112: 0.05784083277 | K112: 0.05764696317
C113: Crimes of dishonesty | D113: 0.1447437011 | E113: 0.1450468351 | F113: 0.1497018517 | G113: 0.1467940272 | H113: 0.1376848547 | I113: 0.1294513956 | J113: 0.1111484218 | K113: 0.09968290105
C114: Housebreaking | D114: 0.0900086881 | E114: 0.08941243259 | F114: 0.0938382676 | G114: 0.09112867809 | H114: 0.08730239674 | I114: 0.07545717036 | J114: 0.05230020148 | K114: 0.04325554923
C115: Theft by opening lockfast places | D115: 0.00338835795 | E115: 0.001513861292 | F115: 0.003243017052 | G115: 0.002415458937 | H115: 0.001835798062 | I115: 0.002117420597 | J115: 0.002518468771 | K115: 0.001544841044
C116: Theft from a Motor Vehicle (OLP) | D116: 0.0009556907037 | E116: 0.001040779639 | F116: 0.0005230672665 | G116: 0.0007685551164 | H116: 0.001121876594 | I116: 0.001058710298 | J116: 0.001259234385 | K116: 0.001382226197
C117: Theft of Motor Vehicle | D117: 0.006081668115 | E117: 0.006150061501 | F117: 0.006799874464 | G117: 0.008124725516 | H117: 0.005405405405 | I117: 0.008084696824 | J117: 0.008059100067 | K117: 0.01048865761
C118: Shoplifting | D118: 0.008340573414 | E118: 0.009934714732 | F118: 0.00920598389 | G118: 0.009112867809 | H118: 0.009586945436 | I118: 0.01049085659 | J118: 0.01091336467 | K118: 0.01170826896
C119: Other Theft | D119: 0.01650738488 | E119: 0.0159901599 | F119: 0.01328590857 | G119: 0.01372419851 | H119: 0.01387047425 | I119: 0.01337824832 | J119: 0.01603425118 | K119: 0.01536710302
C120: Fraud | D120: 0.01216333623 | E120: 0.01419244962 | F120: 0.01401820274 | G120: 0.01295564339 | H120: 0.009994900561 | I120: 0.01154956689 | J120: 0.01183680322 | K120: 0.007805512643
C121: Other Dishonesty | D121: 0.007298001738 | E121: 0.006812375816 | F121: 0.008787530076 | G121: 0.008563899868 | H121: 0.008567057624 | I121: 0.007314725698 | J121: 0.008226997985 | K121: 0.008130742337
C122: Fire-raising, vandalism, etc. | D122: 0.03449174631 | E122: 0.03604882203 | F122: 0.04069463333 | G122: 0.034914361 | H122: 0.03946965834 | I122: 0.03792107796 | J122: 0.06833445265 | K122: 0.06016749329
C123: Fire-raising | D123: 0.008948740226 | E123: 0.01315166998 | F123: 0.01401820274 | G123: 0.01460254721 | H123: 0.01601223865 | I123: 0.01164581328 | J123: 0.01343183345 | K123: 0.01317180259
C124: Vandalism etc. | D124: 0.02554300608 | E124: 0.02289715205 | F124: 0.02667643059 | G124: 0.02031181379 | H124: 0.02345741968 | I124: 0.02627526468 | J124: 0.05490261921 | K124: 0.04699569071
C125: Other crimes | D125: 0.3041702867 | E125: 0.2754281389 | F125: 0.2685427346 | G125: 0.2635046113 | H125: 0.285772565 | I125: 0.2791145332 | J125: 0.2997817327 | K125: 0.314009269
C126: Crimes against Public Justice | D126: 0.1041702867 | E126: 0.1094710947 | F126: 0.1057642013 | G126: 0.1126482213 | H126: 0.1247322794 | I126: 0.1200192493 | J126: 0.159922767 | K126: 0.1735913489
C127: Handling offensive weapons | D127: 0.09756733275 | E127: 0.07928848519 | F127: 0.08494612407 | G127: 0.07685551164 | H127: 0.08271290158 | I127: 0.08565928778 | J127: 0.07891202149 | K127: 0.07366452557
C128: Drugs | D128: 0.1014769765 | E128: 0.08562777935 | F128: 0.07689088817 | G128: 0.07290294247 | H128: 0.07751147374 | I128: 0.07199230029 | J128: 0.05993955675 | K128: 0.06520855354
C129: Other | D129: 0.0009556907037 | E129: 0.001040779639 | F129: 0.0009415210796 | G129: 0.001097935881 | H129: 0.0008159102499 | I129: 0.001443695861 | J129: 0.001007387508 | K129: 0.001544841044
C130: All offences | D130: 0.1107732407 | E130: 0.1048348945 | F130: 0.09603515012 | G130: 0.08333333333 | H130: 0.07781744008 | I130: 0.09297401347 | J130: 0.1176964406 | K130: 0.1448898284
C131: Miscellaneous offences | D131: 0.1055603823 | E131: 0.09859021667 | F131: 0.08871220839 | G131: 0.07685551164 | H131: 0.07047424783 | I131: 0.08152069297 | J131: 0.1111484218 | K131: 0.1347264005
C132: Common Assault | D132: 0.06377063423 | E132: 0.06339294162 | F132: 0.05670049168 | G132: 0.0514931928 | H132: 0.04691483937 | I132: 0.05274302214 | J132: 0.08587978509 | K132: 0.1052931133
C133: Breach Of The Peace etc. | D133: 0.02858384014 | E133: 0.02412716435 | F133: 0.01935348886 | G133: 0.0174571805 | H133: 0.01427842937 | I133: 0.01780558229 | J133: 0.01788112827 | K133: 0.02219692658
C134: Drunkenness | D134: 0 | E134: 0 | F134: 0 | G134: 0 | H134: 0 | I134: 0 | J134: 0 | K134: 0
C135: Urinating | D135: 0 | E135: 0 | F135: 0 | G135: 0 | H135: 0 | I135: 0 | J135: 0 | K135: 0
C136: Other Misc. Offences | D136: 0.01320590791 | E136: 0.0110701107 | F136: 0.01265822785 | G136: 0.00790513834 | H136: 0.009280979092 | I136: 0.01097208855 | J136: 0.007387508395 | K136: 0.00723636068
C137: Motor vehicle offences | D137: 0.005212858384 | E137: 0.006244677831 | F137: 0.00732294173 | G137: 0.006477821695 | H137: 0.007343192249 | I137: 0.0114533205 | J137: 0.006548018805 | K137: 0.01016342792
C138: Dangerous & Careless Driving | D138: 0.005212858384 | E138: 0.005866212508 | F138: 0.00732294173 | G138: 0.006368028107 | H138: 0.007037225905 | I138: 0.01106833494 | J138: 0.006548018805 | K138: 0.009919505651
C139: Driving Under the Influence | D139: 0 | E139: 0 | F139: 0 | G139: 0 | H139: 0 | I139: 0 | J139: 0 | K139: 0.0001626148467
C140: Speeding | D140: 0 | E140: 0 | F140: 0 | G140: 0 | H140: 0 | I140: 0 | J140: 0 | K140: 0
C141: Unlawful Use of Motor Vehicle | D141: 0 | E141: 0.0001892326616 | F141: 0 | G141: 0.0001097935881 | H141: 0.0003059663437 | I141: 0.000384985563 | J141: 0 | K141: 8.130742337e-05
C142: Vehicle Defect Offences | D142: 0 | E142: 0 | F142: 0 | G142: 0 | H142: 0 | I142: 0 | J142: 0 | K142: 0
C143: Seat belt offences | D143: 0 | E143: 0 | F143: 0 | G143: 0 | H143: 0 | I143: 0 | J143: 0 | K143: 0
C144: Mobile phone offences | D144: 0 | E144: 0 | F144: 0 | G144: 0 | H144: 0 | I144: 0 | J144: 0 | K144: 0
C145: Other M V Offences | D145: 0 | E145: 0.0001892326616 | F145: 0 | G145: 0 | H145: 0 | I145: 0 | J145: 0 | K145: 0
B147: S h e r i f f C o u r t - I n d i c t m e n t s | C147: Main Crime or Offence | D147: Sheriff Court - Indictments
C148: All crimes and offences | D148: =SUM(D149+D177) -> 1 | E148: =SUM(E149+E177) -> 1 | F148: =SUM(F149+F177) -> 1 | G148: =SUM(G149+G177) -> 1 | H148: =SUM(H149+H177) -> 1 | I148: =SUM(I149+I177) -> 1 | K148: =SUM(K149+K177) -> 1
C149: All crimes | D149: 0.9184519696 | E149: 0.9058894051 | F149: 0.8989800874 | G149: 0.9080609212 | H149: 0.9256492351 | I149: 0.9173471088 | J149: 0.8741640268 | K149: 0.8567996156
C150: Non-sexual crimes of violence | D150: 0.3337940567 | E150: 0.3443728458 | F150: 0.345151368 | G150: 0.3294947994 | H150: 0.332977588 | I150: 0.3347775371 | J150: 0.3155579021 | K150: 0.277270543
C151: Homicide | D151: 0.006357982032 | E151: 0.003746440881 | F151: 0.00291403594 | G151: 0.003157503715 | H151: 0.004091070793 | I151: 0.001833027829 | J151: 0.002639915523 | K151: 0.002082332212
C152: Serious Assault and Attempted Murder | D152: 0.2572218383 | E152: 0.2680953095 | F152: 0.2667961794 | G152: 0.2338410104 | H152: 0.2424404127 | I152: 0.2476253958 | J152: 0.2273847237 | K152: 0.1979817395
C153: Robbery | D153: 0.05694540428 | E153: 0.05889405065 | F153: 0.0582807188 | G153: 0.07262258544 | H153: 0.06990394877 | I153: 0.07248791868 | J153: 0.0702217529 | K153: 0.06166906936
C154: Other Violence | D154: 0.01326883207 | E154: 0.01363704481 | F154: 0.01716043387 | G154: 0.01987369985 | H154: 0.01654215582 | I154: 0.0128311948 | J154: 0.01531151003 | K154: 0.01553740189
C155: Sexual crimes | D155: 0.08403593642 | E155: 0.09081372696 | F155: 0.09033511413 | G155: 0.1045690936 | H155: 0.1252223408 | I155: 0.1129811698 | J155: 0.1050686378 | K155: 0.1068396604
C156: Rape & Attempted Rape | D156: 0.001382170007 | E156: 0.001948149258 | F156: 0.001942690627 | G156: 0.001671619614 | H156: 0.002490217005 | I156: 0.001666388935 | J156: 0.002287926786 | K156: 0.001121255807
C157: Sexual Assault | D157: 0.02446440912 | E157: 0.02832309306 | F157: 0.03205439534 | G157: 0.03640416048 | H157: 0.04055496265 | I157: 0.04599233461 | J157: 0.03326293559 | K157: 0.03091462438
C158: Crimes associated with prostitution | D158: 0.0006910850035 | E158: 0.0008991458115 | F158: 0.0004856726566 | G158: 0.0007429420505 | H158: 0.0003557452864 | I158: 0.0001666388935 | J158: 0.0003519887364 | K158: 0.0004805382028
C159: Other sexual crimes | D159: 0.05749827229 | E159: 0.05964333883 | F159: 0.05585235551 | G159: 0.06575037147 | H159: 0.08182141587 | I159: 0.06515580737 | J159: 0.06916578669 | K159: 0.07432324203
C160: Crimes of dishonesty | D160: 0.1466482377 | E160: 0.1619961037 | F160: 0.169661648 | G160: 0.1805349183 | H160: 0.1693347563 | I160: 0.1581403099 | J160: 0.1290038719 | K160: 0.1175716803
C161: Housebreaking | D161: 0.08458880442 | E161: 0.1007043309 | F161: 0.1053909665 | G161: 0.1099554235 | H161: 0.1047669868 | I161: 0.09531744709 | J161: 0.06863780359 | K161: 0.05622296973
C162: Theft by opening lockfast places | D162: 0.003731859019 | E162: 0.003446725611 | F162: 0.002428363283 | G162: 0.002786032689 | H162: 0.00444681608 | I162: 0.002666222296 | J162: 0.002287926786 | K162: 0.002082332212
C163: Theft from a Motor Vehicle (OLP) | D163: 0.001658604008 | E163: 0.0001498576352 | F163: 0.0008094544277 | G163: 0.0009286775632 | H163: 0.002490217005 | I163: 0.001333111148 | J163: 0.002111932418 | K163: 0.001281435207
C164: Theft of Motor Vehicle | D164: 0.005666897028 | E164: 0.005245017234 | F164: 0.007285089849 | G164: 0.00780089153 | H164: 0.0078263963 | I164: 0.006665555741 | J164: 0.01126363956 | K164: 0.008008970046
C165: Shoplifting | D165: 0.01008984105 | E165: 0.009890603926 | F165: 0.01100858022 | G165: 0.007986627043 | H165: 0.007648523657 | I165: 0.01066488919 | J165: 0.01091165083 | K165: 0.01313471088
C166: Other Theft | D166: 0.01893572909 | E166: 0.01813277386 | F166: 0.01602719767 | G166: 0.02173105498 | H166: 0.01618641053 | I166: 0.01433094484 | J166: 0.01724744808 | K166: 0.0169790165
C167: Fraud | D167: 0.01382170007 | E167: 0.01678405515 | F167: 0.01813177918 | G167: 0.0176448737 | H167: 0.01849875489 | I167: 0.01649725046 | J167: 0.01020767335 | K167: 0.01185327567
C168: Other Dishonesty | D168: 0.008154803041 | E168: 0.007642739398 | F168: 0.008580216934 | G168: 0.0117013373 | H168: 0.007470651014 | I168: 0.01066488919 | J168: 0.006335797254 | K168: 0.008008970046
C169: Fire-raising, vandalism, etc. | D169: 0.03261921216 | E169: 0.036565263 | F169: 0.04063461227 | G169: 0.04457652303 | H169: 0.03984347207 | I169: 0.04515914014 | J169: 0.05772615276 | K169: 0.06295050457
C170: Fire-raising | D170: 0.01036627505 | E170: 0.01183875318 | F170: 0.01537963413 | G170: 0.02228826152 | H170: 0.01654215582 | I170: 0.01966338944 | J170: 0.01478352693 | K170: 0.0179400929
C171: Vandalism etc. | D171: 0.02225293711 | E171: 0.02472650982 | F171: 0.02525497814 | G171: 0.02228826152 | H171: 0.02330131626 | I171: 0.02549575071 | J171: 0.04294262584 | K171: 0.04501041166
C172: Other crimes | D172: 0.3213545266 | E172: 0.2721414656 | F172: 0.253197345 | G172: 0.2488855869 | H172: 0.2582710779 | I172: 0.2662889518 | J172: 0.2668074622 | K172: 0.2921672273
C173: Crimes against Public Justice | D173: 0.09108500346 | E173: 0.08616814027 | F173: 0.07301278938 | G173: 0.07893759287 | H173: 0.07933119886 | I173: 0.08815197467 | J173: 0.1085885252 | K173: 0.1303860324
C174: Handling offensive weapons | D174: 0.1296475466 | E174: 0.1046006294 | F174: 0.09664885867 | G174: 0.0897102526 | H174: 0.09178228388 | I174: 0.09981669722 | J174: 0.09714889124 | K174: 0.09098189973
C175: Drugs | D175: 0.1003455425 | E175: 0.08107298067 | F175: 0.08143111543 | G175: 0.07930906389 | H175: 0.08680184988 | I175: 0.07782036327 | J175: 0.06019007392 | K175: 0.06999839821
C176: Other | D176: 0.0002764340014 | E176: 0.0002997152705 | F176: 0.002104581512 | G176: 0.0009286775632 | H176: 0.0003557452864 | I176: 0.0004999166806 | J176: 0.0008799718409 | K176: 0.0008008970046
C177: All offences | D177: 0.08154803041 | E177: 0.09411059493 | F177: 0.1010199126 | G177: 0.09193907875 | H177: 0.07435076485 | I177: 0.08265289118 | J177: 0.1258359732 | K177: 0.1432003844
C178: Miscellaneous offences | D178: 0.07270214236 | E178: 0.0837704181 | F178: 0.08450704225 | G178: 0.07002228826 | H178: 0.05656350053 | I178: 0.06065655724 | J178: 0.09961281239 | K178: 0.1234983181
C179: Common Assault | D179: 0.04270905321 | E179: 0.04795444328 | F179: 0.05067184718 | G179: 0.04104754829 | H179: 0.03344005692 | I179: 0.03732711215 | J179: 0.06898979233 | K179: 0.09706871696
C180: Breach Of The Peace etc. | D180: 0.01382170007 | E180: 0.01843248914 | F180: 0.01424639793 | G180: 0.01263001486 | H180: 0.01013874066 | I180: 0.01116480587 | J180: 0.01759943682 | K180: 0.01601794009
C181: Drunkenness | D181: 0 | E181: 0 | F181: 0 | G181: 0 | H181: 0 | I181: 0 | J181: 0 | K181: 0
C182: Urinating | D182: 0 | E182: 0 | F182: 0 | G182: 0 | H182: 0 | I182: 0 | J182: 0 | K182: 0
C183: Other Misc. Offences | D183: 0.01617138908 | E183: 0.01738348569 | F183: 0.01958879715 | G183: 0.01634472511 | H183: 0.01298470295 | I183: 0.01216463923 | J183: 0.01302358325 | K183: 0.01041166106
C184: Motor vehicle offences | D184: 0.008845888044 | E184: 0.01034017683 | F184: 0.01651287033 | G184: 0.02191679049 | H184: 0.01778726432 | I184: 0.02199633394 | J184: 0.02622316086 | K184: 0.01970206631
C185: Dangerous & Careless Driving | D185: 0.00400829302 | E185: 0.006144163045 | F185: 0.009389671362 | G185: 0.009658246657 | H185: 0.008182141587 | I185: 0.0101649725 | J185: 0.0116156283 | K185: 0.009770943457
C186: Driving Under the Influence | D186: 0 | E186: 0 | F186: 0 | G186: 0 | H186: 0.0001778726432 | I186: 0 | J186: 0.0005279831045 | K186: 0.0001601794009
C187: Speeding | D187: 0 | E187: 0 | F187: 0 | G187: 0 | H187: 0 | I187: 0 | J187: 0 | K187: 0
C188: Unlawful Use of Motor Vehicle | D188: 0.004837595024 | E188: 0.004196013787 | F188: 0.006961308078 | G188: 0.01225854383 | H188: 0.009427250089 | I188: 0.01183136144 | J188: 0.01407954945 | K188: 0.009770943457
C189: Vehicle Defect Offences | D189: 0 | E189: 0 | F189: 0 | G189: 0 | H189: 0 | I189: 0 | J189: 0 | K189: 0
C190: Seat belt offences | D190: 0 | E190: 0 | F190: 0 | G190: 0 | H190: 0 | I190: 0 | J190: 0 | K190: 0
C191: Mobile phone offences | D191: 0 | E191: 0 | F191: 0 | G191: 0 | H191: 0 | I191: 0 | J191: 0 | K191: 0
C192: Other M V Offences | D192: 0 | E192: 0 | F192: 0.0001618908855 | G192: 0 | H192: 0 | I192: 0 | J192: 0 | K192: 0
B194: S h e r i f f C o u r t - C o m p l a i n t s | C194: Main Crime or Offence | D194: Sheriff Court - Complaints
C195: All crimes and offences | D195: =SUM(D196+D224) -> 1 | E195: =SUM(E196+E224) -> 1 | F195: =SUM(F196+F224) -> 1 | G195: =SUM(G196+G224) -> 1 | H195: =SUM(H196+H224) -> 1 | I195: =SUM(I196+I224) -> 1 | K195: =SUM(K196+K224) -> 1
C196: All crimes | D196: 0.5288939916 | E196: 0.5336674953 | F196: 0.5293035225 | G196: 0.5513757651 | H196: 0.5722026684 | I196: 0.5665091358 | J196: 0.5789047367 | K196: 0.5658151153
C197: Non-sexual crimes of violence | D197: 0.008118746925 | E197: 0.008218210468 | F197: 0.01040427239 | G197: 0.01812563143 | H197: 0.01714005075 | I197: 0.01745883628 | J197: 0.01804895228 | K197: 0.01700740531
C198: Homicide | D198: 6.833962058e-05 | E198: 9.508673268e-05 | F198: 5.534187443e-05 | G198: 0.0001039995246 | H198: 6.548252435e-05 | I198: 6.020288372e-05 | J198: 7.043493573e-05 | K198: 3.543209439e-05
C199: Serious Assault and Attempted Murder | D199: 0.00209119239 | E199: 0.001860983197 | F199: 0.004427349954 | G199: 0.01157366138 | H199: 0.01199967259 | I199: 0.01089672195 | J199: 0.01125198098 | K199: 0.009318640825
C200: Robbery | D200: 0.001995516921 | E200: 0.002309249222 | F200: 0.002711751847 | G200: 0.003179414037 | H200: 0.002570189081 | I200: 0.002949941302 | J200: 0.00353935552 | K200: 0.002994011976
C201: Other Violence | D201: 0.003963697994 | E201: 0.003952891316 | F201: 0.003209828717 | G201: 0.003268556487 | H201: 0.002504706556 | I201: 0.003551970139 | J201: 0.003187180842 | K201: 0.004659320412
C202: Sexual crimes | D202: 0.01514405992 | E202: 0.01419509081 | F202: 0.01425053267 | G202: 0.01821477388 | H202: 0.01961201604 | I202: 0.01858764035 | J202: 0.01683394964 | K202: 0.02028487404
C203: Rape & Attempted Rape | D203: 1.366792412e-05 | E203: 0 | F203: 1.383546861e-05 | G203: 0 | H203: 0 | I203: 0 | J203: 0 | K203: 1.77160472e-05
C204: Sexual Assault | D204: 0.005754196053 | E204: 0.00532485703 | F204: 0.005838567752 | G204: 0.007473108694 | H204: 0.007497749038 | I204: 0.007224346046 | J204: 0.005353055115 | K204: 0.008113949616
... 165 more rows

Sheet 2a
H1: Back to Index | J1: Go to Current Financial Year | Z1: Back to Index | AS1: Back to Index
G2: High Court | L2: High Court | Q2: High Court | V2: High Court | AA2: High Court | AF2: High Court | AK2: High Court | AP2: High Court
C3: 2013/14 | G3: 2014/15 | L3: 2015/16 | Q3: 2016/17 | V3: 2017/18YTD | AA3: 2017/18YTD | AF3: 2017/18YTD | AK3: 2017/18YTD | AP3: 2017/18YTD
C4: 2013/14 | G4: 2014/15 | L4: 2015/16 | Q4: 2016/17 | V4: 2017/18 | AA4: 2017/18 | AF4: 2017/18 | AK4: 2017/18 | AP4: 2017/18
C5: Q1 | D5: Q2 | E5: Q3 | F5: Q4 | G5: Q1 | H5: Q2 | I5: Q3 | J5: Q4 | L5: Q1 | M5: Q2 | N5: Q3 | O5: Q4 | Q5: Q1 | R5: Q2 | S5: Q3 | T5: Q4 | V5: Q1 | W5: Q2 | X5: Q3 | Y5: Q4 | AA5: Q1 | AB5: Q2 | AC5: Q3 | AD5: Q4 | AF5: Q1 | AG5: Q2 | AH5: Q3 | AI5: Q4 | AK5: Q1 | AL5: Q2 | AM5: Q3 | AN5: Q4 | AP5: Q1 | AQ5: Q2 | AR5: Q3 | AS5: Q4
G6: 2014/15 | L6: 2015/16 | Q6: 2016/17 | V6: 2017/18 | AA6: 2018/19 | AF6: 2019/20 | AK6: 2020/21 | AP6: 2021/22
C8: Quarter 1 | D8: Quarter 2 | E8: Quarter 3 | F8: Quarter 4 | G8: Quarter 1 | H8: Quarter 2 | I8: Quarter 3 | J8: Quarter 4 | K8: Full Year | L8: Quarter 1 | M8: Quarter 2 | N8: Quarter 3 | O8: Quarter 4 | P8: Full Year | Q8: Quarter 1 | R8: Quarter 2 | S8: Quarter 3 | T8: Quarter 4 | U8: Full Year | V8: Quarter 1 | W8: Quarter 2 | X8: Quarter 3 | Y8: Quarter 4 | Z8: Full Year | AA8: Quarter 1 | AB8: Quarter 2 | AC8: Quarter 3 | AD8: Quarter 4 | AE8: Full Year | AF8: Quarter 1 | AG8: Quarter 2 | AH8: Quarter 3 | AI8: Quarter 4 | AJ8: Full Year | AK8: Quarter 1 | AL8: Quarter 2 | AM8: Quarter 3 | AN8: Quarter 4 | AO8: Full Year | AP8: Quarter 1 | AQ8: Quarter 2 | AR8: Quarter 3 | AS8: Quarter 4 | AT8: Full Year
B9: Petitions registered during period
B10: Indictments registered | C10: =SUMIFS(#REF!,#REF!,$C$4,#REF!,"NATIONAL",#REF!,C$5) ->  | D10: =SUMIFS(#REF!,#REF!,$C$4,#REF!,"NATIONAL",#REF!,D$5) ->  | E10: =SUMIFS(#REF!,#REF!,$C$4,#REF!,"NATIONAL",#REF!,E$5) ->  | F10: =SUMIFS(#REF!,#REF!,$C$4,#REF!,"NATIONAL",#REF!,F$5) ->  | G10: =SUMIFS('High Court Raw Data'!$E:$E,'High Court Raw Data'!$B:$B,"Q1",'High Court Raw Data'!$A:$A,"2014/15") -> 170 | H10: =SUMIFS('High Court Raw Data'!$E:$E,'High Court Raw Data'!$B:$B,"Q2",'High Court Raw Data'!$A:$A,"2014/15") -> 206 | I10: =SUMIFS('High Court Raw Data'!$E:$E,'High Court Raw Data'!$B:$B,"Q3",'High Court Raw Data'!$A:$A,"2014/15") -> 164 | J10: =SUMIFS('High Court Raw Data'!$E:$E,'High Court Raw Data'!$B:$B,"Q4",'High Court Raw Data'!$A:$A,"2014/15") -> 163 | K10: =SUM(G10:J10) -> 703 | L10: =SUMIFS('High Court Raw Data'!$E:$E,'High Court Raw Data'!$B:$B,"Q1",'High Court Raw Data'!$A:$A,"2015/16") -> 179 | M10: =SUMIFS('High Court Raw Data'!$E:$E,'High Court Raw Data'!$B:$B,"Q2",'High Court Raw Data'!$A:$A,"2015/16") -> 143 | N10: =SUMIFS('High Court Raw Data'!$E:$E,'High Court Raw Data'!$B:$B,"Q3",'High Court Raw Data'!$A:$A,"2015/16") -> 136 | O10: =SUMIFS('High Court Raw Data'!$E:$E,'High Court Raw Data'!$B:$B,"Q4",'High Court Raw Data'!$A:$A,"2015/16") -> 181 | P10: =SUM(L10:O10) -> 639 | Q10: =SUMIFS('High Court Raw Data'!$E:$E,'High Court Raw Data'!$B:$B,"Q1",'High Court Raw Data'!$A:$A,"2016/17") -> 161 | R10: =SUMIFS('High Court Raw Data'!$E:$E,'High Court Raw Data'!$B:$B,"Q2",'High Court Raw Data'!$A:$A,"2016/17") -> 133 | S10: =SUMIFS('High Court Raw Data'!$E:$E,'High Court Raw Data'!$B:$B,"Q3",'High Court Raw Data'!$A:$A,"2016/17") -> 110 | T10: =SUMIFS('High Court Raw Data'!$E:$E,'High Court Raw Data'!$B:$B,"Q4",'High Court Raw Data'!$A:$A,"2016/17") -> 183 | U10: =SUM(Q10:T10) -> 587 | V10: =SUMIFS('High Court Raw Data'!$E:$E,'High Court Raw Data'!$B:$B,"Q1",'High Court Raw Data'!$A:$A,"2017/18") -> 153 | W10: =SUMIFS('High Court Raw Data'!$E:$E,'High Court Raw Data'!$B:$B,"Q2",'High Court Raw Data'!$A:$A,"2017/18") -> 198 | X10: =SUMIFS('High Court Raw Data'!$E:$E,'High Court Raw Data'!$B:$B,"Q3",'High Court Raw Data'!$A:$A,"2017/18") -> 165 | Y10: =SUMIFS('High Court Raw Data'!$E:$E,'High Court Raw Data'!$B:$B,"Q4",'High Court Raw Data'!$A:$A,"2017/18") -> 202 | Z10: =SUM(V10:Y10) -> 718 | AA10: =SUMIFS('High Court Raw Data'!$E:$E,'High Court Raw Data'!$B:$B,"Q1",'High Court Raw Data'!$A:$A,"2018/19") -> 228 | AB10: =SUMIFS('High Court Raw Data'!$E:$E,'High Court Raw Data'!$B:$B,"Q2",'High Court Raw Data'!$A:$A,"2018/19") -> 240 | AC10: =SUMIFS('High Court Raw Data'!$E:$E,'High Court Raw Data'!$B:$B,"Q3",'High Court Raw Data'!$A:$A,"2018/19") -> 210 | AD10: =SUMIFS('High Court Raw Data'!$E:$E,'High Court Raw Data'!$B:$B,"Q4",'High Court Raw Data'!$A:$A,"2018/19") -> 233 | AE10: =SUM(AA10:AD10) -> 911 | AF10: =SUMIFS('High Court Raw Data'!$E:$E,'High Court Raw Data'!$B:$B,"Q1",'High Court Raw Data'!$A:$A,"2019/20") -> 248 | AG10: =SUMIFS('High Court Raw Data'!$E:$E,'High Court Raw Data'!$B:$B,"Q2",'High Court Raw Data'!$A:$A,"2019/20") -> 272 | AH10: =SUMIFS('High Court Raw Data'!$E:$E,'High Court Raw Data'!$B:$B,"Q3",'High Court Raw Data'!$A:$A,"2019/20") -> 274 | AI10: =SUMIFS('High Court Raw Data'!$E:$E,'High Court Raw Data'!$B:$B,"Q4",'High Court Raw Data'!$A:$A,"2019/20") -> 230 | AJ10: =SUM(AF10:AI10) -> 1024 | AK10: =SUMIFS('High Court Raw Data'!$E:$E,'High Court Raw Data'!$B:$B,"Q1",'High Court Raw Data'!$A:$A,"2020/21") -> 231 | AL10: =SUMIFS('High Court Raw Data'!$E:$E,'High Court Raw Data'!$B:$B,"Q2",'High Court Raw Data'!$A:$A,"2020/21") -> 177 | AM10: =SUMIFS('High Court Raw Data'!$E:$E,'High Court Raw Data'!$B:$B,"Q3",'High Court Raw Data'!$A:$A,"2020/21") -> 140 | AN10: =SUMIFS('High Court Raw Data'!$E:$E,'High Court Raw Data'!$B:$B,"Q4",'High Court Raw Data'!$A:$A,"2020/21") -> 219 | AO10: =SUM(AK10:AN10) -> 767 | AP10: =SUMIFS('High Court Raw Data'!$E:$E,'High Court Raw Data'!$B:$B,"Q1",'High Court Raw Data'!$A:$A,"2021/22") -> 155 | AQ10: =SUMIFS('High Court Raw Data'!$E:$E,'High Court Raw Data'!$B:$B,"Q2",'High Court Raw Data'!$A:$A,"2021/22") -> 160 | AR10: =SUMIFS('High Court Raw Data'!$E:$E,'High Court Raw Data'!$B:$B,"Q3",'High Court Raw Data'!$A:$A,"2021/22") -> 192 | AS10: =SUMIFS('High Court Raw Data'!$E:$E,'High Court Raw Data'!$B:$B,"Q4",'High Court Raw Data'!$A:$A,"2021/22") -> 238 | AT10: =SUM(AP10:AS10) -> 745
B11: Indictments called at Preliminary Hearing | C11: =SUMIFS(#REF!,#REF!,$C$4,#REF!,"NATIONAL",#REF!,C$5) ->  | D11: =SUMIFS(#REF!,#REF!,$C$4,#REF!,"NATIONAL",#REF!,D$5) ->  | E11: =SUMIFS(#REF!,#REF!,$C$4,#REF!,"NATIONAL",#REF!,E$5) ->  | F11: =SUMIFS(#REF!,#REF!,$C$4,#REF!,"NATIONAL",#REF!,F$5) ->  | G11: =SUMIFS('High Court Raw Data'!$F:$F,'High Court Raw Data'!$B:$B,"Q1",'High Court Raw Data'!$A:$A,"2014/15") -> 184 | H11: =SUMIFS('High Court Raw Data'!$F:$F,'High Court Raw Data'!$B:$B,"Q2",'High Court Raw Data'!$A:$A,"2014/15") -> 187 | I11: =SUMIFS('High Court Raw Data'!$F:$F,'High Court Raw Data'!$B:$B,"Q3",'High Court Raw Data'!$A:$A,"2014/15") -> 186 | J11: =SUMIFS('High Court Raw Data'!$F:$F,'High Court Raw Data'!$B:$B,"Q4",'High Court Raw Data'!$A:$A,"2014/15") -> 187 | K11: 744 | L11: =SUMIFS('High Court Raw Data'!$F:$F,'High Court Raw Data'!$B:$B,"Q1",'High Court Raw Data'!$A:$A,"2015/16") -> 182 | M11: =SUMIFS('High Court Raw Data'!$F:$F,'High Court Raw Data'!$B:$B,"Q2",'High Court Raw Data'!$A:$A,"2015/16") -> 147 | N11: =SUMIFS('High Court Raw Data'!$F:$F,'High Court Raw Data'!$B:$B,"Q3",'High Court Raw Data'!$A:$A,"2015/16") -> 170 | O11: =SUMIFS('High Court Raw Data'!$F:$F,'High Court Raw Data'!$B:$B,"Q4",'High Court Raw Data'!$A:$A,"2015/16") -> 184 | P11: 683 | Q11: =SUMIFS('High Court Raw Data'!$F:$F,'High Court Raw Data'!$B:$B,"Q1",'High Court Raw Data'!$A:$A,"2016/17") -> 184 | R11: =SUMIFS('High Court Raw Data'!$F:$F,'High Court Raw Data'!$B:$B,"Q2",'High Court Raw Data'!$A:$A,"2016/17") -> 139 | S11: =SUMIFS('High Court Raw Data'!$F:$F,'High Court Raw Data'!$B:$B,"Q3",'High Court Raw Data'!$A:$A,"2016/17") -> 138 | T11: =SUMIFS('High Court Raw Data'!$F:$F,'High Court Raw Data'!$B:$B,"Q4",'High Court Raw Data'!$A:$A,"2016/17") -> 154 | U11: 615 | V11: =SUMIFS('High Court Raw Data'!$F:$F,'High Court Raw Data'!$B:$B,"Q1",'High Court Raw Data'!$A:$A,"2017/18") -> 152 | W11: =SUMIFS('High Court Raw Data'!$F:$F,'High Court Raw Data'!$B:$B,"Q2",'High Court Raw Data'!$A:$A,"2017/18") -> 158 | X11: =SUMIFS('High Court Raw Data'!$F:$F,'High Court Raw Data'!$B:$B,"Q3",'High Court Raw Data'!$A:$A,"2017/18") -> 121 | Y11: =SUMIFS('High Court Raw Data'!$F:$F,'High Court Raw Data'!$B:$B,"Q4",'High Court Raw Data'!$A:$A,"2017/18") -> 167 | Z11: 598 | AA11: =SUMIFS('High Court Raw Data'!$F:$F,'High Court Raw Data'!$B:$B,"Q1",'High Court Raw Data'!$A:$A,"2018/19") -> 232 | AB11: =SUMIFS('High Court Raw Data'!$F:$F,'High Court Raw Data'!$B:$B,"Q2",'High Court Raw Data'!$A:$A,"2018/19") -> 228 | AC11: =SUMIFS('High Court Raw Data'!$F:$F,'High Court Raw Data'!$B:$B,"Q3",'High Court Raw Data'!$A:$A,"2018/19") -> 204 | AD11: =SUMIFS('High Court Raw Data'!$F:$F,'High Court Raw Data'!$B:$B,"Q4",'High Court Raw Data'!$A:$A,"2018/19") -> 223 | AE11: 887 | AF11: =SUMIFS('High Court Raw Data'!$F:$F,'High Court Raw Data'!$B:$B,"Q1",'High Court Raw Data'!$A:$A,"2019/20") -> 253 | AG11: =SUMIFS('High Court Raw Data'!$F:$F,'High Court Raw Data'!$B:$B,"Q2",'High Court Raw Data'!$A:$A,"2019/20") -> 241 | AH11: =SUMIFS('High Court Raw Data'!$F:$F,'High Court Raw Data'!$B:$B,"Q3",'High Court Raw Data'!$A:$A,"2019/20") -> 267 | AI11: =SUMIFS('High Court Raw Data'!$F:$F,'High Court Raw Data'!$B:$B,"Q4",'High Court Raw Data'!$A:$A,"2019/20") -> 220 | AJ11: 981 | AK11: =SUMIFS('High Court Raw Data'!$F:$F,'High Court Raw Data'!$B:$B,"Q1",'High Court Raw Data'!$A:$A,"2020/21") -> 92 | AL11: =SUMIFS('High Court Raw Data'!$F:$F,'High Court Raw Data'!$B:$B,"Q2",'High Court Raw Data'!$A:$A,"2020/21") -> 314 | AM11: =SUMIFS('High Court Raw Data'!$F:$F,'High Court Raw Data'!$B:$B,"Q3",'High Court Raw Data'!$A:$A,"2020/21") -> 150 | AN11: =SUMIFS('High Court Raw Data'!$F:$F,'High Court Raw Data'!$B:$B,"Q4",'High Court Raw Data'!$A:$A,"2020/21") -> 169 | AO11: 725 | AP11: =SUMIFS('High Court Raw Data'!$F:$F,'High Court Raw Data'!$B:$B,"Q1",'High Court Raw Data'!$A:$A,"2021/22") -> 173 | AQ11: =SUMIFS('High Court Raw Data'!$F:$F,'High Court Raw Data'!$B:$B,"Q2",'High Court Raw Data'!$A:$A,"2021/22") -> 112 | AR11: =SUMIFS('High Court Raw Data'!$F:$F,'High Court Raw Data'!$B:$B,"Q3",'High Court Raw Data'!$A:$A,"2021/22") -> 135 | AS11: =SUMIFS('High Court Raw Data'!$F:$F,'High Court Raw Data'!$B:$B,"Q4",'High Court Raw Data'!$A:$A,"2021/22") -> 218 | AT11: 638
B12: Indictments called at Continued Preliminary Hearing | C12: =SUMIFS(#REF!,#REF!,$C$4,#REF!,"NATIONAL",#REF!,C$5) ->  | D12: =SUMIFS(#REF!,#REF!,$C$4,#REF!,"NATIONAL",#REF!,D$5) ->  | E12: =SUMIFS(#REF!,#REF!,$C$4,#REF!,"NATIONAL",#REF!,E$5) ->  | F12: =SUMIFS(#REF!,#REF!,$C$4,#REF!,"NATIONAL",#REF!,F$5) ->  | G12: =SUMIFS('High Court Raw Data'!$G:$G,'High Court Raw Data'!$B:$B,"Q1",'High Court Raw Data'!$A:$A,"2014/15") -> 113 | H12: =SUMIFS('High Court Raw Data'!$G:$G,'High Court Raw Data'!$B:$B,"Q2",'High Court Raw Data'!$A:$A,"2014/15") -> 110 | I12: =SUMIFS('High Court Raw Data'!$G:$G,'High Court Raw Data'!$B:$B,"Q3",'High Court Raw Data'!$A:$A,"2014/15") -> 115 | J12: =SUMIFS('High Court Raw Data'!$G:$G,'High Court Raw Data'!$B:$B,"Q4",'High Court Raw Data'!$A:$A,"2014/15") -> 93 | K12: 431 | L12: =SUMIFS('High Court Raw Data'!$G:$G,'High Court Raw Data'!$B:$B,"Q1",'High Court Raw Data'!$A:$A,"2015/16") -> 61 | M12: =SUMIFS('High Court Raw Data'!$G:$G,'High Court Raw Data'!$B:$B,"Q2",'High Court Raw Data'!$A:$A,"2015/16") -> 60 | N12: =SUMIFS('High Court Raw Data'!$G:$G,'High Court Raw Data'!$B:$B,"Q3",'High Court Raw Data'!$A:$A,"2015/16") -> 53 | O12: =SUMIFS('High Court Raw Data'!$G:$G,'High Court Raw Data'!$B:$B,"Q4",'High Court Raw Data'!$A:$A,"2015/16") -> 75 | P12: 249 | Q12: =SUMIFS('High Court Raw Data'!$G:$G,'High Court Raw Data'!$B:$B,"Q1",'High Court Raw Data'!$A:$A,"2016/17") -> 60 | R12: =SUMIFS('High Court Raw Data'!$G:$G,'High Court Raw Data'!$B:$B,"Q2",'High Court Raw Data'!$A:$A,"2016/17") -> 71 | S12: =SUMIFS('High Court Raw Data'!$G:$G,'High Court Raw Data'!$B:$B,"Q3",'High Court Raw Data'!$A:$A,"2016/17") -> 66 | T12: =SUMIFS('High Court Raw Data'!$G:$G,'High Court Raw Data'!$B:$B,"Q4",'High Court Raw Data'!$A:$A,"2016/17") -> 54 | U12: 251 | V12: =SUMIFS('High Court Raw Data'!$G:$G,'High Court Raw Data'!$B:$B,"Q1",'High Court Raw Data'!$A:$A,"2017/18") -> 60 | W12: =SUMIFS('High Court Raw Data'!$G:$G,'High Court Raw Data'!$B:$B,"Q2",'High Court Raw Data'!$A:$A,"2017/18") -> 58 | X12: =SUMIFS('High Court Raw Data'!$G:$G,'High Court Raw Data'!$B:$B,"Q3",'High Court Raw Data'!$A:$A,"2017/18") -> 74 | Y12: =SUMIFS('High Court Raw Data'!$G:$G,'High Court Raw Data'!$B:$B,"Q4",'High Court Raw Data'!$A:$A,"2017/18") -> 81 | Z12: 273 | AA12: =SUMIFS('High Court Raw Data'!$G:$G,'High Court Raw Data'!$B:$B,"Q1",'High Court Raw Data'!$A:$A,"2018/19") -> 116 | AB12: =SUMIFS('High Court Raw Data'!$G:$G,'High Court Raw Data'!$B:$B,"Q2",'High Court Raw Data'!$A:$A,"2018/19") -> 101 | AC12: =SUMIFS('High Court Raw Data'!$G:$G,'High Court Raw Data'!$B:$B,"Q3",'High Court Raw Data'!$A:$A,"2018/19") -> 92 | AD12: =SUMIFS('High Court Raw Data'!$G:$G,'High Court Raw Data'!$B:$B,"Q4",'High Court Raw Data'!$A:$A,"2018/19") -> 125 | AE12: 434 | AF12: =SUMIFS('High Court Raw Data'!$G:$G,'High Court Raw Data'!$B:$B,"Q1",'High Court Raw Data'!$A:$A,"2019/20") -> 100 | AG12: =SUMIFS('High Court Raw Data'!$G:$G,'High Court Raw Data'!$B:$B,"Q2",'High Court Raw Data'!$A:$A,"2019/20") -> 114 | AH12: =SUMIFS('High Court Raw Data'!$G:$G,'High Court Raw Data'!$B:$B,"Q3",'High Court Raw Data'!$A:$A,"2019/20") -> 115 | AI12: =SUMIFS('High Court Raw Data'!$G:$G,'High Court Raw Data'!$B:$B,"Q4",'High Court Raw Data'!$A:$A,"2019/20") -> 108 | AJ12: 437 | AK12: =SUMIFS('High Court Raw Data'!$G:$G,'High Court Raw Data'!$B:$B,"Q1",'High Court Raw Data'!$A:$A,"2020/21") -> 40 | AL12: =SUMIFS('High Court Raw Data'!$G:$G,'High Court Raw Data'!$B:$B,"Q2",'High Court Raw Data'!$A:$A,"2020/21") -> 289 | AM12: =SUMIFS('High Court Raw Data'!$G:$G,'High Court Raw Data'!$B:$B,"Q3",'High Court Raw Data'!$A:$A,"2020/21") -> 247 | AN12: =SUMIFS('High Court Raw Data'!$G:$G,'High Court Raw Data'!$B:$B,"Q4",'High Court Raw Data'!$A:$A,"2020/21") -> 215 | AO12: 791 | AP12: =SUMIFS('High Court Raw Data'!$G:$G,'High Court Raw Data'!$B:$B,"Q1",'High Court Raw Data'!$A:$A,"2021/22") -> 185 | AQ12: =SUMIFS('High Court Raw Data'!$G:$G,'High Court Raw Data'!$B:$B,"Q2",'High Court Raw Data'!$A:$A,"2021/22") -> 228 | AR12: =SUMIFS('High Court Raw Data'!$G:$G,'High Court Raw Data'!$B:$B,"Q3",'High Court Raw Data'!$A:$A,"2021/22") -> 169 | AS12: =SUMIFS('High Court Raw Data'!$G:$G,'High Court Raw Data'!$B:$B,"Q4",'High Court Raw Data'!$A:$A,"2021/22") -> 134 | AT12: 716
B13: Section 76 Indictments | G13: =SUMIFS('High Court Raw Data'!$H:$H,'High Court Raw Data'!$B:$B,"Q1",'High Court Raw Data'!$A:$A,"2014/15") -> 29 | H13: =SUMIFS('High Court Raw Data'!$H:$H,'High Court Raw Data'!$B:$B,"Q2",'High Court Raw Data'!$A:$A,"2014/15") -> 21 | I13: =SUMIFS('High Court Raw Data'!$H:$H,'High Court Raw Data'!$B:$B,"Q3",'High Court Raw Data'!$A:$A,"2014/15") -> 34 | J13: =SUMIFS('High Court Raw Data'!$H:$H,'High Court Raw Data'!$B:$B,"Q4",'High Court Raw Data'!$A:$A,"2014/15") -> 25 | K13: 109 | L13: =SUMIFS('High Court Raw Data'!$H:$H,'High Court Raw Data'!$B:$B,"Q1",'High Court Raw Data'!$A:$A,"2015/16") -> 15 | M13: =SUMIFS('High Court Raw Data'!$H:$H,'High Court Raw Data'!$B:$B,"Q2",'High Court Raw Data'!$A:$A,"2015/16") -> 32 | N13: =SUMIFS('High Court Raw Data'!$H:$H,'High Court Raw Data'!$B:$B,"Q3",'High Court Raw Data'!$A:$A,"2015/16") -> 33 | O13: =SUMIFS('High Court Raw Data'!$H:$H,'High Court Raw Data'!$B:$B,"Q4",'High Court Raw Data'!$A:$A,"2015/16") -> 29 | P13: 109 | Q13: =SUMIFS('High Court Raw Data'!$H:$H,'High Court Raw Data'!$B:$B,"Q1",'High Court Raw Data'!$A:$A,"2016/17") -> 30 | R13: =SUMIFS('High Court Raw Data'!$H:$H,'High Court Raw Data'!$B:$B,"Q2",'High Court Raw Data'!$A:$A,"2016/17") -> 16 | S13: =SUMIFS('High Court Raw Data'!$H:$H,'High Court Raw Data'!$B:$B,"Q3",'High Court Raw Data'!$A:$A,"2016/17") -> 19 | T13: =SUMIFS('High Court Raw Data'!$H:$H,'High Court Raw Data'!$B:$B,"Q4",'High Court Raw Data'!$A:$A,"2016/17") -> 19 | U13: 84 | V13: =SUMIFS('High Court Raw Data'!$H:$H,'High Court Raw Data'!$B:$B,"Q1",'High Court Raw Data'!$A:$A,"2017/18") -> 19 | W13: =SUMIFS('High Court Raw Data'!$H:$H,'High Court Raw Data'!$B:$B,"Q2",'High Court Raw Data'!$A:$A,"2017/18") -> 17 | X13: =SUMIFS('High Court Raw Data'!$H:$H,'High Court Raw Data'!$B:$B,"Q3",'High Court Raw Data'!$A:$A,"2017/18") -> 18 | Y13: =SUMIFS('High Court Raw Data'!$H:$H,'High Court Raw Data'!$B:$B,"Q4",'High Court Raw Data'!$A:$A,"2017/18") -> 20 | Z13: 74 | AA13: =SUMIFS('High Court Raw Data'!$H:$H,'High Court Raw Data'!$B:$B,"Q1",'High Court Raw Data'!$A:$A,"2018/19") -> 20 | AB13: =SUMIFS('High Court Raw Data'!$H:$H,'High Court Raw Data'!$B:$B,"Q2",'High Court Raw Data'!$A:$A,"2018/19") -> 24 | AC13: =SUMIFS('High Court Raw Data'!$H:$H,'High Court Raw Data'!$B:$B,"Q3",'High Court Raw Data'!$A:$A,"2018/19") -> 23 | AD13: =SUMIFS('High Court Raw Data'!$H:$H,'High Court Raw Data'!$B:$B,"Q4",'High Court Raw Data'!$A:$A,"2018/19") -> 21 | AE13: 88 | AF13: =SUMIFS('High Court Raw Data'!$H:$H,'High Court Raw Data'!$B:$B,"Q1",'High Court Raw Data'!$A:$A,"2019/20") -> 25 | AG13: =SUMIFS('High Court Raw Data'!$H:$H,'High Court Raw Data'!$B:$B,"Q2",'High Court Raw Data'!$A:$A,"2019/20") -> 22 | AH13: =SUMIFS('High Court Raw Data'!$H:$H,'High Court Raw Data'!$B:$B,"Q3",'High Court Raw Data'!$A:$A,"2019/20") -> 24 | AI13: =SUMIFS('High Court Raw Data'!$H:$H,'High Court Raw Data'!$B:$B,"Q4",'High Court Raw Data'!$A:$A,"2019/20") -> 23 | AJ13: 94 | AK13: =SUMIFS('High Court Raw Data'!$H:$H,'High Court Raw Data'!$B:$B,"Q1",'High Court Raw Data'!$A:$A,"2020/21") -> 17 | AL13: =SUMIFS('High Court Raw Data'!$H:$H,'High Court Raw Data'!$B:$B,"Q2",'High Court Raw Data'!$A:$A,"2020/21") -> 26 | AM13: =SUMIFS('High Court Raw Data'!$H:$H,'High Court Raw Data'!$B:$B,"Q3",'High Court Raw Data'!$A:$A,"2020/21") -> 18 | AN13: =SUMIFS('High Court Raw Data'!$H:$H,'High Court Raw Data'!$B:$B,"Q4",'High Court Raw Data'!$A:$A,"2020/21") -> 23 | AO13: 84 | AP13: =SUMIFS('High Court Raw Data'!$H:$H,'High Court Raw Data'!$B:$B,"Q1",'High Court Raw Data'!$A:$A,"2021/22") -> 19 | AQ13: =SUMIFS('High Court Raw Data'!$H:$H,'High Court Raw Data'!$B:$B,"Q2",'High Court Raw Data'!$A:$A,"2021/22") -> 20 | AR13: =SUMIFS('High Court Raw Data'!$H:$H,'High Court Raw Data'!$B:$B,"Q3",'High Court Raw Data'!$A:$A,"2021/22") -> 17 | AS13: =SUMIFS('High Court Raw Data'!$H:$H,'High Court Raw Data'!$B:$B,"Q4",'High Court Raw Data'!$A:$A,"2021/22") -> 22 | AT13: 78
B14: Trials called | C14: =SUMIFS(#REF!,#REF!,$C$4,#REF!,"NATIONAL",#REF!,C$5) ->  | D14: =SUMIFS(#REF!,#REF!,$C$4,#REF!,"NATIONAL",#REF!,D$5) ->  | E14: =SUMIFS(#REF!,#REF!,$C$4,#REF!,"NATIONAL",#REF!,E$5) ->  | F14: =SUMIFS(#REF!,#REF!,$C$4,#REF!,"NATIONAL",#REF!,F$5) ->  | G14: =SUMIFS('High Court Raw Data'!$I:$I,'High Court Raw Data'!$B:$B,"Q1",'High Court Raw Data'!$A:$A,"2014/15") -> 142 | H14: =SUMIFS('High Court Raw Data'!$I:$I,'High Court Raw Data'!$B:$B,"Q2",'High Court Raw Data'!$A:$A,"2014/15") -> 173 | I14: =SUMIFS('High Court Raw Data'!$I:$I,'High Court Raw Data'!$B:$B,"Q3",'High Court Raw Data'!$A:$A,"2014/15") -> 148 | J14: =SUMIFS('High Court Raw Data'!$I:$I,'High Court Raw Data'!$B:$B,"Q4",'High Court Raw Data'!$A:$A,"2014/15") -> 179 | K14: 642 | L14: =SUMIFS('High Court Raw Data'!$I:$I,'High Court Raw Data'!$B:$B,"Q1",'High Court Raw Data'!$A:$A,"2015/16") -> 150 | M14: =SUMIFS('High Court Raw Data'!$I:$I,'High Court Raw Data'!$B:$B,"Q2",'High Court Raw Data'!$A:$A,"2015/16") -> 172 | N14: =SUMIFS('High Court Raw Data'!$I:$I,'High Court Raw Data'!$B:$B,"Q3",'High Court Raw Data'!$A:$A,"2015/16") -> 145 | O14: =SUMIFS('High Court Raw Data'!$I:$I,'High Court Raw Data'!$B:$B,"Q4",'High Court Raw Data'!$A:$A,"2015/16") -> 149 | P14: 616 | Q14: =SUMIFS('High Court Raw Data'!$I:$I,'High Court Raw Data'!$B:$B,"Q1",'High Court Raw Data'!$A:$A,"2016/17") -> 142 | R14: =SUMIFS('High Court Raw Data'!$I:$I,'High Court Raw Data'!$B:$B,"Q2",'High Court Raw Data'!$A:$A,"2016/17") -> 156 | S14: =SUMIFS('High Court Raw Data'!$I:$I,'High Court Raw Data'!$B:$B,"Q3",'High Court Raw Data'!$A:$A,"2016/17") -> 149 | T14: =SUMIFS('High Court Raw Data'!$I:$I,'High Court Raw Data'!$B:$B,"Q4",'High Court Raw Data'!$A:$A,"2016/17") -> 185 | U14: 632 | V14: =SUMIFS('High Court Raw Data'!$I:$I,'High Court Raw Data'!$B:$B,"Q1",'High Court Raw Data'!$A:$A,"2017/18") -> 181 | W14: =SUMIFS('High Court Raw Data'!$I:$I,'High Court Raw Data'!$B:$B,"Q2",'High Court Raw Data'!$A:$A,"2017/18") -> 168 | X14: =SUMIFS('High Court Raw Data'!$I:$I,'High Court Raw Data'!$B:$B,"Q3",'High Court Raw Data'!$A:$A,"2017/18") -> 150 | Y14: =SUMIFS('High Court Raw Data'!$I:$I,'High Court Raw Data'!$B:$B,"Q4",'High Court Raw Data'!$A:$A,"2017/18") -> 190 | Z14: 689 | AA14: =SUMIFS('High Court Raw Data'!$I:$I,'High Court Raw Data'!$B:$B,"Q1",'High Court Raw Data'!$A:$A,"2018/19") -> 190 | AB14: =SUMIFS('High Court Raw Data'!$I:$I,'High Court Raw Data'!$B:$B,"Q2",'High Court Raw Data'!$A:$A,"2018/19") -> 183 | AC14: =SUMIFS('High Court Raw Data'!$I:$I,'High Court Raw Data'!$B:$B,"Q3",'High Court Raw Data'!$A:$A,"2018/19") -> 163 | AD14: =SUMIFS('High Court Raw Data'!$I:$I,'High Court Raw Data'!$B:$B,"Q4",'High Court Raw Data'!$A:$A,"2018/19") -> 181 | AE14: 717 | AF14: =SUMIFS('High Court Raw Data'!$I:$I,'High Court Raw Data'!$B:$B,"Q1",'High Court Raw Data'!$A:$A,"2019/20") -> 168 | AG14: =SUMIFS('High Court Raw Data'!$I:$I,'High Court Raw Data'!$B:$B,"Q2",'High Court Raw Data'!$A:$A,"2019/20") -> 219 | AH14: =SUMIFS('High Court Raw Data'!$I:$I,'High Court Raw Data'!$B:$B,"Q3",'High Court Raw Data'!$A:$A,"2019/20") -> 190 | AI14: =SUMIFS('High Court Raw Data'!$I:$I,'High Court Raw Data'!$B:$B,"Q4",'High Court Raw Data'!$A:$A,"2019/20") -> 235 | AJ14: 812 | AK14: =SUMIFS('High Court Raw Data'!$I:$I,'High Court Raw Data'!$B:$B,"Q1",'High Court Raw Data'!$A:$A,"2020/21") -> 0 | AL14: =SUMIFS('High Court Raw Data'!$I:$I,'High Court Raw Data'!$B:$B,"Q2",'High Court Raw Data'!$A:$A,"2020/21") -> 44 | AM14: =SUMIFS('High Court Raw Data'!$I:$I,'High Court Raw Data'!$B:$B,"Q3",'High Court Raw Data'!$A:$A,"2020/21") -> 147 | AN14: =SUMIFS('High Court Raw Data'!$I:$I,'High Court Raw Data'!$B:$B,"Q4",'High Court Raw Data'!$A:$A,"2020/21") -> 186 | AO14: 377 | AP14: =SUMIFS('High Court Raw Data'!$I:$I,'High Court Raw Data'!$B:$B,"Q1",'High Court Raw Data'!$A:$A,"2021/22") -> 173 | AQ14: =SUMIFS('High Court Raw Data'!$I:$I,'High Court Raw Data'!$B:$B,"Q2",'High Court Raw Data'!$A:$A,"2021/22") -> 196 | AR14: =SUMIFS('High Court Raw Data'!$I:$I,'High Court Raw Data'!$B:$B,"Q3",'High Court Raw Data'!$A:$A,"2021/22") -> 184 | AS14: =SUMIFS('High Court Raw Data'!$I:$I,'High Court Raw Data'!$B:$B,"Q4",'High Court Raw Data'!$A:$A,"2021/22") -> 199 | AT14: 752
B15: Trials called where evidence was led | G15: =SUMIFS('High Court Raw Data'!$J:$J,'High Court Raw Data'!$B:$B,"Q1",'High Court Raw Data'!$A:$A,"2014/15") -> 104 | H15: =SUMIFS('High Court Raw Data'!$J:$J,'High Court Raw Data'!$B:$B,"Q2",'High Court Raw Data'!$A:$A,"2014/15") -> 114 | I15: =SUMIFS('High Court Raw Data'!$J:$J,'High Court Raw Data'!$B:$B,"Q3",'High Court Raw Data'!$A:$A,"2014/15") -> 100 | J15: =SUMIFS('High Court Raw Data'!$J:$J,'High Court Raw Data'!$B:$B,"Q4",'High Court Raw Data'!$A:$A,"2014/15") -> 125 | K15: 443 | L15: =SUMIFS('High Court Raw Data'!$J:$J,'High Court Raw Data'!$B:$B,"Q1",'High Court Raw Data'!$A:$A,"2015/16") -> 108 | M15: =SUMIFS('High Court Raw Data'!$J:$J,'High Court Raw Data'!$B:$B,"Q2",'High Court Raw Data'!$A:$A,"2015/16") -> 112 | N15: =SUMIFS('High Court Raw Data'!$J:$J,'High Court Raw Data'!$B:$B,"Q3",'High Court Raw Data'!$A:$A,"2015/16") -> 88 | O15: =SUMIFS('High Court Raw Data'!$J:$J,'High Court Raw Data'!$B:$B,"Q4",'High Court Raw Data'!$A:$A,"2015/16") -> 95 | P15: 403 | Q15: =SUMIFS('High Court Raw Data'!$J:$J,'High Court Raw Data'!$B:$B,"Q1",'High Court Raw Data'!$A:$A,"2016/17") -> 95 | R15: =SUMIFS('High Court Raw Data'!$J:$J,'High Court Raw Data'!$B:$B,"Q2",'High Court Raw Data'!$A:$A,"2016/17") -> 100 | S15: =SUMIFS('High Court Raw Data'!$J:$J,'High Court Raw Data'!$B:$B,"Q3",'High Court Raw Data'!$A:$A,"2016/17") -> 111 | T15: =SUMIFS('High Court Raw Data'!$J:$J,'High Court Raw Data'!$B:$B,"Q4",'High Court Raw Data'!$A:$A,"2016/17") -> 137 | U15: 443 | V15: =SUMIFS('High Court Raw Data'!$J:$J,'High Court Raw Data'!$B:$B,"Q1",'High Court Raw Data'!$A:$A,"2017/18") -> 115 | W15: =SUMIFS('High Court Raw Data'!$J:$J,'High Court Raw Data'!$B:$B,"Q2",'High Court Raw Data'!$A:$A,"2017/18") -> 114 | X15: =SUMIFS('High Court Raw Data'!$J:$J,'High Court Raw Data'!$B:$B,"Q3",'High Court Raw Data'!$A:$A,"2017/18") -> 103 | Y15: =SUMIFS('High Court Raw Data'!$J:$J,'High Court Raw Data'!$B:$B,"Q4",'High Court Raw Data'!$A:$A,"2017/18") -> 129 | Z15: 461 | AA15: =SUMIFS('High Court Raw Data'!$J:$J,'High Court Raw Data'!$B:$B,"Q1",'High Court Raw Data'!$A:$A,"2018/19") -> 131 | AB15: =SUMIFS('High Court Raw Data'!$J:$J,'High Court Raw Data'!$B:$B,"Q2",'High Court Raw Data'!$A:$A,"2018/19") -> 142 | AC15: =SUMIFS('High Court Raw Data'!$J:$J,'High Court Raw Data'!$B:$B,"Q3",'High Court Raw Data'!$A:$A,"2018/19") -> 113 | AD15: =SUMIFS('High Court Raw Data'!$J:$J,'High Court Raw Data'!$B:$B,"Q4",'High Court Raw Data'!$A:$A,"2018/19") -> 121 | AE15: 507 | AF15: =SUMIFS('High Court Raw Data'!$J:$J,'High Court Raw Data'!$B:$B,"Q1",'High Court Raw Data'!$A:$A,"2019/20") -> 107 | AG15: =SUMIFS('High Court Raw Data'!$J:$J,'High Court Raw Data'!$B:$B,"Q2",'High Court Raw Data'!$A:$A,"2019/20") -> 146 | AH15: =SUMIFS('High Court Raw Data'!$J:$J,'High Court Raw Data'!$B:$B,"Q3",'High Court Raw Data'!$A:$A,"2019/20") -> 120 | AI15: =SUMIFS('High Court Raw Data'!$J:$J,'High Court Raw Data'!$B:$B,"Q4",'High Court Raw Data'!$A:$A,"2019/20") -> 125 | AJ15: 498 | AK15: =SUMIFS('High Court Raw Data'!$J:$J,'High Court Raw Data'!$B:$B,"Q1",'High Court Raw Data'!$A:$A,"2020/21") -> 0 | AL15: =SUMIFS('High Court Raw Data'!$J:$J,'High Court Raw Data'!$B:$B,"Q2",'High Court Raw Data'!$A:$A,"2020/21") -> 36 | AM15: =SUMIFS('High Court Raw Data'!$J:$J,'High Court Raw Data'!$B:$B,"Q3",'High Court Raw Data'!$A:$A,"2020/21") -> 106 | AN15: ='High Court Raw Data'!J30 -> 136 | AO15: =SUM(AK15:AN15) -> 278 | AP15: =SUMIFS('High Court Raw Data'!$J:$J,'High Court Raw Data'!$B:$B,"Q1",'High Court Raw Data'!$A:$A,"2021/22") -> 124 | AQ15: =SUMIFS('High Court Raw Data'!$J:$J,'High Court Raw Data'!$B:$B,"Q2",'High Court Raw Data'!$A:$A,"2021/22") -> 150 | AR15: =SUMIFS('High Court Raw Data'!$J:$J,'High Court Raw Data'!$B:$B,"Q3",'High Court Raw Data'!$A:$A,"2021/22") -> 147 | AS15: =SUMIFS('High Court Raw Data'!$J:$J,'High Court Raw Data'!$B:$B,"Q4",'High Court Raw Data'!$A:$A,"2021/22") -> 156 | AT15: =SUM(AP15:AS15) -> 577
B16: Trials adjourned due to lack of court time | C16: =SUMIFS(#REF!,#REF!,$C$4,#REF!,"NATIONAL",#REF!,C$5) ->  | D16: =SUMIFS(#REF!,#REF!,$C$4,#REF!,"NATIONAL",#REF!,D$5) ->  | E16: =SUMIFS(#REF!,#REF!,$C$4,#REF!,"NATIONAL",#REF!,E$5) ->  | F16: =SUMIFS(#REF!,#REF!,$C$4,#REF!,"NATIONAL",#REF!,F$5) ->  | G16: =SUMIFS('High Court Raw Data'!$K:$K,'High Court Raw Data'!$B:$B,"Q1",'High Court Raw Data'!$A:$A,"2014/15") -> 1 | H16: =SUMIFS('High Court Raw Data'!$K:$K,'High Court Raw Data'!$B:$B,"Q2",'High Court Raw Data'!$A:$A,"2014/15") -> 2 | I16: =SUMIFS('High Court Raw Data'!$K:$K,'High Court Raw Data'!$B:$B,"Q3",'High Court Raw Data'!$A:$A,"2014/15") -> 8 | J16: =SUMIFS('High Court Raw Data'!$K:$K,'High Court Raw Data'!$B:$B,"Q4",'High Court Raw Data'!$A:$A,"2014/15") -> 3 | K16: 14 | L16: =SUMIFS('High Court Raw Data'!$K:$K,'High Court Raw Data'!$B:$B,"Q1",'High Court Raw Data'!$A:$A,"2015/16") -> 1 | M16: =SUMIFS('High Court Raw Data'!$K:$K,'High Court Raw Data'!$B:$B,"Q2",'High Court Raw Data'!$A:$A,"2015/16") -> 3 | N16: =SUMIFS('High Court Raw Data'!$K:$K,'High Court Raw Data'!$B:$B,"Q3",'High Court Raw Data'!$A:$A,"2015/16") -> 0 | O16: =SUMIFS('High Court Raw Data'!$K:$K,'High Court Raw Data'!$B:$B,"Q4",'High Court Raw Data'!$A:$A,"2015/16") -> 5 | P16: 9 | Q16: =SUMIFS('High Court Raw Data'!$K:$K,'High Court Raw Data'!$B:$B,"Q1",'High Court Raw Data'!$A:$A,"2016/17") -> 13 | R16: =SUMIFS('High Court Raw Data'!$K:$K,'High Court Raw Data'!$B:$B,"Q2",'High Court Raw Data'!$A:$A,"2016/17") -> 13 | S16: =SUMIFS('High Court Raw Data'!$K:$K,'High Court Raw Data'!$B:$B,"Q3",'High Court Raw Data'!$A:$A,"2016/17") -> 0 | T16: =SUMIFS('High Court Raw Data'!$K:$K,'High Court Raw Data'!$B:$B,"Q4",'High Court Raw Data'!$A:$A,"2016/17") -> 1 | U16: 27 | V16: =SUMIFS('High Court Raw Data'!$K:$K,'High Court Raw Data'!$B:$B,"Q1",'High Court Raw Data'!$A:$A,"2017/18") -> 0 | W16: =SUMIFS('High Court Raw Data'!$K:$K,'High Court Raw Data'!$B:$B,"Q2",'High Court Raw Data'!$A:$A,"2017/18") -> 0 | X16: =SUMIFS('High Court Raw Data'!$K:$K,'High Court Raw Data'!$B:$B,"Q3",'High Court Raw Data'!$A:$A,"2017/18") -> 0 | Y16: =SUMIFS('High Court Raw Data'!$K:$K,'High Court Raw Data'!$B:$B,"Q4",'High Court Raw Data'!$A:$A,"2017/18") -> 0 | Z16: 0 | AA16: =SUMIFS('High Court Raw Data'!$K:$K,'High Court Raw Data'!$B:$B,"Q1",'High Court Raw Data'!$A:$A,"2018/19") -> 2 | AB16: =SUMIFS('High Court Raw Data'!$K:$K,'High Court Raw Data'!$B:$B,"Q2",'High Court Raw Data'!$A:$A,"2018/19") -> 3 | AC16: =SUMIFS('High Court Raw Data'!$K:$K,'High Court Raw Data'!$B:$B,"Q3",'High Court Raw Data'!$A:$A,"2018/19") -> 0 | AD16: 6 | AE16: 11 | AF16: =SUMIFS('High Court Raw Data'!$K:$K,'High Court Raw Data'!$B:$B,"Q1",'High Court Raw Data'!$A:$A,"2019/20") -> 5 | AG16: =SUMIFS('High Court Raw Data'!$K:$K,'High Court Raw Data'!$B:$B,"Q2",'High Court Raw Data'!$A:$A,"2019/20") -> 4 | AH16: =SUMIFS('High Court Raw Data'!$K:$K,'High Court Raw Data'!$B:$B,"Q3",'High Court Raw Data'!$A:$A,"2019/20") -> 22 | AI16: =SUMIFS('High Court Raw Data'!$K:$K,'High Court Raw Data'!$B:$B,"Q4",'High Court Raw Data'!$A:$A,"2019/20") -> 18 | AJ16: 49 | AK16: =SUMIFS('High Court Raw Data'!$K:$K,'High Court Raw Data'!$B:$B,"Q1",'High Court Raw Data'!$A:$A,"2020/21") -> 0 | AL16: =SUMIFS('High Court Raw Data'!$K:$K,'High Court Raw Data'!$B:$B,"Q2",'High Court Raw Data'!$A:$A,"2020/21") -> 0 | AM16: =SUMIFS('High Court Raw Data'!$K:$K,'High Court Raw Data'!$B:$B,"Q3",'High Court Raw Data'!$A:$A,"2020/21") -> 12 | AN16: =SUMIFS('High Court Raw Data'!$K:$K,'High Court Raw Data'!$B:$B,"Q4",'High Court Raw Data'!$A:$A,"2020/21") -> 0 | AO16: 12 | AP16: =SUMIFS('High Court Raw Data'!$K:$K,'High Court Raw Data'!$B:$B,"Q1",'High Court Raw Data'!$A:$A,"2021/22") -> 11 | AQ16: =SUMIFS('High Court Raw Data'!$K:$K,'High Court Raw Data'!$B:$B,"Q2",'High Court Raw Data'!$A:$A,"2021/22") -> 5 | AR16: =SUMIFS('High Court Raw Data'!$K:$K,'High Court Raw Data'!$B:$B,"Q3",'High Court Raw Data'!$A:$A,"2021/22") -> 0 | AS16: =SUMIFS('High Court Raw Data'!$K:$K,'High Court Raw Data'!$B:$B,"Q4",'High Court Raw Data'!$A:$A,"2021/22") -> 4 | AT16: =SUM(AP16:AS16) -> 20
B17: Percentage of trials adjourned due to lack of court time | G17: =IFERROR(SUM(G16/G14),"0.0%") -> 0.007042253521 | H17: =IFERROR(SUM(H16/H14),"0.0%") -> 0.01156069364 | I17: =IFERROR(SUM(I16/I14),"0.0%") -> 0.05405405405 | J17: =IFERROR(SUM(J16/J14),"0.0%") -> 0.01675977654 | K17: =IFERROR(SUM(K16/K14),"0.0%") -> 0.02180685358 | L17: 0.006666666667 | M17: 0.01744186047 | N17: 0 | O17: 0.03355704698 | P17: 0.01461038961 | Q17: 0.09154929577 | R17: 0.08333333333 | S17: 0 | T17: 0.005405405405 | U17: 0.04272151899 | V17: 0 | W17: 0 | X17: 0 | Y17: 0 | Z17: 0 | AA17: =IFERROR(SUM(AA16/AA14),"0.0%") -> 0.01052631579 | AB17: 0.01639344262 | AC17: 0 | AD17: 0.03314917127 | AE17: 0.01534170153 | AF17: =IFERROR(SUM(AF16/AF14),"0.0%") -> 0.02976190476 | AG17: 0.01826484018 | AH17: 0.1157894737 | AI17: 0.07659574468 | AJ17: 0.06034482759 | AK17: =IFERROR(SUM(AK16/AK14),"0.0%") -> 0.0% | AL17: 0 | AM17: =IFERROR(SUM(AM16/AM14),"0.0%") -> 0.08163265306 | AN17: =IFERROR(SUM(AN16/AN14),"0.0%") -> 0 | AO17: 0.03183023873 | AP17: =IFERROR(SUM(AP16/AP14),"0.0%") -> 0.06358381503 | AQ17: 0.02551020408 | AR17: =IFERROR(SUM(AR16/AR14),"0.0%") -> 0 | AS17: =IFERROR(SUM(AS16/AS14),"0.0%") -> 0.02010050251 | AT17: =IFERROR(SUM(AT16/AT14),"0.0%") -> 0.02659574468
B18: Trials scheduled at end of period | C18: =SUMIFS(#REF!,#REF!,'2a'!C4,#REF!,'2a'!C5,#REF!,0) ->  | D18: =SUMIFS(#REF!,#REF!,$C$4,#REF!,"NATIONAL",#REF!,D$5) ->  | E18: =SUMIFS(#REF!,#REF!,$C$4,#REF!,"NATIONAL",#REF!,E$5) ->  | F18: =SUMIFS(#REF!,#REF!,$C$4,#REF!,"NATIONAL",#REF!,F$5) ->  | G18: Not Available | H18: Not Available | I18: Not Available | J18: Not Available | K18: Not Available | L18: Not Available | M18: Not Available | N18: Not Available | O18: Not Available | P18: Not Available | Q18: Not Available | R18: Not Available | S18: Not Available | T18: Not Available | U18: Not Available | V18: Not Available | W18: Not Available | X18: Not Available | Y18: Not Available | Z18: Not Available | AA18: =SUMIFS('High Court Raw Data'!$L:$L,'High Court Raw Data'!$B:$B,"Q1",'High Court Raw Data'!$A:$A,"2018/19") -> 192 | AB18: =SUMIFS('High Court Raw Data'!$L:$L,'High Court Raw Data'!$B:$B,"Q2",'High Court Raw Data'!$A:$A,"2018/19") -> 215 | AC18: =SUMIFS('High Court Raw Data'!$L:$L,'High Court Raw Data'!$B:$B,"Q3",'High Court Raw Data'!$A:$A,"2018/19") -> 236 | AD18: =SUMIFS('High Court Raw Data'!$L:$L,'High Court Raw Data'!$B:$B,"Q4",'High Court Raw Data'!$A:$A,"2018/19") -> 268 | AE18: =SUMIFS('High Court Raw Data'!$L:$L,'High Court Raw Data'!$A:$A,'High Court Raw Data'!Y3,'High Court Raw Data'!B:B,'High Court Raw Data'!Z3) -> 268 | AF18: =SUMIFS('High Court Raw Data'!$L:$L,'High Court Raw Data'!$B:$B,"Q1",'High Court Raw Data'!$A:$A,"2019/20") -> 315 | AG18: =SUMIFS('High Court Raw Data'!$L:$L,'High Court Raw Data'!$B:$B,"Q2",'High Court Raw Data'!$A:$A,"2019/20") -> 304 | AH18: =SUMIFS('High Court Raw Data'!$L:$L,'High Court Raw Data'!$B:$B,"Q3",'High Court Raw Data'!$A:$A,"2019/20") -> 369 | AI18: =SUMIFS('High Court Raw Data'!$L:$L,'High Court Raw Data'!$B:$B,"Q4",'High Court Raw Data'!$A:$A,"2019/20") -> 390 | AJ18: =SUMIFS('High Court Raw Data'!$L:$L,'High Court Raw Data'!$A:$A,'High Court Raw Data'!V3,'High Court Raw Data'!$B:$B,'High Court Raw Data'!W3) -> 390 | AK18: =SUMIFS('High Court Raw Data'!$L:$L,'High Court Raw Data'!$B:$B,"Q1",'High Court Raw Data'!$A:$A,"2020/21") -> 390 | AL18: =SUMIFS('High Court Raw Data'!$L:$L,'High Court Raw Data'!$B:$B,"Q2",'High Court Raw Data'!$A:$A,"2020/21") -> 360 | AM18: =SUMIFS('High Court Raw Data'!$L:$L,'High Court Raw Data'!$B:$B,"Q3",'High Court Raw Data'!$A:$A,"2020/21") -> 250 | AN18: =SUMIFS('High Court Raw Data'!$L:$L,'High Court Raw Data'!$B:$B,"Q4",'High Court Raw Data'!$A:$A,"2020/21") -> 267 | AO18: =SUMIFS('High Court Raw Data'!$L:$L,'High Court Raw Data'!$A:$A,'High Court Raw Data'!S3,'High Court Raw Data'!$B:$B,'High Court Raw Data'!T3) -> 267 | AP18: =SUMIFS('High Court Raw Data'!$L:$L,'High Court Raw Data'!$B:$B,"Q1",'High Court Raw Data'!$A:$A,"2021/22") -> 313 | AQ18: =SUMIFS('High Court Raw Data'!$L:$L,'High Court Raw Data'!$B:$B,"Q2",'High Court Raw Data'!$A:$A,"2021/22") -> 389 | AR18: =SUMIFS('High Court Raw Data'!$L:$L,'High Court Raw Data'!$B:$B,"Q3",'High Court Raw Data'!$A:$A,"2021/22") -> 516 | AS18: =SUMIFS('High Court Raw Data'!$L:$L,'High Court Raw Data'!$B:$B,"Q4",'High Court Raw Data'!$A:$A,"2021/22") -> 560 | AT18: =SUMIFS('High Court Raw Data'!$L:$L,'High Court Raw Data'!$A:$A,'High Court Raw Data'!P3,'High Court Raw Data'!$B:$B,'High Court Raw Data'!Q3) -> 560
B19: Indictments concluded | C19: =SUMIFS(#REF!,#REF!,$C$4,#REF!,"NATIONAL",#REF!,C$5) ->  | D19: =SUMIFS(#REF!,#REF!,$C$4,#REF!,"NATIONAL",#REF!,D$5) ->  | E19: =SUMIFS(#REF!,#REF!,$C$4,#REF!,"NATIONAL",#REF!,E$5) ->  | F19: =SUMIFS(#REF!,#REF!,$C$4,#REF!,"NATIONAL",#REF!,F$5) ->  | G19: 173.0769231 | H19: 176.9230769 | I19: 189.4230769 | J19: 193.2692308 | K19: =SUM(G19:J19) -> 732.6923077 | L19: 186.5384615 | M19: 158.6538462 | N19: 170.1923077 | O19: 186.5384615 | P19: =SUM(L19:O19) -> 701.9230769 | Q19: 136 | R19: 132 | S19: 139 | T19: 179 | U19: =SUM(Q19:T19) -> 586 | V19: 168 | W19: 167 | X19: 148 | Y19: 147 | Z19: =SUM(V19:Y19) -> 630 | AA19: 183 | AB19: =SUMIFS('High Court Raw Data'!$M:$M,'High Court Raw Data'!$B:$B,"Q2",'High Court Raw Data'!$A:$A,"2018/19") -> 240 | AC19: =SUMIFS('High Court Raw Data'!$M:$M,'High Court Raw Data'!$B:$B,"Q3",'High Court Raw Data'!$A:$A,"2018/19") -> 198 | AD19: =SUMIFS('High Court Raw Data'!$M:$M,'High Court Raw Data'!$B:$B,"Q4",'High Court Raw Data'!$A:$A,"2018/19") -> 201 | AE19: =SUM(AA19:AD19) -> 822 | AF19: =SUMIFS('High Court Raw Data'!$M:$M,'High Court Raw Data'!$B:$B,"Q1",'High Court Raw Data'!$A:$A,"2019/20") -> 182 | AG19: =SUMIFS('High Court Raw Data'!$M:$M,'High Court Raw Data'!$B:$B,"Q2",'High Court Raw Data'!$A:$A,"2019/20") -> 241 | AH19: =SUMIFS('High Court Raw Data'!$M:$M,'High Court Raw Data'!$B:$B,"Q3",'High Court Raw Data'!$A:$A,"2019/20") -> 206 | AI19: =SUMIFS('High Court Raw Data'!$M:$M,'High Court Raw Data'!$B:$B,"Q4",'High Court Raw Data'!$A:$A,"2019/20") -> 177 | AJ19: =SUM(AF19:AI19) -> 806 | AK19: =SUMIFS('High Court Raw Data'!$M:$M,'High Court Raw Data'!$B:$B,"Q1",'High Court Raw Data'!$A:$A,"2020/21") -> 30 | AL19: =SUMIFS('High Court Raw Data'!$M:$M,'High Court Raw Data'!$B:$B,"Q2",'High Court Raw Data'!$A:$A,"2020/21") -> 87 | AM19: =SUMIFS('High Court Raw Data'!$M:$M,'High Court Raw Data'!$B:$B,"Q3",'High Court Raw Data'!$A:$A,"2020/21") -> 147 | AN19: =SUMIFS('High Court Raw Data'!$M:$M,'High Court Raw Data'!$B:$B,"Q4",'High Court Raw Data'!$A:$A,"2020/21") -> 191 | AO19: =SUM(AK19:AN19) -> 455 | AP19: =SUMIFS('High Court Raw Data'!$M:$M,'High Court Raw Data'!$B:$B,"Q1",'High Court Raw Data'!$A:$A,"2021/22") -> 173 | AQ19: =SUMIFS('High Court Raw Data'!$M:$M,'High Court Raw Data'!$B:$B,"Q2",'High Court Raw Data'!$A:$A,"2021/22") -> 196 | AR19: =SUMIFS('High Court Raw Data'!$M:$M,'High Court Raw Data'!$B:$B,"Q3",'High Court Raw Data'!$A:$A,"2021/22") -> 208 | AS19: =SUMIFS('High Court Raw Data'!$M:$M,'High Court Raw Data'!$B:$B,"Q4",'High Court Raw Data'!$A:$A,"2021/22") -> 179 | AT19: =SUM(AP19:AS19) -> 756
B21: Notes
B23: 1) Figures produced for 'Indictments concluded' in the High Court for the years 2014/15 to 2016/17 are estimates

Sheet 2b
F2: Back to Index
F4: Chart instructions

Sheet High Court Raw Data (hidden)
A1: This data is only for The Scottish Courts and Tribunals Service Internal use. Please go to the index tab and navigate as required.
A2: FINANCIAL_YEAR | B2: QUARTER | C2: COURT_REF | D2: COURT_NAME | E2: INDICTMENTS_REG | F2: INDICTMENTS_PH | G2: INDICTMENTS_CALLED_CPH | H2: S76_INDICTMENTS | I2: TRIALS_CALLED | J2: TRIALS_ELED | K2: TRIALS_LOCT | L2: TRIALS_OUTSTANDING | M2: SOL_CASES_FULLY_DISPOSED | P2: Current Year | Q2: Current Quarter | S2: Previous year 2020/21 | V2: Previous year 2019/20 | Y2: Previous year 2018/19
A3: 2017/18 | B3: Q4 | C3: 2 | D3: HIGH CT | E3: 202 | F3: 167 | G3: 81 | H3: 20 | I3: 190 | J3: 129 | K3: 0 | L3: 1 | M3: 147 | P3: =LOOKUP(2,1/($A:$A<>""),$A:$A) -> 2021/22 | Q3: =LOOKUP(2,1/($B:$B<>""),$B:$B) -> Q4 | S3: 2020/21 | T3: Q4 | V3: 2019/20 | W3: Q4 | Y3: 2018/19 | Z3: Q4
A4: 2017/18 | B4: Q3 | C4: 2 | D4: HIGH CT | E4: 165 | F4: 121 | G4: 74 | H4: 18 | I4: 150 | J4: 103 | K4: 0 | L4: 0 | M4: 148
A5: 2017/18 | B5: Q2 | C5: 2 | D5: HIGH CT | E5: 198 | F5: 158 | G5: 58 | H5: 17 | I5: 168 | J5: 114 | K5: 0 | L5: 4 | M5: 167
A6: 2017/18 | B6: Q1 | C6: 2 | D6: HIGH CT | E6: 153 | F6: 152 | G6: 60 | H6: 19 | I6: 181 | J6: 115 | K6: 0 | L6: 6 | M6: 168
A7: 2016/17 | B7: Q4 | C7: 2 | D7: HIGH CT | E7: 183 | F7: 154 | G7: 54 | H7: 19 | I7: 185 | J7: 137 | K7: 1 | L7: 3 | M7: 179
A8: 2016/17 | B8: Q3 | C8: 2 | D8: HIGH CT | E8: 110 | F8: 138 | G8: 66 | H8: 19 | I8: 149 | J8: 111 | K8: 0 | L8: 8 | M8: 139
A9: 2016/17 | B9: Q2 | C9: 2 | D9: HIGH CT | E9: 133 | F9: 139 | G9: 71 | H9: 16 | I9: 156 | J9: 100 | K9: 13 | L9: 17 | M9: 132
A10: 2016/17 | B10: Q1 | C10: 2 | D10: HIGH CT | E10: 161 | F10: 184 | G10: 60 | H10: 30 | I10: 142 | J10: 95 | K10: 13 | L10: 21 | M10: 136
A11: 2015/16 | B11: Q4 | C11: 2 | D11: HIGH CT | E11: 181 | F11: 184 | G11: 75 | H11: 29 | I11: 149 | J11: 95 | K11: 5 | L11: 28 | M11: 187
A12: 2015/16 | B12: Q3 | C12: 2 | D12: HIGH CT | E12: 136 | F12: 170 | G12: 53 | H12: 33 | I12: 145 | J12: 88 | K12: 0 | L12: 35 | M12: 170
A13: 2015/16 | B13: Q2 | C13: 2 | D13: HIGH CT | E13: 143 | F13: 147 | G13: 60 | H13: 32 | I13: 172 | J13: 112 | K13: 3 | L13: 43 | M13: 159
A14: 2015/16 | B14: Q1 | C14: 2 | D14: HIGH CT | E14: 179 | F14: 182 | G14: 61 | H14: 15 | I14: 150 | J14: 108 | K14: 1 | L14: 49 | M14: 187
A15: 2014/15 | B15: Q4 | C15: 2 | D15: HIGH CT | E15: 163 | F15: 187 | G15: 93 | H15: 25 | I15: 179 | J15: 125 | K15: 3 | L15: 51 | M15: 193
A16: 2014/15 | B16: Q3 | C16: 2 | D16: HIGH CT | E16: 164 | F16: 186 | G16: 115 | H16: 34 | I16: 148 | J16: 100 | K16: 8 | L16: 59 | M16: 189
A17: 2014/15 | B17: Q2 | C17: 2 | D17: HIGH CT | E17: 206 | F17: 187 | G17: 110 | H17: 21 | I17: 173 | J17: 114 | K17: 2 | L17: 65 | M17: 177
A18: 2014/15 | B18: Q1 | C18: 2 | D18: HIGH CT | E18: 170 | F18: 184 | G18: 113 | H18: 29 | I18: 142 | J18: 104 | K18: 1 | L18: 72 | M18: 173
A19: 2018/19 | B19: Q1 | C19: 2 | D19: HIGH CT | E19: 228 | F19: 232 | G19: 116 | H19: 20 | I19: 190 | J19: 131 | K19: 2 | L19: 192 | M19: 183
A20: 2018/19 | B20: Q2 | C20: 2 | D20: HIGH CT | E20: 240 | F20: 228 | G20: 101 | H20: 24 | I20: 183 | J20: 142 | K20: 3 | L20: 215 | M20: 240
A21: 2018/19 | B21: Q3 | C21: 2 | D21: HIGH CT | E21: 210 | F21: 204 | G21: 92 | H21: 23 | I21: 163 | J21: 113 | K21: 0 | L21: 236 | M21: 198
A22: 2018/19 | B22: Q4 | C22: 2 | D22: HIGH CT | E22: 233 | F22: 223 | G22: 125 | H22: 21 | I22: 181 | J22: 121 | K22: 6 | L22: 268 | M22: 201
A23: 2019/20 | B23: Q1 | C23: 2 | D23: HIGH CT | E23: 248 | F23: 253 | G23: 100 | H23: 25 | I23: 168 | J23: 107 | K23: 5 | L23: 315 | M23: 182
A24: 2019/20 | B24: Q2 | C24: 2 | D24: HIGH CT | E24: 272 | F24: 241 | G24: 114 | H24: 22 | I24: 219 | J24: 146 | K24: 4 | L24: 304 | M24: 241
A25: 2019/20 | B25: Q3 | C25: 2 | D25: HIGH CT | E25: 274 | F25: 267 | G25: 115 | H25: 24 | I25: 190 | J25: 120 | K25: 22 | L25: 369 | M25: 206
A26: 2019/20 | B26: Q4 | C26: 2 | D26: HIGH CT | E26: 230 | F26: 220 | G26: 108 | H26: 23 | I26: 235 | J26: 125 | K26: 18 | L26: 390 | M26: 177
A27: 2020/21 | B27: Q1 | C27: 2 | D27: HIGH CT | E27: 231 | F27: 92 | G27: 40 | H27: 17 | I27: 0 | J27: 0 | K27: 0 | L27: 390 | M27: 30
A28: 2020/21 | B28: Q2 | C28: 2 | D28: HIGH CT | E28: 177 | F28: 314 | G28: 289 | H28: 26 | I28: 44 | J28: 36 | K28: 0 | L28: 360 | M28: 87
A29: 2020/21 | B29: Q3 | C29: 2 | D29: HIGH CT | E29: 140 | F29: 150 | G29: 247 | H29: 18 | I29: 147 | J29: 106 | K29: 12 | L29: 250 | M29: 147
A30: 2020/21 | B30: Q4 | C30: 2 | D30: HIGH CT | E30: 219 | F30: 169 | G30: 215 | H30: 23 | I30: 186 | J30: 136 | K30: 0 | L30: 267 | M30: 191
A31: 2021/22 | B31: Q1 | C31: 2 | D31: HIGH CT | E31: 155 | F31: 173 | G31: 185 | H31: 19 | I31: 173 | J31: 124 | K31: 11 | L31: 313 | M31: 173
A32: 2021/22 | B32: Q2 | C32: 2 | D32: HIGH CT | E32: 160 | F32: 112 | G32: 228 | H32: 20 | I32: 196 | J32: 150 | K32: 5 | L32: 389 | M32: 196
A33: 2021/22 | B33: Q3 | C33: 2 | D33: HIGH CT | E33: 192 | F33: 135 | G33: 169 | H33: 17 | I33: 184 | J33: 147 | K33: 0 | L33: 516 | M33: 208
A34: 2021/22 | B34: Q4 | C34: 2 | D34: HIGH CT | E34: 238 | F34: 218 | G34: 134 | H34: 22 | I34: 199 | J34: 156 | K34: 4 | L34: 560 | M34: 179

Sheet High Court Chart Data (hidden)
A1: Financial Year | B1: QUARTER | C1: COURT_REF | D1: COURT | E1: INDICTMENTS_REG | F1: INDICTMENTS_PH | G1: INDICTMENTS_CALLED_CPH | H1: S76_INDICTMENTS | I1: TRIALS_CALLED | J1: TRIALS_ELED | K1: TRIALS_LOCT | L1: % LOCT1 | M1: TRIALS_OUTSTANDING | N1: SOL_CASES_FULLY_DISPOSED | O1: % LOCT
A2: 2017/18 | B2: Q4 | C2: 2 | D2: HIGH CT | E2: 202 | F2: 167 | G2: 81 | H2: 20 | I2: 190 | J2: 129 | K2: 0 | L2: =IFERROR(HighChart[[#This Row],[TRIALS_LOCT]]/HighChart[[#This Row],[TRIALS_CALLED]],NA()) -> 0 | M2: 1 | N2: 147 | O2: =IF(I2=0,0,K2/I2) -> 0
A3: 2017/18 | B3: Q3 | C3: 2 | D3: HIGH CT | E3: 165 | F3: 121 | G3: 74 | H3: 18 | I3: 150 | J3: 103 | K3: 0 | L3: =IFERROR(HighChart[[#This Row],[TRIALS_LOCT]]/HighChart[[#This Row],[TRIALS_CALLED]],NA()) -> 0 | M3: 0 | N3: 148 | O3: 0
A4: 2017/18 | B4: Q2 | C4: 2 | D4: HIGH CT | E4: 198 | F4: 158 | G4: 58 | H4: 17 | I4: 168 | J4: 114 | K4: 0 | L4: =IFERROR(HighChart[[#This Row],[TRIALS_LOCT]]/HighChart[[#This Row],[TRIALS_CALLED]],NA()) -> 0 | M4: 4 | N4: 167 | O4: 0
A5: 2017/18 | B5: Q1 | C5: 2 | D5: HIGH CT | E5: 153 | F5: 152 | G5: 60 | H5: 19 | I5: 181 | J5: 115 | K5: 0 | L5: =IFERROR(HighChart[[#This Row],[TRIALS_LOCT]]/HighChart[[#This Row],[TRIALS_CALLED]],NA()) -> 0 | M5: 6 | N5: 168 | O5: 0
A6: 2016/17 | B6: Q4 | C6: 2 | D6: HIGH CT | E6: 183 | F6: 154 | G6: 54 | H6: 19 | I6: 185 | J6: 137 | K6: 1 | L6: =IFERROR(HighChart[[#This Row],[TRIALS_LOCT]]/HighChart[[#This Row],[TRIALS_CALLED]],NA()) -> 0.005405405405 | M6: 3 | N6: 179 | O6: 0.005405405405
A7: 2016/17 | B7: Q3 | C7: 2 | D7: HIGH CT | E7: 110 | F7: 138 | G7: 66 | H7: 19 | I7: 149 | J7: 111 | K7: 0 | L7: =IFERROR(HighChart[[#This Row],[TRIALS_LOCT]]/HighChart[[#This Row],[TRIALS_CALLED]],NA()) -> 0 | M7: 8 | N7: 139 | O7: 0
A8: 2016/17 | B8: Q2 | C8: 2 | D8: HIGH CT | E8: 133 | F8: 139 | G8: 71 | H8: 16 | I8: 156 | J8: 100 | K8: 13 | L8: =IFERROR(HighChart[[#This Row],[TRIALS_LOCT]]/HighChart[[#This Row],[TRIALS_CALLED]],NA()) -> 0.08333333333 | M8: 17 | N8: 132 | O8: 0.08333333333
A9: 2016/17 | B9: Q1 | C9: 2 | D9: HIGH CT | E9: 161 | F9: 184 | G9: 60 | H9: 30 | I9: 142 | J9: 95 | K9: 13 | L9: =IFERROR(HighChart[[#This Row],[TRIALS_LOCT]]/HighChart[[#This Row],[TRIALS_CALLED]],NA()) -> 0.09154929577 | M9: 21 | N9: 136 | O9: 0.09154929577
A10: 2015/16 | B10: Q4 | C10: 2 | D10: HIGH CT | E10: 181 | F10: 184 | G10: 75 | H10: 29 | I10: 149 | J10: 95 | K10: 5 | L10: =IFERROR(HighChart[[#This Row],[TRIALS_LOCT]]/HighChart[[#This Row],[TRIALS_CALLED]],NA()) -> 0.03355704698 | M10: 28 | N10: 187 | O10: 0.03355704698
A11: 2015/16 | B11: Q3 | C11: 2 | D11: HIGH CT | E11: 136 | F11: 170 | G11: 53 | H11: 33 | I11: 145 | J11: 88 | K11: 0 | L11: =IFERROR(HighChart[[#This Row],[TRIALS_LOCT]]/HighChart[[#This Row],[TRIALS_CALLED]],NA()) -> 0 | M11: 35 | N11: 170 | O11: 0
A12: 2015/16 | B12: Q2 | C12: 2 | D12: HIGH CT | E12: 143 | F12: 147 | G12: 60 | H12: 32 | I12: 172 | J12: 112 | K12: 3 | L12: =IFERROR(HighChart[[#This Row],[TRIALS_LOCT]]/HighChart[[#This Row],[TRIALS_CALLED]],NA()) -> 0.01744186047 | M12: 43 | N12: 159 | O12: 0.01744186047
A13: 2015/16 | B13: Q1 | C13: 2 | D13: HIGH CT | E13: 179 | F13: 182 | G13: 61 | H13: 15 | I13: 150 | J13: 108 | K13: 1 | L13: =IFERROR(HighChart[[#This Row],[TRIALS_LOCT]]/HighChart[[#This Row],[TRIALS_CALLED]],NA()) -> 0.006666666667 | M13: 49 | N13: 187 | O13: 0.006666666667
A14: 2014/15 | B14: Q4 | C14: 2 | D14: HIGH CT | E14: 163 | F14: 187 | G14: 93 | H14: 25 | I14: 179 | J14: 125 | K14: 3 | L14: =IFERROR(HighChart[[#This Row],[TRIALS_LOCT]]/HighChart[[#This Row],[TRIALS_CALLED]],NA()) -> 0.01675977654 | M14: 51 | N14: 193 | O14: 0.01675977654
A15: 2014/15 | B15: Q3 | C15: 2 | D15: HIGH CT | E15: 164 | F15: 186 | G15: 115 | H15: 34 | I15: 148 | J15: 100 | K15: 8 | L15: =IFERROR(HighChart[[#This Row],[TRIALS_LOCT]]/HighChart[[#This Row],[TRIALS_CALLED]],NA()) -> 0.05405405405 | M15: 59 | N15: 189 | O15: 0.05405405405
A16: 2014/15 | B16: Q2 | C16: 2 | D16: HIGH CT | E16: 206 | F16: 187 | G16: 110 | H16: 21 | I16: 173 | J16: 114 | K16: 2 | L16: =IFERROR(HighChart[[#This Row],[TRIALS_LOCT]]/HighChart[[#This Row],[TRIALS_CALLED]],NA()) -> 0.01156069364 | M16: 65 | N16: 177 | O16: 0.01156069364
A17: 2014/15 | B17: Q1 | C17: 2 | D17: HIGH CT | E17: 170 | F17: 184 | G17: 113 | H17: 29 | I17: 142 | J17: 104 | K17: 1 | L17: =IFERROR(HighChart[[#This Row],[TRIALS_LOCT]]/HighChart[[#This Row],[TRIALS_CALLED]],NA()) -> 0.007042253521 | M17: 72 | N17: 173 | O17: 0.007042253521
A18: 2018/19 | B18: Q1 | C18: 2 | D18: HIGH CT | E18: 228 | F18: 232 | G18: 116 | H18: 20 | I18: 190 | J18: 131 | K18: 2 | L18: =IFERROR(HighChart[[#This Row],[TRIALS_LOCT]]/HighChart[[#This Row],[TRIALS_CALLED]],NA()) -> 0.01052631579 | M18: 192 | N18: 183 | O18: 0.01052631579
A19: 2018/19 | B19: Q2 | C19: 2 | D19: HIGH CT | E19: 240 | F19: 228 | G19: 101 | H19: 24 | I19: 183 | J19: 142 | K19: 3 | L19: =IFERROR(HighChart[[#This Row],[TRIALS_LOCT]]/HighChart[[#This Row],[TRIALS_CALLED]],NA()) -> 0.01639344262 | M19: 215 | N19: 240 | O19: 0.01639344262
A20: 2018/19 | B20: Q3 | C20: 2 | D20: HIGH CT | E20: 210 | F20: 204 | G20: 92 | H20: 23 | I20: 163 | J20: 113 | K20: 0 | L20: =IFERROR(HighChart[[#This Row],[TRIALS_LOCT]]/HighChart[[#This Row],[TRIALS_CALLED]],NA()) -> 0 | M20: 236 | N20: 198 | O20: 0
A21: 2018/19 | B21: Q4 | C21: 2 | D21: HIGH CT | E21: 233 | F21: 223 | G21: 125 | H21: 21 | I21: 181 | J21: 121 | K21: 1 | L21: =IFERROR(HighChart[[#This Row],[TRIALS_LOCT]]/HighChart[[#This Row],[TRIALS_CALLED]],NA()) -> 0.005524861878 | M21: 268 | N21: 201 | O21: 0.005524861878
A22: 2019/20 | B22: Q1 | C22: 2 | D22: HIGH CT | E22: 248 | F22: 253 | G22: 100 | H22: 25 | I22: 168 | J22: 107 | K22: 5 | L22: =IFERROR(HighChart[[#This Row],[TRIALS_LOCT]]/HighChart[[#This Row],[TRIALS_CALLED]],NA()) -> 0.02976190476 | M22: 315 | N22: 182 | O22: 0.02976190476
A23: 2019/20 | B23: Q2 | C23: 2 | D23: HIGH CT | E23: 272 | F23: 241 | G23: 114 | H23: 22 | I23: 219 | J23: 146 | K23: 4 | L23: =IFERROR(HighChart[[#This Row],[TRIALS_LOCT]]/HighChart[[#This Row],[TRIALS_CALLED]],NA()) -> 0.01826484018 | M23: 304 | N23: 241 | O23: 0.01826484018
A24: 2019/20 | B24: Q3 | C24: 2 | D24: HIGH CT | E24: 274 | F24: 267 | G24: 115 | H24: 24 | I24: 190 | J24: 120 | K24: 22 | L24: =IFERROR(HighChart[[#This Row],[TRIALS_LOCT]]/HighChart[[#This Row],[TRIALS_CALLED]],NA()) -> 0.1157894737 | M24: 369 | N24: 206 | O24: 0.1157894737
A25: 2019/20 | B25: Q4 | C25: 2 | D25: HIGH CT | E25: 230 | F25: 220 | G25: 108 | H25: 23 | I25: 235 | J25: 125 | K25: 18 | L25: =IFERROR(HighChart[[#This Row],[TRIALS_LOCT]]/HighChart[[#This Row],[TRIALS_CALLED]],NA()) -> 0.07659574468 | M25: 390 | N25: 177 | O25: 0.07659574468
A26: 2020/21 | B26: Q1 | C26: 2 | D26: HIGH CT | E26: 231 | F26: 92 | G26: 40 | H26: 17 | I26: 0 | J26: 0 | K26: 0 | L26: =IFERROR(HighChart[[#This Row],[TRIALS_LOCT]]/HighChart[[#This Row],[TRIALS_CALLED]],NA()) ->  | M26: 390 | N26: 30 | O26: 0
A27: 2020/21 | B27: Q2 | C27: 2 | D27: HIGH CT | E27: 177 | F27: 314 | G27: 289 | H27: 26 | I27: 44 | J27: 36 | K27: 0 | L27: =IFERROR(HighChart[[#This Row],[TRIALS_LOCT]]/HighChart[[#This Row],[TRIALS_CALLED]],NA()) -> 0 | M27: 360 | N27: 87 | O27: =IF(I27=0,0,K27/I27) -> 0
A28: 2020/21 | B28: Q3 | C28: 2 | D28: HIGH CT | E28: 140 | F28: 150 | G28: 247 | H28: 18 | I28: 147 | J28: 106 | K28: 12 | L28: =IFERROR(HighChart[[#This Row],[TRIALS_LOCT]]/HighChart[[#This Row],[TRIALS_CALLED]],NA()) -> 0.08163265306 | M28: 250 | N28: 147 | O28: 0.08163265306
A29: 2020/21 | B29: Q4 | C29: 2 | D29: HIGH CT | E29: 219 | F29: 169 | G29: 215 | H29: 23 | I29: 186 | J29: 136 | K29: 0 | L29: =IFERROR(HighChart[[#This Row],[TRIALS_LOCT]]/HighChart[[#This Row],[TRIALS_CALLED]],NA()) -> 0 | M29: 267 | N29: 191 | O29: =IF(I29=0,0,K29/I29) -> 0
A30: 2021/22 | B30: Q1 | C30: 2 | D30: HIGH CT | E30: 155 | F30: 173 | G30: 185 | H30: 19 | I30: 173 | J30: 124 | K30: 11 | L30: =IFERROR(HighChart[[#This Row],[TRIALS_LOCT]]/HighChart[[#This Row],[TRIALS_CALLED]],NA()) -> 0.06358381503 | M30: 313 | N30: 173 | O30: =IF(I30=0,0,K30/I30) -> 0.06358381503
A31: 2021/22 | B31: Q2 | C31: 2 | D31: HIGH CT | E31: 160 | F31: 112 | G31: 228 | H31: 20 | I31: 196 | J31: 150 | K31: 5 | L31: =IFERROR(HighChart[[#This Row],[TRIALS_LOCT]]/HighChart[[#This Row],[TRIALS_CALLED]],NA()) -> 0.02551020408 | M31: 389 | N31: 196 | O31: =IF(I31=0,0,K31/I31) -> 0.02551020408
A32: 2021/22 | B32: Q3 | C32: 2 | D32: HIGH CT | E32: 192 | F32: 135 | G32: 169 | H32: 17 | I32: 184 | J32: 147 | K32: 0 | L32: =IFERROR(HighChart[[#This Row],[TRIALS_LOCT]]/HighChart[[#This Row],[TRIALS_CALLED]],NA()) -> 0 | M32: 516 | N32: 208 | O32: 0
A33: 2021/22 | B33: Q4 | C33: 2 | D33: HIGH CT | E33: 238 | F33: 218 | G33: 134 | H33: 22 | I33: 199 | J33: 156 | K33: 4 | L33: =IFERROR(HighChart[[#This Row],[TRIALS_LOCT]]/HighChart[[#This Row],[TRIALS_CALLED]],NA()) -> 0.02010050251 | M33: 560 | N33: 179 | O33: 0.02010050251
A34: This data is only for The Scottish Courts and Tribunals Service Internal use. Please go to the index tab and navigate as required.

Sheet High Court Chart Pivot Tables (hidden)
A1: Indictments Registered | D1: This data is only for The Scottish Courts and Tribunals Service Internal use. Please go to the index tab and navigate as required. | G1: High Court Pre Trial and Trial Callings
A2: Row Labels | B2: Indictments Registered | G2: Row Labels | H2: Indictments called for Preliminary Hearing | I2: Indictments called for Continued Preliminary Hearing | J2: Indictment called for S76 Hearing | K2: Trials Called
A3: 2014/15 | G3: 2014/15
A4: Q1 | B4: 170 | G4: Q1 | H4: 184 | I4: 113 | J4: 29 | K4: 142
A5: Q2 | B5: 206 | G5: Q2 | H5: 187 | I5: 110 | J5: 21 | K5: 173
A6: Q3 | B6: 164 | G6: Q3 | H6: 186 | I6: 115 | J6: 34 | K6: 148
A7: Q4 | B7: 163 | G7: Q4 | H7: 187 | I7: 93 | J7: 25 | K7: 179
A8: 2015/16 | G8: 2015/16
A9: Q1 | B9: 179 | G9: Q1 | H9: 182 | I9: 61 | J9: 15 | K9: 150
A10: Q2 | B10: 143 | G10: Q2 | H10: 147 | I10: 60 | J10: 32 | K10: 172
A11: Q3 | B11: 136 | G11: Q3 | H11: 170 | I11: 53 | J11: 33 | K11: 145
A12: Q4 | B12: 181 | G12: Q4 | H12: 184 | I12: 75 | J12: 29 | K12: 149
A13: 2016/17 | G13: 2016/17
A14: Q1 | B14: 161 | G14: Q1 | H14: 184 | I14: 60 | J14: 30 | K14: 142
A15: Q2 | B15: 133 | G15: Q2 | H15: 139 | I15: 71 | J15: 16 | K15: 156
A16: Q3 | B16: 110 | G16: Q3 | H16: 138 | I16: 66 | J16: 19 | K16: 149
A17: Q4 | B17: 183 | G17: Q4 | H17: 154 | I17: 54 | J17: 19 | K17: 185
A18: 2017/18 | G18: 2017/18
A19: Q1 | B19: 153 | G19: Q1 | H19: 152 | I19: 60 | J19: 19 | K19: 181
A20: Q2 | B20: 198 | G20: Q2 | H20: 158 | I20: 58 | J20: 17 | K20: 168
A21: Q3 | B21: 165 | G21: Q3 | H21: 121 | I21: 74 | J21: 18 | K21: 150
A22: Q4 | B22: 202 | G22: Q4 | H22: 167 | I22: 81 | J22: 20 | K22: 190
A23: 2018/19 | G23: 2018/19
A24: Q1 | B24: 228 | G24: Q1 | H24: 232 | I24: 116 | J24: 20 | K24: 190
A25: Q2 | B25: 240 | G25: Q2 | H25: 228 | I25: 101 | J25: 24 | K25: 183
A26: Q3 | B26: 210 | G26: Q3 | H26: 204 | I26: 92 | J26: 23 | K26: 163
A27: Q4 | B27: 233 | G27: Q4 | H27: 223 | I27: 125 | J27: 21 | K27: 181
A28: 2019/20 | G28: 2019/20
A29: Q1 | B29: 248 | G29: Q1 | H29: 253 | I29: 100 | J29: 25 | K29: 168
A30: Q2 | B30: 272 | G30: Q2 | H30: 241 | I30: 114 | J30: 22 | K30: 219
A31: Q3 | B31: 274 | G31: Q3 | H31: 267 | I31: 115 | J31: 24 | K31: 190
A32: Q4 | B32: 230 | G32: Q4 | H32: 220 | I32: 108 | J32: 23 | K32: 235
A33: 2020/21 | G33: 2020/21
A34: Q1 | B34: 231 | G34: Q1 | H34: 92 | I34: 40 | J34: 17 | K34: 0
A35: Q2 | B35: 177 | G35: Q2 | H35: 314 | I35: 289 | J35: 26 | K35: 44
A36: Q3 | B36: 140 | G36: Q3 | H36: 150 | I36: 247 | J36: 18 | K36: 147
A37: Q4 | B37: 219 | G37: Q4 | H37: 169 | I37: 215 | J37: 23 | K37: 186
A38: 2021/22 | G38: 2021/22
A39: Q1 | B39: 155 | G39: Q1 | H39: 173 | I39: 185 | J39: 19 | K39: 173
A40: Q2 | B40: 160 | G40: Q2 | H40: 112 | I40: 228 | J40: 20 | K40: 196
A41: Q3 | B41: 192 | G41: Q3 | H41: 135 | I41: 169 | J41: 17 | K41: 184
A42: Q4 | B42: 238 | G42: Q4 | H42: 218 | I42: 134 | J42: 22 | K42: 199
A43: Grand Total | B43: 6094 | G43: Grand Total | H43: 5871 | I43: 3582 | J43: 720 | K43: 5237
G46: LOCT with %
A47: Trials Called Evidence Led | G47: Row Labels | H47: Trial Indictments adjourned due to lack of court time | I47: % Trial Indictments adjourned due to lack of court time
A48: Row Labels | B48: Indictments called for Trial | C48: Evidence Led | G48: 2014/15
A49: 2014/15 | G49: Q1 | H49: 1 | I49: 0.007042253521
A50: Q1 | B50: 142 | C50: 104 | G50: Q2 | H50: 2 | I50: 0.01156069364
A51: Q2 | B51: 173 | C51: 114 | G51: Q3 | H51: 8 | I51: 0.05405405405
A52: Q3 | B52: 148 | C52: 100 | G52: Q4 | H52: 3 | I52: 0.01675977654
A53: Q4 | B53: 179 | C53: 125 | G53: 2015/16
A54: 2015/16 | G54: Q1 | H54: 1 | I54: 0.006666666667
A55: Q1 | B55: 150 | C55: 108 | G55: Q2 | H55: 3 | I55: 0.01744186047
A56: Q2 | B56: 172 | C56: 112 | G56: Q3 | H56: 0 | I56: 0
A57: Q3 | B57: 145 | C57: 88 | G57: Q4 | H57: 5 | I57: 0.03355704698
A58: Q4 | B58: 149 | C58: 95 | G58: 2016/17
A59: 2016/17 | G59: Q1 | H59: 13 | I59: 0.09154929577
A60: Q1 | B60: 142 | C60: 95 | G60: Q2 | H60: 13 | I60: 0.08333333333
A61: Q2 | B61: 156 | C61: 100 | G61: Q3 | H61: 0 | I61: 0
A62: Q3 | B62: 149 | C62: 111 | G62: Q4 | H62: 1 | I62: 0.005405405405
A63: Q4 | B63: 185 | C63: 137 | G63: 2017/18
A64: 2017/18 | G64: Q1 | H64: 0 | I64: 0
A65: Q1 | B65: 181 | C65: 115 | G65: Q2 | H65: 0 | I65: 0
A66: Q2 | B66: 168 | C66: 114 | G66: Q3 | H66: 0 | I66: 0
A67: Q3 | B67: 150 | C67: 103 | G67: Q4 | H67: 0 | I67: 0
A68: Q4 | B68: 190 | C68: 129 | G68: 2018/19
A69: 2018/19 | G69: Q1 | H69: 2 | I69: 0.01052631579
A70: Q1 | B70: 190 | C70: 131 | G70: Q2 | H70: 3 | I70: 0.01639344262
A71: Q2 | B71: 183 | C71: 142 | G71: Q3 | H71: 0 | I71: 0
A72: Q3 | B72: 163 | C72: 113 | G72: Q4 | H72: 1 | I72: 0.005524861878
A73: Q4 | B73: 181 | C73: 121 | G73: 2019/20
A74: 2019/20 | G74: Q1 | H74: 5 | I74: 0.02976190476
A75: Q1 | B75: 168 | C75: 107 | G75: Q2 | H75: 4 | I75: 0.01826484018
A76: Q2 | B76: 219 | C76: 146 | G76: Q3 | H76: 22 | I76: 0.1157894737
A77: Q3 | B77: 190 | C77: 120 | G77: Q4 | H77: 18 | I77: 0.07659574468
A78: Q4 | B78: 235 | C78: 125 | G78: 2020/21
A79: 2020/21 | G79: Q1 | H79: 0 | I79: 0
A80: Q1 | B80: 0 | C80: 0 | G80: Q2 | H80: 0 | I80: 0
A81: Q2 | B81: 44 | C81: 36 | G81: Q3 | H81: 12 | I81: 0.08163265306
A82: Q3 | B82: 147 | C82: 106 | G82: Q4 | H82: 0 | I82: 0
A83: Q4 | B83: 186 | C83: 136 | G83: 2021/22
A84: 2021/22 | G84: Q1 | H84: 11 | I84: 0.06358381503
A85: Q1 | B85: 173 | C85: 124 | G85: Q2 | H85: 5 | I85: 0.02551020408
A86: Q2 | B86: 196 | C86: 150 | G86: Q3 | H86: 0 | I86: 0
A87: Q3 | B87: 184 | C87: 147 | G87: Q4 | H87: 4 | I87: 0.02010050251
A88: Q4 | B88: 199 | C88: 156 | G88: Grand Total | H88: 137 | I88: 0.7910541447
A89: Grand Total | B89: 5237 | C89: 3610
G90: Indictments Disposed
G91: Row Labels | H91: Indictments Disposed
A92: Indictments Scheduled | G92: 2014/15
A93: Row Labels | B93: Indictments Scheduled | G93: Q1 | H93: 173
A94: 2017/18 | G94: Q2 | H94: 177
A95: Q1 | B95: 6 | G95: Q3 | H95: 189
A96: Q2 | B96: 4 | G96: Q4 | H96: 193
A97: Q3 | B97: 0 | G97: 2015/16
A98: Q4 | B98: 1 | G98: Q1 | H98: 187
A99: 2016/17 | G99: Q2 | H99: 159
A100: Q1 | B100: 21 | G100: Q3 | H100: 170
A101: Q2 | B101: 17 | G101: Q4 | H101: 187
A102: Q3 | B102: 8 | G102: 2016/17
A103: Q4 | B103: 3 | G103: Q1 | H103: 136
A104: 2015/16 | G104: Q2 | H104: 132
A105: Q1 | B105: 49 | G105: Q3 | H105: 139
A106: Q2 | B106: 43 | G106: Q4 | H106: 179
A107: Q3 | B107: 35 | G107: 2017/18
A108: Q4 | B108: 28 | G108: Q1 | H108: 168
A109: 2014/15 | G109: Q2 | H109: 167
A110: Q1 | B110: 72 | G110: Q3 | H110: 148
A111: Q2 | B111: 65 | G111: Q4 | H111: 147
A112: Q3 | B112: 59 | G112: 2018/19
A113: Q4 | B113: 51 | G113: Q1 | H113: 183
A114: 2018/19 | G114: Q2 | H114: 240
A115: Q1 | B115: 192 | G115: Q3 | H115: 198
A116: Q2 | B116: 215 | G116: Q4 | H116: 201
A117: Q3 | B117: 236 | G117: 2019/20
A118: Q4 | B118: 268 | G118: Q1 | H118: 182
A119: 2019/20 | G119: Q2 | H119: 241
A120: Q1 | B120: 315 | G120: Q3 | H120: 206
A121: Q2 | B121: 304 | G121: Q4 | H121: 177
A122: Q3 | B122: 369 | G122: 2020/21
A123: Q4 | B123: 390 | G123: Q1 | H123: 30
A124: 2020/21 | G124: Q2 | H124: 87
A125: Q1 | B125: 390 | G125: Q3 | H125: 147
A126: Q2 | B126: 360 | G126: Q4 | H126: 191
A127: Q3 | B127: 250 | G127: 2021/22
A128: Q4 | B128: 267 | G128: Q1 | H128: 173
A129: 2021/22 | G129: Q2 | H129: 196
A130: Q1 | B130: 313 | G130: Q3 | H130: 208
A131: Q2 | B131: 389 | G131: Q4 | H131: 179
A132: Q3 | B132: 516 | G132: Grand Total | H132: 5490
A133: Q4 | B133: 560
A134: Grand Total | B134: 5796

Sheet 3a
E1: Back to Index | G1: Go to Current Financial Year | W1: Back to Index | Z1: =B4 -> National | AE1: =G4 -> 0 | AP1: Back to Index
B3: =VLOOKUP($B$4,'Sheriff Court lookup'!$B$2:$C$58,1,FALSE) -> National | D3: Sheriff Court / Solemn business | I3: Sheriff Court / Solemn business | N3: Sheriff Court / Solemn business | S3: Sheriff Court / Solemn business | X3: Sheriff Court / Solemn business | AC3: Sheriff Court / Solemn business | AH3: Sheriff Court / Solemn business | AM3: Sheriff Court / Solemn business
B4: National | C4: Click on yellow box in B4 to select court using dropdown | D4: 2014/15 | I4: 2015/16 | N4: 2016/17 | S4: 2017/18 | X4: 2018/19 | AC4: 2019/20 | AH4: 2020/21 | AM4: 2021/22
D5: 2014/15 | I5: 2015/16 | N5: 2016/17 | S5: 2017/18 | X5: 2017/18 | AC5: 2017/18 | AH5: 2017/18 | AM5: 2017/18
D6: Q1 | E6: Q2 | F6: Q3 | G6: Q4 | I6: Q1 | J6: Q2 | K6: Q3 | L6: Q4 | N6: Q1 | O6: Q2 | P6: Q3 | Q6: Q4 | S6: Q1 | T6: Q2 | U6: Q3 | V6: Q4 | X6: Q1 | Y6: Q2 | Z6: Q3 | AA6: Q4 | AC6: Q1 | AD6: Q2 | AE6: Q3 | AF6: Q4 | AH6: Q1 | AI6: Q2 | AJ6: Q3 | AK6: Q4 | AM6: Q1 | AN6: Q2 | AO6: Q3 | AP6: Q4
D8: Quarter 1 | E8: Quarter 2 | F8: Quarter 3 | G8: Quarter 4 | H8: Full Year | I8: Quarter 1 | J8: Quarter 2 | K8: Quarter 3 | L8: Quarter 4 | M8: Full Year | N8: Quarter 1 | O8: Quarter 2 | P8: Quarter 3 | Q8: Quarter 4 | R8: Full Year | S8: Quarter 1 | T8: Quarter 2 | U8: Quarter 3 | V8: Quarter 4 | W8: Full Year | X8: Quarter 1 | Y8: Quarter 2 | Z8: Quarter 3 | AA8: Quarter 4 | AB8: Full Year | AC8: Quarter 1 | AD8: Quarter 2 | AE8: Quarter 3 | AF8: Quarter 4 | AG8: Full Year | AH8: Quarter 1 | AI8: Quarter 2 | AJ8: Quarter 3 | AK8: Quarter 4 | AL8: Full Year | AM8: Quarter 1 | AN8: Quarter 2 | AO8: Quarter 3 | AP8: Quarter 4 | AQ8: Full Year
B9: Petitions registered | D9: =IF($B$3="Fort william", SUMIFS('JP SC Raw Data'!$G:$G,'JP SC Raw Data'!$C:$C,"Q1",'JP SC Raw Data'!$F:$F,"S",'JP SC Raw Data'!$B:$B,"2014/15",'JP SC Raw Data'!$E:$E,$B$3), IF(IFERROR(FIND(" ",$B$3),"")="",SUMIFS('JP SC Raw Data'!$G:$G,'JP SC Raw Data'!$C:$C,"Q1",'JP SC Raw Data'!$F:$F,"S",'JP SC Raw Data'!$B:$B,"2014/15",'JP SC Raw Data'!$E:$E,$B$3),SUMIFS('JP SC Raw Data'!$G:$G,'JP SC Raw Data'!$C:$C,"Q1",'JP SC Raw Data'!$F:$F,"S",'JP SC Raw Data'!$B:$B,"2014/15",'JP SC Raw Data'!$A:$A,$B$3))) -> 2608 | E9: =IF($B$3="Fort william", SUMIFS('JP SC Raw Data'!$G:$G,'JP SC Raw Data'!$C:$C,"Q2",'JP SC Raw Data'!$F:$F,"S",'JP SC Raw Data'!$B:$B,"2014/15",'JP SC Raw Data'!$E:$E,$B$3), IF(IFERROR(FIND(" ",$B$3),"")="",SUMIFS('JP SC Raw Data'!$G:$G,'JP SC Raw Data'!$C:$C,"Q2",'JP SC Raw Data'!$F:$F,"S",'JP SC Raw Data'!$B:$B,"2014/15",'JP SC Raw Data'!$E:$E,$B$3),SUMIFS('JP SC Raw Data'!$G:$G,'JP SC Raw Data'!$C:$C,"Q2",'JP SC Raw Data'!$F:$F,"S",'JP SC Raw Data'!$B:$B,"2014/15",'JP SC Raw Data'!$A:$A,$B$3))) -> 2738 | F9: =IF($B$3="Fort william", SUMIFS('JP SC Raw Data'!$G:$G,'JP SC Raw Data'!$C:$C,"Q3",'JP SC Raw Data'!$F:$F,"S",'JP SC Raw Data'!$B:$B,"2014/15",'JP SC Raw Data'!$E:$E,$B$3), IF(IFERROR(FIND(" ",$B$3),"")="",SUMIFS('JP SC Raw Data'!$G:$G,'JP SC Raw Data'!$C:$C,"Q3",'JP SC Raw Data'!$F:$F,"S",'JP SC Raw Data'!$B:$B,"2014/15",'JP SC Raw Data'!$E:$E,$B$3),SUMIFS('JP SC Raw Data'!$G:$G,'JP SC Raw Data'!$C:$C,"Q3",'JP SC Raw Data'!$F:$F,"S",'JP SC Raw Data'!$B:$B,"2014/15",'JP SC Raw Data'!$A:$A,$B$3))) -> 2512 | G9: =IF($B$3="Fort william", SUMIFS('JP SC Raw Data'!$G:$G,'JP SC Raw Data'!$C:$C,"Q4",'JP SC Raw Data'!$F:$F,"S",'JP SC Raw Data'!$B:$B,"2014/15",'JP SC Raw Data'!$E:$E,$B$3), IF(IFERROR(FIND(" ",$B$3),"")="",SUMIFS('JP SC Raw Data'!$G:$G,'JP SC Raw Data'!$C:$C,"Q4",'JP SC Raw Data'!$F:$F,"S",'JP SC Raw Data'!$B:$B,"2014/15",'JP SC Raw Data'!$E:$E,$B$3),SUMIFS('JP SC Raw Data'!$G:$G,'JP SC Raw Data'!$C:$C,"Q4",'JP SC Raw Data'!$F:$F,"S",'JP SC Raw Data'!$B:$B,"2014/15",'JP SC Raw Data'!$A:$A,$B$3))) -> 2464 | H9: =SUM(D9:G9) -> 10322 | I9: =IF($B$3="Fort william", SUMIFS('JP SC Raw Data'!$G:$G,'JP SC Raw Data'!$C:$C,"Q1",'JP SC Raw Data'!$F:$F,"S",'JP SC Raw Data'!$B:$B,"2015/16",'JP SC Raw Data'!$E:$E,$B$3), IF(IFERROR(FIND(" ",$B$3),"")="",SUMIFS('JP SC Raw Data'!$G:$G,'JP SC Raw Data'!$C:$C,"Q1",'JP SC Raw Data'!$F:$F,"S",'JP SC Raw Data'!$B:$B,"2015/16",'JP SC Raw Data'!$E:$E,$B$3),SUMIFS('JP SC Raw Data'!$G:$G,'JP SC Raw Data'!$C:$C,"Q1",'JP SC Raw Data'!$F:$F,"S",'JP SC Raw Data'!$B:$B,"2015/16",'JP SC Raw Data'!$A:$A,$B$3))) -> 2370 | J9: =IF($B$3="Fort william", SUMIFS('JP SC Raw Data'!$G:$G,'JP SC Raw Data'!$C:$C,"Q2",'JP SC Raw Data'!$F:$F,"S",'JP SC Raw Data'!$B:$B,"2015/16",'JP SC Raw Data'!$E:$E,$B$3), IF(IFERROR(FIND(" ",$B$3),"")="",SUMIFS('JP SC Raw Data'!$G:$G,'JP SC Raw Data'!$C:$C,"Q2",'JP SC Raw Data'!$F:$F,"S",'JP SC Raw Data'!$B:$B,"2015/16",'JP SC Raw Data'!$E:$E,$B$3),SUMIFS('JP SC Raw Data'!$G:$G,'JP SC Raw Data'!$C:$C,"Q2",'JP SC Raw Data'!$F:$F,"S",'JP SC Raw Data'!$B:$B,"2015/16",'JP SC Raw Data'!$A:$A,$B$3))) -> 2503 | K9: =IF($B$3="Fort william", SUMIFS('JP SC Raw Data'!$G:$G,'JP SC Raw Data'!$C:$C,"Q3",'JP SC Raw Data'!$F:$F,"S",'JP SC Raw Data'!$B:$B,"2015/16",'JP SC Raw Data'!$E:$E,$B$3), IF(IFERROR(FIND(" ",$B$3),"")="",SUMIFS('JP SC Raw Data'!$G:$G,'JP SC Raw Data'!$C:$C,"Q3",'JP SC Raw Data'!$F:$F,"S",'JP SC Raw Data'!$B:$B,"2015/16",'JP SC Raw Data'!$E:$E,$B$3),SUMIFS('JP SC Raw Data'!$G:$G,'JP SC Raw Data'!$C:$C,"Q3",'JP SC Raw Data'!$F:$F,"S",'JP SC Raw Data'!$B:$B,"2015/16",'JP SC Raw Data'!$A:$A,$B$3))) -> 2523 | L9: =IF($B$3="Fort william", SUMIFS('JP SC Raw Data'!$G:$G,'JP SC Raw Data'!$C:$C,"Q4",'JP SC Raw Data'!$F:$F,"S",'JP SC Raw Data'!$B:$B,"2015/16",'JP SC Raw Data'!$E:$E,$B$3), IF(IFERROR(FIND(" ",$B$3),"")="",SUMIFS('JP SC Raw Data'!$G:$G,'JP SC Raw Data'!$C:$C,"Q4",'JP SC Raw Data'!$F:$F,"S",'JP SC Raw Data'!$B:$B,"2015/16",'JP SC Raw Data'!$E:$E,$B$3),SUMIFS('JP SC Raw Data'!$G:$G,'JP SC Raw Data'!$C:$C,"Q4",'JP SC Raw Data'!$F:$F,"S",'JP SC Raw Data'!$B:$B,"2015/16",'JP SC Raw Data'!$A:$A,$B$3))) -> 2298 | M9: =SUM(I9:L9) -> 9694 | N9: =IF($B$3="Fort william", SUMIFS('JP SC Raw Data'!$G:$G,'JP SC Raw Data'!$C:$C,"Q1",'JP SC Raw Data'!$F:$F,"S",'JP SC Raw Data'!$B:$B,"2016/17",'JP SC Raw Data'!$E:$E,$B$3), IF(IFERROR(FIND(" ",$B$3),"")="",SUMIFS('JP SC Raw Data'!$G:$G,'JP SC Raw Data'!$C:$C,"Q1",'JP SC Raw Data'!$F:$F,"S",'JP SC Raw Data'!$B:$B,"2016/17",'JP SC Raw Data'!$E:$E,$B$3),SUMIFS('JP SC Raw Data'!$G:$G,'JP SC Raw Data'!$C:$C,"Q1",'JP SC Raw Data'!$F:$F,"S",'JP SC Raw Data'!$B:$B,"2016/17",'JP SC Raw Data'!$A:$A,$B$3))) -> 2416 | O9: =IF($B$3="Fort william", SUMIFS('JP SC Raw Data'!$G:$G,'JP SC Raw Data'!$C:$C,"Q2",'JP SC Raw Data'!$F:$F,"S",'JP SC Raw Data'!$B:$B,"2016/17",'JP SC Raw Data'!$E:$E,$B$3), IF(IFERROR(FIND(" ",$B$3),"")="",SUMIFS('JP SC Raw Data'!$G:$G,'JP SC Raw Data'!$C:$C,"Q2",'JP SC Raw Data'!$F:$F,"S",'JP SC Raw Data'!$B:$B,"2016/17",'JP SC Raw Data'!$E:$E,$B$3),SUMIFS('JP SC Raw Data'!$G:$G,'JP SC Raw Data'!$C:$C,"Q2",'JP SC Raw Data'!$F:$F,"S",'JP SC Raw Data'!$B:$B,"2016/17",'JP SC Raw Data'!$A:$A,$B$3))) -> 2206 | P9: =IF($B$3="Fort william", SUMIFS('JP SC Raw Data'!$G:$G,'JP SC Raw Data'!$C:$C,"Q3",'JP SC Raw Data'!$F:$F,"S",'JP SC Raw Data'!$B:$B,"2016/17",'JP SC Raw Data'!$E:$E,$B$3), IF(IFERROR(FIND(" ",$B$3),"")="",SUMIFS('JP SC Raw Data'!$G:$G,'JP SC Raw Data'!$C:$C,"Q3",'JP SC Raw Data'!$F:$F,"S",'JP SC Raw Data'!$B:$B,"2016/17",'JP SC Raw Data'!$E:$E,$B$3),SUMIFS('JP SC Raw Data'!$G:$G,'JP SC Raw Data'!$C:$C,"Q3",'JP SC Raw Data'!$F:$F,"S",'JP SC Raw Data'!$B:$B,"2016/17",'JP SC Raw Data'!$A:$A,$B$3))) -> 2155 | Q9: =IF($B$3="Fort william", SUMIFS('JP SC Raw Data'!$G:$G,'JP SC Raw Data'!$C:$C,"Q4",'JP SC Raw Data'!$F:$F,"S",'JP SC Raw Data'!$B:$B,"2016/17",'JP SC Raw Data'!$E:$E,$B$3), IF(IFERROR(FIND(" ",$B$3),"")="",SUMIFS('JP SC Raw Data'!$G:$G,'JP SC Raw Data'!$C:$C,"Q4",'JP SC Raw Data'!$F:$F,"S",'JP SC Raw Data'!$B:$B,"2016/17",'JP SC Raw Data'!$E:$E,$B$3),SUMIFS('JP SC Raw Data'!$G:$G,'JP SC Raw Data'!$C:$C,"Q4",'JP SC Raw Data'!$F:$F,"S",'JP SC Raw Data'!$B:$B,"2016/17",'JP SC Raw Data'!$A:$A,$B$3))) -> 2169 | R9: =SUM(N9:Q9) -> 8946 | S9: =IF($B$3="Fort william", SUMIFS('JP SC Raw Data'!$G:$G,'JP SC Raw Data'!$C:$C,"Q1",'JP SC Raw Data'!$F:$F,"S",'JP SC Raw Data'!$B:$B,"2017/18",'JP SC Raw Data'!$E:$E,$B$3), IF(IFERROR(FIND(" ",$B$3),"")="",SUMIFS('JP SC Raw Data'!$G:$G,'JP SC Raw Data'!$C:$C,"Q1",'JP SC Raw Data'!$F:$F,"S",'JP SC Raw Data'!$B:$B,"2017/18",'JP SC Raw Data'!$E:$E,$B$3),SUMIFS('JP SC Raw Data'!$G:$G,'JP SC Raw Data'!$C:$C,"Q1",'JP SC Raw Data'!$F:$F,"S",'JP SC Raw Data'!$B:$B,"2017/18",'JP SC Raw Data'!$A:$A,$B$3))) -> 2188 | T9: =IF($B$3="Fort william", SUMIFS('JP SC Raw Data'!$G:$G,'JP SC Raw Data'!$C:$C,"Q2",'JP SC Raw Data'!$F:$F,"S",'JP SC Raw Data'!$B:$B,"2017/18",'JP SC Raw Data'!$E:$E,$B$3), IF(IFERROR(FIND(" ",$B$3),"")="",SUMIFS('JP SC Raw Data'!$G:$G,'JP SC Raw Data'!$C:$C,"Q2",'JP SC Raw Data'!$F:$F,"S",'JP SC Raw Data'!$B:$B,"2017/18",'JP SC Raw Data'!$E:$E,$B$3),SUMIFS('JP SC Raw Data'!$G:$G,'JP SC Raw Data'!$C:$C,"Q2",'JP SC Raw Data'!$F:$F,"S",'JP SC Raw Data'!$B:$B,"2017/18",'JP SC Raw Data'!$A:$A,$B$3))) -> 2249 | U9: =IF($B$3="Fort william", SUMIFS('JP SC Raw Data'!$G:$G,'JP SC Raw Data'!$C:$C,"Q3",'JP SC Raw Data'!$F:$F,"S",'JP SC Raw Data'!$B:$B,"2017/18",'JP SC Raw Data'!$E:$E,$B$3), IF(IFERROR(FIND(" ",$B$3),"")="",SUMIFS('JP SC Raw Data'!$G:$G,'JP SC Raw Data'!$C:$C,"Q3",'JP SC Raw Data'!$F:$F,"S",'JP SC Raw Data'!$B:$B,"2017/18",'JP SC Raw Data'!$E:$E,$B$3),SUMIFS('JP SC Raw Data'!$G:$G,'JP SC Raw Data'!$C:$C,"Q3",'JP SC Raw Data'!$F:$F,"S",'JP SC Raw Data'!$B:$B,"2017/18",'JP SC Raw Data'!$A:$A,$B$3))) -> 2091 | V9: =IF($B$3="Fort william", SUMIFS('JP SC Raw Data'!$G:$G,'JP SC Raw Data'!$C:$C,"Q4",'JP SC Raw Data'!$F:$F,"S",'JP SC Raw Data'!$B:$B,"2017/18",'JP SC Raw Data'!$E:$E,$B$3), IF(IFERROR(FIND(" ",$B$3),"")="",SUMIFS('JP SC Raw Data'!$G:$G,'JP SC Raw Data'!$C:$C,"Q4",'JP SC Raw Data'!$F:$F,"S",'JP SC Raw Data'!$B:$B,"2017/18",'JP SC Raw Data'!$E:$E,$B$3),SUMIFS('JP SC Raw Data'!$G:$G,'JP SC Raw Data'!$C:$C,"Q4",'JP SC Raw Data'!$F:$F,"S",'JP SC Raw Data'!$B:$B,"2017/18",'JP SC Raw Data'!$A:$A,$B$3))) -> 2011 | W9: =SUM(S9:V9) -> 8539 | X9: =IF($B$3="Fort william", SUMIFS('JP SC Raw Data'!$G:$G,'JP SC Raw Data'!$C:$C,"Q1",'JP SC Raw Data'!$F:$F,"S",'JP SC Raw Data'!$B:$B,"2018/19",'JP SC Raw Data'!$E:$E,$B$3), IF(IFERROR(FIND(" ",$B$3),"")="",SUMIFS('JP SC Raw Data'!$G:$G,'JP SC Raw Data'!$C:$C,"Q1",'JP SC Raw Data'!$F:$F,"S",'JP SC Raw Data'!$B:$B,"2018/19",'JP SC Raw Data'!$E:$E,$B$3),SUMIFS('JP SC Raw Data'!$G:$G,'JP SC Raw Data'!$C:$C,"Q1",'JP SC Raw Data'!$F:$F,"S",'JP SC Raw Data'!$B:$B,"2018/19",'JP SC Raw Data'!$A:$A,$B$3))) -> 2279 | Y9: =IF($B$3="Fort william", SUMIFS('JP SC Raw Data'!$G:$G,'JP SC Raw Data'!$C:$C,"Q2",'JP SC Raw Data'!$F:$F,"S",'JP SC Raw Data'!$B:$B,"2018/19",'JP SC Raw Data'!$E:$E,$B$3), IF(IFERROR(FIND(" ",$B$3),"")="",SUMIFS('JP SC Raw Data'!$G:$G,'JP SC Raw Data'!$C:$C,"Q2",'JP SC Raw Data'!$F:$F,"S",'JP SC Raw Data'!$B:$B,"2018/19",'JP SC Raw Data'!$E:$E,$B$3),SUMIFS('JP SC Raw Data'!$G:$G,'JP SC Raw Data'!$C:$C,"Q2",'JP SC Raw Data'!$F:$F,"S",'JP SC Raw Data'!$B:$B,"2018/19",'JP SC Raw Data'!$A:$A,$B$3))) -> 2144 | Z9: =IF($B$3="Fort william", SUMIFS('JP SC Raw Data'!$G:$G,'JP SC Raw Data'!$C:$C,"Q3",'JP SC Raw Data'!$F:$F,"S",'JP SC Raw Data'!$B:$B,"2018/19",'JP SC Raw Data'!$E:$E,$B$3), IF(IFERROR(FIND(" ",$B$3),"")="",SUMIFS('JP SC Raw Data'!$G:$G,'JP SC Raw Data'!$C:$C,"Q3",'JP SC Raw Data'!$F:$F,"S",'JP SC Raw Data'!$B:$B,"2018/19",'JP SC Raw Data'!$E:$E,$B$3),SUMIFS('JP SC Raw Data'!$G:$G,'JP SC Raw Data'!$C:$C,"Q3",'JP SC Raw Data'!$F:$F,"S",'JP SC Raw Data'!$B:$B,"2018/19",'JP SC Raw Data'!$A:$A,$B$3))) -> 2307 | AA9: =IF($B$3="Fort william", SUMIFS('JP SC Raw Data'!$G:$G,'JP SC Raw Data'!$C:$C,"Q4",'JP SC Raw Data'!$F:$F,"S",'JP SC Raw Data'!$B:$B,"2018/19",'JP SC Raw Data'!$E:$E,$B$3), IF(IFERROR(FIND(" ",$B$3),"")="",SUMIFS('JP SC Raw Data'!$G:$G,'JP SC Raw Data'!$C:$C,"Q4",'JP SC Raw Data'!$F:$F,"S",'JP SC Raw Data'!$B:$B,"2018/19",'JP SC Raw Data'!$E:$E,$B$3),SUMIFS('JP SC Raw Data'!$G:$G,'JP SC Raw Data'!$C:$C,"Q4",'JP SC Raw Data'!$F:$F,"S",'JP SC Raw Data'!$B:$B,"2018/19",'JP SC Raw Data'!$A:$A,$B$3))) -> 2430 | AB9: =SUM(X9:AA9) -> 9160 | AC9: =IF($B$3="Fort william", SUMIFS('JP SC Raw Data'!$G:$G,'JP SC Raw Data'!$C:$C,"Q1",'JP SC Raw Data'!$F:$F,"S",'JP SC Raw Data'!$B:$B,"2019/20",'JP SC Raw Data'!$E:$E,$B$3), IF(IFERROR(FIND(" ",$B$3),"")="",SUMIFS('JP SC Raw Data'!$G:$G,'JP SC Raw Data'!$C:$C,"Q1",'JP SC Raw Data'!$F:$F,"S",'JP SC Raw Data'!$B:$B,"2019/20",'JP SC Raw Data'!$E:$E,$B$3),SUMIFS('JP SC Raw Data'!$G:$G,'JP SC Raw Data'!$C:$C,"Q1",'JP SC Raw Data'!$F:$F,"S",'JP SC Raw Data'!$B:$B,"2019/20",'JP SC Raw Data'!$A:$A,$B$3))) -> 2502 | AD9: =IF($B$3="Fort william", SUMIFS('JP SC Raw Data'!$G:$G,'JP SC Raw Data'!$C:$C,"Q2",'JP SC Raw Data'!$F:$F,"S",'JP SC Raw Data'!$B:$B,"2019/20",'JP SC Raw Data'!$E:$E,$B$3), IF(IFERROR(FIND(" ",$B$3),"")="",SUMIFS('JP SC Raw Data'!$G:$G,'JP SC Raw Data'!$C:$C,"Q2",'JP SC Raw Data'!$F:$F,"S",'JP SC Raw Data'!$B:$B,"2019/20",'JP SC Raw Data'!$E:$E,$B$3),SUMIFS('JP SC Raw Data'!$G:$G,'JP SC Raw Data'!$C:$C,"Q2",'JP SC Raw Data'!$F:$F,"S",'JP SC Raw Data'!$B:$B,"2019/20",'JP SC Raw Data'!$A:$A,$B$3))) -> 2506 | AE9: =IF($B$3="Fort william", SUMIFS('JP SC Raw Data'!$G:$G,'JP SC Raw Data'!$C:$C,"Q3",'JP SC Raw Data'!$F:$F,"S",'JP SC Raw Data'!$B:$B,"2019/20",'JP SC Raw Data'!$E:$E,$B$3), IF(IFERROR(FIND(" ",$B$3),"")="",SUMIFS('JP SC Raw Data'!$G:$G,'JP SC Raw Data'!$C:$C,"Q3",'JP SC Raw Data'!$F:$F,"S",'JP SC Raw Data'!$B:$B,"2019/20",'JP SC Raw Data'!$E:$E,$B$3),SUMIFS('JP SC Raw Data'!$G:$G,'JP SC Raw Data'!$C:$C,"Q3",'JP SC Raw Data'!$F:$F,"S",'JP SC Raw Data'!$B:$B,"2019/20",'JP SC Raw Data'!$A:$A,$B$3))) -> 2492 | AF9: =IF($B$3="Fort william", SUMIFS('JP SC Raw Data'!$G:$G,'JP SC Raw Data'!$C:$C,"Q4",'JP SC Raw Data'!$F:$F,"S",'JP SC Raw Data'!$B:$B,"2019/20",'JP SC Raw Data'!$E:$E,$B$3), IF(IFERROR(FIND(" ",$B$3),"")="",SUMIFS('JP SC Raw Data'!$G:$G,'JP SC Raw Data'!$C:$C,"Q4",'JP SC Raw Data'!$F:$F,"S",'JP SC Raw Data'!$B:$B,"2019/20",'JP SC Raw Data'!$E:$E,$B$3),SUMIFS('JP SC Raw Data'!$G:$G,'JP SC Raw Data'!$C:$C,"Q4",'JP SC Raw Data'!$F:$F,"S",'JP SC Raw Data'!$B:$B,"2019/20",'JP SC Raw Data'!$A:$A,$B$3))) -> 2280 | AG9: =SUM(AC9:AF9) -> 9780 | AH9: =IF($B$3="Fort william", SUMIFS('JP SC Raw Data'!$G:$G,'JP SC Raw Data'!$C:$C,"Q1",'JP SC Raw Data'!$F:$F,"S",'JP SC Raw Data'!$B:$B,"2020/21",'JP SC Raw Data'!$E:$E,$B$3), IF(IFERROR(FIND(" ",$B$3),"")="",SUMIFS('JP SC Raw Data'!$G:$G,'JP SC Raw Data'!$C:$C,"Q1",'JP SC Raw Data'!$F:$F,"S",'JP SC Raw Data'!$B:$B,"2020/21",'JP SC Raw Data'!$E:$E,$B$3),SUMIFS('JP SC Raw Data'!$G:$G,'JP SC Raw Data'!$C:$C,"Q1",'JP SC Raw Data'!$F:$F,"S",'JP SC Raw Data'!$B:$B,"2020/21",'JP SC Raw Data'!$A:$A,$B$3))) -> 2517 | AI9: =IF($B$3="Fort william", SUMIFS('JP SC Raw Data'!$G:$G,'JP SC Raw Data'!$C:$C,"Q2",'JP SC Raw Data'!$F:$F,"S",'JP SC Raw Data'!$B:$B,"2020/21",'JP SC Raw Data'!$E:$E,$B$3), IF(IFERROR(FIND(" ",$B$3),"")="",SUMIFS('JP SC Raw Data'!$G:$G,'JP SC Raw Data'!$C:$C,"Q2",'JP SC Raw Data'!$F:$F,"S",'JP SC Raw Data'!$B:$B,"2020/21",'JP SC Raw Data'!$E:$E,$B$3),SUMIFS('JP SC Raw Data'!$G:$G,'JP SC Raw Data'!$C:$C,"Q2",'JP SC Raw Data'!$F:$F,"S",'JP SC Raw Data'!$B:$B,"2020/21",'JP SC Raw Data'!$A:$A,$B$3))) -> 3210 | AJ9: =IF($B$3="Fort william", SUMIFS('JP SC Raw Data'!$G:$G,'JP SC Raw Data'!$C:$C,"Q3",'JP SC Raw Data'!$F:$F,"S",'JP SC Raw Data'!$B:$B,"2020/21",'JP SC Raw Data'!$E:$E,$B$3), IF(IFERROR(FIND(" ",$B$3),"")="",SUMIFS('JP SC Raw Data'!$G:$G,'JP SC Raw Data'!$C:$C,"Q3",'JP SC Raw Data'!$F:$F,"S",'JP SC Raw Data'!$B:$B,"2020/21",'JP SC Raw Data'!$E:$E,$B$3),SUMIFS('JP SC Raw Data'!$G:$G,'JP SC Raw Data'!$C:$C,"Q3",'JP SC Raw Data'!$F:$F,"S",'JP SC Raw Data'!$B:$B,"2020/21",'JP SC Raw Data'!$A:$A,$B$3))) -> 2611 | AK9: =IF($B$3="Fort william", SUMIFS('JP SC Raw Data'!$G:$G,'JP SC Raw Data'!$C:$C,"Q4",'JP SC Raw Data'!$F:$F,"S",'JP SC Raw Data'!$B:$B,"2020/21",'JP SC Raw Data'!$E:$E,$B$3), IF(IFERROR(FIND(" ",$B$3),"")="",SUMIFS('JP SC Raw Data'!$G:$G,'JP SC Raw Data'!$C:$C,"Q4",'JP SC Raw Data'!$F:$F,"S",'JP SC Raw Data'!$B:$B,"2020/21",'JP SC Raw Data'!$E:$E,$B$3),SUMIFS('JP SC Raw Data'!$G:$G,'JP SC Raw Data'!$C:$C,"Q4",'JP SC Raw Data'!$F:$F,"S",'JP SC Raw Data'!$B:$B,"2020/21",'JP SC Raw Data'!$A:$A,$B$3))) -> 2738 | AL9: =SUM(AH9:AK9) -> 11076 | AM9: =IF($B$3="Fort william", SUMIFS('JP SC Raw Data'!$G:$G,'JP SC Raw Data'!$C:$C,"Q1",'JP SC Raw Data'!$F:$F,"S",'JP SC Raw Data'!$B:$B,"2021/22",'JP SC Raw Data'!$E:$E,$B$3), IF(IFERROR(FIND(" ",$B$3),"")="",SUMIFS('JP SC Raw Data'!$G:$G,'JP SC Raw Data'!$C:$C,"Q1",'JP SC Raw Data'!$F:$F,"S",'JP SC Raw Data'!$B:$B,"2021/22",'JP SC Raw Data'!$E:$E,$B$3),SUMIFS('JP SC Raw Data'!$G:$G,'JP SC Raw Data'!$C:$C,"Q1",'JP SC Raw Data'!$F:$F,"S",'JP SC Raw Data'!$B:$B,"2021/22",'JP SC Raw Data'!$A:$A,$B$3))) -> 2909 | AN9: =IF($B$3="Fort william", SUMIFS('JP SC Raw Data'!$G:$G,'JP SC Raw Data'!$C:$C,"Q2",'JP SC Raw Data'!$F:$F,"S",'JP SC Raw Data'!$B:$B,"2021/22",'JP SC Raw Data'!$E:$E,$B$3), IF(IFERROR(FIND(" ",$B$3),"")="",SUMIFS('JP SC Raw Data'!$G:$G,'JP SC Raw Data'!$C:$C,"Q2",'JP SC Raw Data'!$F:$F,"S",'JP SC Raw Data'!$B:$B,"2021/22",'JP SC Raw Data'!$E:$E,$B$3),SUMIFS('JP SC Raw Data'!$G:$G,'JP SC Raw Data'!$C:$C,"Q2",'JP SC Raw Data'!$F:$F,"S",'JP SC Raw Data'!$B:$B,"2021/22",'JP SC Raw Data'!$A:$A,$B$3))) -> 2992 | AO9: =IF($B$3="Fort william", SUMIFS('JP SC Raw Data'!$G:$G,'JP SC Raw Data'!$C:$C,"Q3",'JP SC Raw Data'!$F:$F,"S",'JP SC Raw Data'!$B:$B,"2021/22",'JP SC Raw Data'!$E:$E,$B$3), IF(IFERROR(FIND(" ",$B$3),"")="",SUMIFS('JP SC Raw Data'!$G:$G,'JP SC Raw Data'!$C:$C,"Q3",'JP SC Raw Data'!$F:$F,"S",'JP SC Raw Data'!$B:$B,"2021/22",'JP SC Raw Data'!$E:$E,$B$3),SUMIFS('JP SC Raw Data'!$G:$G,'JP SC Raw Data'!$C:$C,"Q3",'JP SC Raw Data'!$F:$F,"S",'JP SC Raw Data'!$B:$B,"2021/22",'JP SC Raw Data'!$A:$A,$B$3))) -> 2835 | AP9: =IF($B$3="Fort william", SUMIFS('JP SC Raw Data'!$G:$G,'JP SC Raw Data'!$C:$C,"Q4",'JP SC Raw Data'!$F:$F,"S",'JP SC Raw Data'!$B:$B,"2021/22",'JP SC Raw Data'!$E:$E,$B$3), IF(IFERROR(FIND(" ",$B$3),"")="",SUMIFS('JP SC Raw Data'!$G:$G,'JP SC Raw Data'!$C:$C,"Q4",'JP SC Raw Data'!$F:$F,"S",'JP SC Raw Data'!$B:$B,"2021/22",'JP SC Raw Data'!$E:$E,$B$3),SUMIFS('JP SC Raw Data'!$G:$G,'JP SC Raw Data'!$C:$C,"Q4",'JP SC Raw Data'!$F:$F,"S",'JP SC Raw Data'!$B:$B,"2021/22",'JP SC Raw Data'!$A:$A,$B$3))) -> 3033 | AQ9: =SUM(AM9:AP9) -> 11769
B10: Indictments registered | D10: =IF($B$3="Fort William", SUMIFS('JP SC Raw Data'!$H:$H,'JP SC Raw Data'!$C:$C,"Q1",'JP SC Raw Data'!$F:$F,"S",'JP SC Raw Data'!$B:$B,"2014/15",'JP SC Raw Data'!$E:$E,$B$3), IF(IFERROR(FIND(" ",$B$3),"")="",SUMIFS('JP SC Raw Data'!$H:$H,'JP SC Raw Data'!$C:$C,"Q1",'JP SC Raw Data'!$F:$F,"S",'JP SC Raw Data'!$B:$B,"2014/15",'JP SC Raw Data'!$E:$E,$B$3),SUMIFS('JP SC Raw Data'!$H:$H,'JP SC Raw Data'!$C:$C,"Q1",'JP SC Raw Data'!$F:$F,"S",'JP SC Raw Data'!$B:$B,"2014/15",'JP SC Raw Data'!$A:$A,$B$3))) -> 1656 | E10: =IF($B$3="Fort William", SUMIFS('JP SC Raw Data'!$H:$H,'JP SC Raw Data'!$C:$C,"Q2",'JP SC Raw Data'!$F:$F,"S",'JP SC Raw Data'!$B:$B,"2014/15",'JP SC Raw Data'!$E:$E,$B$3), IF(IFERROR(FIND(" ",$B$3),"")="",SUMIFS('JP SC Raw Data'!$H:$H,'JP SC Raw Data'!$C:$C,"Q2",'JP SC Raw Data'!$F:$F,"S",'JP SC Raw Data'!$B:$B,"2014/15",'JP SC Raw Data'!$E:$E,$B$3),SUMIFS('JP SC Raw Data'!$H:$H,'JP SC Raw Data'!$C:$C,"Q2",'JP SC Raw Data'!$F:$F,"S",'JP SC Raw Data'!$B:$B,"2014/15",'JP SC Raw Data'!$A:$A,$B$3))) -> 1748 | F10: =IF($B$3="Fort William", SUMIFS('JP SC Raw Data'!$H:$H,'JP SC Raw Data'!$C:$C,"Q3",'JP SC Raw Data'!$F:$F,"S",'JP SC Raw Data'!$B:$B,"2014/15",'JP SC Raw Data'!$E:$E,$B$3), IF(IFERROR(FIND(" ",$B$3),"")="",SUMIFS('JP SC Raw Data'!$H:$H,'JP SC Raw Data'!$C:$C,"Q3",'JP SC Raw Data'!$F:$F,"S",'JP SC Raw Data'!$B:$B,"2014/15",'JP SC Raw Data'!$E:$E,$B$3),SUMIFS('JP SC Raw Data'!$H:$H,'JP SC Raw Data'!$C:$C,"Q3",'JP SC Raw Data'!$F:$F,"S",'JP SC Raw Data'!$B:$B,"2014/15",'JP SC Raw Data'!$A:$A,$B$3))) -> 1716 | G10: =IF($B$3="Fort William", SUMIFS('JP SC Raw Data'!$H:$H,'JP SC Raw Data'!$C:$C,"Q4",'JP SC Raw Data'!$F:$F,"S",'JP SC Raw Data'!$B:$B,"2014/15",'JP SC Raw Data'!$E:$E,$B$3), IF(IFERROR(FIND(" ",$B$3),"")="",SUMIFS('JP SC Raw Data'!$H:$H,'JP SC Raw Data'!$C:$C,"Q4",'JP SC Raw Data'!$F:$F,"S",'JP SC Raw Data'!$B:$B,"2014/15",'JP SC Raw Data'!$E:$E,$B$3),SUMIFS('JP SC Raw Data'!$H:$H,'JP SC Raw Data'!$C:$C,"Q4",'JP SC Raw Data'!$F:$F,"S",'JP SC Raw Data'!$B:$B,"2014/15",'JP SC Raw Data'!$A:$A,$B$3))) -> 1800 | H10: =SUM(D10:G10) -> 6920 | I10: =IF($B$3="Fort William", SUMIFS('JP SC Raw Data'!$H:$H,'JP SC Raw Data'!$C:$C,"Q1",'JP SC Raw Data'!$F:$F,"S",'JP SC Raw Data'!$B:$B,"2015/16",'JP SC Raw Data'!$E:$E,$B$3), IF(IFERROR(FIND(" ",$B$3),"")="",SUMIFS('JP SC Raw Data'!$H:$H,'JP SC Raw Data'!$C:$C,"Q1",'JP SC Raw Data'!$F:$F,"S",'JP SC Raw Data'!$B:$B,"2015/16",'JP SC Raw Data'!$E:$E,$B$3),SUMIFS('JP SC Raw Data'!$H:$H,'JP SC Raw Data'!$C:$C,"Q1",'JP SC Raw Data'!$F:$F,"S",'JP SC Raw Data'!$B:$B,"2015/16",'JP SC Raw Data'!$A:$A,$B$3))) -> 1652 | J10: =IF($B$3="Fort William", SUMIFS('JP SC Raw Data'!$H:$H,'JP SC Raw Data'!$C:$C,"Q2",'JP SC Raw Data'!$F:$F,"S",'JP SC Raw Data'!$B:$B,"2015/16",'JP SC Raw Data'!$E:$E,$B$3), IF(IFERROR(FIND(" ",$B$3),"")="",SUMIFS('JP SC Raw Data'!$H:$H,'JP SC Raw Data'!$C:$C,"Q2",'JP SC Raw Data'!$F:$F,"S",'JP SC Raw Data'!$B:$B,"2015/16",'JP SC Raw Data'!$E:$E,$B$3),SUMIFS('JP SC Raw Data'!$H:$H,'JP SC Raw Data'!$C:$C,"Q2",'JP SC Raw Data'!$F:$F,"S",'JP SC Raw Data'!$B:$B,"2015/16",'JP SC Raw Data'!$A:$A,$B$3))) -> 1721 | K10: =IF($B$3="Fort William", SUMIFS('JP SC Raw Data'!$H:$H,'JP SC Raw Data'!$C:$C,"Q3",'JP SC Raw Data'!$F:$F,"S",'JP SC Raw Data'!$B:$B,"2015/16",'JP SC Raw Data'!$E:$E,$B$3), IF(IFERROR(FIND(" ",$B$3),"")="",SUMIFS('JP SC Raw Data'!$H:$H,'JP SC Raw Data'!$C:$C,"Q3",'JP SC Raw Data'!$F:$F,"S",'JP SC Raw Data'!$B:$B,"2015/16",'JP SC Raw Data'!$E:$E,$B$3),SUMIFS('JP SC Raw Data'!$H:$H,'JP SC Raw Data'!$C:$C,"Q3",'JP SC Raw Data'!$F:$F,"S",'JP SC Raw Data'!$B:$B,"2015/16",'JP SC Raw Data'!$A:$A,$B$3))) -> 1559 | L10: =IF($B$3="Fort William", SUMIFS('JP SC Raw Data'!$H:$H,'JP SC Raw Data'!$C:$C,"Q4",'JP SC Raw Data'!$F:$F,"S",'JP SC Raw Data'!$B:$B,"2015/16",'JP SC Raw Data'!$E:$E,$B$3), IF(IFERROR(FIND(" ",$B$3),"")="",SUMIFS('JP SC Raw Data'!$H:$H,'JP SC Raw Data'!$C:$C,"Q4",'JP SC Raw Data'!$F:$F,"S",'JP SC Raw Data'!$B:$B,"2015/16",'JP SC Raw Data'!$E:$E,$B$3),SUMIFS('JP SC Raw Data'!$H:$H,'JP SC Raw Data'!$C:$C,"Q4",'JP SC Raw Data'!$F:$F,"S",'JP SC Raw Data'!$B:$B,"2015/16",'JP SC Raw Data'!$A:$A,$B$3))) -> 1529 | M10: =SUM(I10:L10) -> 6461 | N10: =IF($B$3="Fort William", SUMIFS('JP SC Raw Data'!$H:$H,'JP SC Raw Data'!$C:$C,"Q1",'JP SC Raw Data'!$F:$F,"S",'JP SC Raw Data'!$B:$B,"2016/17",'JP SC Raw Data'!$E:$E,$B$3), IF(IFERROR(FIND(" ",$B$3),"")="",SUMIFS('JP SC Raw Data'!$H:$H,'JP SC Raw Data'!$C:$C,"Q1",'JP SC Raw Data'!$F:$F,"S",'JP SC Raw Data'!$B:$B,"2016/17",'JP SC Raw Data'!$E:$E,$B$3),SUMIFS('JP SC Raw Data'!$H:$H,'JP SC Raw Data'!$C:$C,"Q1",'JP SC Raw Data'!$F:$F,"S",'JP SC Raw Data'!$B:$B,"2016/17",'JP SC Raw Data'!$A:$A,$B$3))) -> 1498 | O10: =IF($B$3="Fort William", SUMIFS('JP SC Raw Data'!$H:$H,'JP SC Raw Data'!$C:$C,"Q2",'JP SC Raw Data'!$F:$F,"S",'JP SC Raw Data'!$B:$B,"2016/17",'JP SC Raw Data'!$E:$E,$B$3), IF(IFERROR(FIND(" ",$B$3),"")="",SUMIFS('JP SC Raw Data'!$H:$H,'JP SC Raw Data'!$C:$C,"Q2",'JP SC Raw Data'!$F:$F,"S",'JP SC Raw Data'!$B:$B,"2016/17",'JP SC Raw Data'!$E:$E,$B$3),SUMIFS('JP SC Raw Data'!$H:$H,'JP SC Raw Data'!$C:$C,"Q2",'JP SC Raw Data'!$F:$F,"S",'JP SC Raw Data'!$B:$B,"2016/17",'JP SC Raw Data'!$A:$A,$B$3))) -> 1482 | P10: =IF($B$3="Fort William", SUMIFS('JP SC Raw Data'!$H:$H,'JP SC Raw Data'!$C:$C,"Q3",'JP SC Raw Data'!$F:$F,"S",'JP SC Raw Data'!$B:$B,"2016/17",'JP SC Raw Data'!$E:$E,$B$3), IF(IFERROR(FIND(" ",$B$3),"")="",SUMIFS('JP SC Raw Data'!$H:$H,'JP SC Raw Data'!$C:$C,"Q3",'JP SC Raw Data'!$F:$F,"S",'JP SC Raw Data'!$B:$B,"2016/17",'JP SC Raw Data'!$E:$E,$B$3),SUMIFS('JP SC Raw Data'!$H:$H,'JP SC Raw Data'!$C:$C,"Q3",'JP SC Raw Data'!$F:$F,"S",'JP SC Raw Data'!$B:$B,"2016/17",'JP SC Raw Data'!$A:$A,$B$3))) -> 1504 | Q10: =IF($B$3="Fort William", SUMIFS('JP SC Raw Data'!$H:$H,'JP SC Raw Data'!$C:$C,"Q4",'JP SC Raw Data'!$F:$F,"S",'JP SC Raw Data'!$B:$B,"2016/17",'JP SC Raw Data'!$E:$E,$B$3), IF(IFERROR(FIND(" ",$B$3),"")="",SUMIFS('JP SC Raw Data'!$H:$H,'JP SC Raw Data'!$C:$C,"Q4",'JP SC Raw Data'!$F:$F,"S",'JP SC Raw Data'!$B:$B,"2016/17",'JP SC Raw Data'!$E:$E,$B$3),SUMIFS('JP SC Raw Data'!$H:$H,'JP SC Raw Data'!$C:$C,"Q4",'JP SC Raw Data'!$F:$F,"S",'JP SC Raw Data'!$B:$B,"2016/17",'JP SC Raw Data'!$A:$A,$B$3))) -> 1415 | R10: =SUM(N10:Q10) -> 5899 | S10: =IF($B$3="Fort William", SUMIFS('JP SC Raw Data'!$H:$H,'JP SC Raw Data'!$C:$C,"Q1",'JP SC Raw Data'!$F:$F,"S",'JP SC Raw Data'!$B:$B,"2017/18",'JP SC Raw Data'!$E:$E,$B$3), IF(IFERROR(FIND(" ",$B$3),"")="",SUMIFS('JP SC Raw Data'!$H:$H,'JP SC Raw Data'!$C:$C,"Q1",'JP SC Raw Data'!$F:$F,"S",'JP SC Raw Data'!$B:$B,"2017/18",'JP SC Raw Data'!$E:$E,$B$3),SUMIFS('JP SC Raw Data'!$H:$H,'JP SC Raw Data'!$C:$C,"Q1",'JP SC Raw Data'!$F:$F,"S",'JP SC Raw Data'!$B:$B,"2017/18",'JP SC Raw Data'!$A:$A,$B$3))) -> 1391 | T10: =IF($B$3="Fort William", SUMIFS('JP SC Raw Data'!$H:$H,'JP SC Raw Data'!$C:$C,"Q2",'JP SC Raw Data'!$F:$F,"S",'JP SC Raw Data'!$B:$B,"2017/18",'JP SC Raw Data'!$E:$E,$B$3), IF(IFERROR(FIND(" ",$B$3),"")="",SUMIFS('JP SC Raw Data'!$H:$H,'JP SC Raw Data'!$C:$C,"Q2",'JP SC Raw Data'!$F:$F,"S",'JP SC Raw Data'!$B:$B,"2017/18",'JP SC Raw Data'!$E:$E,$B$3),SUMIFS('JP SC Raw Data'!$H:$H,'JP SC Raw Data'!$C:$C,"Q2",'JP SC Raw Data'!$F:$F,"S",'JP SC Raw Data'!$B:$B,"2017/18",'JP SC Raw Data'!$A:$A,$B$3))) -> 1217 | U10: =IF($B$3="Fort William", SUMIFS('JP SC Raw Data'!$H:$H,'JP SC Raw Data'!$C:$C,"Q3",'JP SC Raw Data'!$F:$F,"S",'JP SC Raw Data'!$B:$B,"2017/18",'JP SC Raw Data'!$E:$E,$B$3), IF(IFERROR(FIND(" ",$B$3),"")="",SUMIFS('JP SC Raw Data'!$H:$H,'JP SC Raw Data'!$C:$C,"Q3",'JP SC Raw Data'!$F:$F,"S",'JP SC Raw Data'!$B:$B,"2017/18",'JP SC Raw Data'!$E:$E,$B$3),SUMIFS('JP SC Raw Data'!$H:$H,'JP SC Raw Data'!$C:$C,"Q3",'JP SC Raw Data'!$F:$F,"S",'JP SC Raw Data'!$B:$B,"2017/18",'JP SC Raw Data'!$A:$A,$B$3))) -> 1171 | V10: =IF($B$3="Fort William", SUMIFS('JP SC Raw Data'!$H:$H,'JP SC Raw Data'!$C:$C,"Q4",'JP SC Raw Data'!$F:$F,"S",'JP SC Raw Data'!$B:$B,"2017/18",'JP SC Raw Data'!$E:$E,$B$3), IF(IFERROR(FIND(" ",$B$3),"")="",SUMIFS('JP SC Raw Data'!$H:$H,'JP SC Raw Data'!$C:$C,"Q4",'JP SC Raw Data'!$F:$F,"S",'JP SC Raw Data'!$B:$B,"2017/18",'JP SC Raw Data'!$E:$E,$B$3),SUMIFS('JP SC Raw Data'!$H:$H,'JP SC Raw Data'!$C:$C,"Q4",'JP SC Raw Data'!$F:$F,"S",'JP SC Raw Data'!$B:$B,"2017/18",'JP SC Raw Data'!$A:$A,$B$3))) -> 1200 | W10: =SUM(S10:V10) -> 4979 | X10: =IF($B$3="Fort William", SUMIFS('JP SC Raw Data'!$H:$H,'JP SC Raw Data'!$C:$C,"Q1",'JP SC Raw Data'!$F:$F,"S",'JP SC Raw Data'!$B:$B,"2018/19",'JP SC Raw Data'!$E:$E,$B$3), IF(IFERROR(FIND(" ",$B$3),"")="",SUMIFS('JP SC Raw Data'!$H:$H,'JP SC Raw Data'!$C:$C,"Q1",'JP SC Raw Data'!$F:$F,"S",'JP SC Raw Data'!$B:$B,"2018/19",'JP SC Raw Data'!$E:$E,$B$3),SUMIFS('JP SC Raw Data'!$H:$H,'JP SC Raw Data'!$C:$C,"Q1",'JP SC Raw Data'!$F:$F,"S",'JP SC Raw Data'!$B:$B,"2018/19",'JP SC Raw Data'!$A:$A,$B$3))) -> 1309 | Y10: =IF($B$3="Fort William", SUMIFS('JP SC Raw Data'!$H:$H,'JP SC Raw Data'!$C:$C,"Q2",'JP SC Raw Data'!$F:$F,"S",'JP SC Raw Data'!$B:$B,"2018/19",'JP SC Raw Data'!$E:$E,$B$3), IF(IFERROR(FIND(" ",$B$3),"")="",SUMIFS('JP SC Raw Data'!$H:$H,'JP SC Raw Data'!$C:$C,"Q2",'JP SC Raw Data'!$F:$F,"S",'JP SC Raw Data'!$B:$B,"2018/19",'JP SC Raw Data'!$E:$E,$B$3),SUMIFS('JP SC Raw Data'!$H:$H,'JP SC Raw Data'!$C:$C,"Q2",'JP SC Raw Data'!$F:$F,"S",'JP SC Raw Data'!$B:$B,"2018/19",'JP SC Raw Data'!$A:$A,$B$3))) -> 1264 | Z10: =IF($B$3="Fort William", SUMIFS('JP SC Raw Data'!$H:$H,'JP SC Raw Data'!$C:$C,"Q3",'JP SC Raw Data'!$F:$F,"S",'JP SC Raw Data'!$B:$B,"2018/19",'JP SC Raw Data'!$E:$E,$B$3), IF(IFERROR(FIND(" ",$B$3),"")="",SUMIFS('JP SC Raw Data'!$H:$H,'JP SC Raw Data'!$C:$C,"Q3",'JP SC Raw Data'!$F:$F,"S",'JP SC Raw Data'!$B:$B,"2018/19",'JP SC Raw Data'!$E:$E,$B$3),SUMIFS('JP SC Raw Data'!$H:$H,'JP SC Raw Data'!$C:$C,"Q3",'JP SC Raw Data'!$F:$F,"S",'JP SC Raw Data'!$B:$B,"2018/19",'JP SC Raw Data'!$A:$A,$B$3))) -> 1276 | AA10: =IF($B$3="Fort William", SUMIFS('JP SC Raw Data'!$H:$H,'JP SC Raw Data'!$C:$C,"Q4",'JP SC Raw Data'!$F:$F,"S",'JP SC Raw Data'!$B:$B,"2018/19",'JP SC Raw Data'!$E:$E,$B$3), IF(IFERROR(FIND(" ",$B$3),"")="",SUMIFS('JP SC Raw Data'!$H:$H,'JP SC Raw Data'!$C:$C,"Q4",'JP SC Raw Data'!$F:$F,"S",'JP SC Raw Data'!$B:$B,"2018/19",'JP SC Raw Data'!$E:$E,$B$3),SUMIFS('JP SC Raw Data'!$H:$H,'JP SC Raw Data'!$C:$C,"Q4",'JP SC Raw Data'!$F:$F,"S",'JP SC Raw Data'!$B:$B,"2018/19",'JP SC Raw Data'!$A:$A,$B$3))) -> 1333 | AB10: =SUM(X10:AA10) -> 5182 | AC10: =IF($B$3="Fort William", SUMIFS('JP SC Raw Data'!$H:$H,'JP SC Raw Data'!$C:$C,"Q1",'JP SC Raw Data'!$F:$F,"S",'JP SC Raw Data'!$B:$B,"2019/20",'JP SC Raw Data'!$E:$E,$B$3), IF(IFERROR(FIND(" ",$B$3),"")="",SUMIFS('JP SC Raw Data'!$H:$H,'JP SC Raw Data'!$C:$C,"Q1",'JP SC Raw Data'!$F:$F,"S",'JP SC Raw Data'!$B:$B,"2019/20",'JP SC Raw Data'!$E:$E,$B$3),SUMIFS('JP SC Raw Data'!$H:$H,'JP SC Raw Data'!$C:$C,"Q1",'JP SC Raw Data'!$F:$F,"S",'JP SC Raw Data'!$B:$B,"2019/20",'JP SC Raw Data'!$A:$A,$B$3))) -> 1385 | AD10: =IF($B$3="Fort William", SUMIFS('JP SC Raw Data'!$H:$H,'JP SC Raw Data'!$C:$C,"Q2",'JP SC Raw Data'!$F:$F,"S",'JP SC Raw Data'!$B:$B,"2019/20",'JP SC Raw Data'!$E:$E,$B$3), IF(IFERROR(FIND(" ",$B$3),"")="",SUMIFS('JP SC Raw Data'!$H:$H,'JP SC Raw Data'!$C:$C,"Q2",'JP SC Raw Data'!$F:$F,"S",'JP SC Raw Data'!$B:$B,"2019/20",'JP SC Raw Data'!$E:$E,$B$3),SUMIFS('JP SC Raw Data'!$H:$H,'JP SC Raw Data'!$C:$C,"Q2",'JP SC Raw Data'!$F:$F,"S",'JP SC Raw Data'!$B:$B,"2019/20",'JP SC Raw Data'!$A:$A,$B$3))) -> 1327 | AE10: =IF($B$3="Fort William", SUMIFS('JP SC Raw Data'!$H:$H,'JP SC Raw Data'!$C:$C,"Q3",'JP SC Raw Data'!$F:$F,"S",'JP SC Raw Data'!$B:$B,"2019/20",'JP SC Raw Data'!$E:$E,$B$3), IF(IFERROR(FIND(" ",$B$3),"")="",SUMIFS('JP SC Raw Data'!$H:$H,'JP SC Raw Data'!$C:$C,"Q3",'JP SC Raw Data'!$F:$F,"S",'JP SC Raw Data'!$B:$B,"2019/20",'JP SC Raw Data'!$E:$E,$B$3),SUMIFS('JP SC Raw Data'!$H:$H,'JP SC Raw Data'!$C:$C,"Q3",'JP SC Raw Data'!$F:$F,"S",'JP SC Raw Data'!$B:$B,"2019/20",'JP SC Raw Data'!$A:$A,$B$3))) -> 1438 | AF10: =IF($B$3="Fort William", SUMIFS('JP SC Raw Data'!$H:$H,'JP SC Raw Data'!$C:$C,"Q4",'JP SC Raw Data'!$F:$F,"S",'JP SC Raw Data'!$B:$B,"2019/20",'JP SC Raw Data'!$E:$E,$B$3), IF(IFERROR(FIND(" ",$B$3),"")="",SUMIFS('JP SC Raw Data'!$H:$H,'JP SC Raw Data'!$C:$C,"Q4",'JP SC Raw Data'!$F:$F,"S",'JP SC Raw Data'!$B:$B,"2019/20",'JP SC Raw Data'!$E:$E,$B$3),SUMIFS('JP SC Raw Data'!$H:$H,'JP SC Raw Data'!$C:$C,"Q4",'JP SC Raw Data'!$F:$F,"S",'JP SC Raw Data'!$B:$B,"2019/20",'JP SC Raw Data'!$A:$A,$B$3))) -> 1302 | AG10: =SUM(AC10:AF10) -> 5452 | AH10: =IF($B$3="Fort William", SUMIFS('JP SC Raw Data'!$H:$H,'JP SC Raw Data'!$C:$C,"Q1",'JP SC Raw Data'!$F:$F,"S",'JP SC Raw Data'!$B:$B,"2020/21",'JP SC Raw Data'!$E:$E,$B$3), IF(IFERROR(FIND(" ",$B$3),"")="",SUMIFS('JP SC Raw Data'!$H:$H,'JP SC Raw Data'!$C:$C,"Q1",'JP SC Raw Data'!$F:$F,"S",'JP SC Raw Data'!$B:$B,"2020/21",'JP SC Raw Data'!$E:$E,$B$3),SUMIFS('JP SC Raw Data'!$H:$H,'JP SC Raw Data'!$C:$C,"Q1",'JP SC Raw Data'!$F:$F,"S",'JP SC Raw Data'!$B:$B,"2020/21",'JP SC Raw Data'!$A:$A,$B$3))) -> 893 | AI10: =IF($B$3="Fort William", SUMIFS('JP SC Raw Data'!$H:$H,'JP SC Raw Data'!$C:$C,"Q2",'JP SC Raw Data'!$F:$F,"S",'JP SC Raw Data'!$B:$B,"2020/21",'JP SC Raw Data'!$E:$E,$B$3), IF(IFERROR(FIND(" ",$B$3),"")="",SUMIFS('JP SC Raw Data'!$H:$H,'JP SC Raw Data'!$C:$C,"Q2",'JP SC Raw Data'!$F:$F,"S",'JP SC Raw Data'!$B:$B,"2020/21",'JP SC Raw Data'!$E:$E,$B$3),SUMIFS('JP SC Raw Data'!$H:$H,'JP SC Raw Data'!$C:$C,"Q2",'JP SC Raw Data'!$F:$F,"S",'JP SC Raw Data'!$B:$B,"2020/21",'JP SC Raw Data'!$A:$A,$B$3))) -> 1457 | AJ10: =IF($B$3="Fort William", SUMIFS('JP SC Raw Data'!$H:$H,'JP SC Raw Data'!$C:$C,"Q3",'JP SC Raw Data'!$F:$F,"S",'JP SC Raw Data'!$B:$B,"2020/21",'JP SC Raw Data'!$E:$E,$B$3), IF(IFERROR(FIND(" ",$B$3),"")="",SUMIFS('JP SC Raw Data'!$H:$H,'JP SC Raw Data'!$C:$C,"Q3",'JP SC Raw Data'!$F:$F,"S",'JP SC Raw Data'!$B:$B,"2020/21",'JP SC Raw Data'!$E:$E,$B$3),SUMIFS('JP SC Raw Data'!$H:$H,'JP SC Raw Data'!$C:$C,"Q3",'JP SC Raw Data'!$F:$F,"S",'JP SC Raw Data'!$B:$B,"2020/21",'JP SC Raw Data'!$A:$A,$B$3))) -> 1334 | AK10: =IF($B$3="Fort William", SUMIFS('JP SC Raw Data'!$H:$H,'JP SC Raw Data'!$C:$C,"Q4",'JP SC Raw Data'!$F:$F,"S",'JP SC Raw Data'!$B:$B,"2020/21",'JP SC Raw Data'!$E:$E,$B$3), IF(IFERROR(FIND(" ",$B$3),"")="",SUMIFS('JP SC Raw Data'!$H:$H,'JP SC Raw Data'!$C:$C,"Q4",'JP SC Raw Data'!$F:$F,"S",'JP SC Raw Data'!$B:$B,"2020/21",'JP SC Raw Data'!$E:$E,$B$3),SUMIFS('JP SC Raw Data'!$H:$H,'JP SC Raw Data'!$C:$C,"Q4",'JP SC Raw Data'!$F:$F,"S",'JP SC Raw Data'!$B:$B,"2020/21",'JP SC Raw Data'!$A:$A,$B$3))) -> 1167 | AL10: =SUM(AH10:AK10) -> 4851 | AM10: =IF($B$3="Fort William", SUMIFS('JP SC Raw Data'!$H:$H,'JP SC Raw Data'!$C:$C,"Q1",'JP SC Raw Data'!$F:$F,"S",'JP SC Raw Data'!$B:$B,"2021/22",'JP SC Raw Data'!$E:$E,$B$3), IF(IFERROR(FIND(" ",$B$3),"")="",SUMIFS('JP SC Raw Data'!$H:$H,'JP SC Raw Data'!$C:$C,"Q1",'JP SC Raw Data'!$F:$F,"S",'JP SC Raw Data'!$B:$B,"2021/22",'JP SC Raw Data'!$E:$E,$B$3),SUMIFS('JP SC Raw Data'!$H:$H,'JP SC Raw Data'!$C:$C,"Q1",'JP SC Raw Data'!$F:$F,"S",'JP SC Raw Data'!$B:$B,"2021/22",'JP SC Raw Data'!$A:$A,$B$3))) -> 1444 | AN10: =IF($B$3="Fort William", SUMIFS('JP SC Raw Data'!$H:$H,'JP SC Raw Data'!$C:$C,"Q2",'JP SC Raw Data'!$F:$F,"S",'JP SC Raw Data'!$B:$B,"2021/22",'JP SC Raw Data'!$E:$E,$B$3), IF(IFERROR(FIND(" ",$B$3),"")="",SUMIFS('JP SC Raw Data'!$H:$H,'JP SC Raw Data'!$C:$C,"Q2",'JP SC Raw Data'!$F:$F,"S",'JP SC Raw Data'!$B:$B,"2021/22",'JP SC Raw Data'!$E:$E,$B$3),SUMIFS('JP SC Raw Data'!$H:$H,'JP SC Raw Data'!$C:$C,"Q2",'JP SC Raw Data'!$F:$F,"S",'JP SC Raw Data'!$B:$B,"2021/22",'JP SC Raw Data'!$A:$A,$B$3))) -> 1448 | AO10: =IF($B$3="Fort William", SUMIFS('JP SC Raw Data'!$H:$H,'JP SC Raw Data'!$C:$C,"Q3",'JP SC Raw Data'!$F:$F,"S",'JP SC Raw Data'!$B:$B,"2021/22",'JP SC Raw Data'!$E:$E,$B$3), IF(IFERROR(FIND(" ",$B$3),"")="",SUMIFS('JP SC Raw Data'!$H:$H,'JP SC Raw Data'!$C:$C,"Q3",'JP SC Raw Data'!$F:$F,"S",'JP SC Raw Data'!$B:$B,"2021/22",'JP SC Raw Data'!$E:$E,$B$3),SUMIFS('JP SC Raw Data'!$H:$H,'JP SC Raw Data'!$C:$C,"Q3",'JP SC Raw Data'!$F:$F,"S",'JP SC Raw Data'!$B:$B,"2021/22",'JP SC Raw Data'!$A:$A,$B$3))) -> 1470 | AP10: =IF($B$3="Fort William", SUMIFS('JP SC Raw Data'!$H:$H,'JP SC Raw Data'!$C:$C,"Q4",'JP SC Raw Data'!$F:$F,"S",'JP SC Raw Data'!$B:$B,"2021/22",'JP SC Raw Data'!$E:$E,$B$3), IF(IFERROR(FIND(" ",$B$3),"")="",SUMIFS('JP SC Raw Data'!$H:$H,'JP SC Raw Data'!$C:$C,"Q4",'JP SC Raw Data'!$F:$F,"S",'JP SC Raw Data'!$B:$B,"2021/22",'JP SC Raw Data'!$E:$E,$B$3),SUMIFS('JP SC Raw Data'!$H:$H,'JP SC Raw Data'!$C:$C,"Q4",'JP SC Raw Data'!$F:$F,"S",'JP SC Raw Data'!$B:$B,"2021/22",'JP SC Raw Data'!$A:$A,$B$3))) -> 1397 | AQ10: =SUM(AM10:AP10) -> 5759
B11: Indictments called at First Diet | D11: =IF($B$3="Fort William", SUMIFS('JP SC Raw Data'!$I:$I,'JP SC Raw Data'!$C:$C,"Q1",'JP SC Raw Data'!$F:$F,"S",'JP SC Raw Data'!$B:$B,"2014/15",'JP SC Raw Data'!$E:$E,$B$3), IF(IFERROR(FIND(" ",$B$3),"")="",SUMIFS('JP SC Raw Data'!$I:$I,'JP SC Raw Data'!$C:$C,"Q1",'JP SC Raw Data'!$F:$F,"S",'JP SC Raw Data'!$B:$B,"2014/15",'JP SC Raw Data'!$E:$E,$B$3),SUMIFS('JP SC Raw Data'!$I:$I,'JP SC Raw Data'!$C:$C,"Q1",'JP SC Raw Data'!$F:$F,"S",'JP SC Raw Data'!$B:$B,"2014/15",'JP SC Raw Data'!$A:$A,$B$3))) -> 2201 | E11: =IF($B$3="Fort William", SUMIFS('JP SC Raw Data'!$I:$I,'JP SC Raw Data'!$C:$C,"Q2",'JP SC Raw Data'!$F:$F,"S",'JP SC Raw Data'!$B:$B,"2014/15",'JP SC Raw Data'!$E:$E,$B$3), IF(IFERROR(FIND(" ",$B$3),"")="",SUMIFS('JP SC Raw Data'!$I:$I,'JP SC Raw Data'!$C:$C,"Q2",'JP SC Raw Data'!$F:$F,"S",'JP SC Raw Data'!$B:$B,"2014/15",'JP SC Raw Data'!$E:$E,$B$3),SUMIFS('JP SC Raw Data'!$I:$I,'JP SC Raw Data'!$C:$C,"Q2",'JP SC Raw Data'!$F:$F,"S",'JP SC Raw Data'!$B:$B,"2014/15",'JP SC Raw Data'!$A:$A,$B$3))) -> 2282 | F11: =IF($B$3="Fort William", SUMIFS('JP SC Raw Data'!$I:$I,'JP SC Raw Data'!$C:$C,"Q3",'JP SC Raw Data'!$F:$F,"S",'JP SC Raw Data'!$B:$B,"2014/15",'JP SC Raw Data'!$E:$E,$B$3), IF(IFERROR(FIND(" ",$B$3),"")="",SUMIFS('JP SC Raw Data'!$I:$I,'JP SC Raw Data'!$C:$C,"Q3",'JP SC Raw Data'!$F:$F,"S",'JP SC Raw Data'!$B:$B,"2014/15",'JP SC Raw Data'!$E:$E,$B$3),SUMIFS('JP SC Raw Data'!$I:$I,'JP SC Raw Data'!$C:$C,"Q3",'JP SC Raw Data'!$F:$F,"S",'JP SC Raw Data'!$B:$B,"2014/15",'JP SC Raw Data'!$A:$A,$B$3))) -> 2137 | G11: =IF($B$3="Fort William", SUMIFS('JP SC Raw Data'!$I:$I,'JP SC Raw Data'!$C:$C,"Q4",'JP SC Raw Data'!$F:$F,"S",'JP SC Raw Data'!$B:$B,"2014/15",'JP SC Raw Data'!$E:$E,$B$3), IF(IFERROR(FIND(" ",$B$3),"")="",SUMIFS('JP SC Raw Data'!$I:$I,'JP SC Raw Data'!$C:$C,"Q4",'JP SC Raw Data'!$F:$F,"S",'JP SC Raw Data'!$B:$B,"2014/15",'JP SC Raw Data'!$E:$E,$B$3),SUMIFS('JP SC Raw Data'!$I:$I,'JP SC Raw Data'!$C:$C,"Q4",'JP SC Raw Data'!$F:$F,"S",'JP SC Raw Data'!$B:$B,"2014/15",'JP SC Raw Data'!$A:$A,$B$3))) -> 2434 | H11: 9054 | I11: =IF($B$3="Fort William", SUMIFS('JP SC Raw Data'!$I:$I,'JP SC Raw Data'!$C:$C,"Q1",'JP SC Raw Data'!$F:$F,"S",'JP SC Raw Data'!$B:$B,"2015/16",'JP SC Raw Data'!$E:$E,$B$3), IF(IFERROR(FIND(" ",$B$3),"")="",SUMIFS('JP SC Raw Data'!$I:$I,'JP SC Raw Data'!$C:$C,"Q1",'JP SC Raw Data'!$F:$F,"S",'JP SC Raw Data'!$B:$B,"2015/16",'JP SC Raw Data'!$E:$E,$B$3),SUMIFS('JP SC Raw Data'!$I:$I,'JP SC Raw Data'!$C:$C,"Q1",'JP SC Raw Data'!$F:$F,"S",'JP SC Raw Data'!$B:$B,"2015/16",'JP SC Raw Data'!$A:$A,$B$3))) -> 2339 | J11: =IF($B$3="Fort William", SUMIFS('JP SC Raw Data'!$I:$I,'JP SC Raw Data'!$C:$C,"Q2",'JP SC Raw Data'!$F:$F,"S",'JP SC Raw Data'!$B:$B,"2015/16",'JP SC Raw Data'!$E:$E,$B$3), IF(IFERROR(FIND(" ",$B$3),"")="",SUMIFS('JP SC Raw Data'!$I:$I,'JP SC Raw Data'!$C:$C,"Q2",'JP SC Raw Data'!$F:$F,"S",'JP SC Raw Data'!$B:$B,"2015/16",'JP SC Raw Data'!$E:$E,$B$3),SUMIFS('JP SC Raw Data'!$I:$I,'JP SC Raw Data'!$C:$C,"Q2",'JP SC Raw Data'!$F:$F,"S",'JP SC Raw Data'!$B:$B,"2015/16",'JP SC Raw Data'!$A:$A,$B$3))) -> 2447 | K11: =IF($B$3="Fort William", SUMIFS('JP SC Raw Data'!$I:$I,'JP SC Raw Data'!$C:$C,"Q3",'JP SC Raw Data'!$F:$F,"S",'JP SC Raw Data'!$B:$B,"2015/16",'JP SC Raw Data'!$E:$E,$B$3), IF(IFERROR(FIND(" ",$B$3),"")="",SUMIFS('JP SC Raw Data'!$I:$I,'JP SC Raw Data'!$C:$C,"Q3",'JP SC Raw Data'!$F:$F,"S",'JP SC Raw Data'!$B:$B,"2015/16",'JP SC Raw Data'!$E:$E,$B$3),SUMIFS('JP SC Raw Data'!$I:$I,'JP SC Raw Data'!$C:$C,"Q3",'JP SC Raw Data'!$F:$F,"S",'JP SC Raw Data'!$B:$B,"2015/16",'JP SC Raw Data'!$A:$A,$B$3))) -> 2005 | L11: =IF($B$3="Fort William", SUMIFS('JP SC Raw Data'!$I:$I,'JP SC Raw Data'!$C:$C,"Q4",'JP SC Raw Data'!$F:$F,"S",'JP SC Raw Data'!$B:$B,"2015/16",'JP SC Raw Data'!$E:$E,$B$3), IF(IFERROR(FIND(" ",$B$3),"")="",SUMIFS('JP SC Raw Data'!$I:$I,'JP SC Raw Data'!$C:$C,"Q4",'JP SC Raw Data'!$F:$F,"S",'JP SC Raw Data'!$B:$B,"2015/16",'JP SC Raw Data'!$E:$E,$B$3),SUMIFS('JP SC Raw Data'!$I:$I,'JP SC Raw Data'!$C:$C,"Q4",'JP SC Raw Data'!$F:$F,"S",'JP SC Raw Data'!$B:$B,"2015/16",'JP SC Raw Data'!$A:$A,$B$3))) -> 1981 | M11: 8772 | N11: =IF($B$3="Fort William", SUMIFS('JP SC Raw Data'!$I:$I,'JP SC Raw Data'!$C:$C,"Q1",'JP SC Raw Data'!$F:$F,"S",'JP SC Raw Data'!$B:$B,"2016/17",'JP SC Raw Data'!$E:$E,$B$3), IF(IFERROR(FIND(" ",$B$3),"")="",SUMIFS('JP SC Raw Data'!$I:$I,'JP SC Raw Data'!$C:$C,"Q1",'JP SC Raw Data'!$F:$F,"S",'JP SC Raw Data'!$B:$B,"2016/17",'JP SC Raw Data'!$E:$E,$B$3),SUMIFS('JP SC Raw Data'!$I:$I,'JP SC Raw Data'!$C:$C,"Q1",'JP SC Raw Data'!$F:$F,"S",'JP SC Raw Data'!$B:$B,"2016/17",'JP SC Raw Data'!$A:$A,$B$3))) -> 1764 | O11: =IF($B$3="Fort William", SUMIFS('JP SC Raw Data'!$I:$I,'JP SC Raw Data'!$C:$C,"Q2",'JP SC Raw Data'!$F:$F,"S",'JP SC Raw Data'!$B:$B,"2016/17",'JP SC Raw Data'!$E:$E,$B$3), IF(IFERROR(FIND(" ",$B$3),"")="",SUMIFS('JP SC Raw Data'!$I:$I,'JP SC Raw Data'!$C:$C,"Q2",'JP SC Raw Data'!$F:$F,"S",'JP SC Raw Data'!$B:$B,"2016/17",'JP SC Raw Data'!$E:$E,$B$3),SUMIFS('JP SC Raw Data'!$I:$I,'JP SC Raw Data'!$C:$C,"Q2",'JP SC Raw Data'!$F:$F,"S",'JP SC Raw Data'!$B:$B,"2016/17",'JP SC Raw Data'!$A:$A,$B$3))) -> 1919 | P11: =IF($B$3="Fort William", SUMIFS('JP SC Raw Data'!$I:$I,'JP SC Raw Data'!$C:$C,"Q3",'JP SC Raw Data'!$F:$F,"S",'JP SC Raw Data'!$B:$B,"2016/17",'JP SC Raw Data'!$E:$E,$B$3), IF(IFERROR(FIND(" ",$B$3),"")="",SUMIFS('JP SC Raw Data'!$I:$I,'JP SC Raw Data'!$C:$C,"Q3",'JP SC Raw Data'!$F:$F,"S",'JP SC Raw Data'!$B:$B,"2016/17",'JP SC Raw Data'!$E:$E,$B$3),SUMIFS('JP SC Raw Data'!$I:$I,'JP SC Raw Data'!$C:$C,"Q3",'JP SC Raw Data'!$F:$F,"S",'JP SC Raw Data'!$B:$B,"2016/17",'JP SC Raw Data'!$A:$A,$B$3))) -> 1659 | Q11: =IF($B$3="Fort William", SUMIFS('JP SC Raw Data'!$I:$I,'JP SC Raw Data'!$C:$C,"Q4",'JP SC Raw Data'!$F:$F,"S",'JP SC Raw Data'!$B:$B,"2016/17",'JP SC Raw Data'!$E:$E,$B$3), IF(IFERROR(FIND(" ",$B$3),"")="",SUMIFS('JP SC Raw Data'!$I:$I,'JP SC Raw Data'!$C:$C,"Q4",'JP SC Raw Data'!$F:$F,"S",'JP SC Raw Data'!$B:$B,"2016/17",'JP SC Raw Data'!$E:$E,$B$3),SUMIFS('JP SC Raw Data'!$I:$I,'JP SC Raw Data'!$C:$C,"Q4",'JP SC Raw Data'!$F:$F,"S",'JP SC Raw Data'!$B:$B,"2016/17",'JP SC Raw Data'!$A:$A,$B$3))) -> 1705 | R11: 7047 | S11: =IF($B$3="Fort William", SUMIFS('JP SC Raw Data'!$I:$I,'JP SC Raw Data'!$C:$C,"Q1",'JP SC Raw Data'!$F:$F,"S",'JP SC Raw Data'!$B:$B,"2017/18",'JP SC Raw Data'!$E:$E,$B$3), IF(IFERROR(FIND(" ",$B$3),"")="",SUMIFS('JP SC Raw Data'!$I:$I,'JP SC Raw Data'!$C:$C,"Q1",'JP SC Raw Data'!$F:$F,"S",'JP SC Raw Data'!$B:$B,"2017/18",'JP SC Raw Data'!$E:$E,$B$3),SUMIFS('JP SC Raw Data'!$I:$I,'JP SC Raw Data'!$C:$C,"Q1",'JP SC Raw Data'!$F:$F,"S",'JP SC Raw Data'!$B:$B,"2017/18",'JP SC Raw Data'!$A:$A,$B$3))) -> 1530 | T11: =IF($B$3="Fort William", SUMIFS('JP SC Raw Data'!$I:$I,'JP SC Raw Data'!$C:$C,"Q2",'JP SC Raw Data'!$F:$F,"S",'JP SC Raw Data'!$B:$B,"2017/18",'JP SC Raw Data'!$E:$E,$B$3), IF(IFERROR(FIND(" ",$B$3),"")="",SUMIFS('JP SC Raw Data'!$I:$I,'JP SC Raw Data'!$C:$C,"Q2",'JP SC Raw Data'!$F:$F,"S",'JP SC Raw Data'!$B:$B,"2017/18",'JP SC Raw Data'!$E:$E,$B$3),SUMIFS('JP SC Raw Data'!$I:$I,'JP SC Raw Data'!$C:$C,"Q2",'JP SC Raw Data'!$F:$F,"S",'JP SC Raw Data'!$B:$B,"2017/18",'JP SC Raw Data'!$A:$A,$B$3))) -> 1279 | U11: =IF($B$3="Fort William", SUMIFS('JP SC Raw Data'!$I:$I,'JP SC Raw Data'!$C:$C,"Q3",'JP SC Raw Data'!$F:$F,"S",'JP SC Raw Data'!$B:$B,"2017/18",'JP SC Raw Data'!$E:$E,$B$3), IF(IFERROR(FIND(" ",$B$3),"")="",SUMIFS('JP SC Raw Data'!$I:$I,'JP SC Raw Data'!$C:$C,"Q3",'JP SC Raw Data'!$F:$F,"S",'JP SC Raw Data'!$B:$B,"2017/18",'JP SC Raw Data'!$E:$E,$B$3),SUMIFS('JP SC Raw Data'!$I:$I,'JP SC Raw Data'!$C:$C,"Q3",'JP SC Raw Data'!$F:$F,"S",'JP SC Raw Data'!$B:$B,"2017/18",'JP SC Raw Data'!$A:$A,$B$3))) -> 1094 | V11: =IF($B$3="Fort William", SUMIFS('JP SC Raw Data'!$I:$I,'JP SC Raw Data'!$C:$C,"Q4",'JP SC Raw Data'!$F:$F,"S",'JP SC Raw Data'!$B:$B,"2017/18",'JP SC Raw Data'!$E:$E,$B$3), IF(IFERROR(FIND(" ",$B$3),"")="",SUMIFS('JP SC Raw Data'!$I:$I,'JP SC Raw Data'!$C:$C,"Q4",'JP SC Raw Data'!$F:$F,"S",'JP SC Raw Data'!$B:$B,"2017/18",'JP SC Raw Data'!$E:$E,$B$3),SUMIFS('JP SC Raw Data'!$I:$I,'JP SC Raw Data'!$C:$C,"Q4",'JP SC Raw Data'!$F:$F,"S",'JP SC Raw Data'!$B:$B,"2017/18",'JP SC Raw Data'!$A:$A,$B$3))) -> 1019 | W11: 4922 | X11: =IF($B$3="Fort William", SUMIFS('JP SC Raw Data'!$I:$I,'JP SC Raw Data'!$C:$C,"Q1",'JP SC Raw Data'!$F:$F,"S",'JP SC Raw Data'!$B:$B,"2018/19",'JP SC Raw Data'!$E:$E,$B$3), IF(IFERROR(FIND(" ",$B$3),"")="",SUMIFS('JP SC Raw Data'!$I:$I,'JP SC Raw Data'!$C:$C,"Q1",'JP SC Raw Data'!$F:$F,"S",'JP SC Raw Data'!$B:$B,"2018/19",'JP SC Raw Data'!$E:$E,$B$3),SUMIFS('JP SC Raw Data'!$I:$I,'JP SC Raw Data'!$C:$C,"Q1",'JP SC Raw Data'!$F:$F,"S",'JP SC Raw Data'!$B:$B,"2018/19",'JP SC Raw Data'!$A:$A,$B$3))) -> 1153 | Y11: =IF($B$3="Fort William", SUMIFS('JP SC Raw Data'!$I:$I,'JP SC Raw Data'!$C:$C,"Q2",'JP SC Raw Data'!$F:$F,"S",'JP SC Raw Data'!$B:$B,"2018/19",'JP SC Raw Data'!$E:$E,$B$3), IF(IFERROR(FIND(" ",$B$3),"")="",SUMIFS('JP SC Raw Data'!$I:$I,'JP SC Raw Data'!$C:$C,"Q2",'JP SC Raw Data'!$F:$F,"S",'JP SC Raw Data'!$B:$B,"2018/19",'JP SC Raw Data'!$E:$E,$B$3),SUMIFS('JP SC Raw Data'!$I:$I,'JP SC Raw Data'!$C:$C,"Q2",'JP SC Raw Data'!$F:$F,"S",'JP SC Raw Data'!$B:$B,"2018/19",'JP SC Raw Data'!$A:$A,$B$3))) -> 1162 | Z11: =IF($B$3="Fort William", SUMIFS('JP SC Raw Data'!$I:$I,'JP SC Raw Data'!$C:$C,"Q3",'JP SC Raw Data'!$F:$F,"S",'JP SC Raw Data'!$B:$B,"2018/19",'JP SC Raw Data'!$E:$E,$B$3), IF(IFERROR(FIND(" ",$B$3),"")="",SUMIFS('JP SC Raw Data'!$I:$I,'JP SC Raw Data'!$C:$C,"Q3",'JP SC Raw Data'!$F:$F,"S",'JP SC Raw Data'!$B:$B,"2018/19",'JP SC Raw Data'!$E:$E,$B$3),SUMIFS('JP SC Raw Data'!$I:$I,'JP SC Raw Data'!$C:$C,"Q3",'JP SC Raw Data'!$F:$F,"S",'JP SC Raw Data'!$B:$B,"2018/19",'JP SC Raw Data'!$A:$A,$B$3))) -> 1074 | AA11: =IF($B$3="Fort William", SUMIFS('JP SC Raw Data'!$I:$I,'JP SC Raw Data'!$C:$C,"Q4",'JP SC Raw Data'!$F:$F,"S",'JP SC Raw Data'!$B:$B,"2018/19",'JP SC Raw Data'!$E:$E,$B$3), IF(IFERROR(FIND(" ",$B$3),"")="",SUMIFS('JP SC Raw Data'!$I:$I,'JP SC Raw Data'!$C:$C,"Q4",'JP SC Raw Data'!$F:$F,"S",'JP SC Raw Data'!$B:$B,"2018/19",'JP SC Raw Data'!$E:$E,$B$3),SUMIFS('JP SC Raw Data'!$I:$I,'JP SC Raw Data'!$C:$C,"Q4",'JP SC Raw Data'!$F:$F,"S",'JP SC Raw Data'!$B:$B,"2018/19",'JP SC Raw Data'!$A:$A,$B$3))) -> 1176 | AB11: 4565 | AC11: =IF($B$3="Fort William", SUMIFS('JP SC Raw Data'!$I:$I,'JP SC Raw Data'!$C:$C,"Q1",'JP SC Raw Data'!$F:$F,"S",'JP SC Raw Data'!$B:$B,"2019/20",'JP SC Raw Data'!$E:$E,$B$3), IF(IFERROR(FIND(" ",$B$3),"")="",SUMIFS('JP SC Raw Data'!$I:$I,'JP SC Raw Data'!$C:$C,"Q1",'JP SC Raw Data'!$F:$F,"S",'JP SC Raw Data'!$B:$B,"2019/20",'JP SC Raw Data'!$E:$E,$B$3),SUMIFS('JP SC Raw Data'!$I:$I,'JP SC Raw Data'!$C:$C,"Q1",'JP SC Raw Data'!$F:$F,"S",'JP SC Raw Data'!$B:$B,"2019/20",'JP SC Raw Data'!$A:$A,$B$3))) -> 1241 | AD11: =IF($B$3="Fort William", SUMIFS('JP SC Raw Data'!$I:$I,'JP SC Raw Data'!$C:$C,"Q2",'JP SC Raw Data'!$F:$F,"S",'JP SC Raw Data'!$B:$B,"2019/20",'JP SC Raw Data'!$E:$E,$B$3), IF(IFERROR(FIND(" ",$B$3),"")="",SUMIFS('JP SC Raw Data'!$I:$I,'JP SC Raw Data'!$C:$C,"Q2",'JP SC Raw Data'!$F:$F,"S",'JP SC Raw Data'!$B:$B,"2019/20",'JP SC Raw Data'!$E:$E,$B$3),SUMIFS('JP SC Raw Data'!$I:$I,'JP SC Raw Data'!$C:$C,"Q2",'JP SC Raw Data'!$F:$F,"S",'JP SC Raw Data'!$B:$B,"2019/20",'JP SC Raw Data'!$A:$A,$B$3))) -> 1288 | AE11: =IF($B$3="Fort William", SUMIFS('JP SC Raw Data'!$I:$I,'JP SC Raw Data'!$C:$C,"Q3",'JP SC Raw Data'!$F:$F,"S",'JP SC Raw Data'!$B:$B,"2019/20",'JP SC Raw Data'!$E:$E,$B$3), IF(IFERROR(FIND(" ",$B$3),"")="",SUMIFS('JP SC Raw Data'!$I:$I,'JP SC Raw Data'!$C:$C,"Q3",'JP SC Raw Data'!$F:$F,"S",'JP SC Raw Data'!$B:$B,"2019/20",'JP SC Raw Data'!$E:$E,$B$3),SUMIFS('JP SC Raw Data'!$I:$I,'JP SC Raw Data'!$C:$C,"Q3",'JP SC Raw Data'!$F:$F,"S",'JP SC Raw Data'!$B:$B,"2019/20",'JP SC Raw Data'!$A:$A,$B$3))) -> 1188 | AF11: =IF($B$3="Fort William", SUMIFS('JP SC Raw Data'!$I:$I,'JP SC Raw Data'!$C:$C,"Q4",'JP SC Raw Data'!$F:$F,"S",'JP SC Raw Data'!$B:$B,"2019/20",'JP SC Raw Data'!$E:$E,$B$3), IF(IFERROR(FIND(" ",$B$3),"")="",SUMIFS('JP SC Raw Data'!$I:$I,'JP SC Raw Data'!$C:$C,"Q4",'JP SC Raw Data'!$F:$F,"S",'JP SC Raw Data'!$B:$B,"2019/20",'JP SC Raw Data'!$E:$E,$B$3),SUMIFS('JP SC Raw Data'!$I:$I,'JP SC Raw Data'!$C:$C,"Q4",'JP SC Raw Data'!$F:$F,"S",'JP SC Raw Data'!$B:$B,"2019/20",'JP SC Raw Data'!$A:$A,$B$3))) -> 1397 | AG11: 5114 | AH11: =IF($B$3="Fort William", SUMIFS('JP SC Raw Data'!$I:$I,'JP SC Raw Data'!$C:$C,"Q1",'JP SC Raw Data'!$F:$F,"S",'JP SC Raw Data'!$B:$B,"2020/21",'JP SC Raw Data'!$E:$E,$B$3), IF(IFERROR(FIND(" ",$B$3),"")="",SUMIFS('JP SC Raw Data'!$I:$I,'JP SC Raw Data'!$C:$C,"Q1",'JP SC Raw Data'!$F:$F,"S",'JP SC Raw Data'!$B:$B,"2020/21",'JP SC Raw Data'!$E:$E,$B$3),SUMIFS('JP SC Raw Data'!$I:$I,'JP SC Raw Data'!$C:$C,"Q1",'JP SC Raw Data'!$F:$F,"S",'JP SC Raw Data'!$B:$B,"2020/21",'JP SC Raw Data'!$A:$A,$B$3))) -> 767 | AI11: =IF($B$3="Fort William", SUMIFS('JP SC Raw Data'!$I:$I,'JP SC Raw Data'!$C:$C,"Q2",'JP SC Raw Data'!$F:$F,"S",'JP SC Raw Data'!$B:$B,"2020/21",'JP SC Raw Data'!$E:$E,$B$3), IF(IFERROR(FIND(" ",$B$3),"")="",SUMIFS('JP SC Raw Data'!$I:$I,'JP SC Raw Data'!$C:$C,"Q2",'JP SC Raw Data'!$F:$F,"S",'JP SC Raw Data'!$B:$B,"2020/21",'JP SC Raw Data'!$E:$E,$B$3),SUMIFS('JP SC Raw Data'!$I:$I,'JP SC Raw Data'!$C:$C,"Q2",'JP SC Raw Data'!$F:$F,"S",'JP SC Raw Data'!$B:$B,"2020/21",'JP SC Raw Data'!$A:$A,$B$3))) -> 1201 | AJ11: =IF($B$3="Fort William", SUMIFS('JP SC Raw Data'!$I:$I,'JP SC Raw Data'!$C:$C,"Q3",'JP SC Raw Data'!$F:$F,"S",'JP SC Raw Data'!$B:$B,"2020/21",'JP SC Raw Data'!$E:$E,$B$3), IF(IFERROR(FIND(" ",$B$3),"")="",SUMIFS('JP SC Raw Data'!$I:$I,'JP SC Raw Data'!$C:$C,"Q3",'JP SC Raw Data'!$F:$F,"S",'JP SC Raw Data'!$B:$B,"2020/21",'JP SC Raw Data'!$E:$E,$B$3),SUMIFS('JP SC Raw Data'!$I:$I,'JP SC Raw Data'!$C:$C,"Q3",'JP SC Raw Data'!$F:$F,"S",'JP SC Raw Data'!$B:$B,"2020/21",'JP SC Raw Data'!$A:$A,$B$3))) -> 1324 | AK11: =IF($B$3="Fort William", SUMIFS('JP SC Raw Data'!$I:$I,'JP SC Raw Data'!$C:$C,"Q4",'JP SC Raw Data'!$F:$F,"S",'JP SC Raw Data'!$B:$B,"2020/21",'JP SC Raw Data'!$E:$E,$B$3), IF(IFERROR(FIND(" ",$B$3),"")="",SUMIFS('JP SC Raw Data'!$I:$I,'JP SC Raw Data'!$C:$C,"Q4",'JP SC Raw Data'!$F:$F,"S",'JP SC Raw Data'!$B:$B,"2020/21",'JP SC Raw Data'!$E:$E,$B$3),SUMIFS('JP SC Raw Data'!$I:$I,'JP SC Raw Data'!$C:$C,"Q4",'JP SC Raw Data'!$F:$F,"S",'JP SC Raw Data'!$B:$B,"2020/21",'JP SC Raw Data'!$A:$A,$B$3))) -> 1303 | AL11: 4595 | AM11: =IF($B$3="Fort William", SUMIFS('JP SC Raw Data'!$I:$I,'JP SC Raw Data'!$C:$C,"Q1",'JP SC Raw Data'!$F:$F,"S",'JP SC Raw Data'!$B:$B,"2021/22",'JP SC Raw Data'!$E:$E,$B$3), IF(IFERROR(FIND(" ",$B$3),"")="",SUMIFS('JP SC Raw Data'!$I:$I,'JP SC Raw Data'!$C:$C,"Q1",'JP SC Raw Data'!$F:$F,"S",'JP SC Raw Data'!$B:$B,"2021/22",'JP SC Raw Data'!$E:$E,$B$3),SUMIFS('JP SC Raw Data'!$I:$I,'JP SC Raw Data'!$C:$C,"Q1",'JP SC Raw Data'!$F:$F,"S",'JP SC Raw Data'!$B:$B,"2021/22",'JP SC Raw Data'!$A:$A,$B$3))) -> 1371 | AN11: =IF($B$3="Fort William", SUMIFS('JP SC Raw Data'!$I:$I,'JP SC Raw Data'!$C:$C,"Q2",'JP SC Raw Data'!$F:$F,"S",'JP SC Raw Data'!$B:$B,"2021/22",'JP SC Raw Data'!$E:$E,$B$3), IF(IFERROR(FIND(" ",$B$3),"")="",SUMIFS('JP SC Raw Data'!$I:$I,'JP SC Raw Data'!$C:$C,"Q2",'JP SC Raw Data'!$F:$F,"S",'JP SC Raw Data'!$B:$B,"2021/22",'JP SC Raw Data'!$E:$E,$B$3),SUMIFS('JP SC Raw Data'!$I:$I,'JP SC Raw Data'!$C:$C,"Q2",'JP SC Raw Data'!$F:$F,"S",'JP SC Raw Data'!$B:$B,"2021/22",'JP SC Raw Data'!$A:$A,$B$3))) -> 1372 | AO11: =IF($B$3="Fort William", SUMIFS('JP SC Raw Data'!$I:$I,'JP SC Raw Data'!$C:$C,"Q3",'JP SC Raw Data'!$F:$F,"S",'JP SC Raw Data'!$B:$B,"2021/22",'JP SC Raw Data'!$E:$E,$B$3), IF(IFERROR(FIND(" ",$B$3),"")="",SUMIFS('JP SC Raw Data'!$I:$I,'JP SC Raw Data'!$C:$C,"Q3",'JP SC Raw Data'!$F:$F,"S",'JP SC Raw Data'!$B:$B,"2021/22",'JP SC Raw Data'!$E:$E,$B$3),SUMIFS('JP SC Raw Data'!$I:$I,'JP SC Raw Data'!$C:$C,"Q3",'JP SC Raw Data'!$F:$F,"S",'JP SC Raw Data'!$B:$B,"2021/22",'JP SC Raw Data'!$A:$A,$B$3))) -> 1365 | AP11: =IF($B$3="Fort William", SUMIFS('JP SC Raw Data'!$I:$I,'JP SC Raw Data'!$C:$C,"Q4",'JP SC Raw Data'!$F:$F,"S",'JP SC Raw Data'!$B:$B,"2021/22",'JP SC Raw Data'!$E:$E,$B$3), IF(IFERROR(FIND(" ",$B$3),"")="",SUMIFS('JP SC Raw Data'!$I:$I,'JP SC Raw Data'!$C:$C,"Q4",'JP SC Raw Data'!$F:$F,"S",'JP SC Raw Data'!$B:$B,"2021/22",'JP SC Raw Data'!$E:$E,$B$3),SUMIFS('JP SC Raw Data'!$I:$I,'JP SC Raw Data'!$C:$C,"Q4",'JP SC Raw Data'!$F:$F,"S",'JP SC Raw Data'!$B:$B,"2021/22",'JP SC Raw Data'!$A:$A,$B$3))) -> 1525 | AQ11: 5633
B12: Indictments called at Continued First Diet | D12: =IF($B$3="Fort William", SUMIFS('JP SC Raw Data'!$J:$J,'JP SC Raw Data'!$C:$C,"Q1",'JP SC Raw Data'!$F:$F,"S",'JP SC Raw Data'!$B:$B,"2014/15",'JP SC Raw Data'!$E:$E,$B$3), IF(IFERROR(FIND(" ",$B$3),"")="",SUMIFS('JP SC Raw Data'!$J:$J,'JP SC Raw Data'!$C:$C,"Q1",'JP SC Raw Data'!$F:$F,"S",'JP SC Raw Data'!$B:$B,"2014/15",'JP SC Raw Data'!$E:$E,$B$3),SUMIFS('JP SC Raw Data'!$J:$J,'JP SC Raw Data'!$C:$C,"Q1",'JP SC Raw Data'!$F:$F,"S",'JP SC Raw Data'!$B:$B,"2014/15",'JP SC Raw Data'!$A:$A,$B$3))) -> 1275 | E12: =IF($B$3="Fort William", SUMIFS('JP SC Raw Data'!$J:$J,'JP SC Raw Data'!$C:$C,"Q2",'JP SC Raw Data'!$F:$F,"S",'JP SC Raw Data'!$B:$B,"2014/15",'JP SC Raw Data'!$E:$E,$B$3), IF(IFERROR(FIND(" ",$B$3),"")="",SUMIFS('JP SC Raw Data'!$J:$J,'JP SC Raw Data'!$C:$C,"Q2",'JP SC Raw Data'!$F:$F,"S",'JP SC Raw Data'!$B:$B,"2014/15",'JP SC Raw Data'!$E:$E,$B$3),SUMIFS('JP SC Raw Data'!$J:$J,'JP SC Raw Data'!$C:$C,"Q2",'JP SC Raw Data'!$F:$F,"S",'JP SC Raw Data'!$B:$B,"2014/15",'JP SC Raw Data'!$A:$A,$B$3))) -> 1289 | F12: =IF($B$3="Fort William", SUMIFS('JP SC Raw Data'!$J:$J,'JP SC Raw Data'!$C:$C,"Q3",'JP SC Raw Data'!$F:$F,"S",'JP SC Raw Data'!$B:$B,"2014/15",'JP SC Raw Data'!$E:$E,$B$3), IF(IFERROR(FIND(" ",$B$3),"")="",SUMIFS('JP SC Raw Data'!$J:$J,'JP SC Raw Data'!$C:$C,"Q3",'JP SC Raw Data'!$F:$F,"S",'JP SC Raw Data'!$B:$B,"2014/15",'JP SC Raw Data'!$E:$E,$B$3),SUMIFS('JP SC Raw Data'!$J:$J,'JP SC Raw Data'!$C:$C,"Q3",'JP SC Raw Data'!$F:$F,"S",'JP SC Raw Data'!$B:$B,"2014/15",'JP SC Raw Data'!$A:$A,$B$3))) -> 1140 | G12: =IF($B$3="Fort William", SUMIFS('JP SC Raw Data'!$J:$J,'JP SC Raw Data'!$C:$C,"Q4",'JP SC Raw Data'!$F:$F,"S",'JP SC Raw Data'!$B:$B,"2014/15",'JP SC Raw Data'!$E:$E,$B$3), IF(IFERROR(FIND(" ",$B$3),"")="",SUMIFS('JP SC Raw Data'!$J:$J,'JP SC Raw Data'!$C:$C,"Q4",'JP SC Raw Data'!$F:$F,"S",'JP SC Raw Data'!$B:$B,"2014/15",'JP SC Raw Data'!$E:$E,$B$3),SUMIFS('JP SC Raw Data'!$J:$J,'JP SC Raw Data'!$C:$C,"Q4",'JP SC Raw Data'!$F:$F,"S",'JP SC Raw Data'!$B:$B,"2014/15",'JP SC Raw Data'!$A:$A,$B$3))) -> 1280 | H12: 4984 | I12: =IF($B$3="Fort William", SUMIFS('JP SC Raw Data'!$J:$J,'JP SC Raw Data'!$C:$C,"Q1",'JP SC Raw Data'!$F:$F,"S",'JP SC Raw Data'!$B:$B,"2015/16",'JP SC Raw Data'!$E:$E,$B$3), IF(IFERROR(FIND(" ",$B$3),"")="",SUMIFS('JP SC Raw Data'!$J:$J,'JP SC Raw Data'!$C:$C,"Q1",'JP SC Raw Data'!$F:$F,"S",'JP SC Raw Data'!$B:$B,"2015/16",'JP SC Raw Data'!$E:$E,$B$3),SUMIFS('JP SC Raw Data'!$J:$J,'JP SC Raw Data'!$C:$C,"Q1",'JP SC Raw Data'!$F:$F,"S",'JP SC Raw Data'!$B:$B,"2015/16",'JP SC Raw Data'!$A:$A,$B$3))) -> 1246 | J12: =IF($B$3="Fort William", SUMIFS('JP SC Raw Data'!$J:$J,'JP SC Raw Data'!$C:$C,"Q2",'JP SC Raw Data'!$F:$F,"S",'JP SC Raw Data'!$B:$B,"2015/16",'JP SC Raw Data'!$E:$E,$B$3), IF(IFERROR(FIND(" ",$B$3),"")="",SUMIFS('JP SC Raw Data'!$J:$J,'JP SC Raw Data'!$C:$C,"Q2",'JP SC Raw Data'!$F:$F,"S",'JP SC Raw Data'!$B:$B,"2015/16",'JP SC Raw Data'!$E:$E,$B$3),SUMIFS('JP SC Raw Data'!$J:$J,'JP SC Raw Data'!$C:$C,"Q2",'JP SC Raw Data'!$F:$F,"S",'JP SC Raw Data'!$B:$B,"2015/16",'JP SC Raw Data'!$A:$A,$B$3))) -> 1151 | K12: =IF($B$3="Fort William", SUMIFS('JP SC Raw Data'!$J:$J,'JP SC Raw Data'!$C:$C,"Q3",'JP SC Raw Data'!$F:$F,"S",'JP SC Raw Data'!$B:$B,"2015/16",'JP SC Raw Data'!$E:$E,$B$3), IF(IFERROR(FIND(" ",$B$3),"")="",SUMIFS('JP SC Raw Data'!$J:$J,'JP SC Raw Data'!$C:$C,"Q3",'JP SC Raw Data'!$F:$F,"S",'JP SC Raw Data'!$B:$B,"2015/16",'JP SC Raw Data'!$E:$E,$B$3),SUMIFS('JP SC Raw Data'!$J:$J,'JP SC Raw Data'!$C:$C,"Q3",'JP SC Raw Data'!$F:$F,"S",'JP SC Raw Data'!$B:$B,"2015/16",'JP SC Raw Data'!$A:$A,$B$3))) -> 935 | L12: =IF($B$3="Fort William", SUMIFS('JP SC Raw Data'!$J:$J,'JP SC Raw Data'!$C:$C,"Q4",'JP SC Raw Data'!$F:$F,"S",'JP SC Raw Data'!$B:$B,"2015/16",'JP SC Raw Data'!$E:$E,$B$3), IF(IFERROR(FIND(" ",$B$3),"")="",SUMIFS('JP SC Raw Data'!$J:$J,'JP SC Raw Data'!$C:$C,"Q4",'JP SC Raw Data'!$F:$F,"S",'JP SC Raw Data'!$B:$B,"2015/16",'JP SC Raw Data'!$E:$E,$B$3),SUMIFS('JP SC Raw Data'!$J:$J,'JP SC Raw Data'!$C:$C,"Q4",'JP SC Raw Data'!$F:$F,"S",'JP SC Raw Data'!$B:$B,"2015/16",'JP SC Raw Data'!$A:$A,$B$3))) -> 666 | M12: 3998 | N12: =IF($B$3="Fort William", SUMIFS('JP SC Raw Data'!$J:$J,'JP SC Raw Data'!$C:$C,"Q1",'JP SC Raw Data'!$F:$F,"S",'JP SC Raw Data'!$B:$B,"2016/17",'JP SC Raw Data'!$E:$E,$B$3), IF(IFERROR(FIND(" ",$B$3),"")="",SUMIFS('JP SC Raw Data'!$J:$J,'JP SC Raw Data'!$C:$C,"Q1",'JP SC Raw Data'!$F:$F,"S",'JP SC Raw Data'!$B:$B,"2016/17",'JP SC Raw Data'!$E:$E,$B$3),SUMIFS('JP SC Raw Data'!$J:$J,'JP SC Raw Data'!$C:$C,"Q1",'JP SC Raw Data'!$F:$F,"S",'JP SC Raw Data'!$B:$B,"2016/17",'JP SC Raw Data'!$A:$A,$B$3))) -> 653 | O12: =IF($B$3="Fort William", SUMIFS('JP SC Raw Data'!$J:$J,'JP SC Raw Data'!$C:$C,"Q2",'JP SC Raw Data'!$F:$F,"S",'JP SC Raw Data'!$B:$B,"2016/17",'JP SC Raw Data'!$E:$E,$B$3), IF(IFERROR(FIND(" ",$B$3),"")="",SUMIFS('JP SC Raw Data'!$J:$J,'JP SC Raw Data'!$C:$C,"Q2",'JP SC Raw Data'!$F:$F,"S",'JP SC Raw Data'!$B:$B,"2016/17",'JP SC Raw Data'!$E:$E,$B$3),SUMIFS('JP SC Raw Data'!$J:$J,'JP SC Raw Data'!$C:$C,"Q2",'JP SC Raw Data'!$F:$F,"S",'JP SC Raw Data'!$B:$B,"2016/17",'JP SC Raw Data'!$A:$A,$B$3))) -> 719 | P12: =IF($B$3="Fort William", SUMIFS('JP SC Raw Data'!$J:$J,'JP SC Raw Data'!$C:$C,"Q3",'JP SC Raw Data'!$F:$F,"S",'JP SC Raw Data'!$B:$B,"2016/17",'JP SC Raw Data'!$E:$E,$B$3), IF(IFERROR(FIND(" ",$B$3),"")="",SUMIFS('JP SC Raw Data'!$J:$J,'JP SC Raw Data'!$C:$C,"Q3",'JP SC Raw Data'!$F:$F,"S",'JP SC Raw Data'!$B:$B,"2016/17",'JP SC Raw Data'!$E:$E,$B$3),SUMIFS('JP SC Raw Data'!$J:$J,'JP SC Raw Data'!$C:$C,"Q3",'JP SC Raw Data'!$F:$F,"S",'JP SC Raw Data'!$B:$B,"2016/17",'JP SC Raw Data'!$A:$A,$B$3))) -> 578 | Q12: =IF($B$3="Fort William", SUMIFS('JP SC Raw Data'!$J:$J,'JP SC Raw Data'!$C:$C,"Q4",'JP SC Raw Data'!$F:$F,"S",'JP SC Raw Data'!$B:$B,"2016/17",'JP SC Raw Data'!$E:$E,$B$3), IF(IFERROR(FIND(" ",$B$3),"")="",SUMIFS('JP SC Raw Data'!$J:$J,'JP SC Raw Data'!$C:$C,"Q4",'JP SC Raw Data'!$F:$F,"S",'JP SC Raw Data'!$B:$B,"2016/17",'JP SC Raw Data'!$E:$E,$B$3),SUMIFS('JP SC Raw Data'!$J:$J,'JP SC Raw Data'!$C:$C,"Q4",'JP SC Raw Data'!$F:$F,"S",'JP SC Raw Data'!$B:$B,"2016/17",'JP SC Raw Data'!$A:$A,$B$3))) -> 645 | R12: 2595 | S12: =IF($B$3="Fort William", SUMIFS('JP SC Raw Data'!$J:$J,'JP SC Raw Data'!$C:$C,"Q1",'JP SC Raw Data'!$F:$F,"S",'JP SC Raw Data'!$B:$B,"2017/18",'JP SC Raw Data'!$E:$E,$B$3), IF(IFERROR(FIND(" ",$B$3),"")="",SUMIFS('JP SC Raw Data'!$J:$J,'JP SC Raw Data'!$C:$C,"Q1",'JP SC Raw Data'!$F:$F,"S",'JP SC Raw Data'!$B:$B,"2017/18",'JP SC Raw Data'!$E:$E,$B$3),SUMIFS('JP SC Raw Data'!$J:$J,'JP SC Raw Data'!$C:$C,"Q1",'JP SC Raw Data'!$F:$F,"S",'JP SC Raw Data'!$B:$B,"2017/18",'JP SC Raw Data'!$A:$A,$B$3))) -> 573 | T12: =IF($B$3="Fort William", SUMIFS('JP SC Raw Data'!$J:$J,'JP SC Raw Data'!$C:$C,"Q2",'JP SC Raw Data'!$F:$F,"S",'JP SC Raw Data'!$B:$B,"2017/18",'JP SC Raw Data'!$E:$E,$B$3), IF(IFERROR(FIND(" ",$B$3),"")="",SUMIFS('JP SC Raw Data'!$J:$J,'JP SC Raw Data'!$C:$C,"Q2",'JP SC Raw Data'!$F:$F,"S",'JP SC Raw Data'!$B:$B,"2017/18",'JP SC Raw Data'!$E:$E,$B$3),SUMIFS('JP SC Raw Data'!$J:$J,'JP SC Raw Data'!$C:$C,"Q2",'JP SC Raw Data'!$F:$F,"S",'JP SC Raw Data'!$B:$B,"2017/18",'JP SC Raw Data'!$A:$A,$B$3))) -> 571 | U12: =IF($B$3="Fort William", SUMIFS('JP SC Raw Data'!$J:$J,'JP SC Raw Data'!$C:$C,"Q3",'JP SC Raw Data'!$F:$F,"S",'JP SC Raw Data'!$B:$B,"2017/18",'JP SC Raw Data'!$E:$E,$B$3), IF(IFERROR(FIND(" ",$B$3),"")="",SUMIFS('JP SC Raw Data'!$J:$J,'JP SC Raw Data'!$C:$C,"Q3",'JP SC Raw Data'!$F:$F,"S",'JP SC Raw Data'!$B:$B,"2017/18",'JP SC Raw Data'!$E:$E,$B$3),SUMIFS('JP SC Raw Data'!$J:$J,'JP SC Raw Data'!$C:$C,"Q3",'JP SC Raw Data'!$F:$F,"S",'JP SC Raw Data'!$B:$B,"2017/18",'JP SC Raw Data'!$A:$A,$B$3))) -> 520 | V12: =IF($B$3="Fort William", SUMIFS('JP SC Raw Data'!$J:$J,'JP SC Raw Data'!$C:$C,"Q4",'JP SC Raw Data'!$F:$F,"S",'JP SC Raw Data'!$B:$B,"2017/18",'JP SC Raw Data'!$E:$E,$B$3), IF(IFERROR(FIND(" ",$B$3),"")="",SUMIFS('JP SC Raw Data'!$J:$J,'JP SC Raw Data'!$C:$C,"Q4",'JP SC Raw Data'!$F:$F,"S",'JP SC Raw Data'!$B:$B,"2017/18",'JP SC Raw Data'!$E:$E,$B$3),SUMIFS('JP SC Raw Data'!$J:$J,'JP SC Raw Data'!$C:$C,"Q4",'JP SC Raw Data'!$F:$F,"S",'JP SC Raw Data'!$B:$B,"2017/18",'JP SC Raw Data'!$A:$A,$B$3))) -> 756 | W12: 2420 | X12: =IF($B$3="Fort William", SUMIFS('JP SC Raw Data'!$J:$J,'JP SC Raw Data'!$C:$C,"Q1",'JP SC Raw Data'!$F:$F,"S",'JP SC Raw Data'!$B:$B,"2018/19",'JP SC Raw Data'!$E:$E,$B$3), IF(IFERROR(FIND(" ",$B$3),"")="",SUMIFS('JP SC Raw Data'!$J:$J,'JP SC Raw Data'!$C:$C,"Q1",'JP SC Raw Data'!$F:$F,"S",'JP SC Raw Data'!$B:$B,"2018/19",'JP SC Raw Data'!$E:$E,$B$3),SUMIFS('JP SC Raw Data'!$J:$J,'JP SC Raw Data'!$C:$C,"Q1",'JP SC Raw Data'!$F:$F,"S",'JP SC Raw Data'!$B:$B,"2018/19",'JP SC Raw Data'!$A:$A,$B$3))) -> 676 | Y12: =IF($B$3="Fort William", SUMIFS('JP SC Raw Data'!$J:$J,'JP SC Raw Data'!$C:$C,"Q2",'JP SC Raw Data'!$F:$F,"S",'JP SC Raw Data'!$B:$B,"2018/19",'JP SC Raw Data'!$E:$E,$B$3), IF(IFERROR(FIND(" ",$B$3),"")="",SUMIFS('JP SC Raw Data'!$J:$J,'JP SC Raw Data'!$C:$C,"Q2",'JP SC Raw Data'!$F:$F,"S",'JP SC Raw Data'!$B:$B,"2018/19",'JP SC Raw Data'!$E:$E,$B$3),SUMIFS('JP SC Raw Data'!$J:$J,'JP SC Raw Data'!$C:$C,"Q2",'JP SC Raw Data'!$F:$F,"S",'JP SC Raw Data'!$B:$B,"2018/19",'JP SC Raw Data'!$A:$A,$B$3))) -> 655 | Z12: =IF($B$3="Fort William", SUMIFS('JP SC Raw Data'!$J:$J,'JP SC Raw Data'!$C:$C,"Q3",'JP SC Raw Data'!$F:$F,"S",'JP SC Raw Data'!$B:$B,"2018/19",'JP SC Raw Data'!$E:$E,$B$3), IF(IFERROR(FIND(" ",$B$3),"")="",SUMIFS('JP SC Raw Data'!$J:$J,'JP SC Raw Data'!$C:$C,"Q3",'JP SC Raw Data'!$F:$F,"S",'JP SC Raw Data'!$B:$B,"2018/19",'JP SC Raw Data'!$E:$E,$B$3),SUMIFS('JP SC Raw Data'!$J:$J,'JP SC Raw Data'!$C:$C,"Q3",'JP SC Raw Data'!$F:$F,"S",'JP SC Raw Data'!$B:$B,"2018/19",'JP SC Raw Data'!$A:$A,$B$3))) -> 609 | AA12: =IF($B$3="Fort William", SUMIFS('JP SC Raw Data'!$J:$J,'JP SC Raw Data'!$C:$C,"Q4",'JP SC Raw Data'!$F:$F,"S",'JP SC Raw Data'!$B:$B,"2018/19",'JP SC Raw Data'!$E:$E,$B$3), IF(IFERROR(FIND(" ",$B$3),"")="",SUMIFS('JP SC Raw Data'!$J:$J,'JP SC Raw Data'!$C:$C,"Q4",'JP SC Raw Data'!$F:$F,"S",'JP SC Raw Data'!$B:$B,"2018/19",'JP SC Raw Data'!$E:$E,$B$3),SUMIFS('JP SC Raw Data'!$J:$J,'JP SC Raw Data'!$C:$C,"Q4",'JP SC Raw Data'!$F:$F,"S",'JP SC Raw Data'!$B:$B,"2018/19",'JP SC Raw Data'!$A:$A,$B$3))) -> 682 | AB12: 2622 | AC12: =IF($B$3="Fort William", SUMIFS('JP SC Raw Data'!$J:$J,'JP SC Raw Data'!$C:$C,"Q1",'JP SC Raw Data'!$F:$F,"S",'JP SC Raw Data'!$B:$B,"2019/20",'JP SC Raw Data'!$E:$E,$B$3), IF(IFERROR(FIND(" ",$B$3),"")="",SUMIFS('JP SC Raw Data'!$J:$J,'JP SC Raw Data'!$C:$C,"Q1",'JP SC Raw Data'!$F:$F,"S",'JP SC Raw Data'!$B:$B,"2019/20",'JP SC Raw Data'!$E:$E,$B$3),SUMIFS('JP SC Raw Data'!$J:$J,'JP SC Raw Data'!$C:$C,"Q1",'JP SC Raw Data'!$F:$F,"S",'JP SC Raw Data'!$B:$B,"2019/20",'JP SC Raw Data'!$A:$A,$B$3))) -> 699 | AD12: =IF($B$3="Fort William", SUMIFS('JP SC Raw Data'!$J:$J,'JP SC Raw Data'!$C:$C,"Q2",'JP SC Raw Data'!$F:$F,"S",'JP SC Raw Data'!$B:$B,"2019/20",'JP SC Raw Data'!$E:$E,$B$3), IF(IFERROR(FIND(" ",$B$3),"")="",SUMIFS('JP SC Raw Data'!$J:$J,'JP SC Raw Data'!$C:$C,"Q2",'JP SC Raw Data'!$F:$F,"S",'JP SC Raw Data'!$B:$B,"2019/20",'JP SC Raw Data'!$E:$E,$B$3),SUMIFS('JP SC Raw Data'!$J:$J,'JP SC Raw Data'!$C:$C,"Q2",'JP SC Raw Data'!$F:$F,"S",'JP SC Raw Data'!$B:$B,"2019/20",'JP SC Raw Data'!$A:$A,$B$3))) -> 773 | AE12: =IF($B$3="Fort William", SUMIFS('JP SC Raw Data'!$J:$J,'JP SC Raw Data'!$C:$C,"Q3",'JP SC Raw Data'!$F:$F,"S",'JP SC Raw Data'!$B:$B,"2019/20",'JP SC Raw Data'!$E:$E,$B$3), IF(IFERROR(FIND(" ",$B$3),"")="",SUMIFS('JP SC Raw Data'!$J:$J,'JP SC Raw Data'!$C:$C,"Q3",'JP SC Raw Data'!$F:$F,"S",'JP SC Raw Data'!$B:$B,"2019/20",'JP SC Raw Data'!$E:$E,$B$3),SUMIFS('JP SC Raw Data'!$J:$J,'JP SC Raw Data'!$C:$C,"Q3",'JP SC Raw Data'!$F:$F,"S",'JP SC Raw Data'!$B:$B,"2019/20",'JP SC Raw Data'!$A:$A,$B$3))) -> 720 | AF12: =IF($B$3="Fort William", SUMIFS('JP SC Raw Data'!$J:$J,'JP SC Raw Data'!$C:$C,"Q4",'JP SC Raw Data'!$F:$F,"S",'JP SC Raw Data'!$B:$B,"2019/20",'JP SC Raw Data'!$E:$E,$B$3), IF(IFERROR(FIND(" ",$B$3),"")="",SUMIFS('JP SC Raw Data'!$J:$J,'JP SC Raw Data'!$C:$C,"Q4",'JP SC Raw Data'!$F:$F,"S",'JP SC Raw Data'!$B:$B,"2019/20",'JP SC Raw Data'!$E:$E,$B$3),SUMIFS('JP SC Raw Data'!$J:$J,'JP SC Raw Data'!$C:$C,"Q4",'JP SC Raw Data'!$F:$F,"S",'JP SC Raw Data'!$B:$B,"2019/20",'JP SC Raw Data'!$A:$A,$B$3))) -> 771 | AG12: 2963 | AH12: =IF($B$3="Fort William", SUMIFS('JP SC Raw Data'!$J:$J,'JP SC Raw Data'!$C:$C,"Q1",'JP SC Raw Data'!$F:$F,"S",'JP SC Raw Data'!$B:$B,"2020/21",'JP SC Raw Data'!$E:$E,$B$3), IF(IFERROR(FIND(" ",$B$3),"")="",SUMIFS('JP SC Raw Data'!$J:$J,'JP SC Raw Data'!$C:$C,"Q1",'JP SC Raw Data'!$F:$F,"S",'JP SC Raw Data'!$B:$B,"2020/21",'JP SC Raw Data'!$E:$E,$B$3),SUMIFS('JP SC Raw Data'!$J:$J,'JP SC Raw Data'!$C:$C,"Q1",'JP SC Raw Data'!$F:$F,"S",'JP SC Raw Data'!$B:$B,"2020/21",'JP SC Raw Data'!$A:$A,$B$3))) -> 371 | AI12: =IF($B$3="Fort William", SUMIFS('JP SC Raw Data'!$J:$J,'JP SC Raw Data'!$C:$C,"Q2",'JP SC Raw Data'!$F:$F,"S",'JP SC Raw Data'!$B:$B,"2020/21",'JP SC Raw Data'!$E:$E,$B$3), IF(IFERROR(FIND(" ",$B$3),"")="",SUMIFS('JP SC Raw Data'!$J:$J,'JP SC Raw Data'!$C:$C,"Q2",'JP SC Raw Data'!$F:$F,"S",'JP SC Raw Data'!$B:$B,"2020/21",'JP SC Raw Data'!$E:$E,$B$3),SUMIFS('JP SC Raw Data'!$J:$J,'JP SC Raw Data'!$C:$C,"Q2",'JP SC Raw Data'!$F:$F,"S",'JP SC Raw Data'!$B:$B,"2020/21",'JP SC Raw Data'!$A:$A,$B$3))) -> 1489 | AJ12: =IF($B$3="Fort William", SUMIFS('JP SC Raw Data'!$J:$J,'JP SC Raw Data'!$C:$C,"Q3",'JP SC Raw Data'!$F:$F,"S",'JP SC Raw Data'!$B:$B,"2020/21",'JP SC Raw Data'!$E:$E,$B$3), IF(IFERROR(FIND(" ",$B$3),"")="",SUMIFS('JP SC Raw Data'!$J:$J,'JP SC Raw Data'!$C:$C,"Q3",'JP SC Raw Data'!$F:$F,"S",'JP SC Raw Data'!$B:$B,"2020/21",'JP SC Raw Data'!$E:$E,$B$3),SUMIFS('JP SC Raw Data'!$J:$J,'JP SC Raw Data'!$C:$C,"Q3",'JP SC Raw Data'!$F:$F,"S",'JP SC Raw Data'!$B:$B,"2020/21",'JP SC Raw Data'!$A:$A,$B$3))) -> 2077 | AK12: =IF($B$3="Fort William", SUMIFS('JP SC Raw Data'!$J:$J,'JP SC Raw Data'!$C:$C,"Q4",'JP SC Raw Data'!$F:$F,"S",'JP SC Raw Data'!$B:$B,"2020/21",'JP SC Raw Data'!$E:$E,$B$3), IF(IFERROR(FIND(" ",$B$3),"")="",SUMIFS('JP SC Raw Data'!$J:$J,'JP SC Raw Data'!$C:$C,"Q4",'JP SC Raw Data'!$F:$F,"S",'JP SC Raw Data'!$B:$B,"2020/21",'JP SC Raw Data'!$E:$E,$B$3),SUMIFS('JP SC Raw Data'!$J:$J,'JP SC Raw Data'!$C:$C,"Q4",'JP SC Raw Data'!$F:$F,"S",'JP SC Raw Data'!$B:$B,"2020/21",'JP SC Raw Data'!$A:$A,$B$3))) -> 2729 | AL12: 6666 | AM12: =IF($B$3="Fort William", SUMIFS('JP SC Raw Data'!$J:$J,'JP SC Raw Data'!$C:$C,"Q1",'JP SC Raw Data'!$F:$F,"S",'JP SC Raw Data'!$B:$B,"2021/22",'JP SC Raw Data'!$E:$E,$B$3), IF(IFERROR(FIND(" ",$B$3),"")="",SUMIFS('JP SC Raw Data'!$J:$J,'JP SC Raw Data'!$C:$C,"Q1",'JP SC Raw Data'!$F:$F,"S",'JP SC Raw Data'!$B:$B,"2021/22",'JP SC Raw Data'!$E:$E,$B$3),SUMIFS('JP SC Raw Data'!$J:$J,'JP SC Raw Data'!$C:$C,"Q1",'JP SC Raw Data'!$F:$F,"S",'JP SC Raw Data'!$B:$B,"2021/22",'JP SC Raw Data'!$A:$A,$B$3))) -> 2674 | AN12: =IF($B$3="Fort William", SUMIFS('JP SC Raw Data'!$J:$J,'JP SC Raw Data'!$C:$C,"Q2",'JP SC Raw Data'!$F:$F,"S",'JP SC Raw Data'!$B:$B,"2021/22",'JP SC Raw Data'!$E:$E,$B$3), IF(IFERROR(FIND(" ",$B$3),"")="",SUMIFS('JP SC Raw Data'!$J:$J,'JP SC Raw Data'!$C:$C,"Q2",'JP SC Raw Data'!$F:$F,"S",'JP SC Raw Data'!$B:$B,"2021/22",'JP SC Raw Data'!$E:$E,$B$3),SUMIFS('JP SC Raw Data'!$J:$J,'JP SC Raw Data'!$C:$C,"Q2",'JP SC Raw Data'!$F:$F,"S",'JP SC Raw Data'!$B:$B,"2021/22",'JP SC Raw Data'!$A:$A,$B$3))) -> 2367 | AO12: =IF($B$3="Fort William", SUMIFS('JP SC Raw Data'!$J:$J,'JP SC Raw Data'!$C:$C,"Q3",'JP SC Raw Data'!$F:$F,"S",'JP SC Raw Data'!$B:$B,"2021/22",'JP SC Raw Data'!$E:$E,$B$3), IF(IFERROR(FIND(" ",$B$3),"")="",SUMIFS('JP SC Raw Data'!$J:$J,'JP SC Raw Data'!$C:$C,"Q3",'JP SC Raw Data'!$F:$F,"S",'JP SC Raw Data'!$B:$B,"2021/22",'JP SC Raw Data'!$E:$E,$B$3),SUMIFS('JP SC Raw Data'!$J:$J,'JP SC Raw Data'!$C:$C,"Q3",'JP SC Raw Data'!$F:$F,"S",'JP SC Raw Data'!$B:$B,"2021/22",'JP SC Raw Data'!$A:$A,$B$3))) -> 2036 | AP12: =IF($B$3="Fort William", SUMIFS('JP SC Raw Data'!$J:$J,'JP SC Raw Data'!$C:$C,"Q4",'JP SC Raw Data'!$F:$F,"S",'JP SC Raw Data'!$B:$B,"2021/22",'JP SC Raw Data'!$E:$E,$B$3), IF(IFERROR(FIND(" ",$B$3),"")="",SUMIFS('JP SC Raw Data'!$J:$J,'JP SC Raw Data'!$C:$C,"Q4",'JP SC Raw Data'!$F:$F,"S",'JP SC Raw Data'!$B:$B,"2021/22",'JP SC Raw Data'!$E:$E,$B$3),SUMIFS('JP SC Raw Data'!$J:$J,'JP SC Raw Data'!$C:$C,"Q4",'JP SC Raw Data'!$F:$F,"S",'JP SC Raw Data'!$B:$B,"2021/22",'JP SC Raw Data'!$A:$A,$B$3))) -> 1890 | AQ12: 8967
B13: Section 76 Indictments | D13: =IF($B$3="Fort William", SUMIFS('JP SC Raw Data'!$K:$K,'JP SC Raw Data'!$C:$C,"Q1",'JP SC Raw Data'!$F:$F,"S",'JP SC Raw Data'!$B:$B,"2014/15",'JP SC Raw Data'!$E:$E,$B$3), IF(IFERROR(FIND(" ",$B$3),"")="",SUMIFS('JP SC Raw Data'!$K:$K,'JP SC Raw Data'!$C:$C,"Q1",'JP SC Raw Data'!$F:$F,"S",'JP SC Raw Data'!$B:$B,"2014/15",'JP SC Raw Data'!$E:$E,$B$3),SUMIFS('JP SC Raw Data'!$K:$K,'JP SC Raw Data'!$C:$C,"Q1",'JP SC Raw Data'!$F:$F,"S",'JP SC Raw Data'!$B:$B,"2014/15",'JP SC Raw Data'!$A:$A,$B$3))) -> 291 | E13: =IF($B$3="Fort William", SUMIFS('JP SC Raw Data'!$K:$K,'JP SC Raw Data'!$C:$C,"Q2",'JP SC Raw Data'!$F:$F,"S",'JP SC Raw Data'!$B:$B,"2014/15",'JP SC Raw Data'!$E:$E,$B$3), IF(IFERROR(FIND(" ",$B$3),"")="",SUMIFS('JP SC Raw Data'!$K:$K,'JP SC Raw Data'!$C:$C,"Q2",'JP SC Raw Data'!$F:$F,"S",'JP SC Raw Data'!$B:$B,"2014/15",'JP SC Raw Data'!$E:$E,$B$3),SUMIFS('JP SC Raw Data'!$K:$K,'JP SC Raw Data'!$C:$C,"Q2",'JP SC Raw Data'!$F:$F,"S",'JP SC Raw Data'!$B:$B,"2014/15",'JP SC Raw Data'!$A:$A,$B$3))) -> 358 | F13: =IF($B$3="Fort William", SUMIFS('JP SC Raw Data'!$K:$K,'JP SC Raw Data'!$C:$C,"Q3",'JP SC Raw Data'!$F:$F,"S",'JP SC Raw Data'!$B:$B,"2014/15",'JP SC Raw Data'!$E:$E,$B$3), IF(IFERROR(FIND(" ",$B$3),"")="",SUMIFS('JP SC Raw Data'!$K:$K,'JP SC Raw Data'!$C:$C,"Q3",'JP SC Raw Data'!$F:$F,"S",'JP SC Raw Data'!$B:$B,"2014/15",'JP SC Raw Data'!$E:$E,$B$3),SUMIFS('JP SC Raw Data'!$K:$K,'JP SC Raw Data'!$C:$C,"Q3",'JP SC Raw Data'!$F:$F,"S",'JP SC Raw Data'!$B:$B,"2014/15",'JP SC Raw Data'!$A:$A,$B$3))) -> 299 | G13: =IF($B$3="Fort William", SUMIFS('JP SC Raw Data'!$K:$K,'JP SC Raw Data'!$C:$C,"Q4",'JP SC Raw Data'!$F:$F,"S",'JP SC Raw Data'!$B:$B,"2014/15",'JP SC Raw Data'!$E:$E,$B$3), IF(IFERROR(FIND(" ",$B$3),"")="",SUMIFS('JP SC Raw Data'!$K:$K,'JP SC Raw Data'!$C:$C,"Q4",'JP SC Raw Data'!$F:$F,"S",'JP SC Raw Data'!$B:$B,"2014/15",'JP SC Raw Data'!$E:$E,$B$3),SUMIFS('JP SC Raw Data'!$K:$K,'JP SC Raw Data'!$C:$C,"Q4",'JP SC Raw Data'!$F:$F,"S",'JP SC Raw Data'!$B:$B,"2014/15",'JP SC Raw Data'!$A:$A,$B$3))) -> 312 | H13: 1260 | I13: =IF($B$3="Fort William", SUMIFS('JP SC Raw Data'!$K:$K,'JP SC Raw Data'!$C:$C,"Q1",'JP SC Raw Data'!$F:$F,"S",'JP SC Raw Data'!$B:$B,"2015/16",'JP SC Raw Data'!$E:$E,$B$3), IF(IFERROR(FIND(" ",$B$3),"")="",SUMIFS('JP SC Raw Data'!$K:$K,'JP SC Raw Data'!$C:$C,"Q1",'JP SC Raw Data'!$F:$F,"S",'JP SC Raw Data'!$B:$B,"2015/16",'JP SC Raw Data'!$E:$E,$B$3),SUMIFS('JP SC Raw Data'!$K:$K,'JP SC Raw Data'!$C:$C,"Q1",'JP SC Raw Data'!$F:$F,"S",'JP SC Raw Data'!$B:$B,"2015/16",'JP SC Raw Data'!$A:$A,$B$3))) -> 281 | J13: =IF($B$3="Fort William", SUMIFS('JP SC Raw Data'!$K:$K,'JP SC Raw Data'!$C:$C,"Q2",'JP SC Raw Data'!$F:$F,"S",'JP SC Raw Data'!$B:$B,"2015/16",'JP SC Raw Data'!$E:$E,$B$3), IF(IFERROR(FIND(" ",$B$3),"")="",SUMIFS('JP SC Raw Data'!$K:$K,'JP SC Raw Data'!$C:$C,"Q2",'JP SC Raw Data'!$F:$F,"S",'JP SC Raw Data'!$B:$B,"2015/16",'JP SC Raw Data'!$E:$E,$B$3),SUMIFS('JP SC Raw Data'!$K:$K,'JP SC Raw Data'!$C:$C,"Q2",'JP SC Raw Data'!$F:$F,"S",'JP SC Raw Data'!$B:$B,"2015/16",'JP SC Raw Data'!$A:$A,$B$3))) -> 244 | K13: =IF($B$3="Fort William", SUMIFS('JP SC Raw Data'!$K:$K,'JP SC Raw Data'!$C:$C,"Q3",'JP SC Raw Data'!$F:$F,"S",'JP SC Raw Data'!$B:$B,"2015/16",'JP SC Raw Data'!$E:$E,$B$3), IF(IFERROR(FIND(" ",$B$3),"")="",SUMIFS('JP SC Raw Data'!$K:$K,'JP SC Raw Data'!$C:$C,"Q3",'JP SC Raw Data'!$F:$F,"S",'JP SC Raw Data'!$B:$B,"2015/16",'JP SC Raw Data'!$E:$E,$B$3),SUMIFS('JP SC Raw Data'!$K:$K,'JP SC Raw Data'!$C:$C,"Q3",'JP SC Raw Data'!$F:$F,"S",'JP SC Raw Data'!$B:$B,"2015/16",'JP SC Raw Data'!$A:$A,$B$3))) -> 277 | L13: =IF($B$3="Fort William", SUMIFS('JP SC Raw Data'!$K:$K,'JP SC Raw Data'!$C:$C,"Q4",'JP SC Raw Data'!$F:$F,"S",'JP SC Raw Data'!$B:$B,"2015/16",'JP SC Raw Data'!$E:$E,$B$3), IF(IFERROR(FIND(" ",$B$3),"")="",SUMIFS('JP SC Raw Data'!$K:$K,'JP SC Raw Data'!$C:$C,"Q4",'JP SC Raw Data'!$F:$F,"S",'JP SC Raw Data'!$B:$B,"2015/16",'JP SC Raw Data'!$E:$E,$B$3),SUMIFS('JP SC Raw Data'!$K:$K,'JP SC Raw Data'!$C:$C,"Q4",'JP SC Raw Data'!$F:$F,"S",'JP SC Raw Data'!$B:$B,"2015/16",'JP SC Raw Data'!$A:$A,$B$3))) -> 290 | M13: 1092 | N13: =IF($B$3="Fort William", SUMIFS('JP SC Raw Data'!$K:$K,'JP SC Raw Data'!$C:$C,"Q1",'JP SC Raw Data'!$F:$F,"S",'JP SC Raw Data'!$B:$B,"2016/17",'JP SC Raw Data'!$E:$E,$B$3), IF(IFERROR(FIND(" ",$B$3),"")="",SUMIFS('JP SC Raw Data'!$K:$K,'JP SC Raw Data'!$C:$C,"Q1",'JP SC Raw Data'!$F:$F,"S",'JP SC Raw Data'!$B:$B,"2016/17",'JP SC Raw Data'!$E:$E,$B$3),SUMIFS('JP SC Raw Data'!$K:$K,'JP SC Raw Data'!$C:$C,"Q1",'JP SC Raw Data'!$F:$F,"S",'JP SC Raw Data'!$B:$B,"2016/17",'JP SC Raw Data'!$A:$A,$B$3))) -> 298 | O13: =IF($B$3="Fort William", SUMIFS('JP SC Raw Data'!$K:$K,'JP SC Raw Data'!$C:$C,"Q2",'JP SC Raw Data'!$F:$F,"S",'JP SC Raw Data'!$B:$B,"2016/17",'JP SC Raw Data'!$E:$E,$B$3), IF(IFERROR(FIND(" ",$B$3),"")="",SUMIFS('JP SC Raw Data'!$K:$K,'JP SC Raw Data'!$C:$C,"Q2",'JP SC Raw Data'!$F:$F,"S",'JP SC Raw Data'!$B:$B,"2016/17",'JP SC Raw Data'!$E:$E,$B$3),SUMIFS('JP SC Raw Data'!$K:$K,'JP SC Raw Data'!$C:$C,"Q2",'JP SC Raw Data'!$F:$F,"S",'JP SC Raw Data'!$B:$B,"2016/17",'JP SC Raw Data'!$A:$A,$B$3))) -> 304 | P13: =IF($B$3="Fort William", SUMIFS('JP SC Raw Data'!$K:$K,'JP SC Raw Data'!$C:$C,"Q3",'JP SC Raw Data'!$F:$F,"S",'JP SC Raw Data'!$B:$B,"2016/17",'JP SC Raw Data'!$E:$E,$B$3), IF(IFERROR(FIND(" ",$B$3),"")="",SUMIFS('JP SC Raw Data'!$K:$K,'JP SC Raw Data'!$C:$C,"Q3",'JP SC Raw Data'!$F:$F,"S",'JP SC Raw Data'!$B:$B,"2016/17",'JP SC Raw Data'!$E:$E,$B$3),SUMIFS('JP SC Raw Data'!$K:$K,'JP SC Raw Data'!$C:$C,"Q3",'JP SC Raw Data'!$F:$F,"S",'JP SC Raw Data'!$B:$B,"2016/17",'JP SC Raw Data'!$A:$A,$B$3))) -> 277 | Q13: =IF($B$3="Fort William", SUMIFS('JP SC Raw Data'!$K:$K,'JP SC Raw Data'!$C:$C,"Q4",'JP SC Raw Data'!$F:$F,"S",'JP SC Raw Data'!$B:$B,"2016/17",'JP SC Raw Data'!$E:$E,$B$3), IF(IFERROR(FIND(" ",$B$3),"")="",SUMIFS('JP SC Raw Data'!$K:$K,'JP SC Raw Data'!$C:$C,"Q4",'JP SC Raw Data'!$F:$F,"S",'JP SC Raw Data'!$B:$B,"2016/17",'JP SC Raw Data'!$E:$E,$B$3),SUMIFS('JP SC Raw Data'!$K:$K,'JP SC Raw Data'!$C:$C,"Q4",'JP SC Raw Data'!$F:$F,"S",'JP SC Raw Data'!$B:$B,"2016/17",'JP SC Raw Data'!$A:$A,$B$3))) -> 225 | R13: 1104 | S13: =IF($B$3="Fort William", SUMIFS('JP SC Raw Data'!$K:$K,'JP SC Raw Data'!$C:$C,"Q1",'JP SC Raw Data'!$F:$F,"S",'JP SC Raw Data'!$B:$B,"2017/18",'JP SC Raw Data'!$E:$E,$B$3), IF(IFERROR(FIND(" ",$B$3),"")="",SUMIFS('JP SC Raw Data'!$K:$K,'JP SC Raw Data'!$C:$C,"Q1",'JP SC Raw Data'!$F:$F,"S",'JP SC Raw Data'!$B:$B,"2017/18",'JP SC Raw Data'!$E:$E,$B$3),SUMIFS('JP SC Raw Data'!$K:$K,'JP SC Raw Data'!$C:$C,"Q1",'JP SC Raw Data'!$F:$F,"S",'JP SC Raw Data'!$B:$B,"2017/18",'JP SC Raw Data'!$A:$A,$B$3))) -> 272 | T13: =IF($B$3="Fort William", SUMIFS('JP SC Raw Data'!$K:$K,'JP SC Raw Data'!$C:$C,"Q2",'JP SC Raw Data'!$F:$F,"S",'JP SC Raw Data'!$B:$B,"2017/18",'JP SC Raw Data'!$E:$E,$B$3), IF(IFERROR(FIND(" ",$B$3),"")="",SUMIFS('JP SC Raw Data'!$K:$K,'JP SC Raw Data'!$C:$C,"Q2",'JP SC Raw Data'!$F:$F,"S",'JP SC Raw Data'!$B:$B,"2017/18",'JP SC Raw Data'!$E:$E,$B$3),SUMIFS('JP SC Raw Data'!$K:$K,'JP SC Raw Data'!$C:$C,"Q2",'JP SC Raw Data'!$F:$F,"S",'JP SC Raw Data'!$B:$B,"2017/18",'JP SC Raw Data'!$A:$A,$B$3))) -> 275 | U13: =IF($B$3="Fort William", SUMIFS('JP SC Raw Data'!$K:$K,'JP SC Raw Data'!$C:$C,"Q3",'JP SC Raw Data'!$F:$F,"S",'JP SC Raw Data'!$B:$B,"2017/18",'JP SC Raw Data'!$E:$E,$B$3), IF(IFERROR(FIND(" ",$B$3),"")="",SUMIFS('JP SC Raw Data'!$K:$K,'JP SC Raw Data'!$C:$C,"Q3",'JP SC Raw Data'!$F:$F,"S",'JP SC Raw Data'!$B:$B,"2017/18",'JP SC Raw Data'!$E:$E,$B$3),SUMIFS('JP SC Raw Data'!$K:$K,'JP SC Raw Data'!$C:$C,"Q3",'JP SC Raw Data'!$F:$F,"S",'JP SC Raw Data'!$B:$B,"2017/18",'JP SC Raw Data'!$A:$A,$B$3))) -> 233 | V13: =IF($B$3="Fort William", SUMIFS('JP SC Raw Data'!$K:$K,'JP SC Raw Data'!$C:$C,"Q4",'JP SC Raw Data'!$F:$F,"S",'JP SC Raw Data'!$B:$B,"2017/18",'JP SC Raw Data'!$E:$E,$B$3), IF(IFERROR(FIND(" ",$B$3),"")="",SUMIFS('JP SC Raw Data'!$K:$K,'JP SC Raw Data'!$C:$C,"Q4",'JP SC Raw Data'!$F:$F,"S",'JP SC Raw Data'!$B:$B,"2017/18",'JP SC Raw Data'!$E:$E,$B$3),SUMIFS('JP SC Raw Data'!$K:$K,'JP SC Raw Data'!$C:$C,"Q4",'JP SC Raw Data'!$F:$F,"S",'JP SC Raw Data'!$B:$B,"2017/18",'JP SC Raw Data'!$A:$A,$B$3))) -> 254 | W13: 1034 | X13: =IF($B$3="Fort William", SUMIFS('JP SC Raw Data'!$K:$K,'JP SC Raw Data'!$C:$C,"Q1",'JP SC Raw Data'!$F:$F,"S",'JP SC Raw Data'!$B:$B,"2018/19",'JP SC Raw Data'!$E:$E,$B$3), IF(IFERROR(FIND(" ",$B$3),"")="",SUMIFS('JP SC Raw Data'!$K:$K,'JP SC Raw Data'!$C:$C,"Q1",'JP SC Raw Data'!$F:$F,"S",'JP SC Raw Data'!$B:$B,"2018/19",'JP SC Raw Data'!$E:$E,$B$3),SUMIFS('JP SC Raw Data'!$K:$K,'JP SC Raw Data'!$C:$C,"Q1",'JP SC Raw Data'!$F:$F,"S",'JP SC Raw Data'!$B:$B,"2018/19",'JP SC Raw Data'!$A:$A,$B$3))) -> 272 | Y13: =IF($B$3="Fort William", SUMIFS('JP SC Raw Data'!$K:$K,'JP SC Raw Data'!$C:$C,"Q2",'JP SC Raw Data'!$F:$F,"S",'JP SC Raw Data'!$B:$B,"2018/19",'JP SC Raw Data'!$E:$E,$B$3), IF(IFERROR(FIND(" ",$B$3),"")="",SUMIFS('JP SC Raw Data'!$K:$K,'JP SC Raw Data'!$C:$C,"Q2",'JP SC Raw Data'!$F:$F,"S",'JP SC Raw Data'!$B:$B,"2018/19",'JP SC Raw Data'!$E:$E,$B$3),SUMIFS('JP SC Raw Data'!$K:$K,'JP SC Raw Data'!$C:$C,"Q2",'JP SC Raw Data'!$F:$F,"S",'JP SC Raw Data'!$B:$B,"2018/19",'JP SC Raw Data'!$A:$A,$B$3))) -> 268 | Z13: =IF($B$3="Fort William", SUMIFS('JP SC Raw Data'!$K:$K,'JP SC Raw Data'!$C:$C,"Q3",'JP SC Raw Data'!$F:$F,"S",'JP SC Raw Data'!$B:$B,"2018/19",'JP SC Raw Data'!$E:$E,$B$3), IF(IFERROR(FIND(" ",$B$3),"")="",SUMIFS('JP SC Raw Data'!$K:$K,'JP SC Raw Data'!$C:$C,"Q3",'JP SC Raw Data'!$F:$F,"S",'JP SC Raw Data'!$B:$B,"2018/19",'JP SC Raw Data'!$E:$E,$B$3),SUMIFS('JP SC Raw Data'!$K:$K,'JP SC Raw Data'!$C:$C,"Q3",'JP SC Raw Data'!$F:$F,"S",'JP SC Raw Data'!$B:$B,"2018/19",'JP SC Raw Data'!$A:$A,$B$3))) -> 288 | AA13: =IF($B$3="Fort William", SUMIFS('JP SC Raw Data'!$K:$K,'JP SC Raw Data'!$C:$C,"Q4",'JP SC Raw Data'!$F:$F,"S",'JP SC Raw Data'!$B:$B,"2018/19",'JP SC Raw Data'!$E:$E,$B$3), IF(IFERROR(FIND(" ",$B$3),"")="",SUMIFS('JP SC Raw Data'!$K:$K,'JP SC Raw Data'!$C:$C,"Q4",'JP SC Raw Data'!$F:$F,"S",'JP SC Raw Data'!$B:$B,"2018/19",'JP SC Raw Data'!$E:$E,$B$3),SUMIFS('JP SC Raw Data'!$K:$K,'JP SC Raw Data'!$C:$C,"Q4",'JP SC Raw Data'!$F:$F,"S",'JP SC Raw Data'!$B:$B,"2018/19",'JP SC Raw Data'!$A:$A,$B$3))) -> 291 | AB13: 1119 | AC13: =IF($B$3="Fort William", SUMIFS('JP SC Raw Data'!$K:$K,'JP SC Raw Data'!$C:$C,"Q1",'JP SC Raw Data'!$F:$F,"S",'JP SC Raw Data'!$B:$B,"2019/20",'JP SC Raw Data'!$E:$E,$B$3), IF(IFERROR(FIND(" ",$B$3),"")="",SUMIFS('JP SC Raw Data'!$K:$K,'JP SC Raw Data'!$C:$C,"Q1",'JP SC Raw Data'!$F:$F,"S",'JP SC Raw Data'!$B:$B,"2019/20",'JP SC Raw Data'!$E:$E,$B$3),SUMIFS('JP SC Raw Data'!$K:$K,'JP SC Raw Data'!$C:$C,"Q1",'JP SC Raw Data'!$F:$F,"S",'JP SC Raw Data'!$B:$B,"2019/20",'JP SC Raw Data'!$A:$A,$B$3))) -> 246 | AD13: =IF($B$3="Fort William", SUMIFS('JP SC Raw Data'!$K:$K,'JP SC Raw Data'!$C:$C,"Q2",'JP SC Raw Data'!$F:$F,"S",'JP SC Raw Data'!$B:$B,"2019/20",'JP SC Raw Data'!$E:$E,$B$3), IF(IFERROR(FIND(" ",$B$3),"")="",SUMIFS('JP SC Raw Data'!$K:$K,'JP SC Raw Data'!$C:$C,"Q2",'JP SC Raw Data'!$F:$F,"S",'JP SC Raw Data'!$B:$B,"2019/20",'JP SC Raw Data'!$E:$E,$B$3),SUMIFS('JP SC Raw Data'!$K:$K,'JP SC Raw Data'!$C:$C,"Q2",'JP SC Raw Data'!$F:$F,"S",'JP SC Raw Data'!$B:$B,"2019/20",'JP SC Raw Data'!$A:$A,$B$3))) -> 278 | AE13: =IF($B$3="Fort William", SUMIFS('JP SC Raw Data'!$K:$K,'JP SC Raw Data'!$C:$C,"Q3",'JP SC Raw Data'!$F:$F,"S",'JP SC Raw Data'!$B:$B,"2019/20",'JP SC Raw Data'!$E:$E,$B$3), IF(IFERROR(FIND(" ",$B$3),"")="",SUMIFS('JP SC Raw Data'!$K:$K,'JP SC Raw Data'!$C:$C,"Q3",'JP SC Raw Data'!$F:$F,"S",'JP SC Raw Data'!$B:$B,"2019/20",'JP SC Raw Data'!$E:$E,$B$3),SUMIFS('JP SC Raw Data'!$K:$K,'JP SC Raw Data'!$C:$C,"Q3",'JP SC Raw Data'!$F:$F,"S",'JP SC Raw Data'!$B:$B,"2019/20",'JP SC Raw Data'!$A:$A,$B$3))) -> 283 | AF13: =IF($B$3="Fort William", SUMIFS('JP SC Raw Data'!$K:$K,'JP SC Raw Data'!$C:$C,"Q4",'JP SC Raw Data'!$F:$F,"S",'JP SC Raw Data'!$B:$B,"2019/20",'JP SC Raw Data'!$E:$E,$B$3), IF(IFERROR(FIND(" ",$B$3),"")="",SUMIFS('JP SC Raw Data'!$K:$K,'JP SC Raw Data'!$C:$C,"Q4",'JP SC Raw Data'!$F:$F,"S",'JP SC Raw Data'!$B:$B,"2019/20",'JP SC Raw Data'!$E:$E,$B$3),SUMIFS('JP SC Raw Data'!$K:$K,'JP SC Raw Data'!$C:$C,"Q4",'JP SC Raw Data'!$F:$F,"S",'JP SC Raw Data'!$B:$B,"2019/20",'JP SC Raw Data'!$A:$A,$B$3))) -> 241 | AG13: 1048 | AH13: =IF($B$3="Fort William", SUMIFS('JP SC Raw Data'!$K:$K,'JP SC Raw Data'!$C:$C,"Q1",'JP SC Raw Data'!$F:$F,"S",'JP SC Raw Data'!$B:$B,"2020/21",'JP SC Raw Data'!$E:$E,$B$3), IF(IFERROR(FIND(" ",$B$3),"")="",SUMIFS('JP SC Raw Data'!$K:$K,'JP SC Raw Data'!$C:$C,"Q1",'JP SC Raw Data'!$F:$F,"S",'JP SC Raw Data'!$B:$B,"2020/21",'JP SC Raw Data'!$E:$E,$B$3),SUMIFS('JP SC Raw Data'!$K:$K,'JP SC Raw Data'!$C:$C,"Q1",'JP SC Raw Data'!$F:$F,"S",'JP SC Raw Data'!$B:$B,"2020/21",'JP SC Raw Data'!$A:$A,$B$3))) -> 175 | AI13: =IF($B$3="Fort William", SUMIFS('JP SC Raw Data'!$K:$K,'JP SC Raw Data'!$C:$C,"Q2",'JP SC Raw Data'!$F:$F,"S",'JP SC Raw Data'!$B:$B,"2020/21",'JP SC Raw Data'!$E:$E,$B$3), IF(IFERROR(FIND(" ",$B$3),"")="",SUMIFS('JP SC Raw Data'!$K:$K,'JP SC Raw Data'!$C:$C,"Q2",'JP SC Raw Data'!$F:$F,"S",'JP SC Raw Data'!$B:$B,"2020/21",'JP SC Raw Data'!$E:$E,$B$3),SUMIFS('JP SC Raw Data'!$K:$K,'JP SC Raw Data'!$C:$C,"Q2",'JP SC Raw Data'!$F:$F,"S",'JP SC Raw Data'!$B:$B,"2020/21",'JP SC Raw Data'!$A:$A,$B$3))) -> 309 | AJ13: =IF($B$3="Fort William", SUMIFS('JP SC Raw Data'!$K:$K,'JP SC Raw Data'!$C:$C,"Q3",'JP SC Raw Data'!$F:$F,"S",'JP SC Raw Data'!$B:$B,"2020/21",'JP SC Raw Data'!$E:$E,$B$3), IF(IFERROR(FIND(" ",$B$3),"")="",SUMIFS('JP SC Raw Data'!$K:$K,'JP SC Raw Data'!$C:$C,"Q3",'JP SC Raw Data'!$F:$F,"S",'JP SC Raw Data'!$B:$B,"2020/21",'JP SC Raw Data'!$E:$E,$B$3),SUMIFS('JP SC Raw Data'!$K:$K,'JP SC Raw Data'!$C:$C,"Q3",'JP SC Raw Data'!$F:$F,"S",'JP SC Raw Data'!$B:$B,"2020/21",'JP SC Raw Data'!$A:$A,$B$3))) -> 254 | AK13: =IF($B$3="Fort William", SUMIFS('JP SC Raw Data'!$K:$K,'JP SC Raw Data'!$C:$C,"Q4",'JP SC Raw Data'!$F:$F,"S",'JP SC Raw Data'!$B:$B,"2020/21",'JP SC Raw Data'!$E:$E,$B$3), IF(IFERROR(FIND(" ",$B$3),"")="",SUMIFS('JP SC Raw Data'!$K:$K,'JP SC Raw Data'!$C:$C,"Q4",'JP SC Raw Data'!$F:$F,"S",'JP SC Raw Data'!$B:$B,"2020/21",'JP SC Raw Data'!$E:$E,$B$3),SUMIFS('JP SC Raw Data'!$K:$K,'JP SC Raw Data'!$C:$C,"Q4",'JP SC Raw Data'!$F:$F,"S",'JP SC Raw Data'!$B:$B,"2020/21",'JP SC Raw Data'!$A:$A,$B$3))) -> 207 | AL13: 945 | AM13: =IF($B$3="Fort William", SUMIFS('JP SC Raw Data'!$K:$K,'JP SC Raw Data'!$C:$C,"Q1",'JP SC Raw Data'!$F:$F,"S",'JP SC Raw Data'!$B:$B,"2021/22",'JP SC Raw Data'!$E:$E,$B$3), IF(IFERROR(FIND(" ",$B$3),"")="",SUMIFS('JP SC Raw Data'!$K:$K,'JP SC Raw Data'!$C:$C,"Q1",'JP SC Raw Data'!$F:$F,"S",'JP SC Raw Data'!$B:$B,"2021/22",'JP SC Raw Data'!$E:$E,$B$3),SUMIFS('JP SC Raw Data'!$K:$K,'JP SC Raw Data'!$C:$C,"Q1",'JP SC Raw Data'!$F:$F,"S",'JP SC Raw Data'!$B:$B,"2021/22",'JP SC Raw Data'!$A:$A,$B$3))) -> 297 | AN13: =IF($B$3="Fort William", SUMIFS('JP SC Raw Data'!$K:$K,'JP SC Raw Data'!$C:$C,"Q2",'JP SC Raw Data'!$F:$F,"S",'JP SC Raw Data'!$B:$B,"2021/22",'JP SC Raw Data'!$E:$E,$B$3), IF(IFERROR(FIND(" ",$B$3),"")="",SUMIFS('JP SC Raw Data'!$K:$K,'JP SC Raw Data'!$C:$C,"Q2",'JP SC Raw Data'!$F:$F,"S",'JP SC Raw Data'!$B:$B,"2021/22",'JP SC Raw Data'!$E:$E,$B$3),SUMIFS('JP SC Raw Data'!$K:$K,'JP SC Raw Data'!$C:$C,"Q2",'JP SC Raw Data'!$F:$F,"S",'JP SC Raw Data'!$B:$B,"2021/22",'JP SC Raw Data'!$A:$A,$B$3))) -> 279 | AO13: =IF($B$3="Fort William", SUMIFS('JP SC Raw Data'!$K:$K,'JP SC Raw Data'!$C:$C,"Q3",'JP SC Raw Data'!$F:$F,"S",'JP SC Raw Data'!$B:$B,"2021/22",'JP SC Raw Data'!$E:$E,$B$3), IF(IFERROR(FIND(" ",$B$3),"")="",SUMIFS('JP SC Raw Data'!$K:$K,'JP SC Raw Data'!$C:$C,"Q3",'JP SC Raw Data'!$F:$F,"S",'JP SC Raw Data'!$B:$B,"2021/22",'JP SC Raw Data'!$E:$E,$B$3),SUMIFS('JP SC Raw Data'!$K:$K,'JP SC Raw Data'!$C:$C,"Q3",'JP SC Raw Data'!$F:$F,"S",'JP SC Raw Data'!$B:$B,"2021/22",'JP SC Raw Data'!$A:$A,$B$3))) -> 252 | AP13: =IF($B$3="Fort William", SUMIFS('JP SC Raw Data'!$K:$K,'JP SC Raw Data'!$C:$C,"Q4",'JP SC Raw Data'!$F:$F,"S",'JP SC Raw Data'!$B:$B,"2021/22",'JP SC Raw Data'!$E:$E,$B$3), IF(IFERROR(FIND(" ",$B$3),"")="",SUMIFS('JP SC Raw Data'!$K:$K,'JP SC Raw Data'!$C:$C,"Q4",'JP SC Raw Data'!$F:$F,"S",'JP SC Raw Data'!$B:$B,"2021/22",'JP SC Raw Data'!$E:$E,$B$3),SUMIFS('JP SC Raw Data'!$K:$K,'JP SC Raw Data'!$C:$C,"Q4",'JP SC Raw Data'!$F:$F,"S",'JP SC Raw Data'!$B:$B,"2021/22",'JP SC Raw Data'!$A:$A,$B$3))) -> 279 | AQ13: 1107
B14: Trials Called | D14: =IF($B$3="Fort William", SUMIFS('JP SC Raw Data'!$L:$L,'JP SC Raw Data'!$C:$C,"Q1",'JP SC Raw Data'!$F:$F,"S",'JP SC Raw Data'!$B:$B,"2014/15",'JP SC Raw Data'!$E:$E,$B$3), IF(IFERROR(FIND(" ",$B$3),"")="",SUMIFS('JP SC Raw Data'!$L:$L,'JP SC Raw Data'!$C:$C,"Q1",'JP SC Raw Data'!$F:$F,"S",'JP SC Raw Data'!$B:$B,"2014/15",'JP SC Raw Data'!$E:$E,$B$3),SUMIFS('JP SC Raw Data'!$L:$L,'JP SC Raw Data'!$C:$C,"Q1",'JP SC Raw Data'!$F:$F,"S",'JP SC Raw Data'!$B:$B,"2014/15",'JP SC Raw Data'!$A:$A,$B$3))) -> 1221 | E14: =IF($B$3="Fort William", SUMIFS('JP SC Raw Data'!$L:$L,'JP SC Raw Data'!$C:$C,"Q2",'JP SC Raw Data'!$F:$F,"S",'JP SC Raw Data'!$B:$B,"2014/15",'JP SC Raw Data'!$E:$E,$B$3), IF(IFERROR(FIND(" ",$B$3),"")="",SUMIFS('JP SC Raw Data'!$L:$L,'JP SC Raw Data'!$C:$C,"Q2",'JP SC Raw Data'!$F:$F,"S",'JP SC Raw Data'!$B:$B,"2014/15",'JP SC Raw Data'!$E:$E,$B$3),SUMIFS('JP SC Raw Data'!$L:$L,'JP SC Raw Data'!$C:$C,"Q2",'JP SC Raw Data'!$F:$F,"S",'JP SC Raw Data'!$B:$B,"2014/15",'JP SC Raw Data'!$A:$A,$B$3))) -> 1168 | F14: =IF($B$3="Fort William", SUMIFS('JP SC Raw Data'!$L:$L,'JP SC Raw Data'!$C:$C,"Q3",'JP SC Raw Data'!$F:$F,"S",'JP SC Raw Data'!$B:$B,"2014/15",'JP SC Raw Data'!$E:$E,$B$3), IF(IFERROR(FIND(" ",$B$3),"")="",SUMIFS('JP SC Raw Data'!$L:$L,'JP SC Raw Data'!$C:$C,"Q3",'JP SC Raw Data'!$F:$F,"S",'JP SC Raw Data'!$B:$B,"2014/15",'JP SC Raw Data'!$E:$E,$B$3),SUMIFS('JP SC Raw Data'!$L:$L,'JP SC Raw Data'!$C:$C,"Q3",'JP SC Raw Data'!$F:$F,"S",'JP SC Raw Data'!$B:$B,"2014/15",'JP SC Raw Data'!$A:$A,$B$3))) -> 1259 | G14: =IF($B$3="Fort William", SUMIFS('JP SC Raw Data'!$L:$L,'JP SC Raw Data'!$C:$C,"Q4",'JP SC Raw Data'!$F:$F,"S",'JP SC Raw Data'!$B:$B,"2014/15",'JP SC Raw Data'!$E:$E,$B$3), IF(IFERROR(FIND(" ",$B$3),"")="",SUMIFS('JP SC Raw Data'!$L:$L,'JP SC Raw Data'!$C:$C,"Q4",'JP SC Raw Data'!$F:$F,"S",'JP SC Raw Data'!$B:$B,"2014/15",'JP SC Raw Data'!$E:$E,$B$3),SUMIFS('JP SC Raw Data'!$L:$L,'JP SC Raw Data'!$C:$C,"Q4",'JP SC Raw Data'!$F:$F,"S",'JP SC Raw Data'!$B:$B,"2014/15",'JP SC Raw Data'!$A:$A,$B$3))) -> 1352 | H14: 5000 | I14: =IF($B$3="Fort William", SUMIFS('JP SC Raw Data'!$L:$L,'JP SC Raw Data'!$C:$C,"Q1",'JP SC Raw Data'!$F:$F,"S",'JP SC Raw Data'!$B:$B,"2015/16",'JP SC Raw Data'!$E:$E,$B$3), IF(IFERROR(FIND(" ",$B$3),"")="",SUMIFS('JP SC Raw Data'!$L:$L,'JP SC Raw Data'!$C:$C,"Q1",'JP SC Raw Data'!$F:$F,"S",'JP SC Raw Data'!$B:$B,"2015/16",'JP SC Raw Data'!$E:$E,$B$3),SUMIFS('JP SC Raw Data'!$L:$L,'JP SC Raw Data'!$C:$C,"Q1",'JP SC Raw Data'!$F:$F,"S",'JP SC Raw Data'!$B:$B,"2015/16",'JP SC Raw Data'!$A:$A,$B$3))) -> 1477 | J14: =IF($B$3="Fort William", SUMIFS('JP SC Raw Data'!$L:$L,'JP SC Raw Data'!$C:$C,"Q2",'JP SC Raw Data'!$F:$F,"S",'JP SC Raw Data'!$B:$B,"2015/16",'JP SC Raw Data'!$E:$E,$B$3), IF(IFERROR(FIND(" ",$B$3),"")="",SUMIFS('JP SC Raw Data'!$L:$L,'JP SC Raw Data'!$C:$C,"Q2",'JP SC Raw Data'!$F:$F,"S",'JP SC Raw Data'!$B:$B,"2015/16",'JP SC Raw Data'!$E:$E,$B$3),SUMIFS('JP SC Raw Data'!$L:$L,'JP SC Raw Data'!$C:$C,"Q2",'JP SC Raw Data'!$F:$F,"S",'JP SC Raw Data'!$B:$B,"2015/16",'JP SC Raw Data'!$A:$A,$B$3))) -> 1429 | K14: =IF($B$3="Fort William", SUMIFS('JP SC Raw Data'!$L:$L,'JP SC Raw Data'!$C:$C,"Q3",'JP SC Raw Data'!$F:$F,"S",'JP SC Raw Data'!$B:$B,"2015/16",'JP SC Raw Data'!$E:$E,$B$3), IF(IFERROR(FIND(" ",$B$3),"")="",SUMIFS('JP SC Raw Data'!$L:$L,'JP SC Raw Data'!$C:$C,"Q3",'JP SC Raw Data'!$F:$F,"S",'JP SC Raw Data'!$B:$B,"2015/16",'JP SC Raw Data'!$E:$E,$B$3),SUMIFS('JP SC Raw Data'!$L:$L,'JP SC Raw Data'!$C:$C,"Q3",'JP SC Raw Data'!$F:$F,"S",'JP SC Raw Data'!$B:$B,"2015/16",'JP SC Raw Data'!$A:$A,$B$3))) -> 1365 | L14: =IF($B$3="Fort William", SUMIFS('JP SC Raw Data'!$L:$L,'JP SC Raw Data'!$C:$C,"Q4",'JP SC Raw Data'!$F:$F,"S",'JP SC Raw Data'!$B:$B,"2015/16",'JP SC Raw Data'!$E:$E,$B$3), IF(IFERROR(FIND(" ",$B$3),"")="",SUMIFS('JP SC Raw Data'!$L:$L,'JP SC Raw Data'!$C:$C,"Q4",'JP SC Raw Data'!$F:$F,"S",'JP SC Raw Data'!$B:$B,"2015/16",'JP SC Raw Data'!$E:$E,$B$3),SUMIFS('JP SC Raw Data'!$L:$L,'JP SC Raw Data'!$C:$C,"Q4",'JP SC Raw Data'!$F:$F,"S",'JP SC Raw Data'!$B:$B,"2015/16",'JP SC Raw Data'!$A:$A,$B$3))) -> 1291 | M14: 5562 | N14: =IF($B$3="Fort William", SUMIFS('JP SC Raw Data'!$L:$L,'JP SC Raw Data'!$C:$C,"Q1",'JP SC Raw Data'!$F:$F,"S",'JP SC Raw Data'!$B:$B,"2016/17",'JP SC Raw Data'!$E:$E,$B$3), IF(IFERROR(FIND(" ",$B$3),"")="",SUMIFS('JP SC Raw Data'!$L:$L,'JP SC Raw Data'!$C:$C,"Q1",'JP SC Raw Data'!$F:$F,"S",'JP SC Raw Data'!$B:$B,"2016/17",'JP SC Raw Data'!$E:$E,$B$3),SUMIFS('JP SC Raw Data'!$L:$L,'JP SC Raw Data'!$C:$C,"Q1",'JP SC Raw Data'!$F:$F,"S",'JP SC Raw Data'!$B:$B,"2016/17",'JP SC Raw Data'!$A:$A,$B$3))) -> 1205 | O14: =IF($B$3="Fort William", SUMIFS('JP SC Raw Data'!$L:$L,'JP SC Raw Data'!$C:$C,"Q2",'JP SC Raw Data'!$F:$F,"S",'JP SC Raw Data'!$B:$B,"2016/17",'JP SC Raw Data'!$E:$E,$B$3), IF(IFERROR(FIND(" ",$B$3),"")="",SUMIFS('JP SC Raw Data'!$L:$L,'JP SC Raw Data'!$C:$C,"Q2",'JP SC Raw Data'!$F:$F,"S",'JP SC Raw Data'!$B:$B,"2016/17",'JP SC Raw Data'!$E:$E,$B$3),SUMIFS('JP SC Raw Data'!$L:$L,'JP SC Raw Data'!$C:$C,"Q2",'JP SC Raw Data'!$F:$F,"S",'JP SC Raw Data'!$B:$B,"2016/17",'JP SC Raw Data'!$A:$A,$B$3))) -> 1112 | P14: =IF($B$3="Fort William", SUMIFS('JP SC Raw Data'!$L:$L,'JP SC Raw Data'!$C:$C,"Q3",'JP SC Raw Data'!$F:$F,"S",'JP SC Raw Data'!$B:$B,"2016/17",'JP SC Raw Data'!$E:$E,$B$3), IF(IFERROR(FIND(" ",$B$3),"")="",SUMIFS('JP SC Raw Data'!$L:$L,'JP SC Raw Data'!$C:$C,"Q3",'JP SC Raw Data'!$F:$F,"S",'JP SC Raw Data'!$B:$B,"2016/17",'JP SC Raw Data'!$E:$E,$B$3),SUMIFS('JP SC Raw Data'!$L:$L,'JP SC Raw Data'!$C:$C,"Q3",'JP SC Raw Data'!$F:$F,"S",'JP SC Raw Data'!$B:$B,"2016/17",'JP SC Raw Data'!$A:$A,$B$3))) -> 988 | Q14: =IF($B$3="Fort William", SUMIFS('JP SC Raw Data'!$L:$L,'JP SC Raw Data'!$C:$C,"Q4",'JP SC Raw Data'!$F:$F,"S",'JP SC Raw Data'!$B:$B,"2016/17",'JP SC Raw Data'!$E:$E,$B$3), IF(IFERROR(FIND(" ",$B$3),"")="",SUMIFS('JP SC Raw Data'!$L:$L,'JP SC Raw Data'!$C:$C,"Q4",'JP SC Raw Data'!$F:$F,"S",'JP SC Raw Data'!$B:$B,"2016/17",'JP SC Raw Data'!$E:$E,$B$3),SUMIFS('JP SC Raw Data'!$L:$L,'JP SC Raw Data'!$C:$C,"Q4",'JP SC Raw Data'!$F:$F,"S",'JP SC Raw Data'!$B:$B,"2016/17",'JP SC Raw Data'!$A:$A,$B$3))) -> 989 | R14: 4294 | S14: =IF($B$3="Fort William", SUMIFS('JP SC Raw Data'!$L:$L,'JP SC Raw Data'!$C:$C,"Q1",'JP SC Raw Data'!$F:$F,"S",'JP SC Raw Data'!$B:$B,"2017/18",'JP SC Raw Data'!$E:$E,$B$3), IF(IFERROR(FIND(" ",$B$3),"")="",SUMIFS('JP SC Raw Data'!$L:$L,'JP SC Raw Data'!$C:$C,"Q1",'JP SC Raw Data'!$F:$F,"S",'JP SC Raw Data'!$B:$B,"2017/18",'JP SC Raw Data'!$E:$E,$B$3),SUMIFS('JP SC Raw Data'!$L:$L,'JP SC Raw Data'!$C:$C,"Q1",'JP SC Raw Data'!$F:$F,"S",'JP SC Raw Data'!$B:$B,"2017/18",'JP SC Raw Data'!$A:$A,$B$3))) -> 912 | T14: =IF($B$3="Fort William", SUMIFS('JP SC Raw Data'!$L:$L,'JP SC Raw Data'!$C:$C,"Q2",'JP SC Raw Data'!$F:$F,"S",'JP SC Raw Data'!$B:$B,"2017/18",'JP SC Raw Data'!$E:$E,$B$3), IF(IFERROR(FIND(" ",$B$3),"")="",SUMIFS('JP SC Raw Data'!$L:$L,'JP SC Raw Data'!$C:$C,"Q2",'JP SC Raw Data'!$F:$F,"S",'JP SC Raw Data'!$B:$B,"2017/18",'JP SC Raw Data'!$E:$E,$B$3),SUMIFS('JP SC Raw Data'!$L:$L,'JP SC Raw Data'!$C:$C,"Q2",'JP SC Raw Data'!$F:$F,"S",'JP SC Raw Data'!$B:$B,"2017/18",'JP SC Raw Data'!$A:$A,$B$3))) -> 698 | U14: =IF($B$3="Fort William", SUMIFS('JP SC Raw Data'!$L:$L,'JP SC Raw Data'!$C:$C,"Q3",'JP SC Raw Data'!$F:$F,"S",'JP SC Raw Data'!$B:$B,"2017/18",'JP SC Raw Data'!$E:$E,$B$3), IF(IFERROR(FIND(" ",$B$3),"")="",SUMIFS('JP SC Raw Data'!$L:$L,'JP SC Raw Data'!$C:$C,"Q3",'JP SC Raw Data'!$F:$F,"S",'JP SC Raw Data'!$B:$B,"2017/18",'JP SC Raw Data'!$E:$E,$B$3),SUMIFS('JP SC Raw Data'!$L:$L,'JP SC Raw Data'!$C:$C,"Q3",'JP SC Raw Data'!$F:$F,"S",'JP SC Raw Data'!$B:$B,"2017/18",'JP SC Raw Data'!$A:$A,$B$3))) -> 558 | V14: =IF($B$3="Fort William", SUMIFS('JP SC Raw Data'!$L:$L,'JP SC Raw Data'!$C:$C,"Q4",'JP SC Raw Data'!$F:$F,"S",'JP SC Raw Data'!$B:$B,"2017/18",'JP SC Raw Data'!$E:$E,$B$3), IF(IFERROR(FIND(" ",$B$3),"")="",SUMIFS('JP SC Raw Data'!$L:$L,'JP SC Raw Data'!$C:$C,"Q4",'JP SC Raw Data'!$F:$F,"S",'JP SC Raw Data'!$B:$B,"2017/18",'JP SC Raw Data'!$E:$E,$B$3),SUMIFS('JP SC Raw Data'!$L:$L,'JP SC Raw Data'!$C:$C,"Q4",'JP SC Raw Data'!$F:$F,"S",'JP SC Raw Data'!$B:$B,"2017/18",'JP SC Raw Data'!$A:$A,$B$3))) -> 665 | W14: 2833 | X14: =IF($B$3="Fort William", SUMIFS('JP SC Raw Data'!$L:$L,'JP SC Raw Data'!$C:$C,"Q1",'JP SC Raw Data'!$F:$F,"S",'JP SC Raw Data'!$B:$B,"2018/19",'JP SC Raw Data'!$E:$E,$B$3), IF(IFERROR(FIND(" ",$B$3),"")="",SUMIFS('JP SC Raw Data'!$L:$L,'JP SC Raw Data'!$C:$C,"Q1",'JP SC Raw Data'!$F:$F,"S",'JP SC Raw Data'!$B:$B,"2018/19",'JP SC Raw Data'!$E:$E,$B$3),SUMIFS('JP SC Raw Data'!$L:$L,'JP SC Raw Data'!$C:$C,"Q1",'JP SC Raw Data'!$F:$F,"S",'JP SC Raw Data'!$B:$B,"2018/19",'JP SC Raw Data'!$A:$A,$B$3))) -> 664 | Y14: =IF($B$3="Fort William", SUMIFS('JP SC Raw Data'!$L:$L,'JP SC Raw Data'!$C:$C,"Q2",'JP SC Raw Data'!$F:$F,"S",'JP SC Raw Data'!$B:$B,"2018/19",'JP SC Raw Data'!$E:$E,$B$3), IF(IFERROR(FIND(" ",$B$3),"")="",SUMIFS('JP SC Raw Data'!$L:$L,'JP SC Raw Data'!$C:$C,"Q2",'JP SC Raw Data'!$F:$F,"S",'JP SC Raw Data'!$B:$B,"2018/19",'JP SC Raw Data'!$E:$E,$B$3),SUMIFS('JP SC Raw Data'!$L:$L,'JP SC Raw Data'!$C:$C,"Q2",'JP SC Raw Data'!$F:$F,"S",'JP SC Raw Data'!$B:$B,"2018/19",'JP SC Raw Data'!$A:$A,$B$3))) -> 701 | Z14: =IF($B$3="Fort William", SUMIFS('JP SC Raw Data'!$L:$L,'JP SC Raw Data'!$C:$C,"Q3",'JP SC Raw Data'!$F:$F,"S",'JP SC Raw Data'!$B:$B,"2018/19",'JP SC Raw Data'!$E:$E,$B$3), IF(IFERROR(FIND(" ",$B$3),"")="",SUMIFS('JP SC Raw Data'!$L:$L,'JP SC Raw Data'!$C:$C,"Q3",'JP SC Raw Data'!$F:$F,"S",'JP SC Raw Data'!$B:$B,"2018/19",'JP SC Raw Data'!$E:$E,$B$3),SUMIFS('JP SC Raw Data'!$L:$L,'JP SC Raw Data'!$C:$C,"Q3",'JP SC Raw Data'!$F:$F,"S",'JP SC Raw Data'!$B:$B,"2018/19",'JP SC Raw Data'!$A:$A,$B$3))) -> 721 | AA14: =IF($B$3="Fort William", SUMIFS('JP SC Raw Data'!$L:$L,'JP SC Raw Data'!$C:$C,"Q4",'JP SC Raw Data'!$F:$F,"S",'JP SC Raw Data'!$B:$B,"2018/19",'JP SC Raw Data'!$E:$E,$B$3), IF(IFERROR(FIND(" ",$B$3),"")="",SUMIFS('JP SC Raw Data'!$L:$L,'JP SC Raw Data'!$C:$C,"Q4",'JP SC Raw Data'!$F:$F,"S",'JP SC Raw Data'!$B:$B,"2018/19",'JP SC Raw Data'!$E:$E,$B$3),SUMIFS('JP SC Raw Data'!$L:$L,'JP SC Raw Data'!$C:$C,"Q4",'JP SC Raw Data'!$F:$F,"S",'JP SC Raw Data'!$B:$B,"2018/19",'JP SC Raw Data'!$A:$A,$B$3))) -> 762 | AB14: 2848 | AC14: =IF($B$3="Fort William", SUMIFS('JP SC Raw Data'!$L:$L,'JP SC Raw Data'!$C:$C,"Q1",'JP SC Raw Data'!$F:$F,"S",'JP SC Raw Data'!$B:$B,"2019/20",'JP SC Raw Data'!$E:$E,$B$3), IF(IFERROR(FIND(" ",$B$3),"")="",SUMIFS('JP SC Raw Data'!$L:$L,'JP SC Raw Data'!$C:$C,"Q1",'JP SC Raw Data'!$F:$F,"S",'JP SC Raw Data'!$B:$B,"2019/20",'JP SC Raw Data'!$E:$E,$B$3),SUMIFS('JP SC Raw Data'!$L:$L,'JP SC Raw Data'!$C:$C,"Q1",'JP SC Raw Data'!$F:$F,"S",'JP SC Raw Data'!$B:$B,"2019/20",'JP SC Raw Data'!$A:$A,$B$3))) -> 835 | AD14: =IF($B$3="Fort William", SUMIFS('JP SC Raw Data'!$L:$L,'JP SC Raw Data'!$C:$C,"Q2",'JP SC Raw Data'!$F:$F,"S",'JP SC Raw Data'!$B:$B,"2019/20",'JP SC Raw Data'!$E:$E,$B$3), IF(IFERROR(FIND(" ",$B$3),"")="",SUMIFS('JP SC Raw Data'!$L:$L,'JP SC Raw Data'!$C:$C,"Q2",'JP SC Raw Data'!$F:$F,"S",'JP SC Raw Data'!$B:$B,"2019/20",'JP SC Raw Data'!$E:$E,$B$3),SUMIFS('JP SC Raw Data'!$L:$L,'JP SC Raw Data'!$C:$C,"Q2",'JP SC Raw Data'!$F:$F,"S",'JP SC Raw Data'!$B:$B,"2019/20",'JP SC Raw Data'!$A:$A,$B$3))) -> 792 | AE14: =IF($B$3="Fort William", SUMIFS('JP SC Raw Data'!$L:$L,'JP SC Raw Data'!$C:$C,"Q3",'JP SC Raw Data'!$F:$F,"S",'JP SC Raw Data'!$B:$B,"2019/20",'JP SC Raw Data'!$E:$E,$B$3), IF(IFERROR(FIND(" ",$B$3),"")="",SUMIFS('JP SC Raw Data'!$L:$L,'JP SC Raw Data'!$C:$C,"Q3",'JP SC Raw Data'!$F:$F,"S",'JP SC Raw Data'!$B:$B,"2019/20",'JP SC Raw Data'!$E:$E,$B$3),SUMIFS('JP SC Raw Data'!$L:$L,'JP SC Raw Data'!$C:$C,"Q3",'JP SC Raw Data'!$F:$F,"S",'JP SC Raw Data'!$B:$B,"2019/20",'JP SC Raw Data'!$A:$A,$B$3))) -> 749 | AF14: =IF($B$3="Fort William", SUMIFS('JP SC Raw Data'!$L:$L,'JP SC Raw Data'!$C:$C,"Q4",'JP SC Raw Data'!$F:$F,"S",'JP SC Raw Data'!$B:$B,"2019/20",'JP SC Raw Data'!$E:$E,$B$3), IF(IFERROR(FIND(" ",$B$3),"")="",SUMIFS('JP SC Raw Data'!$L:$L,'JP SC Raw Data'!$C:$C,"Q4",'JP SC Raw Data'!$F:$F,"S",'JP SC Raw Data'!$B:$B,"2019/20",'JP SC Raw Data'!$E:$E,$B$3),SUMIFS('JP SC Raw Data'!$L:$L,'JP SC Raw Data'!$C:$C,"Q4",'JP SC Raw Data'!$F:$F,"S",'JP SC Raw Data'!$B:$B,"2019/20",'JP SC Raw Data'!$A:$A,$B$3))) -> 766 | AG14: 3142 | AH14: =IF($B$3="Fort William", SUMIFS('JP SC Raw Data'!$L:$L,'JP SC Raw Data'!$C:$C,"Q1",'JP SC Raw Data'!$F:$F,"S",'JP SC Raw Data'!$B:$B,"2020/21",'JP SC Raw Data'!$E:$E,$B$3), IF(IFERROR(FIND(" ",$B$3),"")="",SUMIFS('JP SC Raw Data'!$L:$L,'JP SC Raw Data'!$C:$C,"Q1",'JP SC Raw Data'!$F:$F,"S",'JP SC Raw Data'!$B:$B,"2020/21",'JP SC Raw Data'!$E:$E,$B$3),SUMIFS('JP SC Raw Data'!$L:$L,'JP SC Raw Data'!$C:$C,"Q1",'JP SC Raw Data'!$F:$F,"S",'JP SC Raw Data'!$B:$B,"2020/21",'JP SC Raw Data'!$A:$A,$B$3))) -> 155 | AI14: =IF($B$3="Fort William", SUMIFS('JP SC Raw Data'!$L:$L,'JP SC Raw Data'!$C:$C,"Q2",'JP SC Raw Data'!$F:$F,"S",'JP SC Raw Data'!$B:$B,"2020/21",'JP SC Raw Data'!$E:$E,$B$3), IF(IFERROR(FIND(" ",$B$3),"")="",SUMIFS('JP SC Raw Data'!$L:$L,'JP SC Raw Data'!$C:$C,"Q2",'JP SC Raw Data'!$F:$F,"S",'JP SC Raw Data'!$B:$B,"2020/21",'JP SC Raw Data'!$E:$E,$B$3),SUMIFS('JP SC Raw Data'!$L:$L,'JP SC Raw Data'!$C:$C,"Q2",'JP SC Raw Data'!$F:$F,"S",'JP SC Raw Data'!$B:$B,"2020/21",'JP SC Raw Data'!$A:$A,$B$3))) -> 302 | AJ14: =IF($B$3="Fort William", SUMIFS('JP SC Raw Data'!$L:$L,'JP SC Raw Data'!$C:$C,"Q3",'JP SC Raw Data'!$F:$F,"S",'JP SC Raw Data'!$B:$B,"2020/21",'JP SC Raw Data'!$E:$E,$B$3), IF(IFERROR(FIND(" ",$B$3),"")="",SUMIFS('JP SC Raw Data'!$L:$L,'JP SC Raw Data'!$C:$C,"Q3",'JP SC Raw Data'!$F:$F,"S",'JP SC Raw Data'!$B:$B,"2020/21",'JP SC Raw Data'!$E:$E,$B$3),SUMIFS('JP SC Raw Data'!$L:$L,'JP SC Raw Data'!$C:$C,"Q3",'JP SC Raw Data'!$F:$F,"S",'JP SC Raw Data'!$B:$B,"2020/21",'JP SC Raw Data'!$A:$A,$B$3))) -> 298 | AK14: =IF($B$3="Fort William", SUMIFS('JP SC Raw Data'!$L:$L,'JP SC Raw Data'!$C:$C,"Q4",'JP SC Raw Data'!$F:$F,"S",'JP SC Raw Data'!$B:$B,"2020/21",'JP SC Raw Data'!$E:$E,$B$3), IF(IFERROR(FIND(" ",$B$3),"")="",SUMIFS('JP SC Raw Data'!$L:$L,'JP SC Raw Data'!$C:$C,"Q4",'JP SC Raw Data'!$F:$F,"S",'JP SC Raw Data'!$B:$B,"2020/21",'JP SC Raw Data'!$E:$E,$B$3),SUMIFS('JP SC Raw Data'!$L:$L,'JP SC Raw Data'!$C:$C,"Q4",'JP SC Raw Data'!$F:$F,"S",'JP SC Raw Data'!$B:$B,"2020/21",'JP SC Raw Data'!$A:$A,$B$3))) -> 834 | AL14: 1589 | AM14: =IF($B$3="Fort William", SUMIFS('JP SC Raw Data'!$L:$L,'JP SC Raw Data'!$C:$C,"Q1",'JP SC Raw Data'!$F:$F,"S",'JP SC Raw Data'!$B:$B,"2021/22",'JP SC Raw Data'!$E:$E,$B$3), IF(IFERROR(FIND(" ",$B$3),"")="",SUMIFS('JP SC Raw Data'!$L:$L,'JP SC Raw Data'!$C:$C,"Q1",'JP SC Raw Data'!$F:$F,"S",'JP SC Raw Data'!$B:$B,"2021/22",'JP SC Raw Data'!$E:$E,$B$3),SUMIFS('JP SC Raw Data'!$L:$L,'JP SC Raw Data'!$C:$C,"Q1",'JP SC Raw Data'!$F:$F,"S",'JP SC Raw Data'!$B:$B,"2021/22",'JP SC Raw Data'!$A:$A,$B$3))) -> 1113 | AN14: =IF($B$3="Fort William", SUMIFS('JP SC Raw Data'!$L:$L,'JP SC Raw Data'!$C:$C,"Q2",'JP SC Raw Data'!$F:$F,"S",'JP SC Raw Data'!$B:$B,"2021/22",'JP SC Raw Data'!$E:$E,$B$3), IF(IFERROR(FIND(" ",$B$3),"")="",SUMIFS('JP SC Raw Data'!$L:$L,'JP SC Raw Data'!$C:$C,"Q2",'JP SC Raw Data'!$F:$F,"S",'JP SC Raw Data'!$B:$B,"2021/22",'JP SC Raw Data'!$E:$E,$B$3),SUMIFS('JP SC Raw Data'!$L:$L,'JP SC Raw Data'!$C:$C,"Q2",'JP SC Raw Data'!$F:$F,"S",'JP SC Raw Data'!$B:$B,"2021/22",'JP SC Raw Data'!$A:$A,$B$3))) -> 1128 | AO14: =IF($B$3="Fort William", SUMIFS('JP SC Raw Data'!$L:$L,'JP SC Raw Data'!$C:$C,"Q3",'JP SC Raw Data'!$F:$F,"S",'JP SC Raw Data'!$B:$B,"2021/22",'JP SC Raw Data'!$E:$E,$B$3), IF(IFERROR(FIND(" ",$B$3),"")="",SUMIFS('JP SC Raw Data'!$L:$L,'JP SC Raw Data'!$C:$C,"Q3",'JP SC Raw Data'!$F:$F,"S",'JP SC Raw Data'!$B:$B,"2021/22",'JP SC Raw Data'!$E:$E,$B$3),SUMIFS('JP SC Raw Data'!$L:$L,'JP SC Raw Data'!$C:$C,"Q3",'JP SC Raw Data'!$F:$F,"S",'JP SC Raw Data'!$B:$B,"2021/22",'JP SC Raw Data'!$A:$A,$B$3))) -> 929 | AP14: =IF($B$3="Fort William", SUMIFS('JP SC Raw Data'!$L:$L,'JP SC Raw Data'!$C:$C,"Q4",'JP SC Raw Data'!$F:$F,"S",'JP SC Raw Data'!$B:$B,"2021/22",'JP SC Raw Data'!$E:$E,$B$3), IF(IFERROR(FIND(" ",$B$3),"")="",SUMIFS('JP SC Raw Data'!$L:$L,'JP SC Raw Data'!$C:$C,"Q4",'JP SC Raw Data'!$F:$F,"S",'JP SC Raw Data'!$B:$B,"2021/22",'JP SC Raw Data'!$E:$E,$B$3),SUMIFS('JP SC Raw Data'!$L:$L,'JP SC Raw Data'!$C:$C,"Q4",'JP SC Raw Data'!$F:$F,"S",'JP SC Raw Data'!$B:$B,"2021/22",'JP SC Raw Data'!$A:$A,$B$3))) -> 1289 | AQ14: 4459
B15: Trials Called - Evidence Led | D15: =IF($B$3="Fort William", SUMIFS('JP SC Raw Data'!$M:$M,'JP SC Raw Data'!$C:$C,"Q1",'JP SC Raw Data'!$F:$F,"S",'JP SC Raw Data'!$B:$B,"2014/15",'JP SC Raw Data'!$E:$E,$B$3), IF(IFERROR(FIND(" ",$B$3),"")="",SUMIFS('JP SC Raw Data'!$M:$M,'JP SC Raw Data'!$C:$C,"Q1",'JP SC Raw Data'!$F:$F,"S",'JP SC Raw Data'!$B:$B,"2014/15",'JP SC Raw Data'!$E:$E,$B$3),SUMIFS('JP SC Raw Data'!$M:$M,'JP SC Raw Data'!$C:$C,"Q1",'JP SC Raw Data'!$F:$F,"S",'JP SC Raw Data'!$B:$B,"2014/15",'JP SC Raw Data'!$A:$A,$B$3))) -> 345 | E15: =IF($B$3="Fort William", SUMIFS('JP SC Raw Data'!$M:$M,'JP SC Raw Data'!$C:$C,"Q2",'JP SC Raw Data'!$F:$F,"S",'JP SC Raw Data'!$B:$B,"2014/15",'JP SC Raw Data'!$E:$E,$B$3), IF(IFERROR(FIND(" ",$B$3),"")="",SUMIFS('JP SC Raw Data'!$M:$M,'JP SC Raw Data'!$C:$C,"Q2",'JP SC Raw Data'!$F:$F,"S",'JP SC Raw Data'!$B:$B,"2014/15",'JP SC Raw Data'!$E:$E,$B$3),SUMIFS('JP SC Raw Data'!$M:$M,'JP SC Raw Data'!$C:$C,"Q2",'JP SC Raw Data'!$F:$F,"S",'JP SC Raw Data'!$B:$B,"2014/15",'JP SC Raw Data'!$A:$A,$B$3))) -> 344 | F15: =IF($B$3="Fort William", SUMIFS('JP SC Raw Data'!$M:$M,'JP SC Raw Data'!$C:$C,"Q3",'JP SC Raw Data'!$F:$F,"S",'JP SC Raw Data'!$B:$B,"2014/15",'JP SC Raw Data'!$E:$E,$B$3), IF(IFERROR(FIND(" ",$B$3),"")="",SUMIFS('JP SC Raw Data'!$M:$M,'JP SC Raw Data'!$C:$C,"Q3",'JP SC Raw Data'!$F:$F,"S",'JP SC Raw Data'!$B:$B,"2014/15",'JP SC Raw Data'!$E:$E,$B$3),SUMIFS('JP SC Raw Data'!$M:$M,'JP SC Raw Data'!$C:$C,"Q3",'JP SC Raw Data'!$F:$F,"S",'JP SC Raw Data'!$B:$B,"2014/15",'JP SC Raw Data'!$A:$A,$B$3))) -> 350 | G15: =IF($B$3="Fort William", SUMIFS('JP SC Raw Data'!$M:$M,'JP SC Raw Data'!$C:$C,"Q4",'JP SC Raw Data'!$F:$F,"S",'JP SC Raw Data'!$B:$B,"2014/15",'JP SC Raw Data'!$E:$E,$B$3), IF(IFERROR(FIND(" ",$B$3),"")="",SUMIFS('JP SC Raw Data'!$M:$M,'JP SC Raw Data'!$C:$C,"Q4",'JP SC Raw Data'!$F:$F,"S",'JP SC Raw Data'!$B:$B,"2014/15",'JP SC Raw Data'!$E:$E,$B$3),SUMIFS('JP SC Raw Data'!$M:$M,'JP SC Raw Data'!$C:$C,"Q4",'JP SC Raw Data'!$F:$F,"S",'JP SC Raw Data'!$B:$B,"2014/15",'JP SC Raw Data'!$A:$A,$B$3))) -> 391 | H15: 1430 | I15: =IF($B$3="Fort William", SUMIFS('JP SC Raw Data'!$M:$M,'JP SC Raw Data'!$C:$C,"Q1",'JP SC Raw Data'!$F:$F,"S",'JP SC Raw Data'!$B:$B,"2015/16",'JP SC Raw Data'!$E:$E,$B$3), IF(IFERROR(FIND(" ",$B$3),"")="",SUMIFS('JP SC Raw Data'!$M:$M,'JP SC Raw Data'!$C:$C,"Q1",'JP SC Raw Data'!$F:$F,"S",'JP SC Raw Data'!$B:$B,"2015/16",'JP SC Raw Data'!$E:$E,$B$3),SUMIFS('JP SC Raw Data'!$M:$M,'JP SC Raw Data'!$C:$C,"Q1",'JP SC Raw Data'!$F:$F,"S",'JP SC Raw Data'!$B:$B,"2015/16",'JP SC Raw Data'!$A:$A,$B$3))) -> 377 | J15: =IF($B$3="Fort William", SUMIFS('JP SC Raw Data'!$M:$M,'JP SC Raw Data'!$C:$C,"Q2",'JP SC Raw Data'!$F:$F,"S",'JP SC Raw Data'!$B:$B,"2015/16",'JP SC Raw Data'!$E:$E,$B$3), IF(IFERROR(FIND(" ",$B$3),"")="",SUMIFS('JP SC Raw Data'!$M:$M,'JP SC Raw Data'!$C:$C,"Q2",'JP SC Raw Data'!$F:$F,"S",'JP SC Raw Data'!$B:$B,"2015/16",'JP SC Raw Data'!$E:$E,$B$3),SUMIFS('JP SC Raw Data'!$M:$M,'JP SC Raw Data'!$C:$C,"Q2",'JP SC Raw Data'!$F:$F,"S",'JP SC Raw Data'!$B:$B,"2015/16",'JP SC Raw Data'!$A:$A,$B$3))) -> 398 | K15: =IF($B$3="Fort William", SUMIFS('JP SC Raw Data'!$M:$M,'JP SC Raw Data'!$C:$C,"Q3",'JP SC Raw Data'!$F:$F,"S",'JP SC Raw Data'!$B:$B,"2015/16",'JP SC Raw Data'!$E:$E,$B$3), IF(IFERROR(FIND(" ",$B$3),"")="",SUMIFS('JP SC Raw Data'!$M:$M,'JP SC Raw Data'!$C:$C,"Q3",'JP SC Raw Data'!$F:$F,"S",'JP SC Raw Data'!$B:$B,"2015/16",'JP SC Raw Data'!$E:$E,$B$3),SUMIFS('JP SC Raw Data'!$M:$M,'JP SC Raw Data'!$C:$C,"Q3",'JP SC Raw Data'!$F:$F,"S",'JP SC Raw Data'!$B:$B,"2015/16",'JP SC Raw Data'!$A:$A,$B$3))) -> 334 | L15: =IF($B$3="Fort William", SUMIFS('JP SC Raw Data'!$M:$M,'JP SC Raw Data'!$C:$C,"Q4",'JP SC Raw Data'!$F:$F,"S",'JP SC Raw Data'!$B:$B,"2015/16",'JP SC Raw Data'!$E:$E,$B$3), IF(IFERROR(FIND(" ",$B$3),"")="",SUMIFS('JP SC Raw Data'!$M:$M,'JP SC Raw Data'!$C:$C,"Q4",'JP SC Raw Data'!$F:$F,"S",'JP SC Raw Data'!$B:$B,"2015/16",'JP SC Raw Data'!$E:$E,$B$3),SUMIFS('JP SC Raw Data'!$M:$M,'JP SC Raw Data'!$C:$C,"Q4",'JP SC Raw Data'!$F:$F,"S",'JP SC Raw Data'!$B:$B,"2015/16",'JP SC Raw Data'!$A:$A,$B$3))) -> 388 | M15: 1497 | N15: =IF($B$3="Fort William", SUMIFS('JP SC Raw Data'!$M:$M,'JP SC Raw Data'!$C:$C,"Q1",'JP SC Raw Data'!$F:$F,"S",'JP SC Raw Data'!$B:$B,"2016/17",'JP SC Raw Data'!$E:$E,$B$3), IF(IFERROR(FIND(" ",$B$3),"")="",SUMIFS('JP SC Raw Data'!$M:$M,'JP SC Raw Data'!$C:$C,"Q1",'JP SC Raw Data'!$F:$F,"S",'JP SC Raw Data'!$B:$B,"2016/17",'JP SC Raw Data'!$E:$E,$B$3),SUMIFS('JP SC Raw Data'!$M:$M,'JP SC Raw Data'!$C:$C,"Q1",'JP SC Raw Data'!$F:$F,"S",'JP SC Raw Data'!$B:$B,"2016/17",'JP SC Raw Data'!$A:$A,$B$3))) -> 350 | O15: =IF($B$3="Fort William", SUMIFS('JP SC Raw Data'!$M:$M,'JP SC Raw Data'!$C:$C,"Q2",'JP SC Raw Data'!$F:$F,"S",'JP SC Raw Data'!$B:$B,"2016/17",'JP SC Raw Data'!$E:$E,$B$3), IF(IFERROR(FIND(" ",$B$3),"")="",SUMIFS('JP SC Raw Data'!$M:$M,'JP SC Raw Data'!$C:$C,"Q2",'JP SC Raw Data'!$F:$F,"S",'JP SC Raw Data'!$B:$B,"2016/17",'JP SC Raw Data'!$E:$E,$B$3),SUMIFS('JP SC Raw Data'!$M:$M,'JP SC Raw Data'!$C:$C,"Q2",'JP SC Raw Data'!$F:$F,"S",'JP SC Raw Data'!$B:$B,"2016/17",'JP SC Raw Data'!$A:$A,$B$3))) -> 353 | P15: =IF($B$3="Fort William", SUMIFS('JP SC Raw Data'!$M:$M,'JP SC Raw Data'!$C:$C,"Q3",'JP SC Raw Data'!$F:$F,"S",'JP SC Raw Data'!$B:$B,"2016/17",'JP SC Raw Data'!$E:$E,$B$3), IF(IFERROR(FIND(" ",$B$3),"")="",SUMIFS('JP SC Raw Data'!$M:$M,'JP SC Raw Data'!$C:$C,"Q3",'JP SC Raw Data'!$F:$F,"S",'JP SC Raw Data'!$B:$B,"2016/17",'JP SC Raw Data'!$E:$E,$B$3),SUMIFS('JP SC Raw Data'!$M:$M,'JP SC Raw Data'!$C:$C,"Q3",'JP SC Raw Data'!$F:$F,"S",'JP SC Raw Data'!$B:$B,"2016/17",'JP SC Raw Data'!$A:$A,$B$3))) -> 292 | Q15: =IF($B$3="Fort William", SUMIFS('JP SC Raw Data'!$M:$M,'JP SC Raw Data'!$C:$C,"Q4",'JP SC Raw Data'!$F:$F,"S",'JP SC Raw Data'!$B:$B,"2016/17",'JP SC Raw Data'!$E:$E,$B$3), IF(IFERROR(FIND(" ",$B$3),"")="",SUMIFS('JP SC Raw Data'!$M:$M,'JP SC Raw Data'!$C:$C,"Q4",'JP SC Raw Data'!$F:$F,"S",'JP SC Raw Data'!$B:$B,"2016/17",'JP SC Raw Data'!$E:$E,$B$3),SUMIFS('JP SC Raw Data'!$M:$M,'JP SC Raw Data'!$C:$C,"Q4",'JP SC Raw Data'!$F:$F,"S",'JP SC Raw Data'!$B:$B,"2016/17",'JP SC Raw Data'!$A:$A,$B$3))) -> 319 | R15: 1314 | S15: =IF($B$3="Fort William", SUMIFS('JP SC Raw Data'!$M:$M,'JP SC Raw Data'!$C:$C,"Q1",'JP SC Raw Data'!$F:$F,"S",'JP SC Raw Data'!$B:$B,"2017/18",'JP SC Raw Data'!$E:$E,$B$3), IF(IFERROR(FIND(" ",$B$3),"")="",SUMIFS('JP SC Raw Data'!$M:$M,'JP SC Raw Data'!$C:$C,"Q1",'JP SC Raw Data'!$F:$F,"S",'JP SC Raw Data'!$B:$B,"2017/18",'JP SC Raw Data'!$E:$E,$B$3),SUMIFS('JP SC Raw Data'!$M:$M,'JP SC Raw Data'!$C:$C,"Q1",'JP SC Raw Data'!$F:$F,"S",'JP SC Raw Data'!$B:$B,"2017/18",'JP SC Raw Data'!$A:$A,$B$3))) -> 311 | T15: =IF($B$3="Fort William", SUMIFS('JP SC Raw Data'!$M:$M,'JP SC Raw Data'!$C:$C,"Q2",'JP SC Raw Data'!$F:$F,"S",'JP SC Raw Data'!$B:$B,"2017/18",'JP SC Raw Data'!$E:$E,$B$3), IF(IFERROR(FIND(" ",$B$3),"")="",SUMIFS('JP SC Raw Data'!$M:$M,'JP SC Raw Data'!$C:$C,"Q2",'JP SC Raw Data'!$F:$F,"S",'JP SC Raw Data'!$B:$B,"2017/18",'JP SC Raw Data'!$E:$E,$B$3),SUMIFS('JP SC Raw Data'!$M:$M,'JP SC Raw Data'!$C:$C,"Q2",'JP SC Raw Data'!$F:$F,"S",'JP SC Raw Data'!$B:$B,"2017/18",'JP SC Raw Data'!$A:$A,$B$3))) -> 257 | U15: =IF($B$3="Fort William", SUMIFS('JP SC Raw Data'!$M:$M,'JP SC Raw Data'!$C:$C,"Q3",'JP SC Raw Data'!$F:$F,"S",'JP SC Raw Data'!$B:$B,"2017/18",'JP SC Raw Data'!$E:$E,$B$3), IF(IFERROR(FIND(" ",$B$3),"")="",SUMIFS('JP SC Raw Data'!$M:$M,'JP SC Raw Data'!$C:$C,"Q3",'JP SC Raw Data'!$F:$F,"S",'JP SC Raw Data'!$B:$B,"2017/18",'JP SC Raw Data'!$E:$E,$B$3),SUMIFS('JP SC Raw Data'!$M:$M,'JP SC Raw Data'!$C:$C,"Q3",'JP SC Raw Data'!$F:$F,"S",'JP SC Raw Data'!$B:$B,"2017/18",'JP SC Raw Data'!$A:$A,$B$3))) -> 222 | V15: =IF($B$3="Fort William", SUMIFS('JP SC Raw Data'!$M:$M,'JP SC Raw Data'!$C:$C,"Q4",'JP SC Raw Data'!$F:$F,"S",'JP SC Raw Data'!$B:$B,"2017/18",'JP SC Raw Data'!$E:$E,$B$3), IF(IFERROR(FIND(" ",$B$3),"")="",SUMIFS('JP SC Raw Data'!$M:$M,'JP SC Raw Data'!$C:$C,"Q4",'JP SC Raw Data'!$F:$F,"S",'JP SC Raw Data'!$B:$B,"2017/18",'JP SC Raw Data'!$E:$E,$B$3),SUMIFS('JP SC Raw Data'!$M:$M,'JP SC Raw Data'!$C:$C,"Q4",'JP SC Raw Data'!$F:$F,"S",'JP SC Raw Data'!$B:$B,"2017/18",'JP SC Raw Data'!$A:$A,$B$3))) -> 251 | W15: 1041 | X15: =IF($B$3="Fort William", SUMIFS('JP SC Raw Data'!$M:$M,'JP SC Raw Data'!$C:$C,"Q1",'JP SC Raw Data'!$F:$F,"S",'JP SC Raw Data'!$B:$B,"2018/19",'JP SC Raw Data'!$E:$E,$B$3), IF(IFERROR(FIND(" ",$B$3),"")="",SUMIFS('JP SC Raw Data'!$M:$M,'JP SC Raw Data'!$C:$C,"Q1",'JP SC Raw Data'!$F:$F,"S",'JP SC Raw Data'!$B:$B,"2018/19",'JP SC Raw Data'!$E:$E,$B$3),SUMIFS('JP SC Raw Data'!$M:$M,'JP SC Raw Data'!$C:$C,"Q1",'JP SC Raw Data'!$F:$F,"S",'JP SC Raw Data'!$B:$B,"2018/19",'JP SC Raw Data'!$A:$A,$B$3))) -> 273 | Y15: =IF($B$3="Fort William", SUMIFS('JP SC Raw Data'!$M:$M,'JP SC Raw Data'!$C:$C,"Q2",'JP SC Raw Data'!$F:$F,"S",'JP SC Raw Data'!$B:$B,"2018/19",'JP SC Raw Data'!$E:$E,$B$3), IF(IFERROR(FIND(" ",$B$3),"")="",SUMIFS('JP SC Raw Data'!$M:$M,'JP SC Raw Data'!$C:$C,"Q2",'JP SC Raw Data'!$F:$F,"S",'JP SC Raw Data'!$B:$B,"2018/19",'JP SC Raw Data'!$E:$E,$B$3),SUMIFS('JP SC Raw Data'!$M:$M,'JP SC Raw Data'!$C:$C,"Q2",'JP SC Raw Data'!$F:$F,"S",'JP SC Raw Data'!$B:$B,"2018/19",'JP SC Raw Data'!$A:$A,$B$3))) -> 284 | Z15: =IF($B$3="Fort William", SUMIFS('JP SC Raw Data'!$M:$M,'JP SC Raw Data'!$C:$C,"Q3",'JP SC Raw Data'!$F:$F,"S",'JP SC Raw Data'!$B:$B,"2018/19",'JP SC Raw Data'!$E:$E,$B$3), IF(IFERROR(FIND(" ",$B$3),"")="",SUMIFS('JP SC Raw Data'!$M:$M,'JP SC Raw Data'!$C:$C,"Q3",'JP SC Raw Data'!$F:$F,"S",'JP SC Raw Data'!$B:$B,"2018/19",'JP SC Raw Data'!$E:$E,$B$3),SUMIFS('JP SC Raw Data'!$M:$M,'JP SC Raw Data'!$C:$C,"Q3",'JP SC Raw Data'!$F:$F,"S",'JP SC Raw Data'!$B:$B,"2018/19",'JP SC Raw Data'!$A:$A,$B$3))) -> 275 | AA15: =IF($B$3="Fort William", SUMIFS('JP SC Raw Data'!$M:$M,'JP SC Raw Data'!$C:$C,"Q4",'JP SC Raw Data'!$F:$F,"S",'JP SC Raw Data'!$B:$B,"2018/19",'JP SC Raw Data'!$E:$E,$B$3), IF(IFERROR(FIND(" ",$B$3),"")="",SUMIFS('JP SC Raw Data'!$M:$M,'JP SC Raw Data'!$C:$C,"Q4",'JP SC Raw Data'!$F:$F,"S",'JP SC Raw Data'!$B:$B,"2018/19",'JP SC Raw Data'!$E:$E,$B$3),SUMIFS('JP SC Raw Data'!$M:$M,'JP SC Raw Data'!$C:$C,"Q4",'JP SC Raw Data'!$F:$F,"S",'JP SC Raw Data'!$B:$B,"2018/19",'JP SC Raw Data'!$A:$A,$B$3))) -> 287 | AB15: 1119 | AC15: =IF($B$3="Fort William", SUMIFS('JP SC Raw Data'!$M:$M,'JP SC Raw Data'!$C:$C,"Q1",'JP SC Raw Data'!$F:$F,"S",'JP SC Raw Data'!$B:$B,"2019/20",'JP SC Raw Data'!$E:$E,$B$3), IF(IFERROR(FIND(" ",$B$3),"")="",SUMIFS('JP SC Raw Data'!$M:$M,'JP SC Raw Data'!$C:$C,"Q1",'JP SC Raw Data'!$F:$F,"S",'JP SC Raw Data'!$B:$B,"2019/20",'JP SC Raw Data'!$E:$E,$B$3),SUMIFS('JP SC Raw Data'!$M:$M,'JP SC Raw Data'!$C:$C,"Q1",'JP SC Raw Data'!$F:$F,"S",'JP SC Raw Data'!$B:$B,"2019/20",'JP SC Raw Data'!$A:$A,$B$3))) -> 299 | AD15: =IF($B$3="Fort William", SUMIFS('JP SC Raw Data'!$M:$M,'JP SC Raw Data'!$C:$C,"Q2",'JP SC Raw Data'!$F:$F,"S",'JP SC Raw Data'!$B:$B,"2019/20",'JP SC Raw Data'!$E:$E,$B$3), IF(IFERROR(FIND(" ",$B$3),"")="",SUMIFS('JP SC Raw Data'!$M:$M,'JP SC Raw Data'!$C:$C,"Q2",'JP SC Raw Data'!$F:$F,"S",'JP SC Raw Data'!$B:$B,"2019/20",'JP SC Raw Data'!$E:$E,$B$3),SUMIFS('JP SC Raw Data'!$M:$M,'JP SC Raw Data'!$C:$C,"Q2",'JP SC Raw Data'!$F:$F,"S",'JP SC Raw Data'!$B:$B,"2019/20",'JP SC Raw Data'!$A:$A,$B$3))) -> 291 | AE15: =IF($B$3="Fort William", SUMIFS('JP SC Raw Data'!$M:$M,'JP SC Raw Data'!$C:$C,"Q3",'JP SC Raw Data'!$F:$F,"S",'JP SC Raw Data'!$B:$B,"2019/20",'JP SC Raw Data'!$E:$E,$B$3), IF(IFERROR(FIND(" ",$B$3),"")="",SUMIFS('JP SC Raw Data'!$M:$M,'JP SC Raw Data'!$C:$C,"Q3",'JP SC Raw Data'!$F:$F,"S",'JP SC Raw Data'!$B:$B,"2019/20",'JP SC Raw Data'!$E:$E,$B$3),SUMIFS('JP SC Raw Data'!$M:$M,'JP SC Raw Data'!$C:$C,"Q3",'JP SC Raw Data'!$F:$F,"S",'JP SC Raw Data'!$B:$B,"2019/20",'JP SC Raw Data'!$A:$A,$B$3))) -> 292 | AF15: =IF($B$3="Fort William", SUMIFS('JP SC Raw Data'!$M:$M,'JP SC Raw Data'!$C:$C,"Q4",'JP SC Raw Data'!$F:$F,"S",'JP SC Raw Data'!$B:$B,"2019/20",'JP SC Raw Data'!$E:$E,$B$3), IF(IFERROR(FIND(" ",$B$3),"")="",SUMIFS('JP SC Raw Data'!$M:$M,'JP SC Raw Data'!$C:$C,"Q4",'JP SC Raw Data'!$F:$F,"S",'JP SC Raw Data'!$B:$B,"2019/20",'JP SC Raw Data'!$E:$E,$B$3),SUMIFS('JP SC Raw Data'!$M:$M,'JP SC Raw Data'!$C:$C,"Q4",'JP SC Raw Data'!$F:$F,"S",'JP SC Raw Data'!$B:$B,"2019/20",'JP SC Raw Data'!$A:$A,$B$3))) -> 252 | AG15: 1134 | AH15: =IF($B$3="Fort William", SUMIFS('JP SC Raw Data'!$M:$M,'JP SC Raw Data'!$C:$C,"Q1",'JP SC Raw Data'!$F:$F,"S",'JP SC Raw Data'!$B:$B,"2020/21",'JP SC Raw Data'!$E:$E,$B$3), IF(IFERROR(FIND(" ",$B$3),"")="",SUMIFS('JP SC Raw Data'!$M:$M,'JP SC Raw Data'!$C:$C,"Q1",'JP SC Raw Data'!$F:$F,"S",'JP SC Raw Data'!$B:$B,"2020/21",'JP SC Raw Data'!$E:$E,$B$3),SUMIFS('JP SC Raw Data'!$M:$M,'JP SC Raw Data'!$C:$C,"Q1",'JP SC Raw Data'!$F:$F,"S",'JP SC Raw Data'!$B:$B,"2020/21",'JP SC Raw Data'!$A:$A,$B$3))) -> 0 | AI15: =IF($B$3="Fort William", SUMIFS('JP SC Raw Data'!$M:$M,'JP SC Raw Data'!$C:$C,"Q2",'JP SC Raw Data'!$F:$F,"S",'JP SC Raw Data'!$B:$B,"2020/21",'JP SC Raw Data'!$E:$E,$B$3), IF(IFERROR(FIND(" ",$B$3),"")="",SUMIFS('JP SC Raw Data'!$M:$M,'JP SC Raw Data'!$C:$C,"Q2",'JP SC Raw Data'!$F:$F,"S",'JP SC Raw Data'!$B:$B,"2020/21",'JP SC Raw Data'!$E:$E,$B$3),SUMIFS('JP SC Raw Data'!$M:$M,'JP SC Raw Data'!$C:$C,"Q2",'JP SC Raw Data'!$F:$F,"S",'JP SC Raw Data'!$B:$B,"2020/21",'JP SC Raw Data'!$A:$A,$B$3))) -> 0 | AJ15: =IF($B$3="Fort William", SUMIFS('JP SC Raw Data'!$M:$M,'JP SC Raw Data'!$C:$C,"Q3",'JP SC Raw Data'!$F:$F,"S",'JP SC Raw Data'!$B:$B,"2020/21",'JP SC Raw Data'!$E:$E,$B$3), IF(IFERROR(FIND(" ",$B$3),"")="",SUMIFS('JP SC Raw Data'!$M:$M,'JP SC Raw Data'!$C:$C,"Q3",'JP SC Raw Data'!$F:$F,"S",'JP SC Raw Data'!$B:$B,"2020/21",'JP SC Raw Data'!$E:$E,$B$3),SUMIFS('JP SC Raw Data'!$M:$M,'JP SC Raw Data'!$C:$C,"Q3",'JP SC Raw Data'!$F:$F,"S",'JP SC Raw Data'!$B:$B,"2020/21",'JP SC Raw Data'!$A:$A,$B$3))) -> 11 | AK15: =IF($B$3="Fort William", SUMIFS('JP SC Raw Data'!$M:$M,'JP SC Raw Data'!$C:$C,"Q4",'JP SC Raw Data'!$F:$F,"S",'JP SC Raw Data'!$B:$B,"2020/21",'JP SC Raw Data'!$E:$E,$B$3), IF(IFERROR(FIND(" ",$B$3),"")="",SUMIFS('JP SC Raw Data'!$M:$M,'JP SC Raw Data'!$C:$C,"Q4",'JP SC Raw Data'!$F:$F,"S",'JP SC Raw Data'!$B:$B,"2020/21",'JP SC Raw Data'!$E:$E,$B$3),SUMIFS('JP SC Raw Data'!$M:$M,'JP SC Raw Data'!$C:$C,"Q4",'JP SC Raw Data'!$F:$F,"S",'JP SC Raw Data'!$B:$B,"2020/21",'JP SC Raw Data'!$A:$A,$B$3))) -> 186 | AL15: 197 | AM15: =IF($B$3="Fort William", SUMIFS('JP SC Raw Data'!$M:$M,'JP SC Raw Data'!$C:$C,"Q1",'JP SC Raw Data'!$F:$F,"S",'JP SC Raw Data'!$B:$B,"2021/22",'JP SC Raw Data'!$E:$E,$B$3), IF(IFERROR(FIND(" ",$B$3),"")="",SUMIFS('JP SC Raw Data'!$M:$M,'JP SC Raw Data'!$C:$C,"Q1",'JP SC Raw Data'!$F:$F,"S",'JP SC Raw Data'!$B:$B,"2021/22",'JP SC Raw Data'!$E:$E,$B$3),SUMIFS('JP SC Raw Data'!$M:$M,'JP SC Raw Data'!$C:$C,"Q1",'JP SC Raw Data'!$F:$F,"S",'JP SC Raw Data'!$B:$B,"2021/22",'JP SC Raw Data'!$A:$A,$B$3))) -> 254 | AN15: =IF($B$3="Fort William", SUMIFS('JP SC Raw Data'!$M:$M,'JP SC Raw Data'!$C:$C,"Q2",'JP SC Raw Data'!$F:$F,"S",'JP SC Raw Data'!$B:$B,"2021/22",'JP SC Raw Data'!$E:$E,$B$3), IF(IFERROR(FIND(" ",$B$3),"")="",SUMIFS('JP SC Raw Data'!$M:$M,'JP SC Raw Data'!$C:$C,"Q2",'JP SC Raw Data'!$F:$F,"S",'JP SC Raw Data'!$B:$B,"2021/22",'JP SC Raw Data'!$E:$E,$B$3),SUMIFS('JP SC Raw Data'!$M:$M,'JP SC Raw Data'!$C:$C,"Q2",'JP SC Raw Data'!$F:$F,"S",'JP SC Raw Data'!$B:$B,"2021/22",'JP SC Raw Data'!$A:$A,$B$3))) -> 254 | AO15: =IF($B$3="Fort William", SUMIFS('JP SC Raw Data'!$M:$M,'JP SC Raw Data'!$C:$C,"Q3",'JP SC Raw Data'!$F:$F,"S",'JP SC Raw Data'!$B:$B,"2021/22",'JP SC Raw Data'!$E:$E,$B$3), IF(IFERROR(FIND(" ",$B$3),"")="",SUMIFS('JP SC Raw Data'!$M:$M,'JP SC Raw Data'!$C:$C,"Q3",'JP SC Raw Data'!$F:$F,"S",'JP SC Raw Data'!$B:$B,"2021/22",'JP SC Raw Data'!$E:$E,$B$3),SUMIFS('JP SC Raw Data'!$M:$M,'JP SC Raw Data'!$C:$C,"Q3",'JP SC Raw Data'!$F:$F,"S",'JP SC Raw Data'!$B:$B,"2021/22",'JP SC Raw Data'!$A:$A,$B$3))) -> 170 | AP15: =IF($B$3="Fort William", SUMIFS('JP SC Raw Data'!$M:$M,'JP SC Raw Data'!$C:$C,"Q4",'JP SC Raw Data'!$F:$F,"S",'JP SC Raw Data'!$B:$B,"2021/22",'JP SC Raw Data'!$E:$E,$B$3), IF(IFERROR(FIND(" ",$B$3),"")="",SUMIFS('JP SC Raw Data'!$M:$M,'JP SC Raw Data'!$C:$C,"Q4",'JP SC Raw Data'!$F:$F,"S",'JP SC Raw Data'!$B:$B,"2021/22",'JP SC Raw Data'!$E:$E,$B$3),SUMIFS('JP SC Raw Data'!$M:$M,'JP SC Raw Data'!$C:$C,"Q4",'JP SC Raw Data'!$F:$F,"S",'JP SC Raw Data'!$B:$B,"2021/22",'JP SC Raw Data'!$A:$A,$B$3))) -> 229 | AQ15: 907
B16: Trials adjourned due to lack of court time | D16: =IF($B$3="Fort William", SUMIFS('JP SC Raw Data'!$N:$N,'JP SC Raw Data'!$C:$C,"Q1",'JP SC Raw Data'!$F:$F,"S",'JP SC Raw Data'!$B:$B,"2014/15",'JP SC Raw Data'!$E:$E,$B$3), IF(IFERROR(FIND(" ",$B$3),"")="",SUMIFS('JP SC Raw Data'!$N:$N,'JP SC Raw Data'!$C:$C,"Q1",'JP SC Raw Data'!$F:$F,"S",'JP SC Raw Data'!$B:$B,"2014/15",'JP SC Raw Data'!$E:$E,$B$3),SUMIFS('JP SC Raw Data'!$N:$N,'JP SC Raw Data'!$C:$C,"Q1",'JP SC Raw Data'!$F:$F,"S",'JP SC Raw Data'!$B:$B,"2014/15",'JP SC Raw Data'!$A:$A,$B$3))) -> 56 | E16: =IF($B$3="Fort William", SUMIFS('JP SC Raw Data'!$N:$N,'JP SC Raw Data'!$C:$C,"Q2",'JP SC Raw Data'!$F:$F,"S",'JP SC Raw Data'!$B:$B,"2014/15",'JP SC Raw Data'!$E:$E,$B$3), IF(IFERROR(FIND(" ",$B$3),"")="",SUMIFS('JP SC Raw Data'!$N:$N,'JP SC Raw Data'!$C:$C,"Q2",'JP SC Raw Data'!$F:$F,"S",'JP SC Raw Data'!$B:$B,"2014/15",'JP SC Raw Data'!$E:$E,$B$3),SUMIFS('JP SC Raw Data'!$N:$N,'JP SC Raw Data'!$C:$C,"Q2",'JP SC Raw Data'!$F:$F,"S",'JP SC Raw Data'!$B:$B,"2014/15",'JP SC Raw Data'!$A:$A,$B$3))) -> 101 | F16: =IF($B$3="Fort William", SUMIFS('JP SC Raw Data'!$N:$N,'JP SC Raw Data'!$C:$C,"Q3",'JP SC Raw Data'!$F:$F,"S",'JP SC Raw Data'!$B:$B,"2014/15",'JP SC Raw Data'!$E:$E,$B$3), IF(IFERROR(FIND(" ",$B$3),"")="",SUMIFS('JP SC Raw Data'!$N:$N,'JP SC Raw Data'!$C:$C,"Q3",'JP SC Raw Data'!$F:$F,"S",'JP SC Raw Data'!$B:$B,"2014/15",'JP SC Raw Data'!$E:$E,$B$3),SUMIFS('JP SC Raw Data'!$N:$N,'JP SC Raw Data'!$C:$C,"Q3",'JP SC Raw Data'!$F:$F,"S",'JP SC Raw Data'!$B:$B,"2014/15",'JP SC Raw Data'!$A:$A,$B$3))) -> 84 | G16: =IF($B$3="Fort William", SUMIFS('JP SC Raw Data'!$N:$N,'JP SC Raw Data'!$C:$C,"Q4",'JP SC Raw Data'!$F:$F,"S",'JP SC Raw Data'!$B:$B,"2014/15",'JP SC Raw Data'!$E:$E,$B$3), IF(IFERROR(FIND(" ",$B$3),"")="",SUMIFS('JP SC Raw Data'!$N:$N,'JP SC Raw Data'!$C:$C,"Q4",'JP SC Raw Data'!$F:$F,"S",'JP SC Raw Data'!$B:$B,"2014/15",'JP SC Raw Data'!$E:$E,$B$3),SUMIFS('JP SC Raw Data'!$N:$N,'JP SC Raw Data'!$C:$C,"Q4",'JP SC Raw Data'!$F:$F,"S",'JP SC Raw Data'!$B:$B,"2014/15",'JP SC Raw Data'!$A:$A,$B$3))) -> 112 | H16: 353 | I16: =IF($B$3="Fort William", SUMIFS('JP SC Raw Data'!$N:$N,'JP SC Raw Data'!$C:$C,"Q1",'JP SC Raw Data'!$F:$F,"S",'JP SC Raw Data'!$B:$B,"2015/16",'JP SC Raw Data'!$E:$E,$B$3), IF(IFERROR(FIND(" ",$B$3),"")="",SUMIFS('JP SC Raw Data'!$N:$N,'JP SC Raw Data'!$C:$C,"Q1",'JP SC Raw Data'!$F:$F,"S",'JP SC Raw Data'!$B:$B,"2015/16",'JP SC Raw Data'!$E:$E,$B$3),SUMIFS('JP SC Raw Data'!$N:$N,'JP SC Raw Data'!$C:$C,"Q1",'JP SC Raw Data'!$F:$F,"S",'JP SC Raw Data'!$B:$B,"2015/16",'JP SC Raw Data'!$A:$A,$B$3))) -> 95 | J16: =IF($B$3="Fort William", SUMIFS('JP SC Raw Data'!$N:$N,'JP SC Raw Data'!$C:$C,"Q2",'JP SC Raw Data'!$F:$F,"S",'JP SC Raw Data'!$B:$B,"2015/16",'JP SC Raw Data'!$E:$E,$B$3), IF(IFERROR(FIND(" ",$B$3),"")="",SUMIFS('JP SC Raw Data'!$N:$N,'JP SC Raw Data'!$C:$C,"Q2",'JP SC Raw Data'!$F:$F,"S",'JP SC Raw Data'!$B:$B,"2015/16",'JP SC Raw Data'!$E:$E,$B$3),SUMIFS('JP SC Raw Data'!$N:$N,'JP SC Raw Data'!$C:$C,"Q2",'JP SC Raw Data'!$F:$F,"S",'JP SC Raw Data'!$B:$B,"2015/16",'JP SC Raw Data'!$A:$A,$B$3))) -> 83 | K16: =IF($B$3="Fort William", SUMIFS('JP SC Raw Data'!$N:$N,'JP SC Raw Data'!$C:$C,"Q3",'JP SC Raw Data'!$F:$F,"S",'JP SC Raw Data'!$B:$B,"2015/16",'JP SC Raw Data'!$E:$E,$B$3), IF(IFERROR(FIND(" ",$B$3),"")="",SUMIFS('JP SC Raw Data'!$N:$N,'JP SC Raw Data'!$C:$C,"Q3",'JP SC Raw Data'!$F:$F,"S",'JP SC Raw Data'!$B:$B,"2015/16",'JP SC Raw Data'!$E:$E,$B$3),SUMIFS('JP SC Raw Data'!$N:$N,'JP SC Raw Data'!$C:$C,"Q3",'JP SC Raw Data'!$F:$F,"S",'JP SC Raw Data'!$B:$B,"2015/16",'JP SC Raw Data'!$A:$A,$B$3))) -> 92 | L16: =IF($B$3="Fort William", SUMIFS('JP SC Raw Data'!$N:$N,'JP SC Raw Data'!$C:$C,"Q4",'JP SC Raw Data'!$F:$F,"S",'JP SC Raw Data'!$B:$B,"2015/16",'JP SC Raw Data'!$E:$E,$B$3), IF(IFERROR(FIND(" ",$B$3),"")="",SUMIFS('JP SC Raw Data'!$N:$N,'JP SC Raw Data'!$C:$C,"Q4",'JP SC Raw Data'!$F:$F,"S",'JP SC Raw Data'!$B:$B,"2015/16",'JP SC Raw Data'!$E:$E,$B$3),SUMIFS('JP SC Raw Data'!$N:$N,'JP SC Raw Data'!$C:$C,"Q4",'JP SC Raw Data'!$F:$F,"S",'JP SC Raw Data'!$B:$B,"2015/16",'JP SC Raw Data'!$A:$A,$B$3))) -> 73 | M16: 343 | N16: =IF($B$3="Fort William", SUMIFS('JP SC Raw Data'!$N:$N,'JP SC Raw Data'!$C:$C,"Q1",'JP SC Raw Data'!$F:$F,"S",'JP SC Raw Data'!$B:$B,"2016/17",'JP SC Raw Data'!$E:$E,$B$3), IF(IFERROR(FIND(" ",$B$3),"")="",SUMIFS('JP SC Raw Data'!$N:$N,'JP SC Raw Data'!$C:$C,"Q1",'JP SC Raw Data'!$F:$F,"S",'JP SC Raw Data'!$B:$B,"2016/17",'JP SC Raw Data'!$E:$E,$B$3),SUMIFS('JP SC Raw Data'!$N:$N,'JP SC Raw Data'!$C:$C,"Q1",'JP SC Raw Data'!$F:$F,"S",'JP SC Raw Data'!$B:$B,"2016/17",'JP SC Raw Data'!$A:$A,$B$3))) -> 71 | O16: =IF($B$3="Fort William", SUMIFS('JP SC Raw Data'!$N:$N,'JP SC Raw Data'!$C:$C,"Q2",'JP SC Raw Data'!$F:$F,"S",'JP SC Raw Data'!$B:$B,"2016/17",'JP SC Raw Data'!$E:$E,$B$3), IF(IFERROR(FIND(" ",$B$3),"")="",SUMIFS('JP SC Raw Data'!$N:$N,'JP SC Raw Data'!$C:$C,"Q2",'JP SC Raw Data'!$F:$F,"S",'JP SC Raw Data'!$B:$B,"2016/17",'JP SC Raw Data'!$E:$E,$B$3),SUMIFS('JP SC Raw Data'!$N:$N,'JP SC Raw Data'!$C:$C,"Q2",'JP SC Raw Data'!$F:$F,"S",'JP SC Raw Data'!$B:$B,"2016/17",'JP SC Raw Data'!$A:$A,$B$3))) -> 53 | P16: =IF($B$3="Fort William", SUMIFS('JP SC Raw Data'!$N:$N,'JP SC Raw Data'!$C:$C,"Q3",'JP SC Raw Data'!$F:$F,"S",'JP SC Raw Data'!$B:$B,"2016/17",'JP SC Raw Data'!$E:$E,$B$3), IF(IFERROR(FIND(" ",$B$3),"")="",SUMIFS('JP SC Raw Data'!$N:$N,'JP SC Raw Data'!$C:$C,"Q3",'JP SC Raw Data'!$F:$F,"S",'JP SC Raw Data'!$B:$B,"2016/17",'JP SC Raw Data'!$E:$E,$B$3),SUMIFS('JP SC Raw Data'!$N:$N,'JP SC Raw Data'!$C:$C,"Q3",'JP SC Raw Data'!$F:$F,"S",'JP SC Raw Data'!$B:$B,"2016/17",'JP SC Raw Data'!$A:$A,$B$3))) -> 42 | Q16: =IF($B$3="Fort William", SUMIFS('JP SC Raw Data'!$N:$N,'JP SC Raw Data'!$C:$C,"Q4",'JP SC Raw Data'!$F:$F,"S",'JP SC Raw Data'!$B:$B,"2016/17",'JP SC Raw Data'!$E:$E,$B$3), IF(IFERROR(FIND(" ",$B$3),"")="",SUMIFS('JP SC Raw Data'!$N:$N,'JP SC Raw Data'!$C:$C,"Q4",'JP SC Raw Data'!$F:$F,"S",'JP SC Raw Data'!$B:$B,"2016/17",'JP SC Raw Data'!$E:$E,$B$3),SUMIFS('JP SC Raw Data'!$N:$N,'JP SC Raw Data'!$C:$C,"Q4",'JP SC Raw Data'!$F:$F,"S",'JP SC Raw Data'!$B:$B,"2016/17",'JP SC Raw Data'!$A:$A,$B$3))) -> 49 | R16: 215 | S16: =IF($B$3="Fort William", SUMIFS('JP SC Raw Data'!$N:$N,'JP SC Raw Data'!$C:$C,"Q1",'JP SC Raw Data'!$F:$F,"S",'JP SC Raw Data'!$B:$B,"2017/18",'JP SC Raw Data'!$E:$E,$B$3), IF(IFERROR(FIND(" ",$B$3),"")="",SUMIFS('JP SC Raw Data'!$N:$N,'JP SC Raw Data'!$C:$C,"Q1",'JP SC Raw Data'!$F:$F,"S",'JP SC Raw Data'!$B:$B,"2017/18",'JP SC Raw Data'!$E:$E,$B$3),SUMIFS('JP SC Raw Data'!$N:$N,'JP SC Raw Data'!$C:$C,"Q1",'JP SC Raw Data'!$F:$F,"S",'JP SC Raw Data'!$B:$B,"2017/18",'JP SC Raw Data'!$A:$A,$B$3))) -> 47 | T16: =IF($B$3="Fort William", SUMIFS('JP SC Raw Data'!$N:$N,'JP SC Raw Data'!$C:$C,"Q2",'JP SC Raw Data'!$F:$F,"S",'JP SC Raw Data'!$B:$B,"2017/18",'JP SC Raw Data'!$E:$E,$B$3), IF(IFERROR(FIND(" ",$B$3),"")="",SUMIFS('JP SC Raw Data'!$N:$N,'JP SC Raw Data'!$C:$C,"Q2",'JP SC Raw Data'!$F:$F,"S",'JP SC Raw Data'!$B:$B,"2017/18",'JP SC Raw Data'!$E:$E,$B$3),SUMIFS('JP SC Raw Data'!$N:$N,'JP SC Raw Data'!$C:$C,"Q2",'JP SC Raw Data'!$F:$F,"S",'JP SC Raw Data'!$B:$B,"2017/18",'JP SC Raw Data'!$A:$A,$B$3))) -> 25 | U16: =IF($B$3="Fort William", SUMIFS('JP SC Raw Data'!$N:$N,'JP SC Raw Data'!$C:$C,"Q3",'JP SC Raw Data'!$F:$F,"S",'JP SC Raw Data'!$B:$B,"2017/18",'JP SC Raw Data'!$E:$E,$B$3), IF(IFERROR(FIND(" ",$B$3),"")="",SUMIFS('JP SC Raw Data'!$N:$N,'JP SC Raw Data'!$C:$C,"Q3",'JP SC Raw Data'!$F:$F,"S",'JP SC Raw Data'!$B:$B,"2017/18",'JP SC Raw Data'!$E:$E,$B$3),SUMIFS('JP SC Raw Data'!$N:$N,'JP SC Raw Data'!$C:$C,"Q3",'JP SC Raw Data'!$F:$F,"S",'JP SC Raw Data'!$B:$B,"2017/18",'JP SC Raw Data'!$A:$A,$B$3))) -> 11 | V16: =IF($B$3="Fort William", SUMIFS('JP SC Raw Data'!$N:$N,'JP SC Raw Data'!$C:$C,"Q4",'JP SC Raw Data'!$F:$F,"S",'JP SC Raw Data'!$B:$B,"2017/18",'JP SC Raw Data'!$E:$E,$B$3), IF(IFERROR(FIND(" ",$B$3),"")="",SUMIFS('JP SC Raw Data'!$N:$N,'JP SC Raw Data'!$C:$C,"Q4",'JP SC Raw Data'!$F:$F,"S",'JP SC Raw Data'!$B:$B,"2017/18",'JP SC Raw Data'!$E:$E,$B$3),SUMIFS('JP SC Raw Data'!$N:$N,'JP SC Raw Data'!$C:$C,"Q4",'JP SC Raw Data'!$F:$F,"S",'JP SC Raw Data'!$B:$B,"2017/18",'JP SC Raw Data'!$A:$A,$B$3))) -> 25 | W16: 108 | X16: =IF($B$3="Fort William", SUMIFS('JP SC Raw Data'!$N:$N,'JP SC Raw Data'!$C:$C,"Q1",'JP SC Raw Data'!$F:$F,"S",'JP SC Raw Data'!$B:$B,"2018/19",'JP SC Raw Data'!$E:$E,$B$3), IF(IFERROR(FIND(" ",$B$3),"")="",SUMIFS('JP SC Raw Data'!$N:$N,'JP SC Raw Data'!$C:$C,"Q1",'JP SC Raw Data'!$F:$F,"S",'JP SC Raw Data'!$B:$B,"2018/19",'JP SC Raw Data'!$E:$E,$B$3),SUMIFS('JP SC Raw Data'!$N:$N,'JP SC Raw Data'!$C:$C,"Q1",'JP SC Raw Data'!$F:$F,"S",'JP SC Raw Data'!$B:$B,"2018/19",'JP SC Raw Data'!$A:$A,$B$3))) -> 19 | Y16: =IF($B$3="Fort William", SUMIFS('JP SC Raw Data'!$N:$N,'JP SC Raw Data'!$C:$C,"Q2",'JP SC Raw Data'!$F:$F,"S",'JP SC Raw Data'!$B:$B,"2018/19",'JP SC Raw Data'!$E:$E,$B$3), IF(IFERROR(FIND(" ",$B$3),"")="",SUMIFS('JP SC Raw Data'!$N:$N,'JP SC Raw Data'!$C:$C,"Q2",'JP SC Raw Data'!$F:$F,"S",'JP SC Raw Data'!$B:$B,"2018/19",'JP SC Raw Data'!$E:$E,$B$3),SUMIFS('JP SC Raw Data'!$N:$N,'JP SC Raw Data'!$C:$C,"Q2",'JP SC Raw Data'!$F:$F,"S",'JP SC Raw Data'!$B:$B,"2018/19",'JP SC Raw Data'!$A:$A,$B$3))) -> 18 | Z16: =IF($B$3="Fort William", SUMIFS('JP SC Raw Data'!$N:$N,'JP SC Raw Data'!$C:$C,"Q3",'JP SC Raw Data'!$F:$F,"S",'JP SC Raw Data'!$B:$B,"2018/19",'JP SC Raw Data'!$E:$E,$B$3), IF(IFERROR(FIND(" ",$B$3),"")="",SUMIFS('JP SC Raw Data'!$N:$N,'JP SC Raw Data'!$C:$C,"Q3",'JP SC Raw Data'!$F:$F,"S",'JP SC Raw Data'!$B:$B,"2018/19",'JP SC Raw Data'!$E:$E,$B$3),SUMIFS('JP SC Raw Data'!$N:$N,'JP SC Raw Data'!$C:$C,"Q3",'JP SC Raw Data'!$F:$F,"S",'JP SC Raw Data'!$B:$B,"2018/19",'JP SC Raw Data'!$A:$A,$B$3))) -> 11 | AA16: =IF($B$3="Fort William", SUMIFS('JP SC Raw Data'!$N:$N,'JP SC Raw Data'!$C:$C,"Q4",'JP SC Raw Data'!$F:$F,"S",'JP SC Raw Data'!$B:$B,"2018/19",'JP SC Raw Data'!$E:$E,$B$3), IF(IFERROR(FIND(" ",$B$3),"")="",SUMIFS('JP SC Raw Data'!$N:$N,'JP SC Raw Data'!$C:$C,"Q4",'JP SC Raw Data'!$F:$F,"S",'JP SC Raw Data'!$B:$B,"2018/19",'JP SC Raw Data'!$E:$E,$B$3),SUMIFS('JP SC Raw Data'!$N:$N,'JP SC Raw Data'!$C:$C,"Q4",'JP SC Raw Data'!$F:$F,"S",'JP SC Raw Data'!$B:$B,"2018/19",'JP SC Raw Data'!$A:$A,$B$3))) -> 8 | AB16: 56 | AC16: =IF($B$3="Fort William", SUMIFS('JP SC Raw Data'!$N:$N,'JP SC Raw Data'!$C:$C,"Q1",'JP SC Raw Data'!$F:$F,"S",'JP SC Raw Data'!$B:$B,"2019/20",'JP SC Raw Data'!$E:$E,$B$3), IF(IFERROR(FIND(" ",$B$3),"")="",SUMIFS('JP SC Raw Data'!$N:$N,'JP SC Raw Data'!$C:$C,"Q1",'JP SC Raw Data'!$F:$F,"S",'JP SC Raw Data'!$B:$B,"2019/20",'JP SC Raw Data'!$E:$E,$B$3),SUMIFS('JP SC Raw Data'!$N:$N,'JP SC Raw Data'!$C:$C,"Q1",'JP SC Raw Data'!$F:$F,"S",'JP SC Raw Data'!$B:$B,"2019/20",'JP SC Raw Data'!$A:$A,$B$3))) -> 19 | AD16: =IF($B$3="Fort William", SUMIFS('JP SC Raw Data'!$N:$N,'JP SC Raw Data'!$C:$C,"Q2",'JP SC Raw Data'!$F:$F,"S",'JP SC Raw Data'!$B:$B,"2019/20",'JP SC Raw Data'!$E:$E,$B$3), IF(IFERROR(FIND(" ",$B$3),"")="",SUMIFS('JP SC Raw Data'!$N:$N,'JP SC Raw Data'!$C:$C,"Q2",'JP SC Raw Data'!$F:$F,"S",'JP SC Raw Data'!$B:$B,"2019/20",'JP SC Raw Data'!$E:$E,$B$3),SUMIFS('JP SC Raw Data'!$N:$N,'JP SC Raw Data'!$C:$C,"Q2",'JP SC Raw Data'!$F:$F,"S",'JP SC Raw Data'!$B:$B,"2019/20",'JP SC Raw Data'!$A:$A,$B$3))) -> 9 | AE16: =IF($B$3="Fort William", SUMIFS('JP SC Raw Data'!$N:$N,'JP SC Raw Data'!$C:$C,"Q3",'JP SC Raw Data'!$F:$F,"S",'JP SC Raw Data'!$B:$B,"2019/20",'JP SC Raw Data'!$E:$E,$B$3), IF(IFERROR(FIND(" ",$B$3),"")="",SUMIFS('JP SC Raw Data'!$N:$N,'JP SC Raw Data'!$C:$C,"Q3",'JP SC Raw Data'!$F:$F,"S",'JP SC Raw Data'!$B:$B,"2019/20",'JP SC Raw Data'!$E:$E,$B$3),SUMIFS('JP SC Raw Data'!$N:$N,'JP SC Raw Data'!$C:$C,"Q3",'JP SC Raw Data'!$F:$F,"S",'JP SC Raw Data'!$B:$B,"2019/20",'JP SC Raw Data'!$A:$A,$B$3))) -> 14 | AF16: =IF($B$3="Fort William", SUMIFS('JP SC Raw Data'!$N:$N,'JP SC Raw Data'!$C:$C,"Q4",'JP SC Raw Data'!$F:$F,"S",'JP SC Raw Data'!$B:$B,"2019/20",'JP SC Raw Data'!$E:$E,$B$3), IF(IFERROR(FIND(" ",$B$3),"")="",SUMIFS('JP SC Raw Data'!$N:$N,'JP SC Raw Data'!$C:$C,"Q4",'JP SC Raw Data'!$F:$F,"S",'JP SC Raw Data'!$B:$B,"2019/20",'JP SC Raw Data'!$E:$E,$B$3),SUMIFS('JP SC Raw Data'!$N:$N,'JP SC Raw Data'!$C:$C,"Q4",'JP SC Raw Data'!$F:$F,"S",'JP SC Raw Data'!$B:$B,"2019/20",'JP SC Raw Data'!$A:$A,$B$3))) -> 15 | AG16: 57 | AH16: =IF($B$3="Fort William", SUMIFS('JP SC Raw Data'!$N:$N,'JP SC Raw Data'!$C:$C,"Q1",'JP SC Raw Data'!$F:$F,"S",'JP SC Raw Data'!$B:$B,"2020/21",'JP SC Raw Data'!$E:$E,$B$3), IF(IFERROR(FIND(" ",$B$3),"")="",SUMIFS('JP SC Raw Data'!$N:$N,'JP SC Raw Data'!$C:$C,"Q1",'JP SC Raw Data'!$F:$F,"S",'JP SC Raw Data'!$B:$B,"2020/21",'JP SC Raw Data'!$E:$E,$B$3),SUMIFS('JP SC Raw Data'!$N:$N,'JP SC Raw Data'!$C:$C,"Q1",'JP SC Raw Data'!$F:$F,"S",'JP SC Raw Data'!$B:$B,"2020/21",'JP SC Raw Data'!$A:$A,$B$3))) -> 0 | AI16: =IF($B$3="Fort William", SUMIFS('JP SC Raw Data'!$N:$N,'JP SC Raw Data'!$C:$C,"Q2",'JP SC Raw Data'!$F:$F,"S",'JP SC Raw Data'!$B:$B,"2020/21",'JP SC Raw Data'!$E:$E,$B$3), IF(IFERROR(FIND(" ",$B$3),"")="",SUMIFS('JP SC Raw Data'!$N:$N,'JP SC Raw Data'!$C:$C,"Q2",'JP SC Raw Data'!$F:$F,"S",'JP SC Raw Data'!$B:$B,"2020/21",'JP SC Raw Data'!$E:$E,$B$3),SUMIFS('JP SC Raw Data'!$N:$N,'JP SC Raw Data'!$C:$C,"Q2",'JP SC Raw Data'!$F:$F,"S",'JP SC Raw Data'!$B:$B,"2020/21",'JP SC Raw Data'!$A:$A,$B$3))) -> 0 | AJ16: =IF($B$3="Fort William", SUMIFS('JP SC Raw Data'!$N:$N,'JP SC Raw Data'!$C:$C,"Q3",'JP SC Raw Data'!$F:$F,"S",'JP SC Raw Data'!$B:$B,"2020/21",'JP SC Raw Data'!$E:$E,$B$3), IF(IFERROR(FIND(" ",$B$3),"")="",SUMIFS('JP SC Raw Data'!$N:$N,'JP SC Raw Data'!$C:$C,"Q3",'JP SC Raw Data'!$F:$F,"S",'JP SC Raw Data'!$B:$B,"2020/21",'JP SC Raw Data'!$E:$E,$B$3),SUMIFS('JP SC Raw Data'!$N:$N,'JP SC Raw Data'!$C:$C,"Q3",'JP SC Raw Data'!$F:$F,"S",'JP SC Raw Data'!$B:$B,"2020/21",'JP SC Raw Data'!$A:$A,$B$3))) -> 0 | AK16: =IF($B$3="Fort William", SUMIFS('JP SC Raw Data'!$N:$N,'JP SC Raw Data'!$C:$C,"Q4",'JP SC Raw Data'!$F:$F,"S",'JP SC Raw Data'!$B:$B,"2020/21",'JP SC Raw Data'!$E:$E,$B$3), IF(IFERROR(FIND(" ",$B$3),"")="",SUMIFS('JP SC Raw Data'!$N:$N,'JP SC Raw Data'!$C:$C,"Q4",'JP SC Raw Data'!$F:$F,"S",'JP SC Raw Data'!$B:$B,"2020/21",'JP SC Raw Data'!$E:$E,$B$3),SUMIFS('JP SC Raw Data'!$N:$N,'JP SC Raw Data'!$C:$C,"Q4",'JP SC Raw Data'!$F:$F,"S",'JP SC Raw Data'!$B:$B,"2020/21",'JP SC Raw Data'!$A:$A,$B$3))) -> 35 | AL16: 35 | AM16: =IF($B$3="Fort William", SUMIFS('JP SC Raw Data'!$N:$N,'JP SC Raw Data'!$C:$C,"Q1",'JP SC Raw Data'!$F:$F,"S",'JP SC Raw Data'!$B:$B,"2021/22",'JP SC Raw Data'!$E:$E,$B$3), IF(IFERROR(FIND(" ",$B$3),"")="",SUMIFS('JP SC Raw Data'!$N:$N,'JP SC Raw Data'!$C:$C,"Q1",'JP SC Raw Data'!$F:$F,"S",'JP SC Raw Data'!$B:$B,"2021/22",'JP SC Raw Data'!$E:$E,$B$3),SUMIFS('JP SC Raw Data'!$N:$N,'JP SC Raw Data'!$C:$C,"Q1",'JP SC Raw Data'!$F:$F,"S",'JP SC Raw Data'!$B:$B,"2021/22",'JP SC Raw Data'!$A:$A,$B$3))) -> 76 | AN16: =IF($B$3="Fort William", SUMIFS('JP SC Raw Data'!$N:$N,'JP SC Raw Data'!$C:$C,"Q2",'JP SC Raw Data'!$F:$F,"S",'JP SC Raw Data'!$B:$B,"2021/22",'JP SC Raw Data'!$E:$E,$B$3), IF(IFERROR(FIND(" ",$B$3),"")="",SUMIFS('JP SC Raw Data'!$N:$N,'JP SC Raw Data'!$C:$C,"Q2",'JP SC Raw Data'!$F:$F,"S",'JP SC Raw Data'!$B:$B,"2021/22",'JP SC Raw Data'!$E:$E,$B$3),SUMIFS('JP SC Raw Data'!$N:$N,'JP SC Raw Data'!$C:$C,"Q2",'JP SC Raw Data'!$F:$F,"S",'JP SC Raw Data'!$B:$B,"2021/22",'JP SC Raw Data'!$A:$A,$B$3))) -> 69 | AO16: =IF($B$3="Fort William", SUMIFS('JP SC Raw Data'!$N:$N,'JP SC Raw Data'!$C:$C,"Q3",'JP SC Raw Data'!$F:$F,"S",'JP SC Raw Data'!$B:$B,"2021/22",'JP SC Raw Data'!$E:$E,$B$3), IF(IFERROR(FIND(" ",$B$3),"")="",SUMIFS('JP SC Raw Data'!$N:$N,'JP SC Raw Data'!$C:$C,"Q3",'JP SC Raw Data'!$F:$F,"S",'JP SC Raw Data'!$B:$B,"2021/22",'JP SC Raw Data'!$E:$E,$B$3),SUMIFS('JP SC Raw Data'!$N:$N,'JP SC Raw Data'!$C:$C,"Q3",'JP SC Raw Data'!$F:$F,"S",'JP SC Raw Data'!$B:$B,"2021/22",'JP SC Raw Data'!$A:$A,$B$3))) -> 80 | AP16: =IF($B$3="Fort William", SUMIFS('JP SC Raw Data'!$N:$N,'JP SC Raw Data'!$C:$C,"Q4",'JP SC Raw Data'!$F:$F,"S",'JP SC Raw Data'!$B:$B,"2021/22",'JP SC Raw Data'!$E:$E,$B$3), IF(IFERROR(FIND(" ",$B$3),"")="",SUMIFS('JP SC Raw Data'!$N:$N,'JP SC Raw Data'!$C:$C,"Q4",'JP SC Raw Data'!$F:$F,"S",'JP SC Raw Data'!$B:$B,"2021/22",'JP SC Raw Data'!$E:$E,$B$3),SUMIFS('JP SC Raw Data'!$N:$N,'JP SC Raw Data'!$C:$C,"Q4",'JP SC Raw Data'!$F:$F,"S",'JP SC Raw Data'!$B:$B,"2021/22",'JP SC Raw Data'!$A:$A,$B$3))) -> 68 | AQ16: 293
B17: Trials adjourned due to lack of court time (%) | D17: =IFERROR(SUM(D16/D14),"0.0%") -> 0.04586404586 | E17: 0.08647260274 | F17: 0.06671961875 | G17: 0.08284023669 | H17: 0.0706 | I17: 0.06431956669 | J17: 0.05808257523 | K17: 0.0673992674 | L17: 0.05654531371 | M17: =IFERROR(SUM(M16/M14),"0.0%") -> 0.06166846458 | N17: =IFERROR(SUM(N16/N14),"0.0%") -> 0.05892116183 | O17: =IFERROR(SUM(O16/O14),"0.0%") -> 0.0476618705 | P17: =IFERROR(SUM(P16/P14),"0.0%") -> 0.04251012146 | Q17: =IFERROR(SUM(Q16/Q14),"0.0%") -> 0.04954499494 | R17: 0.05006986493 | S17: =IFERROR(SUM(S16/S14),"0.0%") -> 0.05153508772 | T17: =IFERROR(SUM(T16/T14),"0.0%") -> 0.03581661891 | U17: =IFERROR(SUM(U16/U14),"0.0%") -> 0.01971326165 | V17: =IFERROR(SUM(V16/V14),"0.0%") -> 0.03759398496 | W17: 0.03812213202 | X17: =IFERROR(SUM(X16/X14),"0.0%") -> 0.02861445783 | Y17: =IFERROR(SUM(Y16/Y14),"0.0%") -> 0.02567760342 | Z17: =IFERROR(SUM(Z16/Z14),"0.0%") -> 0.01525658807 | AA17: =IFERROR(SUM(AA16/AA14),"0.0%") -> 0.01049868766 | AB17: =IFERROR(SUM(AB16/AB14),"0.0%") -> 0.01966292135 | AC17: =IFERROR(SUM(AC16/AC14),"0.0%") -> 0.02275449102 | AD17: =IFERROR(SUM(AD16/AD14),"0.0%") -> 0.01136363636 | AE17: =IFERROR(SUM(AE16/AE14),"0.0%") -> 0.01869158879 | AF17: =IFERROR(SUM(AF16/AF14),"0.0%") -> 0.01958224543 | AG17: =IFERROR(SUM(AG16/AG14),"0.0%") -> 0.01814131127 | AH17: =IFERROR(SUM(AH16/AH14),"0.0%") -> 0 | AI17: =IFERROR(SUM(AI16/AI14),"0.0%") -> 0 | AJ17: =IFERROR(SUM(AJ16/AJ14),"0.0%") -> 0 | AK17: =IFERROR(SUM(AK16/AK14),"0.0%") -> 0.04196642686 | AL17: =IFERROR(SUM(AL16/AL14),"0.0%") -> 0.02202643172 | AM17: =IFERROR(SUM(AM16/AM14),"0.0%") -> 0.06828391734 | AN17: =IFERROR(SUM(AN16/AN14),"0.0%") -> 0.06117021277 | AO17: =IFERROR(SUM(AO16/AO14),"0.0%") -> 0.08611410118 | AP17: =IFERROR(SUM(AP16/AP14),"0.0%") -> 0.05275407292 | AQ17: =IFERROR(SUM(AQ16/AQ14),"0.0%") -> 0.0657098004
B18: Trials scheduled at end of period | D18: =IF($B$3="Fort William", SUMIFS('JP SC Raw Data'!$O:$O,'JP SC Raw Data'!$C:$C,"Q1",'JP SC Raw Data'!$F:$F,"S",'JP SC Raw Data'!$B:$B,"2014/15",'JP SC Raw Data'!$E:$E,$B$3), IF(IFERROR(FIND(" ",$B$3),"")="",SUMIFS('JP SC Raw Data'!$O:$O,'JP SC Raw Data'!$C:$C,"Q1",'JP SC Raw Data'!$F:$F,"S",'JP SC Raw Data'!$B:$B,"2014/15",'JP SC Raw Data'!$E:$E,$B$3),SUMIFS('JP SC Raw Data'!$O:$O,'JP SC Raw Data'!$C:$C,"Q1",'JP SC Raw Data'!$F:$F,"S",'JP SC Raw Data'!$B:$B,"2014/15",'JP SC Raw Data'!$A:$A,$B$3))) -> 597 | E18: =IF($B$3="Fort William", SUMIFS('JP SC Raw Data'!$O:$O,'JP SC Raw Data'!$C:$C,"Q2",'JP SC Raw Data'!$F:$F,"S",'JP SC Raw Data'!$B:$B,"2014/15",'JP SC Raw Data'!$E:$E,$B$3), IF(IFERROR(FIND(" ",$B$3),"")="",SUMIFS('JP SC Raw Data'!$O:$O,'JP SC Raw Data'!$C:$C,"Q2",'JP SC Raw Data'!$F:$F,"S",'JP SC Raw Data'!$B:$B,"2014/15",'JP SC Raw Data'!$E:$E,$B$3),SUMIFS('JP SC Raw Data'!$O:$O,'JP SC Raw Data'!$C:$C,"Q2",'JP SC Raw Data'!$F:$F,"S",'JP SC Raw Data'!$B:$B,"2014/15",'JP SC Raw Data'!$A:$A,$B$3))) -> 642 | F18: =IF($B$3="Fort William", SUMIFS('JP SC Raw Data'!$O:$O,'JP SC Raw Data'!$C:$C,"Q3",'JP SC Raw Data'!$F:$F,"S",'JP SC Raw Data'!$B:$B,"2014/15",'JP SC Raw Data'!$E:$E,$B$3), IF(IFERROR(FIND(" ",$B$3),"")="",SUMIFS('JP SC Raw Data'!$O:$O,'JP SC Raw Data'!$C:$C,"Q3",'JP SC Raw Data'!$F:$F,"S",'JP SC Raw Data'!$B:$B,"2014/15",'JP SC Raw Data'!$E:$E,$B$3),SUMIFS('JP SC Raw Data'!$O:$O,'JP SC Raw Data'!$C:$C,"Q3",'JP SC Raw Data'!$F:$F,"S",'JP SC Raw Data'!$B:$B,"2014/15",'JP SC Raw Data'!$A:$A,$B$3))) -> 971 | G18: =IF($B$3="Fort William", SUMIFS('JP SC Raw Data'!$O:$O,'JP SC Raw Data'!$C:$C,"Q4",'JP SC Raw Data'!$F:$F,"S",'JP SC Raw Data'!$B:$B,"2014/15",'JP SC Raw Data'!$E:$E,$B$3), IF(IFERROR(FIND(" ",$B$3),"")="",SUMIFS('JP SC Raw Data'!$O:$O,'JP SC Raw Data'!$C:$C,"Q4",'JP SC Raw Data'!$F:$F,"S",'JP SC Raw Data'!$B:$B,"2014/15",'JP SC Raw Data'!$E:$E,$B$3),SUMIFS('JP SC Raw Data'!$O:$O,'JP SC Raw Data'!$C:$C,"Q4",'JP SC Raw Data'!$F:$F,"S",'JP SC Raw Data'!$B:$B,"2014/15",'JP SC Raw Data'!$A:$A,$B$3))) -> 886 | H18: =G18 -> 886 | I18: =IF($B$3="Fort William", SUMIFS('JP SC Raw Data'!$O:$O,'JP SC Raw Data'!$C:$C,"Q1",'JP SC Raw Data'!$F:$F,"S",'JP SC Raw Data'!$B:$B,"2015/16",'JP SC Raw Data'!$E:$E,$B$3), IF(IFERROR(FIND(" ",$B$3),"")="",SUMIFS('JP SC Raw Data'!$O:$O,'JP SC Raw Data'!$C:$C,"Q1",'JP SC Raw Data'!$F:$F,"S",'JP SC Raw Data'!$B:$B,"2015/16",'JP SC Raw Data'!$E:$E,$B$3),SUMIFS('JP SC Raw Data'!$O:$O,'JP SC Raw Data'!$C:$C,"Q1",'JP SC Raw Data'!$F:$F,"S",'JP SC Raw Data'!$B:$B,"2015/16",'JP SC Raw Data'!$A:$A,$B$3))) -> 968 | J18: =IF($B$3="Fort William", SUMIFS('JP SC Raw Data'!$O:$O,'JP SC Raw Data'!$C:$C,"Q2",'JP SC Raw Data'!$F:$F,"S",'JP SC Raw Data'!$B:$B,"2015/16",'JP SC Raw Data'!$E:$E,$B$3), IF(IFERROR(FIND(" ",$B$3),"")="",SUMIFS('JP SC Raw Data'!$O:$O,'JP SC Raw Data'!$C:$C,"Q2",'JP SC Raw Data'!$F:$F,"S",'JP SC Raw Data'!$B:$B,"2015/16",'JP SC Raw Data'!$E:$E,$B$3),SUMIFS('JP SC Raw Data'!$O:$O,'JP SC Raw Data'!$C:$C,"Q2",'JP SC Raw Data'!$F:$F,"S",'JP SC Raw Data'!$B:$B,"2015/16",'JP SC Raw Data'!$A:$A,$B$3))) -> 900 | K18: =IF($B$3="Fort William", SUMIFS('JP SC Raw Data'!$O:$O,'JP SC Raw Data'!$C:$C,"Q3",'JP SC Raw Data'!$F:$F,"S",'JP SC Raw Data'!$B:$B,"2015/16",'JP SC Raw Data'!$E:$E,$B$3), IF(IFERROR(FIND(" ",$B$3),"")="",SUMIFS('JP SC Raw Data'!$O:$O,'JP SC Raw Data'!$C:$C,"Q3",'JP SC Raw Data'!$F:$F,"S",'JP SC Raw Data'!$B:$B,"2015/16",'JP SC Raw Data'!$E:$E,$B$3),SUMIFS('JP SC Raw Data'!$O:$O,'JP SC Raw Data'!$C:$C,"Q3",'JP SC Raw Data'!$F:$F,"S",'JP SC Raw Data'!$B:$B,"2015/16",'JP SC Raw Data'!$A:$A,$B$3))) -> 904 | L18: =IF($B$3="Fort William", SUMIFS('JP SC Raw Data'!$O:$O,'JP SC Raw Data'!$C:$C,"Q4",'JP SC Raw Data'!$F:$F,"S",'JP SC Raw Data'!$B:$B,"2015/16",'JP SC Raw Data'!$E:$E,$B$3), IF(IFERROR(FIND(" ",$B$3),"")="",SUMIFS('JP SC Raw Data'!$O:$O,'JP SC Raw Data'!$C:$C,"Q4",'JP SC Raw Data'!$F:$F,"S",'JP SC Raw Data'!$B:$B,"2015/16",'JP SC Raw Data'!$E:$E,$B$3),SUMIFS('JP SC Raw Data'!$O:$O,'JP SC Raw Data'!$C:$C,"Q4",'JP SC Raw Data'!$F:$F,"S",'JP SC Raw Data'!$B:$B,"2015/16",'JP SC Raw Data'!$A:$A,$B$3))) -> 787 | M18: =L18 -> 787 | N18: =IF($B$3="Fort William", SUMIFS('JP SC Raw Data'!$O:$O,'JP SC Raw Data'!$C:$C,"Q1",'JP SC Raw Data'!$F:$F,"S",'JP SC Raw Data'!$B:$B,"2016/17",'JP SC Raw Data'!$E:$E,$B$3), IF(IFERROR(FIND(" ",$B$3),"")="",SUMIFS('JP SC Raw Data'!$O:$O,'JP SC Raw Data'!$C:$C,"Q1",'JP SC Raw Data'!$F:$F,"S",'JP SC Raw Data'!$B:$B,"2016/17",'JP SC Raw Data'!$E:$E,$B$3),SUMIFS('JP SC Raw Data'!$O:$O,'JP SC Raw Data'!$C:$C,"Q1",'JP SC Raw Data'!$F:$F,"S",'JP SC Raw Data'!$B:$B,"2016/17",'JP SC Raw Data'!$A:$A,$B$3))) -> 663 | O18: =IF($B$3="Fort William", SUMIFS('JP SC Raw Data'!$O:$O,'JP SC Raw Data'!$C:$C,"Q2",'JP SC Raw Data'!$F:$F,"S",'JP SC Raw Data'!$B:$B,"2016/17",'JP SC Raw Data'!$E:$E,$B$3), IF(IFERROR(FIND(" ",$B$3),"")="",SUMIFS('JP SC Raw Data'!$O:$O,'JP SC Raw Data'!$C:$C,"Q2",'JP SC Raw Data'!$F:$F,"S",'JP SC Raw Data'!$B:$B,"2016/17",'JP SC Raw Data'!$E:$E,$B$3),SUMIFS('JP SC Raw Data'!$O:$O,'JP SC Raw Data'!$C:$C,"Q2",'JP SC Raw Data'!$F:$F,"S",'JP SC Raw Data'!$B:$B,"2016/17",'JP SC Raw Data'!$A:$A,$B$3))) -> 613 | P18: =IF($B$3="Fort William", SUMIFS('JP SC Raw Data'!$O:$O,'JP SC Raw Data'!$C:$C,"Q3",'JP SC Raw Data'!$F:$F,"S",'JP SC Raw Data'!$B:$B,"2016/17",'JP SC Raw Data'!$E:$E,$B$3), IF(IFERROR(FIND(" ",$B$3),"")="",SUMIFS('JP SC Raw Data'!$O:$O,'JP SC Raw Data'!$C:$C,"Q3",'JP SC Raw Data'!$F:$F,"S",'JP SC Raw Data'!$B:$B,"2016/17",'JP SC Raw Data'!$E:$E,$B$3),SUMIFS('JP SC Raw Data'!$O:$O,'JP SC Raw Data'!$C:$C,"Q3",'JP SC Raw Data'!$F:$F,"S",'JP SC Raw Data'!$B:$B,"2016/17",'JP SC Raw Data'!$A:$A,$B$3))) -> 593 | Q18: =IF($B$3="Fort William", SUMIFS('JP SC Raw Data'!$O:$O,'JP SC Raw Data'!$C:$C,"Q4",'JP SC Raw Data'!$F:$F,"S",'JP SC Raw Data'!$B:$B,"2016/17",'JP SC Raw Data'!$E:$E,$B$3), IF(IFERROR(FIND(" ",$B$3),"")="",SUMIFS('JP SC Raw Data'!$O:$O,'JP SC Raw Data'!$C:$C,"Q4",'JP SC Raw Data'!$F:$F,"S",'JP SC Raw Data'!$B:$B,"2016/17",'JP SC Raw Data'!$E:$E,$B$3),SUMIFS('JP SC Raw Data'!$O:$O,'JP SC Raw Data'!$C:$C,"Q4",'JP SC Raw Data'!$F:$F,"S",'JP SC Raw Data'!$B:$B,"2016/17",'JP SC Raw Data'!$A:$A,$B$3))) -> 510 | R18: =Q18 -> 510 | S18: =IF($B$3="Fort William", SUMIFS('JP SC Raw Data'!$O:$O,'JP SC Raw Data'!$C:$C,"Q1",'JP SC Raw Data'!$F:$F,"S",'JP SC Raw Data'!$B:$B,"2017/18",'JP SC Raw Data'!$E:$E,$B$3), IF(IFERROR(FIND(" ",$B$3),"")="",SUMIFS('JP SC Raw Data'!$O:$O,'JP SC Raw Data'!$C:$C,"Q1",'JP SC Raw Data'!$F:$F,"S",'JP SC Raw Data'!$B:$B,"2017/18",'JP SC Raw Data'!$E:$E,$B$3),SUMIFS('JP SC Raw Data'!$O:$O,'JP SC Raw Data'!$C:$C,"Q1",'JP SC Raw Data'!$F:$F,"S",'JP SC Raw Data'!$B:$B,"2017/18",'JP SC Raw Data'!$A:$A,$B$3))) -> 411 | T18: =IF($B$3="Fort William", SUMIFS('JP SC Raw Data'!$O:$O,'JP SC Raw Data'!$C:$C,"Q2",'JP SC Raw Data'!$F:$F,"S",'JP SC Raw Data'!$B:$B,"2017/18",'JP SC Raw Data'!$E:$E,$B$3), IF(IFERROR(FIND(" ",$B$3),"")="",SUMIFS('JP SC Raw Data'!$O:$O,'JP SC Raw Data'!$C:$C,"Q2",'JP SC Raw Data'!$F:$F,"S",'JP SC Raw Data'!$B:$B,"2017/18",'JP SC Raw Data'!$E:$E,$B$3),SUMIFS('JP SC Raw Data'!$O:$O,'JP SC Raw Data'!$C:$C,"Q2",'JP SC Raw Data'!$F:$F,"S",'JP SC Raw Data'!$B:$B,"2017/18",'JP SC Raw Data'!$A:$A,$B$3))) -> 286 | U18: =IF($B$3="Fort William", SUMIFS('JP SC Raw Data'!$O:$O,'JP SC Raw Data'!$C:$C,"Q3",'JP SC Raw Data'!$F:$F,"S",'JP SC Raw Data'!$B:$B,"2017/18",'JP SC Raw Data'!$E:$E,$B$3), IF(IFERROR(FIND(" ",$B$3),"")="",SUMIFS('JP SC Raw Data'!$O:$O,'JP SC Raw Data'!$C:$C,"Q3",'JP SC Raw Data'!$F:$F,"S",'JP SC Raw Data'!$B:$B,"2017/18",'JP SC Raw Data'!$E:$E,$B$3),SUMIFS('JP SC Raw Data'!$O:$O,'JP SC Raw Data'!$C:$C,"Q3",'JP SC Raw Data'!$F:$F,"S",'JP SC Raw Data'!$B:$B,"2017/18",'JP SC Raw Data'!$A:$A,$B$3))) -> 347 | V18: =IF($B$3="Fort William", SUMIFS('JP SC Raw Data'!$O:$O,'JP SC Raw Data'!$C:$C,"Q4",'JP SC Raw Data'!$F:$F,"S",'JP SC Raw Data'!$B:$B,"2017/18",'JP SC Raw Data'!$E:$E,$B$3), IF(IFERROR(FIND(" ",$B$3),"")="",SUMIFS('JP SC Raw Data'!$O:$O,'JP SC Raw Data'!$C:$C,"Q4",'JP SC Raw Data'!$F:$F,"S",'JP SC Raw Data'!$B:$B,"2017/18",'JP SC Raw Data'!$E:$E,$B$3),SUMIFS('JP SC Raw Data'!$O:$O,'JP SC Raw Data'!$C:$C,"Q4",'JP SC Raw Data'!$F:$F,"S",'JP SC Raw Data'!$B:$B,"2017/18",'JP SC Raw Data'!$A:$A,$B$3))) -> 355 | W18: =V18 -> 355 | X18: =IF($B$3="Fort William", SUMIFS('JP SC Raw Data'!$O:$O,'JP SC Raw Data'!$C:$C,"Q1",'JP SC Raw Data'!$F:$F,"S",'JP SC Raw Data'!$B:$B,"2018/19",'JP SC Raw Data'!$E:$E,$B$3), IF(IFERROR(FIND(" ",$B$3),"")="",SUMIFS('JP SC Raw Data'!$O:$O,'JP SC Raw Data'!$C:$C,"Q1",'JP SC Raw Data'!$F:$F,"S",'JP SC Raw Data'!$B:$B,"2018/19",'JP SC Raw Data'!$E:$E,$B$3),SUMIFS('JP SC Raw Data'!$O:$O,'JP SC Raw Data'!$C:$C,"Q1",'JP SC Raw Data'!$F:$F,"S",'JP SC Raw Data'!$B:$B,"2018/19",'JP SC Raw Data'!$A:$A,$B$3))) -> 384 | Y18: =IF($B$3="Fort William", SUMIFS('JP SC Raw Data'!$O:$O,'JP SC Raw Data'!$C:$C,"Q2",'JP SC Raw Data'!$F:$F,"S",'JP SC Raw Data'!$B:$B,"2018/19",'JP SC Raw Data'!$E:$E,$B$3), IF(IFERROR(FIND(" ",$B$3),"")="",SUMIFS('JP SC Raw Data'!$O:$O,'JP SC Raw Data'!$C:$C,"Q2",'JP SC Raw Data'!$F:$F,"S",'JP SC Raw Data'!$B:$B,"2018/19",'JP SC Raw Data'!$E:$E,$B$3),SUMIFS('JP SC Raw Data'!$O:$O,'JP SC Raw Data'!$C:$C,"Q2",'JP SC Raw Data'!$F:$F,"S",'JP SC Raw Data'!$B:$B,"2018/19",'JP SC Raw Data'!$A:$A,$B$3))) -> 427 | Z18: =IF($B$3="Fort William", SUMIFS('JP SC Raw Data'!$O:$O,'JP SC Raw Data'!$C:$C,"Q3",'JP SC Raw Data'!$F:$F,"S",'JP SC Raw Data'!$B:$B,"2018/19",'JP SC Raw Data'!$E:$E,$B$3), IF(IFERROR(FIND(" ",$B$3),"")="",SUMIFS('JP SC Raw Data'!$O:$O,'JP SC Raw Data'!$C:$C,"Q3",'JP SC Raw Data'!$F:$F,"S",'JP SC Raw Data'!$B:$B,"2018/19",'JP SC Raw Data'!$E:$E,$B$3),SUMIFS('JP SC Raw Data'!$O:$O,'JP SC Raw Data'!$C:$C,"Q3",'JP SC Raw Data'!$F:$F,"S",'JP SC Raw Data'!$B:$B,"2018/19",'JP SC Raw Data'!$A:$A,$B$3))) -> 445 | AA18: =IF($B$3="Fort William", SUMIFS('JP SC Raw Data'!$O:$O,'JP SC Raw Data'!$C:$C,"Q4",'JP SC Raw Data'!$F:$F,"S",'JP SC Raw Data'!$B:$B,"2018/19",'JP SC Raw Data'!$E:$E,$B$3), IF(IFERROR(FIND(" ",$B$3),"")="",SUMIFS('JP SC Raw Data'!$O:$O,'JP SC Raw Data'!$C:$C,"Q4",'JP SC Raw Data'!$F:$F,"S",'JP SC Raw Data'!$B:$B,"2018/19",'JP SC Raw Data'!$E:$E,$B$3),SUMIFS('JP SC Raw Data'!$O:$O,'JP SC Raw Data'!$C:$C,"Q4",'JP SC Raw Data'!$F:$F,"S",'JP SC Raw Data'!$B:$B,"2018/19",'JP SC Raw Data'!$A:$A,$B$3))) -> 496 | AB18: =IF($B$3="Fort William", SUMIFS('JP SC Raw Data'!$O:$O,'JP SC Raw Data'!$C:$C,'JP SC Raw Data'!$AH2,'JP SC Raw Data'!$F:$F,"S",'JP SC Raw Data'!$B:$B,"2018/19",'JP SC Raw Data'!$E:$E,$B$3), IF(IFERROR(FIND(" ",$B$3),"")="",SUMIFS('JP SC Raw Data'!$O:$O,'JP SC Raw Data'!$C:$C,'JP SC Raw Data'!$AH2,'JP SC Raw Data'!$F:$F,"S",'JP SC Raw Data'!$B:$B,"2018/19",'JP SC Raw Data'!$E:$E,$B$3),SUMIFS('JP SC Raw Data'!$O:$O,'JP SC Raw Data'!$C:$C,'JP SC Raw Data'!$AH2,'JP SC Raw Data'!$F:$F,"S",'JP SC Raw Data'!$B:$B,"2018/19",'JP SC Raw Data'!$A:$A,$B$3))) -> 496 | AC18: =IF($B$3="Fort William", SUMIFS('JP SC Raw Data'!$O:$O,'JP SC Raw Data'!$C:$C,"Q1",'JP SC Raw Data'!$F:$F,"S",'JP SC Raw Data'!$B:$B,"2019/20",'JP SC Raw Data'!$E:$E,$B$3), IF(IFERROR(FIND(" ",$B$3),"")="",SUMIFS('JP SC Raw Data'!$O:$O,'JP SC Raw Data'!$C:$C,"Q1",'JP SC Raw Data'!$F:$F,"S",'JP SC Raw Data'!$B:$B,"2019/20",'JP SC Raw Data'!$E:$E,$B$3),SUMIFS('JP SC Raw Data'!$O:$O,'JP SC Raw Data'!$C:$C,"Q1",'JP SC Raw Data'!$F:$F,"S",'JP SC Raw Data'!$B:$B,"2019/20",'JP SC Raw Data'!$A:$A,$B$3))) -> 449 | AD18: =IF($B$3="Fort William", SUMIFS('JP SC Raw Data'!$O:$O,'JP SC Raw Data'!$C:$C,"Q2",'JP SC Raw Data'!$F:$F,"S",'JP SC Raw Data'!$B:$B,"2019/20",'JP SC Raw Data'!$E:$E,$B$3), IF(IFERROR(FIND(" ",$B$3),"")="",SUMIFS('JP SC Raw Data'!$O:$O,'JP SC Raw Data'!$C:$C,"Q2",'JP SC Raw Data'!$F:$F,"S",'JP SC Raw Data'!$B:$B,"2019/20",'JP SC Raw Data'!$E:$E,$B$3),SUMIFS('JP SC Raw Data'!$O:$O,'JP SC Raw Data'!$C:$C,"Q2",'JP SC Raw Data'!$F:$F,"S",'JP SC Raw Data'!$B:$B,"2019/20",'JP SC Raw Data'!$A:$A,$B$3))) -> 488 | AE18: =IF($B$3="Fort William", SUMIFS('JP SC Raw Data'!$O:$O,'JP SC Raw Data'!$C:$C,"Q3",'JP SC Raw Data'!$F:$F,"S",'JP SC Raw Data'!$B:$B,"2019/20",'JP SC Raw Data'!$E:$E,$B$3), IF(IFERROR(FIND(" ",$B$3),"")="",SUMIFS('JP SC Raw Data'!$O:$O,'JP SC Raw Data'!$C:$C,"Q3",'JP SC Raw Data'!$F:$F,"S",'JP SC Raw Data'!$B:$B,"2019/20",'JP SC Raw Data'!$E:$E,$B$3),SUMIFS('JP SC Raw Data'!$O:$O,'JP SC Raw Data'!$C:$C,"Q3",'JP SC Raw Data'!$F:$F,"S",'JP SC Raw Data'!$B:$B,"2019/20",'JP SC Raw Data'!$A:$A,$B$3))) -> 482 | AF18: =IF($B$3="Fort William", SUMIFS('JP SC Raw Data'!$O:$O,'JP SC Raw Data'!$C:$C,"Q4",'JP SC Raw Data'!$F:$F,"S",'JP SC Raw Data'!$B:$B,"2019/20",'JP SC Raw Data'!$E:$E,$B$3), IF(IFERROR(FIND(" ",$B$3),"")="",SUMIFS('JP SC Raw Data'!$O:$O,'JP SC Raw Data'!$C:$C,"Q4",'JP SC Raw Data'!$F:$F,"S",'JP SC Raw Data'!$B:$B,"2019/20",'JP SC Raw Data'!$E:$E,$B$3),SUMIFS('JP SC Raw Data'!$O:$O,'JP SC Raw Data'!$C:$C,"Q4",'JP SC Raw Data'!$F:$F,"S",'JP SC Raw Data'!$B:$B,"2019/20",'JP SC Raw Data'!$A:$A,$B$3))) -> 497 | AG18: =IF($B$3="Fort William", SUMIFS('JP SC Raw Data'!$O:$O,'JP SC Raw Data'!$C:$C,'JP SC Raw Data'!$AE2,'JP SC Raw Data'!$F:$F,"S",'JP SC Raw Data'!$B:$B,"2019/20",'JP SC Raw Data'!$E:$E,$B$3), IF(IFERROR(FIND(" ",$B$3),"")="",SUMIFS('JP SC Raw Data'!$O:$O,'JP SC Raw Data'!$C:$C,'JP SC Raw Data'!$AE2,'JP SC Raw Data'!$F:$F,"S",'JP SC Raw Data'!$B:$B,"2019/20",'JP SC Raw Data'!$E:$E,$B$3),SUMIFS('JP SC Raw Data'!$O:$O,'JP SC Raw Data'!$C:$C,'JP SC Raw Data'!$AE2,'JP SC Raw Data'!$F:$F,"S",'JP SC Raw Data'!$B:$B,"2019/20",'JP SC Raw Data'!$A:$A,$B$3))) -> 497 | AH18: =IF($B$3="Fort William", SUMIFS('JP SC Raw Data'!$O:$O,'JP SC Raw Data'!$C:$C,"Q1",'JP SC Raw Data'!$F:$F,"S",'JP SC Raw Data'!$B:$B,"2020/21",'JP SC Raw Data'!$E:$E,$B$3), IF(IFERROR(FIND(" ",$B$3),"")="",SUMIFS('JP SC Raw Data'!$O:$O,'JP SC Raw Data'!$C:$C,"Q1",'JP SC Raw Data'!$F:$F,"S",'JP SC Raw Data'!$B:$B,"2020/21",'JP SC Raw Data'!$E:$E,$B$3),SUMIFS('JP SC Raw Data'!$O:$O,'JP SC Raw Data'!$C:$C,"Q1",'JP SC Raw Data'!$F:$F,"S",'JP SC Raw Data'!$B:$B,"2020/21",'JP SC Raw Data'!$A:$A,$B$3))) -> 497 | AI18: =IF($B$3="Fort William", SUMIFS('JP SC Raw Data'!$O:$O,'JP SC Raw Data'!$C:$C,"Q2",'JP SC Raw Data'!$F:$F,"S",'JP SC Raw Data'!$B:$B,"2020/21",'JP SC Raw Data'!$E:$E,$B$3), IF(IFERROR(FIND(" ",$B$3),"")="",SUMIFS('JP SC Raw Data'!$O:$O,'JP SC Raw Data'!$C:$C,"Q2",'JP SC Raw Data'!$F:$F,"S",'JP SC Raw Data'!$B:$B,"2020/21",'JP SC Raw Data'!$E:$E,$B$3),SUMIFS('JP SC Raw Data'!$O:$O,'JP SC Raw Data'!$C:$C,"Q2",'JP SC Raw Data'!$F:$F,"S",'JP SC Raw Data'!$B:$B,"2020/21",'JP SC Raw Data'!$A:$A,$B$3))) -> 613 | AJ18: =IF($B$3="Fort William", SUMIFS('JP SC Raw Data'!$O:$O,'JP SC Raw Data'!$C:$C,"Q3",'JP SC Raw Data'!$F:$F,"S",'JP SC Raw Data'!$B:$B,"2020/21",'JP SC Raw Data'!$E:$E,$B$3), IF(IFERROR(FIND(" ",$B$3),"")="",SUMIFS('JP SC Raw Data'!$O:$O,'JP SC Raw Data'!$C:$C,"Q3",'JP SC Raw Data'!$F:$F,"S",'JP SC Raw Data'!$B:$B,"2020/21",'JP SC Raw Data'!$E:$E,$B$3),SUMIFS('JP SC Raw Data'!$O:$O,'JP SC Raw Data'!$C:$C,"Q3",'JP SC Raw Data'!$F:$F,"S",'JP SC Raw Data'!$B:$B,"2020/21",'JP SC Raw Data'!$A:$A,$B$3))) -> 939 | AK18: =IF($B$3="Fort William", SUMIFS('JP SC Raw Data'!$O:$O,'JP SC Raw Data'!$C:$C,"Q4",'JP SC Raw Data'!$F:$F,"S",'JP SC Raw Data'!$B:$B,"2020/21",'JP SC Raw Data'!$E:$E,$B$3), IF(IFERROR(FIND(" ",$B$3),"")="",SUMIFS('JP SC Raw Data'!$O:$O,'JP SC Raw Data'!$C:$C,"Q4",'JP SC Raw Data'!$F:$F,"S",'JP SC Raw Data'!$B:$B,"2020/21",'JP SC Raw Data'!$E:$E,$B$3),SUMIFS('JP SC Raw Data'!$O:$O,'JP SC Raw Data'!$C:$C,"Q4",'JP SC Raw Data'!$F:$F,"S",'JP SC Raw Data'!$B:$B,"2020/21",'JP SC Raw Data'!$A:$A,$B$3))) -> 1329 | AL18: =IF($B$3="Fort William", SUMIFS('JP SC Raw Data'!$O:$O,'JP SC Raw Data'!$C:$C,'JP SC Raw Data'!$AK2,'JP SC Raw Data'!$F:$F,"S",'JP SC Raw Data'!$B:$B,"2020/21",'JP SC Raw Data'!$E:$E,$B$3), IF(IFERROR(FIND(" ",$B$3),"")="",SUMIFS('JP SC Raw Data'!$O:$O,'JP SC Raw Data'!$C:$C,'JP SC Raw Data'!$AK2,'JP SC Raw Data'!$F:$F,"S",'JP SC Raw Data'!$B:$B,"2020/21",'JP SC Raw Data'!$E:$E,$B$3),SUMIFS('JP SC Raw Data'!$O:$O,'JP SC Raw Data'!$C:$C,'JP SC Raw Data'!$AK2,'JP SC Raw Data'!$F:$F,"S",'JP SC Raw Data'!$B:$B,"2020/21",'JP SC Raw Data'!$A:$A,$B$3))) -> 1329 | AM18: =IF($B$3="Fort William", SUMIFS('JP SC Raw Data'!$O:$O,'JP SC Raw Data'!$C:$C,"Q1",'JP SC Raw Data'!$F:$F,"S",'JP SC Raw Data'!$B:$B,"2021/22",'JP SC Raw Data'!$E:$E,$B$3), IF(IFERROR(FIND(" ",$B$3),"")="",SUMIFS('JP SC Raw Data'!$O:$O,'JP SC Raw Data'!$C:$C,"Q1",'JP SC Raw Data'!$F:$F,"S",'JP SC Raw Data'!$B:$B,"2021/22",'JP SC Raw Data'!$E:$E,$B$3),SUMIFS('JP SC Raw Data'!$O:$O,'JP SC Raw Data'!$C:$C,"Q1",'JP SC Raw Data'!$F:$F,"S",'JP SC Raw Data'!$B:$B,"2021/22",'JP SC Raw Data'!$A:$A,$B$3))) -> 1595 | AN18: =IF($B$3="Fort William", SUMIFS('JP SC Raw Data'!$O:$O,'JP SC Raw Data'!$C:$C,"Q2",'JP SC Raw Data'!$F:$F,"S",'JP SC Raw Data'!$B:$B,"2021/22",'JP SC Raw Data'!$E:$E,$B$3), IF(IFERROR(FIND(" ",$B$3),"")="",SUMIFS('JP SC Raw Data'!$O:$O,'JP SC Raw Data'!$C:$C,"Q2",'JP SC Raw Data'!$F:$F,"S",'JP SC Raw Data'!$B:$B,"2021/22",'JP SC Raw Data'!$E:$E,$B$3),SUMIFS('JP SC Raw Data'!$O:$O,'JP SC Raw Data'!$C:$C,"Q2",'JP SC Raw Data'!$F:$F,"S",'JP SC Raw Data'!$B:$B,"2021/22",'JP SC Raw Data'!$A:$A,$B$3))) -> 1842 | AO18: =IF($B$3="Fort William", SUMIFS('JP SC Raw Data'!$O:$O,'JP SC Raw Data'!$C:$C,"Q3",'JP SC Raw Data'!$F:$F,"S",'JP SC Raw Data'!$B:$B,"2021/22",'JP SC Raw Data'!$E:$E,$B$3), IF(IFERROR(FIND(" ",$B$3),"")="",SUMIFS('JP SC Raw Data'!$O:$O,'JP SC Raw Data'!$C:$C,"Q3",'JP SC Raw Data'!$F:$F,"S",'JP SC Raw Data'!$B:$B,"2021/22",'JP SC Raw Data'!$E:$E,$B$3),SUMIFS('JP SC Raw Data'!$O:$O,'JP SC Raw Data'!$C:$C,"Q3",'JP SC Raw Data'!$F:$F,"S",'JP SC Raw Data'!$B:$B,"2021/22",'JP SC Raw Data'!$A:$A,$B$3))) -> 2170 | AP18: =IF($B$3="Fort William", SUMIFS('JP SC Raw Data'!$O:$O,'JP SC Raw Data'!$C:$C,"Q4",'JP SC Raw Data'!$F:$F,"S",'JP SC Raw Data'!$B:$B,"2021/22",'JP SC Raw Data'!$E:$E,$B$3), IF(IFERROR(FIND(" ",$B$3),"")="",SUMIFS('JP SC Raw Data'!$O:$O,'JP SC Raw Data'!$C:$C,"Q4",'JP SC Raw Data'!$F:$F,"S",'JP SC Raw Data'!$B:$B,"2021/22",'JP SC Raw Data'!$E:$E,$B$3),SUMIFS('JP SC Raw Data'!$O:$O,'JP SC Raw Data'!$C:$C,"Q4",'JP SC Raw Data'!$F:$F,"S",'JP SC Raw Data'!$B:$B,"2021/22",'JP SC Raw Data'!$A:$A,$B$3))) -> 2274 | AQ18: =IF($B$3="Fort William", SUMIFS('JP SC Raw Data'!$O:$O,'JP SC Raw Data'!$C:$C,'JP SC Raw Data'!$AB2,'JP SC Raw Data'!$F:$F,"S",'JP SC Raw Data'!$B:$B,"2021/22",'JP SC Raw Data'!$E:$E,$B$3), IF(IFERROR(FIND(" ",$B$3),"")="",SUMIFS('JP SC Raw Data'!$O:$O,'JP SC Raw Data'!$C:$C,'JP SC Raw Data'!$AB2,'JP SC Raw Data'!$F:$F,"S",'JP SC Raw Data'!$B:$B,"2021/22",'JP SC Raw Data'!$E:$E,$B$3),SUMIFS('JP SC Raw Data'!$O:$O,'JP SC Raw Data'!$C:$C,'JP SC Raw Data'!$AB2,'JP SC Raw Data'!$F:$F,"S",'JP SC Raw Data'!$B:$B,"2021/22",'JP SC Raw Data'!$A:$A,$B$3))) -> 2274
